Workbook

Sheet Cover
A1: 30
C2: Pre-Decisional, FOIA-Exempt, Deliberative Process
C13: Rate Analysis Model V1.01
B14: =VLOOKUP(C14,'Select Scenario'!B:C,2,FALSE) -> 1 | C14: =VLOOKUP(1,'Select Scenario'!A:B,2,FALSE) -> FY 2022-23 Reference Case
C15: Home / Contents
C18: Purpose of this Workbook:
C22: Legend:
C24: Tab Colors | H24: Font Colors | L24: Hyperlink Types
C26: Blue Tab | E26: Cover Sheet | H26: Blue Font | I26: Constant Values | L26: Cover Hyperlink | N26: Cover Page
C27: Green Tab | E27: Table of Contents | H27: Black Font | I27: Calculated Values | L27: TOC Hyperlink | N27: TOC
C28: Dark Blue Tabs | E28: Input Sheets | H28: Plum Font | I28: Hyperlinks | L28: Sheet Top Hyperlink | N28: é
C29: Rose Tabs | E29: Assumption Sheets | H29: Red Font | I29: Errors/Checks
C30: Tan Tabs | E30: Calculation/Output Sheets | H30: Black/Yellow | I30: Work in Progress
C31: Teal Tabs | E31: Lookup Sheets | H31: Black/Gold | I31: Modifiable Assumptions
C32: Reb Tabs | E32: Log/Error Sheet | H32: White/Grey | I32: Locked Data
C33: Black Tabs | E33: Locked Data Sheet
C34: Yellow Tabs | E34: REP Settlement Sheets
C35: Purple Tabs | E35: 7b2 Related Sheets

Sheet Select Scenario
A1: Run (1=yes, 0=no) | B1: Scenario | C1: Scenario # | D1: Functionality | E1: Note | F1: Input Parameter | H1: Do not change black boxes
A2: =IF(SUM(A3:A100)=0,1,0) -> 1 | B2: FY 2022-23 Reference Case | C2: 1 | H2: =IF($A$4=1,1,0)+H3 -> 0 | I2: no conservation adjustment to 7(b)(2) Case loads | J2: 7b2 Con Load; 7b2 Resource Sort | K2: conservation resources removed from load adjustment and from resource stack
A3: 0 | B3: No Transmission Cost in ASCs | C3: =C2+1 -> 2 | D3: yes | H3: =IF($A$5=1,1,0) -> 0 | I3: include conservation costs in 7(b)(2) Case COSA | J3: 7b2 Case COSA | K3: conservation revenue requirement set equal to Program Case values; net interest, PNRR, and MRNR are set to Program Case values
A4: 0 | B4: Conservation = Gen Requirement w/out costs | C4: =C3+1 -> 3 | D4: yes | H4: 1 | I4: Conservation - Overhead added to Res. Stack
A5: 0 | B5: Conservation = Gen Requirement with costs | C5: 4 | D5: yes
A6: 0 | B6: Conservation Resource Expensed 1st Year | C6: 5 | D6: yes | I6: Back to Cover
A7: 0 | B7: placeholder | D7: partial | E7: do not use
A8: 0 | B8: Mid-C in Stack | C8: =C6+1 -> 6 | D8: yes
A9: 0 | B9: Discount Rate - Not Applied | C9: 7 | D9: yes
A10: 0 | B10: Discount Rate = Inflation | C10: 8 | D10: yes
A11: 0 | B11: Discount Rate = Investment Rate | C11: 9 | D11: yes
A12: 0 | B12: Identical Secondary Credit | C12: 10 | D12: yes
A13: 0 | B13: No 7(b)(3) to Surplus | C13: 11 | D13: yes
A14: 0 | B14: Single Repayment Study | C14: 12 | D14: yes
A15: 0 | B15: ASCs - High | C15: 15 | D15: yes
A16: 0 | B16: ASCs - Average of High/Low (V1) | C16: =C15+1 -> 16 | D16: yes
A17: 0 | B17: ASCs - Average of FY22-25, Hist. Growth (V2) | C17: 17 | D17: yes
A18: 0 | B18: ASCs - Double | C18: 18 | D18: yes
A19: 0 | B19: ASC - Test Period equals Rate Period | C19: 19 | D19: yes
A20: 0 | B20: ASC - Test Period decline from Rate Peirod | C20: 20 | D20: yes | F20: =0.1 -> 0.1
A21: 0 | B21: High Conservation +(50%) | C21: 21 | D21: yes
A22: 0 | B22: Low Conservation -(50%) | C22: 22 | D22: yes
A23: 0 | B23: Placeholder | D23: yes | F23: 500
A24: 0 | B24: Loads - PF Decrease (-1000aMW) | C24: =C22+1 -> 23 | D24: yes | F24: -1000
A25: 0 | B25: Loads - PF Rise (+1000aMW) | C25: =C24+1 -> 24 | D25: yes | F25: 1000
A26: 0 | B26: Resources - Decrease (-1000aMW) / combine with row 24 (low loads) | C26: 26 | D26: yes | F26: -1000
A27: 0 | B27: Resources - Rise (+1000aMW) / combine with row 25 (high loads) | C27: 25 | D27: yes | F27: 1000
A28: 0 | B28: Cost Increase $100m | C28: 29 | D28: yes | F28: 100000
A30: Select the scenario to run by adjusting cell in column A from 0 to 1
A31: Do not change values in black boxes
A32: Return to Cover tab and click Run RAM

Sheet REPOutput
C1: REP-Total | D1: REP-IOU | E1: REP-COU | F1: Tier 1 | G1: Unbif PF | H1: PFp | I1: PFx | J1: FY22-23 ASCs | K1: 6yr Wtd ASCs | L1: Base PFx Rate | M1: Pre 7(b)(2) REP Benefits | N1: Program Case | O1: 7b2 Case | P1: Trigger | Q1: Total Rate Protection | R1: Rate Protection to Secondary Loads | S1: Rate Protection to IP Loads | T1: Rate Protection to PF Exchange Loads
A4: =VLOOKUP(B4,'Select Scenario'!B:C,2,FALSE) -> 1 | B4: =Cover!C14 -> FY 2022-23 Reference Case | C4: =D4+E4 -> 31839.78731 | D4: =AVERAGE('Utility Specifc PFx'!K35,'Utility Specifc PFx'!K54) -> 31280.05815 | E4: =AVERAGE('Utility Specifc PFx'!K36,'Utility Specifc PFx'!K55) -> 559.7291543 | F4: =ScenarioResults!D48 -> 30.62 | G4: =ScenarioResults!C7 -> 46.97392928 | H4: =ScenarioResults!C8 -> 30.67 | I4: =ScenarioResults!C9 -> 66.49121413 | J4: ='Exchange Summary'!$N$9 -> 67.20227888 | K4: ='Exchange Summary'!O9 -> 69.99186236 | L4: ='Utility Specifc PFx'!E8 -> 52.50487 | M4: ='Utility Specifc PFx'!G17 -> 657291.7692 | N4: =TriggerCalc!J33 -> 42.25 | O4: =TriggerCalc!J34 -> 25.95 | P4: =N4-O4 -> 16.3 | Q4: ='7b2 Allocation'!F16 -> 936201.5763 | R4: ='7b2 Allocation'!L30 -> 310980.4692 | S4: ='7b2 Allocation'!L28 -> 1464.35069 | T4: ='7b2 Allocation'!L27 -> 623756.6193
B6: to scenarios

Sheet TOC
A1: 30 | B1: Table of Contents
B2: =Cover!C13 -> Rate Analysis Model V1.01
B3: =Cover!$C$14 -> FY 2022-23 Reference Case
B4: Cover Sheet | F4: PRS | G4: 7(b)(2)
E5: Input | F5: Documentation | G5: Documentation
A6: é | B6: Section & Sheet Titles | D6: Worksheet Name | E6: Datasheet? | F6: Table Number | G6: Table Number
B8: Documentation
B9: 1 | C9: Macro Design Schematic | D9: Macro
B10: Assumption Sheets
B11: =+B9+1 -> 2 | C11: Initialize Assumptions | D11: Init | E11: INPUT
B12: Validation/Error Check/Result Summary
B13: =B11+1 -> 3 | C13: Revenue Check | D13: Rev Check
B14: =+B13+1 -> 4 | C14: Rate Design Summary | D14: RateSummary
B15: 5 | C15: Scenario Results | D15: ScenarioResults
B16: 6 | C16: Expanded Scenario Results | D16: ResultsDetail
B17: Loads and Resources Data
B18: =+B16+1 -> 7 | C18: Load Input Data | D18: Loads | E18: INPUT | F18: Table 2.1.1 | G18: Table 1.1.1
B19: =+B18+1 -> 8 | C19: Load Forecast with Monthly Losses Applied | D19: Loads_MthLoss
B20: =+B19+1 -> 9 | C20: PF Public with Firm Slice Loads | D20: PF Public | E20: INPUT
B21: =+B20+1 -> 10 | C21: PF Exchange Loads | D21: PF Exchange | E21: INPUT
B22: 11 | C22: IP Loads | D22: RAM IP | E22: INPUT
B23: 12 | C23: NR Loads | D23: RAM NR | E23: INPUT
B24: =+B23+1 -> 13 | C24: Resource Input Data | D24: Resources | E24: INPUT | F24: Table 2.1.2 | G24: Table 1.1.2
B25: 14 | C25: Residential Exchange Input Data | D25: ExchangeInputs | E25: INPUT
B26: =+B25+1 -> 15 | C26: Transmission Inputs | D26: TransInputs | E26: INPUT
B27: =+B26+1 -> 16 | C27: Losses Inputs | D27: LossesInputs | E27: INPUT
B28: 17 | C28: REP Settlement Inputs | D28: REPSettlementSchedule
B29: =+B28+1 -> 18 | C29: Calculation of Exchange Transmission Adder | D29: Exchange Trans
B30: 19 | C30: Calculation of Exchange Resource Size and Costs | D30: Exchange Summary | F30: Table 2.1.3 | G30: Table 1.1.3
B31: =+B30+1 -> 20 | C31: Load Resource Study | D31: LR_Balance | F31: Table 2.2.1 | G31: Table 1.2.1
B32: 21 | C32: Load Resource Balance | D32: LR_Adjust | F32: Table 2.2.2 | G32: Table 1.2.2
B33: 22 | C33: Program Case Energy Allocation Factors | D33: ProgAlloc | F33: Table 2.2.3 | G33: Table 1.2.3
B34: Determination of Active Residential Exchange Costs
B35: =+B33+1 -> 23 | C35: Active Exchanging Utilities | D35: Active Exchange
B36: 24 | C36: Exchanging Utilities' ASCs | D36: Exchange ASC
B37: 25 | C37: Exchanging Utilities' Exchange Loads | D37: Exchange Load
B38: 26 | C38: Exchange Resource Costs | D38: Exchange Resource Cost
B39: Ratemaking Revenue Requirement Data
B40: =+B38+1 -> 27 | C40: Disaggregated Costs with TRM and COSA Flags | D40: Cost | E40: INPUT
B41: =+B40+1 -> 28 | C41: Disaggregated Costs with TRM and COSA Flags, Includes Internally Developed Costs | D41: CostPrint | F41: Table 2.3.1 | G41: Table 1.3.1
B42: =+B41+1 -> 29 | C42: Aggregated COSA Costs | D42: ProgCOSA | F42: Table 2.3.2 | G42: Table 1.3.2
B43: =+B42+1 -> 30 | C43: LDD and IRD Costs | D43: LDD_IRD | F43: Table 2.3.3 | G43: Table 1.3.3
B44: Allocation of COSA Costs to Rate Pools
B45: =+B43+1 -> 31 | C45: Allocation of FBS and LDD/IRD Costs | D45: FBS_LDD_IRD_Allocation | F45: Table 2.3.4.1 | G45: Table 1.3.4.1
B46: =+B45+1 -> 32 | C46: Allocation of New Resource and Exchange Costs | D46: NR_EX_Allocation | F46: Table 2.3.4.2 | G46: Table 1.3.4.2
B47: =+B46+1 -> 33 | C47: Allocation of Conservation, BPA Program and Transmission Costs | D47: Cons_Program_Allocation | F47: Table 2.3.4.3 | G47: Table 1.3.4.3
B48: =+B47+1 -> 34 | C48: Initial Cost Allocation | D48: Initial_Cost_Allocation | F48: Table 2.3.5 | G48: Table 1.3.5
B49: =+B48+1 -> 35 | C49: Cost Allocation Summary | D49: Cost_Allocation Summary
B50: Revenue Credits Allocation to Rate Pools
B51: =+B49+1 -> 36 | C51: Revenue Credits | D51: RDS_Credits | F51: Table 2.3.6 | G51: Table 1.3.6
B52: =+B51+1 -> 37 | C52: Revenue Credits Allocated to Loads Recovering FBS Costs | D52: Credits FBS | F52: Tables 2.3.7.1 & 2.3.7.2 | G52: Tables 1.3.7.1 & 1.3.7.2
B53: 38 | C53: Revenue Credits Allocated to Loads Recovering New Resource and Conservation Costs | D53: Credits NR-Cons | F53: Tables 2.3.7.3 & 2.3.7.4 | G53: Tables 1.3.7.3 & 1.3.7.4
B54: 39 | C54: Revenue Credits Allocated to All Loads | D54: Credits Gen-RSS | F54: Tables 2.3.7.5 & 2.3.7.6 | G54: Tables 1.3.7.5 & 1.3.7.6
B55: 40 | C55: Secondary Revenue and Balancing Purchases Input Data | D55: RevSimInputs | E55: INPUT
B56: 41 | C56: Calculation and Allocation of Secondary Revenue Credit | D56: Secondary | F56: Table 2.3.8 | G56: Table 1.3.8
B57: 42 | C57: Calculation and Allocation of FPS Revenue Deficiency | D57: FPS Revenue Deficiency | F57: Table 2.3.9 | G57: Table 1.3.9
B58: Rate Directive Ratemaking
B59: =+B57+1 -> 43 | C59: Calculation of Rates After Initial Allocation of Cost and Credits | D59: Initial Rates | F59: Table 2.3.10 | G59: Table 1.3.10
B60: =+B59+1 -> 44 | C60: Value of Reserves and Industrial Margin Computation | D60: Margin_VOR
B61: 45 | C61: Value of Reserves and Industrial Margin Computation | D61: Margin_VOR_Calc | F61: Table 2.4.1 | G61: Table 1.4.1
B62: 46 | C62: Calculate Annual Scalars Used to Calculate Monthly Rates for First IP-PF Link | D62: Calc Scalar 1 | F62: Table 2.4.2 | G62: Table 1.4.2
B63: 47 | C63: Calculate Monthly Rates Used in First IP - PF Link Calculation | D63: Calc Monthly 1 | F63: Table 2.4.3 | G63: Table 1.4.3
B64: 48 | C64: Calculation of the 7c2 IP-PF Link Amount | D64: IP_PF_Link | F64: Table 2.4.4 | G64: Table 1.4.4
B65: 49 | C65: Allocation of the 7c2 IP-PF Link Amount and Subsequant Rate Calculations | D65: Rates After Link | F65: Table 2.4.5 | G65: Table 1.4.5
B66: 50 | C66: Calculation of the DSI Floor Rate | D66: IP Floor Calc | F66: Table 2.4.6 | G66: Table 1.4.6
B67: 51 | C67: DSI Floor Rate Test 1 | D67: Floor Test 1 | F67: Table 2.4.7 | G67: Table 1.4.7
B68: =B67+1 -> 52 | C68: Calculation of IOU and COU Base Exchange Rates | D68: Base PF Exchange | F68: Table 2.4.8 | G68: Table 1.4.8
B69: REP Settlement Case Rate Directive Ratemaking
B70: =+B68+1 -> 53 | C70: Calculation of REP Adjustment Amount under Settlement | D70: Post-7b2Rates | F70: Table 2.4.9
B71: =B70+1 -> 54 | C71: Rate Analysis Model - Exchange Resource Cost | D71: Base Exchange Cost | F71: Table 2.4.10
B72: =B71+1 -> 55 | C72: Calculation of Settlement Utility Specific PF Exchange Rates | D72: Utility Specific PFx Settle | F72: Table 2.4.11
B73: =+B72+1 -> 56 | C73: 2012 REP Settlement Agreement Section 6 Reallocations | D73: IOU Reallocation Balances | F73: Table 2.4.12
B74: =+B73+1 -> 57 | C74: Allocation of Increase in the PFx Revenue Requirement under Settlement | D74: Rates After Settlement | F74: Table 2.4.13
B75: 58 | C75: Reallocation of REP Net Benefits under Settlement | D75: WP-10 Adjustment | F75: Table 2.4.14
B76: 59 | C76: Rate Computation after Reallocation of REP Benefits under Settlement | D76: Rates After WP-10 Adjustment | F76: Table 2.4.15
B77: 60 | C77: Calculate Annual Scalars Used to Calculate Monthly Rates | D77: Calc Scalar Settlement | F77: Table 2.4.16
B78: 61 | C78: Calculate Monthly Rates Used in First IP - PF Link Calculation | D78: Calc Monthly Settlement | F78: Table 2.4.17
B79: 62 | C79: Initial 7c2 IP-PF Link Calculation | D79: IP_PF_Link Settlement | F79: Table 2.4.18
B80: 63 | C80: Calculation of Rates after IP-PF Link under Settlement | D80: Rates After Link Settlement | F80: Table 2.4.19
B81: 64 | C81: Settlement Revenue Check | D81: Settlement Rev Check
B82: =+B81+1 -> 65 | C82: Net REP Ratemaking Proof Table under Settlement | D82: Net REP Settlement | F82: Table 3.1.7.1
B83: Program Case Rate Directive Ratemaking
B84: =+B82+1 -> 66 | C84: Calculation of the 7b2 Rate Test Trigger | D84: TriggerCalc | G84: Table 1.4.9
B85: =+B84+1 -> 67 | C85: Calculation and Allocation of the 7b2 Rate Protection Amount | D85: 7b2 Allocation | G85: Table 1.4.10
B86: 68 | C86: Calculation of Rates After the Allocation of the 7b2 Rate Protection Amount | D86: Rates After 7b2 | G86: Table 1.4.11
B87: 69 | C87: Calculate Annual Scalars Used to Calculate Monthly Rates for 7b2 Industrial Adjustment 7c2 Delta | D87: Calc Scalar 2 | G87: Table 1.4.12
B88: 70 | C88: Calculate Monthly Rates Used in 7b2 Industrial Adjustment 7c2 Delta | D88: Calc Monthly 2 | G88: Table 1.4.13
B89: 71 | C89: Calculation of the 7b2 Industrial Adjustment 7c2 Delta | D89: IP_PF_Link 2 | G89: Table 1.4.14
B90: 72 | C90: Allocation of the 7b2 Industrial Adjustment 7c2 Delta and Subsequant Rate Calculations | D90: Rates After Link (2) | G90: Table 1.4.15
B91: 73 | C91: DSI Floor Rate Test 2 | D91: Floor Test 2 | G91: Table 1.4.16
B92: 74 | C92: Calculation of Utility Specific PF Exchange Rates | D92: Utility Specifc PFx
B93: 75 | C93: Program Case Revenue Check | D93: Program Rev Check
B94: Rate Pool Unit Cost Tables and Net REP Ratemaking Proof
B95: =+B93+1 -> 76 | C95: PF Rate Pool Unit Cost Table | D95: PF Allocation | F95: Table 2.5.1 | G95: Table 1.5.4
B96: =+B95+1 -> 77 | C96: IP Rate Pool Unit Cost Table | D96: IP Allocation | F96: Table 2.5.2 | G96: Table 1.5.5
B97: =+B96+1 -> 78 | C97: NR Rate Pool Unit Cost Table | D97: NR Allocation | F97: Table 2.5.3 | G97: Table 1.5.6
B98: =+B97+1 -> 79 | C98: Generating Resource Component Contribution Table | D98: Cost Contribution | F98: Table 2.5.4 | G98: Table 1.5.7
B99: =+B98+1 -> 80 | C99: Net REP Ratemaking Proof Table | D99: Net REP
B100: =+B99+1 -> 81 | C100: Reconciliation of REP Benefits for Tiered Rates | D100: REP Benefits | F100: Table 2.4.20
B101: Tiered Rates Methodology (TRM)
B102: =+B100+1 -> 82 | C102: Aggregated TRM Costs | D102: Costs_TRM | F102: Table 3.1.1
B103: =+B102+1 -> 83 | C103: TRM Billing Determinants | D103: TRM_Billing | E103: INPUT
B104: 84 | C104: Unused RHWM Calculation | D104: UnusedRHWM | F104: Table 3.1.2
B105: 85 | C105: NonSlice Cost for Transmission Losses (Composite Credit) | D105: NonSliceLossAdjust | F105: Table 3.1.3
B106: 86 | C106: Balancing Augmentation Adjustment for Change in T1SFCO | D106: T1SFCO | F106: Table 3.1.4
B107: 87 | C107: TRM Market Prices and Demand Rates | D107: MarketInputs | E107: INPUT
B108: 88 | C108: TRM Demand and Load Shaping Charges | D108: LoadShapingandDemand | F108: Table 3.1.5
B109: 89 | C109: PF Load Forecast Deviation Liquidated Damages | D109: LiquidatedDamages | E109: INPUT | F109: Table 3.12
B110: 90 | C110: Tier 2 Rates Inputs | D110: Tier 2 Rates | E110: INPUT
B111: 91 | C111: Sales Calculation for Tier 2 Overhead Cost Adder | D111: Tier2OverheadSales
B112: 92 | C112: TRM Cost Allocation | D112: Cost_Allocation_TRM | F112: Table 3.1.6
B113: 93 | C113: Cost Proof | D113: Cost_Proof | F113: Table 3.1.7.2
B114: 94 | C114: Transfer Service and Unauthorized Increase Charge Inputs | D114: TransferUAIinputs | E114: INPUT
B115: 95 | C115: Transfer Service Charges and Rates | D115: TransferService | E115: INPUT | F115: Table 6.1
B116: 7b2 Case Loads
B117: =+B115+1 -> 96 | C117: 7b2 Conservation Loads | D117: 7b2 Con Load
B118: =+B117+1 -> 97 | C118: 7b2 PF Loads | D118: 7b2 PF Load | G118: Table 2.1
B119: 7b2 Case Loads/Resource Balance and Resource Stack Utilization
B120: =+B118+1 -> 98 | C120: 7b2 Resource Stack | D120: 7b2 Resource Sort | E120: INPUT | G120: Table 2.2.2
B121: =+B120+1 -> 99 | C121: List of Available Resources | D121: 7b2 Resources1 | G121: Table 2.2.3
B122: 100 | C122: Determination of Resources Selected from Resource Stack | D122: 7b2 Resources2 | G122: Table 2.2.9
B123: 101 | C123: Resources Sorted by Least Cost | D123: ConservRes1
B124: 102 | C124: Conservation Resources Selected | D124: ConservRes2 | G124: Table 2.2.4
B125: 103 | C125: Real 2010 Dollar Cost of Resources Selected | D125: ConservRes3 | G125: Table 2.2.5
B126: 104 | C126: Nominal Amortized Cost of Expensed Portion of Conservation Resources Selected | D126: ConservRes4 | G126: Table 2.2.6
B127: 105 | C127: Nominal Annual Cost of Capital Portion of Conservation Resources Selected | D127: ConservRes5 | G127: Table 2.2.7
B128: 106 | C128: Nominal Cost of Non-Conservation Resources Selected | D128: ConservRes6
B129: 107 | C129: Nominal Total Cost of Resources Selected | D129: ConservRes7 | G129: Table 2.2.8
B130: 7b2 Case Rate Directive Ratemaking
B131: =B129+1 -> 108 | C131: 7b2 Case COSA Table | D131: 7b2COSA | G131: Table 2.3.1
B132: =B131+1 -> 109 | C132: 7b2 Case Energy Allocaction Factors | D132: 7b2Alloc | G132: Table 2.2.1
B133: 110 | C133: 7b2 Case FBS and Resource Stack Cost Allocation | D133: 7b2 FBS_Stack_Allo | G133: Table 2.3.2.1
B134: 111 | C134: 7b2 Case LDD/IRD and Reserve Cost Allocation | D134: 7b2 LDD_IRD_Reserve_Allo | G134: Table 2.3.2.2
B135: 112 | C135: 7b2 Case Programs and Transmission Cost Allocation | D135: 7b2 Program_Trans_Allo | G135: Table 2.3.2.3
B136: 113 | C136: 7b2 Case Initial Net Cost Alloction | D136: 7b2 Initial_Cost_Allo | G136: Table 2.3.3
B137: 114 | C137: 7b2 Case Revenue Credit Summary | D137: 7b2 RDS_Credits | G137: Table 2.3.4
B138: 115 | C138: 7b2 Case Revenue Credits Allocated to Loads Served by FBS Resources | D138: 7b2 Credits FBS | G138: Tables 2.3.5.1 & 2.3.5.2
B139: 116 | C139: 7b2 Case Revenue Credits Allocated to All Loads | D139: 7b2 Credits Gen-RSS | G139: Tables 2.3.5.3
B140: 117 | C140: 7b2 Case Calculation and Allocation of Secondary Revenue | D140: 7b2 Secondary | G140: Table 2.3.6
B141: 118 | C141: 7b2 Case FPS Revenue Deficiency Calculation and Allocation | D141: 7b2 FPS Revenue Deficiency
B142: 119 | C142: Calculation of 7b2 Case Rates | D142: 7b2 Rates
B143: =B142+1 -> 120 | C143: 7b2 Case Revenue Check | D143: 7b2 Rev Check
B144: Rate Case Two Year Rate Period Rates Calculations
B145: =+B143+1 -> 121 | C145: Ave. Tier 1 PF Public Rate | D145: PFAveT1_RateOutput
B146: =+B145+1 -> 122 | C146: PF Melded Equivalent Rate | D146: PFMeldedEqv_RateOutput
B147: 123 | C147: IP Rate | D147: IP_RateOutput | F147: Table 3.1.8.1 | G147: Table 1.5.1
B148: 124 | C148: NR Rate | D148: NR_RateOutput | F148: Table 3.1.8.2
B149: 125 | C149: Load Shaping True-up & Tier 1 Equivalent Rates | D149: LSTUR&PFT1Eqv_RateOutput | F149: Table 3.1.8.3 | G149: Table 1.5.2
B150: 126 | C150: Unbifurcated PF Rate | D150: Unbif PF_RateOutput | F150: Table 3.1.8.4 | G150: Table 1.5.3
B151: 127 | C151: PF Exchange Rate | D151: PF Exchange_RateOutput | F151: Table 3.1.8.5
B152: 128 | C152: Flat Melded Equivalent PF Public Rate | D152: FlatPFMeldedEqv_RateOutput
B153: Outputs and Checks
B154: =+B152+1 -> 129 | C154: RiskMod Output | D154: RiskMod_Out
B155: =+B154+1 -> 130 | C155: Revenue Requirement Output | D155: RROutput
B156: =+B155+1 -> 131 | C156: Rates Output New | D156: RatesOutputNew
B157: 132 | C157: Revenue Requirement Mapping | D157: RevReqMapping
B158: 133 | C158: Summary | D158: Summary
B159: 134 | C159: Net Revenue | D159: NetRevenue
B160: 135 | C160: Slice True Up Calculation | D160: SliceTrueUp
B161: 136 | C161: Tables | D161: Tables
B162: 137 | C162: Log updates and model changes | D162: Log

Sheet Macro
B1: Rate Analysis Model - PF Scenario Load Delta Designations | R1: Not printed in documentation.
A2: TOC | B2: =Cover!$C$14 -> FY 2022-23 Reference Case
A3: é
I4: RAM2010 Macro Diagram

Sheet Init
B1: Initiation Sheet
A2: TOC | B2: =+Cover!C14 -> FY 2022-23 Reference Case
A3: é | B3: Input Parameters | F3: Diurnal Hours | N3: Annual Hours
F4: date | G4: days | H4: hours | I4: #Sun | J4: #Hol | K4: HLH | L4: LLH | N4: year | O4: days | P4: hours
F5: 2014-10-01 | G5: 31 | H5: 744 | I5: 5 | J5: 1 | K5: 432 | L5: 312 | N5: 2011 | O5: 365 | P5: 8760
F6: 2014-11-01 | G6: 28 | H6: 721 | I6: 4 | J6: 0 | K6: 384 | L6: 337 | N6: 2012 | O6: 365 | P6: 8784
F7: 2014-12-01 | G7: 31 | H7: 744 | I7: 4 | J7: 0 | K7: 416 | L7: 328 | N7: 2013 | O7: 365 | P7: 8760
F8: 2015-01-01 | G8: 30 | H8: 744 | I8: 4 | J8: 0 | K8: 416 | L8: 328 | N8: 2014 | O8: 366 | P8: 8760
B9: Base Year | C9: 2022 | F9: 2015-02-01 | G9: 31 | H9: 672 | I9: 5 | J9: 1 | K9: 384 | L9: 288 | N9: 2015 | O9: 365 | P9: 8760
F10: 2015-03-01 | G10: 30 | H10: 743 | I10: 4 | J10: 0 | K10: 416 | L10: 327 | N10: 2016 | O10: 365 | P10: 8784
F11: 2015-04-01 | G11: 31 | H11: 720 | I11: 5 | J11: 1 | K11: 416 | L11: 304 | N11: 2017 | O11: 365 | P11: 8760
C12: Yes or No? | F12: 2015-05-01 | G12: 31 | H12: 744 | I12: 4 | J12: 0 | K12: 400 | L12: 344 | N12: 2016 | O12: 366 | P12: 8784
B13: Run an REP Settlement Scenario ? | C13: No | F13: 2015-06-01 | G13: 30 | H13: 720 | I13: 4 | J13: 1 | K13: 416 | L13: 304 | N13: 2017 | O13: 365 | P13: 8760
B14: Slice RTP Changed for Tier 1 System Change | C14: No | F14: 2015-07-01 | G14: 31 | H14: 744 | I14: 5 | J14: 0 | K14: 416 | L14: 328 | N14: 2018 | O14: 365 | P14: 8760
F15: 2015-08-01 | G15: 30 | H15: 744 | I15: 4 | J15: 1 | K15: 416 | L15: 328 | N15: 2019 | O15: 365 | P15: 8760
B16: Years to Finance Expensed Portion of 7b2 Cons | C16: 5 | F16: 2015-09-01 | G16: 31 | H16: 720 | I16: 4 | J16: 1 | K16: 400 | L16: 320 | N16: 2020 | O16: 366 | P16: 8784
F17: 2015-10-01 | G17: 31 | H17: 744 | I17: 5 | J17: 1 | K17: 432 | L17: 312 | N17: 2021 | O17: 365 | P17: 8760
F18: 2015-11-01 | G18: 29 | H18: 721 | I18: 4 | J18: 0 | K18: 384 | L18: 337 | N18: 2022 | O18: 365 | P18: 8760
F19: 2015-12-01 | G19: 31 | H19: 744 | I19: 4 | J19: 0 | K19: 416 | L19: 328 | N19: 2023 | O19: 365 | P19: 8760
F20: 2016-01-01 | G20: 30 | H20: 744 | I20: 5 | J20: 0 | K20: 400 | L20: 344 | N20: 2024 | O20: 366 | P20: 8784
F21: 2016-02-01 | G21: 31 | H21: 696 | I21: 4 | J21: 1 | K21: 400 | L21: 296 | N21: 2025 | O21: 365 | P21: 8760
F22: 2016-03-01 | G22: 30 | H22: 743 | I22: 4 | J22: 0 | K22: 432 | L22: 311 | N22: 2026 | O22: 365 | P22: 8760
F23: 2016-04-01 | G23: 31 | H23: 720 | I23: 5 | J23: 1 | K23: 416 | L23: 304 | N23: 2027 | O23: 365 | P23: 8760
F24: 2016-05-01 | G24: 31 | H24: 744 | I24: 4 | J24: 0 | K24: 400 | L24: 344 | N24: 2028 | O24: 366 | P24: 8784
F25: 2016-06-01 | G25: 30 | H25: 720 | I25: 5 | J25: 1 | K25: 416 | L25: 304 | N25: 2029 | O25: 365 | P25: 8760
F26: 2016-07-01 | G26: 31 | H26: 744 | I26: 4 | J26: 0 | K26: 400 | L26: 344 | N26: 2030 | O26: 365 | P26: 8760
F27: 2016-08-01 | G27: 30 | H27: 744 | I27: 4 | J27: 1 | K27: 432 | L27: 312 | N27: 2031 | O27: 365 | P27: 8760
F28: 2016-09-01 | G28: 31 | H28: 720 | I28: 5 | J28: 1 | K28: 400 | L28: 320 | N28: 2032 | O28: 366 | P28: 8784
F29: 2016-10-01 | G29: 31 | H29: 744 | I29: 4 | J29: 1 | K29: 416 | L29: 328 | N29: 2033 | O29: 365 | P29: 8760
F30: 2016-11-01 | G30: 28 | H30: 721 | I30: 4 | J30: 0 | K30: 400 | L30: 321 | N30: 2034 | O30: 365 | P30: 8760
F31: 2016-12-01 | G31: 31 | H31: 744 | I31: 5 | J31: 0 | K31: 416 | L31: 328 | N31: 2035 | O31: 365 | P31: 8760
F32: 2017-01-01 | G32: 30 | H32: 744 | I32: 4 | J32: 0 | K32: 400 | L32: 344 | N32: 2036 | O32: 366 | P32: 8784
F33: 2017-02-01 | G33: 31 | H33: 672 | I33: 4 | J33: 1 | K33: 384 | L33: 288 | N33: 2037 | O33: 365 | P33: 8760
F34: 2017-03-01 | G34: 30 | H34: 743 | I34: 5 | J34: 0 | K34: 432 | L34: 311 | N34: 2038 | O34: 365 | P34: 8760
F35: 2017-04-01 | G35: 31 | H35: 720 | I35: 4 | J35: 1 | K35: 400 | L35: 320 | N35: 2039 | O35: 365 | P35: 8760
F36: 2017-05-01 | G36: 31 | H36: 744 | I36: 4 | J36: 0 | K36: 416 | L36: 328 | N36: 2040 | O36: 366 | P36: 8784
F37: 2017-06-01 | G37: 30 | H37: 720 | I37: 5 | J37: 1 | K37: 416 | L37: 304 | N37: 2041 | O37: 365 | P37: 8760
F38: 2017-07-01 | G38: 31 | H38: 744 | I38: 4 | J38: 0 | K38: 400 | L38: 344 | N38: 2042 | O38: 365 | P38: 8760
F39: 2017-08-01 | G39: 30 | H39: 744 | I39: 4 | J39: 1 | K39: 432 | L39: 312 | N39: 2043 | O39: 365 | P39: 8760
F40: 2017-09-01 | G40: 31 | H40: 720 | I40: 5 | J40: 1 | K40: 400 | L40: 320 | N40: 2044 | O40: 366 | P40: 8784
F41: 2017-10-01 | G41: 31 | H41: 744 | I41: 4 | J41: 1 | K41: 416 | L41: 328
F42: 2017-11-01 | G42: 28 | H42: 721 | I42: 4 | J42: 0 | K42: 400 | L42: 321
F43: 2017-12-01 | G43: 31 | H43: 744 | I43: 5 | J43: 0 | K43: 400 | L43: 344
F44: 2018-01-01 | G44: 30 | H44: 744 | I44: 4 | J44: 0 | K44: 416 | L44: 328
F45: 2018-02-01 | G45: 31 | H45: 672 | I45: 4 | J45: 1 | K45: 384 | L45: 288
F46: 2018-03-01 | G46: 30 | H46: 743 | I46: 5 | J46: 0 | K46: 432 | L46: 311
F47: 2018-04-01 | G47: 31 | H47: 720 | I47: 4 | J47: 1 | K47: 400 | L47: 320
F48: 2018-05-01 | G48: 31 | H48: 744 | I48: 5 | J48: 0 | K48: 416 | L48: 328
F49: 2018-06-01 | G49: 30 | H49: 720 | I49: 4 | J49: 1 | K49: 416 | L49: 304
F50: 2018-07-01 | G50: 31 | H50: 744 | I50: 4 | J50: 0 | K50: 400 | L50: 344
F51: 2018-08-01 | G51: 30 | H51: 744 | I51: 5 | J51: 1 | K51: 432 | L51: 312
F52: 2018-09-01 | G52: 31 | H52: 720 | I52: 4 | J52: 1 | K52: 384 | L52: 336
F53: 2018-10-01 | G53: 31 | H53: 744 | I53: 4 | J53: 1 | K53: 432 | L53: 312
F54: 2018-11-01 | G54: 28 | H54: 721 | I54: 4 | J54: 0 | K54: 400 | L54: 321
F55: 2018-12-01 | G55: 31 | H55: 744 | I55: 5 | J55: 0 | K55: 400 | L55: 344
F56: 2019-01-01 | G56: 30 | H56: 744 | I56: 4 | J56: 0 | K56: 416 | L56: 328
F57: 2019-02-01 | G57: 31 | H57: 672 | I57: 5 | J57: 1 | K57: 384 | L57: 288
F58: 2019-03-01 | G58: 30 | H58: 743 | I58: 4 | J58: 0 | K58: 416 | L58: 327
F59: 2019-04-01 | G59: 31 | H59: 720 | I59: 4 | J59: 1 | K59: 416 | L59: 304
F60: 2019-05-01 | G60: 31 | H60: 744 | I60: 5 | J60: 0 | K60: 416 | L60: 328
F61: 2019-06-01 | G61: 30 | H61: 720 | I61: 4 | J61: 1 | K61: 400 | L61: 320
F62: 2019-07-01 | G62: 31 | H62: 744 | I62: 4 | J62: 0 | K62: 416 | L62: 328
F63: 2019-08-01 | G63: 30 | H63: 744 | I63: 5 | J63: 1 | K63: 432 | L63: 312
F64: 2019-09-01 | G64: 31 | H64: 720 | I64: 4 | J64: 1 | K64: 384 | L64: 336
F65: 2019-10-01 | G65: 31 | H65: 744 | I65: 5 | J65: 1 | K65: 432 | L65: 312
F66: 2019-11-01 | G66: 29 | H66: 721 | I66: 4 | J66: 0 | K66: 400 | L66: 321
F67: 2019-12-01 | G67: 31 | H67: 744 | I67: 4 | J67: 0 | K67: 400 | L67: 344
F68: 2020-01-01 | G68: 30 | H68: 744 | I68: 4 | J68: 0 | K68: 416 | L68: 328
F69: 2020-02-01 | G69: 31 | H69: 696 | I69: 5 | J69: 1 | K69: 400 | L69: 296
F70: 2020-03-01 | G70: 30 | H70: 743 | I70: 4 | J70: 0 | K70: 416 | L70: 327
F71: 2020-04-01 | G71: 31 | H71: 720 | I71: 5 | J71: 1 | K71: 416 | L71: 304
F72: 2020-05-01 | G72: 31 | H72: 744 | I72: 4 | J72: 0 | K72: 400 | L72: 344
F73: 2020-06-01 | G73: 30 | H73: 720 | I73: 4 | J73: 1 | K73: 416 | L73: 304
F74: 2020-07-01 | G74: 31 | H74: 744 | I74: 5 | J74: 0 | K74: 416 | L74: 328
F75: 2020-08-01 | G75: 30 | H75: 744 | I75: 4 | J75: 1 | K75: 416 | L75: 328
F76: 2020-09-01 | G76: 31 | H76: 720 | I76: 4 | J76: 1 | K76: 400 | L76: 320
F77: 2020-10-01 | G77: 31 | H77: 744 | I77: 5 | J77: 1 | K77: 432 | L77: 312
F78: 2020-11-01 | G78: 28 | H78: 721 | I78: 4 | J78: 0 | K78: 384 | L78: 337
F79: 2020-12-01 | G79: 31 | H79: 744 | I79: 4 | J79: 0 | K79: 416 | L79: 328
F80: 2021-01-01 | G80: 30 | H80: 744 | I80: 5 | J80: 0 | K80: 400 | L80: 344
F81: 2021-02-01 | G81: 31 | H81: 672 | I81: 4 | J81: 1 | K81: 384 | L81: 288
F82: 2021-03-01 | G82: 30 | H82: 743 | I82: 4 | J82: 0 | K82: 432 | L82: 311
F83: 2021-04-01 | G83: 31 | H83: 720 | I83: 5 | J83: 1 | K83: 416 | L83: 304
F84: 2021-05-01 | G84: 31 | H84: 744 | I84: 4 | J84: 0 | K84: 400 | L84: 344
F85: 2021-06-01 | G85: 30 | H85: 720 | I85: 4 | J85: 1 | K85: 416 | L85: 304
F86: 2021-07-01 | G86: 31 | H86: 744 | I86: 5 | J86: 0 | K86: 416 | L86: 328
F87: 2021-08-01 | G87: 30 | H87: 744 | I87: 4 | J87: 1 | K87: 416 | L87: 328
F88: 2021-09-01 | G88: 31 | H88: 720 | I88: 5 | J88: 1 | K88: 400 | L88: 320
F89: 2021-10-01 | G89: 31 | H89: 744 | I89: 4 | J89: 1 | K89: 416 | L89: 328
F90: 2021-11-01 | G90: 28 | H90: 721 | I90: 4 | J90: 0 | K90: 400 | L90: 321
F91: 2021-12-01 | G91: 31 | H91: 744 | I91: 4 | J91: 0 | K91: 416 | L91: 328
F92: 2022-01-01 | G92: 30 | H92: 744 | I92: 5 | J92: 0 | K92: 400 | L92: 344
F93: 2022-02-01 | G93: 31 | H93: 672 | I93: 4 | J93: 1 | K93: 384 | L93: 288
F94: 2022-03-01 | G94: 30 | H94: 743 | I94: 4 | J94: 0 | K94: 432 | L94: 311
F95: 2022-04-01 | G95: 31 | H95: 720 | I95: 5 | J95: 1 | K95: 416 | L95: 304
F96: 2022-05-01 | G96: 31 | H96: 744 | I96: 4 | J96: 0 | K96: 400 | L96: 344
F97: 2022-06-01 | G97: 30 | H97: 720 | I97: 5 | J97: 1 | K97: 416 | L97: 304
F98: 2022-07-01 | G98: 31 | H98: 744 | I98: 4 | J98: 0 | K98: 400 | L98: 344
F99: 2022-08-01 | G99: 30 | H99: 744 | I99: 4 | J99: 1 | K99: 432 | L99: 312
F100: 2022-09-01 | G100: 31 | H100: 720 | I100: 5 | J100: 1 | K100: 400 | L100: 320
F101: 2022-10-01 | G101: 31 | H101: 744 | I101: 4 | J101: 1 | K101: 416 | L101: 328
F102: 2022-11-01 | G102: 28 | H102: 721 | I102: 4 | J102: 0 | K102: 400 | L102: 321
F103: 2022-12-01 | G103: 31 | H103: 744 | I103: 5 | J103: 0 | K103: 416 | L103: 328
F104: 2023-01-01 | G104: 30 | H104: 744 | I104: 4 | J104: 0 | K104: 400 | L104: 344
F105: 2023-02-01 | G105: 31 | H105: 672 | I105: 4 | J105: 1 | K105: 384 | L105: 288
F106: 2023-03-01 | G106: 30 | H106: 743 | I106: 5 | J106: 0 | K106: 432 | L106: 311
F107: 2023-04-01 | G107: 31 | H107: 720 | I107: 4 | J107: 1 | K107: 400 | L107: 320
F108: 2023-05-01 | G108: 31 | H108: 744 | I108: 4 | J108: 0 | K108: 416 | L108: 328
F109: 2023-06-01 | G109: 30 | H109: 720 | I109: 5 | J109: 1 | K109: 416 | L109: 304
F110: 2023-07-01 | G110: 31 | H110: 744 | I110: 4 | J110: 0 | K110: 400 | L110: 344
F111: 2023-08-01 | G111: 30 | H111: 744 | I111: 4 | J111: 1 | K111: 432 | L111: 312
F112: 2023-09-01 | G112: 31 | H112: 720 | I112: 5 | J112: 1 | K112: 400 | L112: 320
F113: 2023-10-01 | H113: 744 | K113: 416 | L113: 328
F114: 2023-11-01 | H114: 721 | K114: 400 | L114: 321
F115: 2023-12-01 | H115: 744 | K115: 400 | L115: 344
F116: 2024-01-01 | H116: 744 | K116: 416 | L116: 328
F117: 2024-02-01 | H117: 696 | K117: 400 | L117: 296
F118: 2024-03-01 | H118: 743 | K118: 416 | L118: 327
F119: 2024-04-01 | H119: 720 | K119: 416 | L119: 304
F120: 2024-05-01 | H120: 744 | K120: 416 | L120: 328
F121: 2024-06-01 | H121: 720 | K121: 400 | L121: 320
F122: 2024-07-01 | H122: 744 | K122: 416 | L122: 328
F123: 2024-08-01 | H123: 744 | K123: 432 | L123: 312
F124: 2024-09-01 | H124: 720 | K124: 384 | L124: 336
F125: 2024-10-01 | H125: 744 | K125: 432 | L125: 312
F126: 2024-11-01 | H126: 721 | K126: 400 | L126: 321
F127: 2024-12-01 | H127: 744 | K127: 400 | L127: 344
F128: 2025-01-01 | H128: 744 | K128: 416 | L128: 328
F129: 2025-02-01 | H129: 672 | K129: 384 | L129: 288
F130: 2025-03-01 | H130: 743 | K130: 416 | L130: 327
F131: 2025-04-01 | H131: 720 | K131: 416 | L131: 304
F132: 2025-05-01 | H132: 744 | K132: 416 | L132: 328
F133: 2025-06-01 | H133: 720 | K133: 400 | L133: 320
F134: 2025-07-01 | H134: 744 | K134: 416 | L134: 328
F135: 2025-08-01 | H135: 744 | K135: 416 | L135: 328
F136: 2025-09-01 | H136: 720 | K136: 400 | L136: 320
F137: 2025-10-01 | H137: 744 | K137: 432 | L137: 312
F138: 2025-11-01 | H138: 721 | K138: 384 | L138: 337
F139: 2025-12-01 | H139: 744 | K139: 416 | L139: 328
F140: 2026-01-01 | H140: 744 | K140: 416 | L140: 328
F141: 2026-02-01 | H141: 672 | K141: 384 | L141: 288
F142: 2026-03-01 | H142: 743 | K142: 416 | L142: 327
F143: 2026-04-01 | H143: 720 | K143: 416 | L143: 304
F144: 2026-05-01 | H144: 744 | K144: 400 | L144: 344
F145: 2026-06-01 | H145: 720 | K145: 416 | L145: 304
F146: 2026-07-01 | H146: 744 | K146: 416 | L146: 328
F147: 2026-08-01 | H147: 744 | K147: 416 | L147: 328
F148: 2026-09-01 | H148: 720 | K148: 400 | L148: 320
F149: 2026-10-01 | H149: 744 | K149: 432 | L149: 312
F150: 2026-11-01 | H150: 721 | K150: 384 | L150: 337
F151: 2026-12-01 | H151: 744 | K151: 416 | L151: 328
F152: 2027-01-01 | H152: 744 | K152: 400 | L152: 344
F153: 2027-02-01 | H153: 672 | K153: 384 | L153: 288
F154: 2027-03-01 | H154: 743 | K154: 432 | L154: 311
F155: 2027-04-01 | H155: 720 | K155: 416 | L155: 304
F156: 2027-05-01 | H156: 744 | K156: 400 | L156: 344
F157: 2027-06-01 | H157: 720 | K157: 416 | L157: 304
F158: 2027-07-01 | H158: 744 | K158: 416 | L158: 328
F159: 2027-08-01 | H159: 744 | K159: 416 | L159: 328
F160: 2027-09-01 | H160: 720 | K160: 400 | L160: 320
F161: 2027-10-01 | H161: 744 | K161: 416 | L161: 328
F162: 2027-11-01 | H162: 721 | K162: 400 | L162: 321
F163: 2027-12-01 | H163: 744 | K163: 416 | L163: 328
F164: 2028-01-01 | H164: 744 | K164: 400 | L164: 344
F165: 2028-02-01 | H165: 696 | K165: 400 | L165: 296
F166: 2028-03-01 | H166: 743 | K166: 432 | L166: 311
F167: 2028-04-01 | H167: 720 | K167: 400 | L167: 320
F168: 2028-05-01 | H168: 744 | K168: 416 | L168: 328
F169: 2028-06-01 | H169: 720 | K169: 416 | L169: 304
F170: 2028-07-01 | H170: 744 | K170: 400 | L170: 344
F171: 2028-08-01 | H171: 744 | K171: 432 | L171: 312
F172: 2028-09-01 | H172: 720 | K172: 400 | L172: 320
F173: 2028-10-01 | H173: 744 | K173: 416 | L173: 328
F174: 2028-11-01 | H174: 721 | K174: 400 | L174: 321
F175: 2028-12-01 | H175: 744 | K175: 400 | L175: 344
F176: 2029-01-01 | H176: 744 | K176: 416 | L176: 328
F177: 2029-02-01 | H177: 672 | K177: 384 | L177: 288
F178: 2029-03-01 | H178: 743 | K178: 432 | L178: 311
F179: 2029-04-01 | H179: 720 | K179: 400 | L179: 320
F180: 2029-05-01 | H180: 744 | K180: 416 | L180: 328
F181: 2029-06-01 | H181: 720 | K181: 416 | L181: 304
F182: 2029-07-01 | H182: 744 | K182: 400 | L182: 344
F183: 2029-08-01 | H183: 744 | K183: 432 | L183: 312
F184: 2029-09-01 | H184: 720 | K184: 384 | L184: 336
F185: 2029-10-01 | H185: 744 | K185: 432 | L185: 312
F186: 2029-11-01 | H186: 721 | K186: 400 | L186: 321
F187: 2029-12-01 | H187: 744 | K187: 400 | L187: 344
F188: 2030-01-01 | H188: 744 | K188: 416 | L188: 328
F189: 2030-02-01 | H189: 672 | K189: 384 | L189: 288
F190: 2030-03-01 | H190: 743 | K190: 416 | L190: 327
F191: 2030-04-01 | H191: 720 | K191: 416 | L191: 304
F192: 2030-05-01 | H192: 744 | K192: 416 | L192: 328
F193: 2030-06-01 | H193: 720 | K193: 400 | L193: 320
F194: 2030-07-01 | H194: 744 | K194: 416 | L194: 328
F195: 2030-08-01 | H195: 744 | K195: 432 | L195: 312
F196: 2030-09-01 | H196: 720 | K196: 384 | L196: 336
F197: 2030-10-01 | K197: 400 | L197: 344
F198: 2030-11-01 | K198: 384 | L198: 288
F199: 2030-12-01 | K199: 432 | L199: 311
F200: 2031-01-01 | K200: 416 | L200: 304
... 92 more rows

Sheet Rev Check
B1: Rate Analysis Model - Modeling Steps Revenue Check | K1: Not printed in documentation.
A2: TOC | B2: =Cover!$C$14 -> FY 2022-23 Reference Case | K2: =IF(Init!$C$13="Yes","Results Under Settlement","Results while Running 7b2 Rate Test") -> Results while Running 7b2 Rate Test
A3: é
C4: Costs
C5: Before 7b2 Revenue Requirements | D5: =+Init!C9 -> 2022 | E5: =+D5+1 -> 2023 | F5: =+E5+1 -> 2024 | G5: =+F5+1 -> 2025 | H5: =+G5+1 -> 2026 | I5: =+H5+1 -> 2027
C6: FBS | D6: =FBS_LDD_IRD_Allocation!C5 -> 1886749.216 | E6: =FBS_LDD_IRD_Allocation!D5 -> 1939849.005 | F6: =FBS_LDD_IRD_Allocation!E5 -> 1911964.821 | G6: =FBS_LDD_IRD_Allocation!F5 -> 1946075.11 | H6: =FBS_LDD_IRD_Allocation!G5 -> 2027101.698 | I6: =FBS_LDD_IRD_Allocation!H5 -> 2005518.924
C7: NR | D7: =FBS_LDD_IRD_Allocation!C6 -> 54275.70639 | E7: =FBS_LDD_IRD_Allocation!D6 -> 50117.13236 | F7: =FBS_LDD_IRD_Allocation!E6 -> 62746.14643 | G7: =FBS_LDD_IRD_Allocation!F6 -> 58309.33933 | H7: =FBS_LDD_IRD_Allocation!G6 -> 62782.25518 | I7: =FBS_LDD_IRD_Allocation!H6 -> 58128.03576
C8: Exchange | D8: =FBS_LDD_IRD_Allocation!C7-D13 -> 2760704.017 | E8: =FBS_LDD_IRD_Allocation!D7-E13 -> 2761470.085 | F8: =FBS_LDD_IRD_Allocation!E7-F13 -> 2915800.707 | G8: =FBS_LDD_IRD_Allocation!F7-G13 -> 2907835.202 | H8: =FBS_LDD_IRD_Allocation!G7-H13 -> 3069506.948 | I8: =FBS_LDD_IRD_Allocation!H7-I13 -> 3069506.948
C9: Conservation | D9: =FBS_LDD_IRD_Allocation!C8 -> 199259.3649 | E9: =FBS_LDD_IRD_Allocation!D8 -> 189236.2377 | F9: =FBS_LDD_IRD_Allocation!E8 -> 180631.3273 | G9: =FBS_LDD_IRD_Allocation!F8 -> 172935.9329 | H9: =FBS_LDD_IRD_Allocation!G8 -> 170371.0577 | I9: =FBS_LDD_IRD_Allocation!H8 -> 161925.8258
C10: BPA Programs | D10: =FBS_LDD_IRD_Allocation!C9+FBS_LDD_IRD_Allocation!C10 -> 350683.6266 | E10: =FBS_LDD_IRD_Allocation!D9+FBS_LDD_IRD_Allocation!D10 -> 351968.4225 | F10: =FBS_LDD_IRD_Allocation!E9+FBS_LDD_IRD_Allocation!E10 -> 350660.8653 | G10: =FBS_LDD_IRD_Allocation!F9+FBS_LDD_IRD_Allocation!F10 -> 355514.7367 | H10: =FBS_LDD_IRD_Allocation!G9+FBS_LDD_IRD_Allocation!G10 -> 365013.4572 | I10: =FBS_LDD_IRD_Allocation!H9+FBS_LDD_IRD_Allocation!H10 -> 369514.271
C13: Transmission to Deliver Exchange Sale | D13: =ExchangeInputs!$D$5*'PF Exchange'!D61 -> 248471.3569 | E13: =ExchangeInputs!$D$5*'PF Exchange'!E61 -> 248560.157 | F13: =ExchangeInputs!$D$5*'PF Exchange'!F61 -> 251226.8456 | G13: =ExchangeInputs!$D$5*'PF Exchange'!G61 -> 250540.4334 | H13: =ExchangeInputs!$D$5*'PF Exchange'!H61 -> 253222.1188 | I13: =ExchangeInputs!$D$5*'PF Exchange'!I61 -> 253222.1188
C15: Sub total | D15: =SUM(D6:D13) -> 5500143.288 | E15: =SUM(E6:E13) -> 5541201.04 | F15: 5673030.712 | G15: 5691210.754 | H15: 5947997.536 | I15: 5917816.124
C17: Low Density Discount and IRD Expense | D17: =FBS_LDD_IRD_Allocation!C11 -> 52678.15704 | E17: =FBS_LDD_IRD_Allocation!D11 -> 53129.56253 | F17: =FBS_LDD_IRD_Allocation!E11 -> 52903.85978 | G17: =FBS_LDD_IRD_Allocation!F11 -> 52903.85978 | H17: =FBS_LDD_IRD_Allocation!G11 -> 52903.85978 | I17: =FBS_LDD_IRD_Allocation!H11 -> 52903.85978
C19: Annual Revenue Requirement Grand Total | D19: =SUM(D15:D17) -> 5552821.445 | E19: =SUM(E15:E17) -> 5594330.602 | F19: 5725934.572 | G19: 5744114.614 | H19: 6000901.395 | I19: 5970719.984
C22: Revenue Credits
C23: Forecast of Secondary Revenues | D23: =Secondary!D29 -> 526230.1606 | E23: =Secondary!E29 -> 501342.927 | F23: =Secondary!F29 -> 403383.3633 | G23: =Secondary!G29 -> 450779.838 | H23: =Secondary!H29 -> 456343.9571 | I23: =Secondary!I29 -> 449080.6307
C24: Expected Revenue from FPS Contract Sales | D24: =-('FPS Revenue Deficiency'!C12) -> 85749.74293 | E24: =-('FPS Revenue Deficiency'!D12) -> 51001.17528 | F24: =-('FPS Revenue Deficiency'!E12) -> 76215.70984 | G24: =-('FPS Revenue Deficiency'!F12) -> 58238.69481 | H24: =-('FPS Revenue Deficiency'!G12) -> 90683.00952 | I24: =-('FPS Revenue Deficiency'!H12) -> 50518.23419
C25: Expected Revenue from System Obligations | D25: =-RDS_Credits!C15 -> 410.795 | E25: =-RDS_Credits!D15 -> 401.61 | F25: =-RDS_Credits!E15 -> 406.2025 | G25: =-RDS_Credits!F15 -> 406.2025 | H25: =-RDS_Credits!G15 -> 406.2025 | I25: =-RDS_Credits!H15 -> 406.2025
C26: Other Revenue Credits | D26: =-(RDS_Credits!C7+RDS_Credits!C19+RDS_Credits!C21+RDS_Credits!C24+SUM(RDS_Credits!C30:'RDS_Credits'!C36)+'Credits Gen-RSS'!C23) -> 247171.8612 | E26: =-(RDS_Credits!D7+RDS_Credits!D19+RDS_Credits!D21+RDS_Credits!D24+SUM(RDS_Credits!D30:'RDS_Credits'!D36)+'Credits Gen-RSS'!D23) -> 247536.9041 | F26: =-(RDS_Credits!E7+RDS_Credits!E19+RDS_Credits!E21+RDS_Credits!E24+SUM(RDS_Credits!E30:'RDS_Credits'!E36)+'Credits Gen-RSS'!E23) -> 236859.7167 | G26: =-(RDS_Credits!F7+RDS_Credits!F19+RDS_Credits!F21+RDS_Credits!F24+SUM(RDS_Credits!F30:'RDS_Credits'!F36)+'Credits Gen-RSS'!F23) -> 239024.0879 | H26: =-(RDS_Credits!G7+RDS_Credits!G19+RDS_Credits!G21+RDS_Credits!G24+SUM(RDS_Credits!G30:'RDS_Credits'!G36)+'Credits Gen-RSS'!G23) -> 242522.3003 | I26: =-(RDS_Credits!H7+RDS_Credits!H19+RDS_Credits!H21+RDS_Credits!H24+SUM(RDS_Credits!H30:'RDS_Credits'!H36)+'Credits Gen-RSS'!H23) -> 244913.6907
C28: Total Revenue Credits | D28: =SUM(D23:D27) -> 859562.5597 | E28: =SUM(E23:E27) -> 800282.6164 | F28: 716864.9924 | G28: 748448.8233 | H28: 789955.4694 | I28: 744918.7581
C31: Revenues needed from Power Rates | D31: =D19-D28 -> 4693258.886 | E31: =E19-E28 -> 4794047.986 | F31: 5009069.58 | G31: 4995665.791 | H31: 5210945.926 | I31: 5225801.226
C34: Power Revenues After Rate Design Step
D35: =+D5 -> 2022 | E35: =+E5 -> 2023
C36: PF Public | D36: =RateSummary!C32 -> 30.3412 | E36: =RateSummary!D32 -> 31.0052
D37: ='PF Public'!D77 -> 57217.1467 | E37: ='PF Public'!E77 -> 57654.21235
D38: =D36*D37 -> 1736036.891 | E38: =E36*E37 -> 1787580.385
C40: PF Exchange | D40: =RateSummary!C34 -> 65.954 | E40: =RateSummary!D34 -> 67.028
D41: ='PF Exchange'!D61 -> 44769.61385 | E41: ='PF Exchange'!E61 -> 44785.61388
D42: =D40*D41 -> 2952735.112 | E42: =E40*E41 -> 3001890.127
C44: IP | D44: =RateSummary!C35 -> 42.552 | E44: =RateSummary!D35 -> 43.567
D45: ='RAM IP'!M87 -> 105.12 | E45: ='RAM IP'!N87 -> 105.12
D46: =D44*D45 -> 4473.06624 | E46: =E44*E45 -> 4579.76304
C48: NR | D48: =RateSummary!C36 -> 84.357 | E48: =RateSummary!D36 -> 89.091
D49: ='RAM NR'!D68 -> 0.009856 | E49: ='RAM NR'!E68 -> 0.009824
D50: =D48*D49 -> 0.831422592 | E50: =E48*E49 -> 0.875229984
C52: Revenues from Power Rates Grand Total | D52: =D38+D42+D46+D50 -> 4693245.901 | E52: =E38+E42+E46+E50 -> 4794051.15
C55: Revenue Check after Standard Ratemaking | D55: =D52-D$31 -> -12.98464886 | E55: =E52-E$31 -> 3.164634159

Sheet RateSummary
B1: Rate Analysis Model - Rate Design Step Summary | J1: =IF(Init!$C$13="Yes","Results Under Settlement","Results while Running 7b2 Rate Test") -> Results while Running 7b2 Rate Test
A2: TOC | B2: =Cover!$C$14 -> FY 2022-23 Reference Case | J2: Not printed in documentation.
A3: é
B6: Revenue Under Recovery After Rate Design Step | C6: ='Rev Check'!D55 -> -12.98464886 | D6: ='Rev Check'!E55 -> 3.164634159
B10: Rate Design Step | C10: =+Init!C9 -> 2022 | D10: =+C10+1 -> 2023 | E10: =+D10+1 -> 2024 | F10: =+E10+1 -> 2025 | G10: =+F10+1 -> 2026 | H10: =+G10+1 -> 2027
B11: Rates After Initial Allocation
B12: UNBIFURCATED PF | C12: ='Initial Rates'!C22 -> 46.61 | D12: ='Initial Rates'!D22 -> 47.28 | E12: ='Initial Rates'!E22 -> 48.81 | F12: ='Initial Rates'!F22 -> 48.61 | G12: ='Initial Rates'!G22 -> 50.42 | H12: ='Initial Rates'!H22 -> 50.31
B13: IP | C13: ='Initial Rates'!C23 -> 70.57 | D13: ='Initial Rates'!D23 -> 74.89 | E13: ='Initial Rates'!E23 -> 78.32 | F13: ='Initial Rates'!F23 -> 79.08 | G13: ='Initial Rates'!G23 -> 80.39 | H13: ='Initial Rates'!H23 -> 87.88
B14: NR | C14: ='Initial Rates'!C24 -> 70.57 | D14: ='Initial Rates'!D24 -> 74.89 | E14: ='Initial Rates'!E24 -> 78.32 | F14: ='Initial Rates'!F24 -> 79.08 | G14: ='Initial Rates'!G24 -> 80.39 | H14: ='Initial Rates'!H24 -> 87.88
B16: Rate Design Step | C16: =+C10 -> 2022 | D16: 2023 | E16: 2024 | F16: 2025 | G16: 2026 | H16: 2027
B17: Rates After IP-PF Link Allocation
B18: UNBIFURCATED PF (average) | C18: ='Rates After Link'!C42 -> 46.641 | D18: ='Rates After Link'!D42 -> 47.305 | E18: ='Rates After Link'!E42 -> 48.838 | F18: ='Rates After Link'!F42 -> 48.641 | G18: ='Rates After Link'!G42 -> 50.449 | H18: ='Rates After Link'!H42 -> 50.35 | J18: IP Rate Check
B19: UNBIFURCATED PF (flat) | C19: =IP_PF_Link!C15 -> 45.04064198 | D19: =IP_PF_Link!D15 -> 45.64554198 | E19: =IP_PF_Link!E15 -> 47.2558465 | F19: =IP_PF_Link!F15 -> 47.01718909 | G19: =IP_PF_Link!G15 -> 48.81574198 | H19: =IP_PF_Link!H15 -> 48.67184198 | J19: =C20-C19 -> -0.08564198017 | K19: =D20-D19 -> -0.08654198017
B20: IP | C20: ='Rates After Link'!C43 -> 44.955 | D20: ='Rates After Link'!D43 -> 45.559 | E20: ='Rates After Link'!E43 -> 47.17 | F20: ='Rates After Link'!F43 -> 46.93 | G20: ='Rates After Link'!G43 -> 48.73 | H20: ='Rates After Link'!H43 -> 48.585
B21: NR | C21: ='Rates After Link'!C44 -> 70.593 | D21: ='Rates After Link'!D44 -> 74.918 | E21: ='Rates After Link'!E44 -> 78.354 | F21: ='Rates After Link'!F44 -> 79.113 | G21: ='Rates After Link'!G44 -> 80.425 | H21: ='Rates After Link'!H44 -> 87.92
B23: Rate Design Step | C23: =+C10 -> 2022 | D23: =+D10 -> 2023
B24: Rates After REP/7(b)(3) Allocation
B25: PF Public | C25: =IF(Init!$C$13="Yes",'Rates After WP-10 Adjustment'!C40,'Rates After 7b2'!C51) -> 30.34 | D25: =IF(Init!$C$13="Yes",'Rates After WP-10 Adjustment'!D40,'Rates After 7b2'!D51) -> 31.01
B26: PF Exchange | C26: =IF(Init!$C$13="Yes",'Rates After WP-10 Adjustment'!C41,'Rates After 7b2'!C52) -> 65.92 | D26: =IF(Init!$C$13="Yes",'Rates After WP-10 Adjustment'!D41,'Rates After 7b2'!D52) -> 66.99
B27: IP | C27: =IF(Init!$C$13="Yes",'Rates After WP-10 Adjustment'!C42,'Rates After 7b2'!C53) -> 58.68 | D27: =IF(Init!$C$13="Yes",'Rates After WP-10 Adjustment'!D42,'Rates After 7b2'!D53) -> 59.69
B28: NR | C28: =IF(Init!$C$13="Yes",'Rates After WP-10 Adjustment'!C43,'Rates After 7b2'!C54) -> 84.32 | D28: =IF(Init!$C$13="Yes",'Rates After WP-10 Adjustment'!D43,'Rates After 7b2'!D54) -> 89.05
B30: Rate Design Step | C30: =+C10 -> 2022 | D30: =+D10 -> 2023
B31: Rates After IP-PF Link #2 Allocation
B32: PF Public (average) | C32: =IF(Init!$C$13="Yes",'Rates After Link Settlement'!C47,'Rates After Link (2)'!C49) -> 30.3412 | D32: =IF(Init!$C$13="Yes",'Rates After Link Settlement'!D47,'Rates After Link (2)'!D49) -> 31.0052 | J32: IP Rate Check
B33: PF Public (flat) | C33: ='IP_PF_Link Settlement'!C13 -> 38.15972837 | D33: ='IP_PF_Link Settlement'!D13 -> 38.81614668 | J33: =C35-C33 -> 4.392271626 | K33: =D35-D33 -> 4.750853324
B34: PF Exchange | C34: =IF(Init!$C$13="Yes",'Rates After Link Settlement'!C48,'Rates After Link (2)'!C50) -> 65.954 | D34: =IF(Init!$C$13="Yes",'Rates After Link Settlement'!D48,'Rates After Link (2)'!D50) -> 67.028 | J34: ='IP_PF_Link Settlement'!C16 -> 7.318332117 | K34: ='IP_PF_Link Settlement'!D16 -> 7.318885102
B35: IP | C35: =IF(Init!$C$13="Yes",'Rates After Link Settlement'!C49,'Rates After Link (2)'!C51) -> 42.552 | D35: =IF(Init!$C$13="Yes",'Rates After Link Settlement'!D49,'Rates After Link (2)'!D51) -> 43.567 | J35: =J33-J34 -> -2.926060491 | K35: =K33-K34 -> -2.568031778 | L35: =AVERAGE(J35:K35) -> -2.747046134
B36: NR | C36: =IF(Init!$C$13="Yes",'Rates After Link Settlement'!C50,'Rates After Link (2)'!C52) -> 84.357 | D36: =IF(Init!$C$13="Yes",'Rates After Link Settlement'!D50,'Rates After Link (2)'!D52) -> 89.091

Sheet ScenarioResults
B1: Rate Analysis Model - Scenario Summary Box | G1: =IF(Init!$C$13="Yes","Results Under Settlement","Results while Running 7b2 Rate Test") -> Results while Running 7b2 Rate Test
A2: TOC | B2: =Cover!$C$14 -> FY 2022-23 Reference Case | G2: Not printed in documentation.
A3: é | B3: To REP Output | L3: List for Expense Conservation in 7b2
L4: 1
B5: Attachment 1a | G5: From Rate Tables | L5: 2
D6: % above BP-20 | G6: =B7 -> Unbifurcated PF | H6: ='Unbif PF_RateOutput'!E52 -> 46.97 | J6: =C7-H6 -> 0.003929283106 | L6: 3
B7: Unbifurcated PF | C7: ='Rates After Link'!C47 -> 46.97392928 | D7: =C7/H23-1 -> -0.0007963125073 | G7: T1 Equivalent PF | H7: =PFAveT1_RateOutput!E52 -> 30.62 | L7: 4
B8: PF Public | C8: =IF(Init!$C$13="Yes",'Rates After Link Settlement'!E47,ROUND((RateSummary!C32+RateSummary!D32)/2,2)) -> 30.67 | D8: =C8/H24-1 -> -0.1419780984 | G8: T1 & T2 Equivalent PF | H8: =PFMeldedEqv_RateOutput!E52 -> 30.68 | J8: =H8-C8 -> 0.01 | L8: 5
B9: PF Exchange | C9: =IF(Init!$C$13="Yes",'Rates After Link Settlement'!E48,'Rates After Link (2)'!C64) -> 66.49121413 | D9: =C9/H25-1 -> 0.0001686842363 | G9: =B9 -> PF Exchange | H9: ='PF Exchange_RateOutput'!E53 -> 66.49 | J9: =H9-C9 -> -0.001214128027 | L9: 6
B10: IP | C10: =IF(Init!$C$13="Yes",'Rates After Link Settlement'!E49,'Rates After Link (2)'!C66)+I44 -> 43.0594009 | D10: =C10/H26-1 -> 0.05010101637 | G10: =B10 -> IP | H10: =IP_RateOutput!E52 -> 43.07 | J10: =H10-C10 -> 0.01059910084 | L10: 7
B11: NR | C11: =IF(Init!$C$13="Yes",'Rates After Link Settlement'!E50,'Rates After Link (2)'!C67)+I45 -> 86.720016 | D11: =C11/H27-1 -> 0.08814865371 | G11: =B11 -> NR | H11: =NR_RateOutput!E52 -> 86.72 | J11: =H11-C11 -> -1.599627163e-05 | L11: 8
L12: 9
B13: Residential Exchange Benefits | C13: =+Init!C9 -> 2022 | D13: =C13+1 -> 2023 | L13: 10
B14: ='Active Exchange'!D10 -> Avista Corporation | C14: =IF(Init!$C$13="Yes",MAX('Utility Specific PFx Settle'!O27,0),MAX('Utility Specifc PFx'!K24,0)) -> 2005.596776 | D14: =IF(Init!$C$13="Yes",MAX('Utility Specific PFx Settle'!P27,0),MAX('Utility Specifc PFx'!K43,0)) -> 2005.596776 | L14: 11
B15: ='Active Exchange'!D11 -> Idaho Power Company | C15: =IF(Init!$C$13="Yes",MAX('Utility Specific PFx Settle'!O28,0),MAX('Utility Specifc PFx'!K25,0)) -> 1881.744598 | D15: =IF(Init!$C$13="Yes",MAX('Utility Specific PFx Settle'!P28,0),MAX('Utility Specifc PFx'!K44,0)) -> 1881.744598 | L15: 12
B16: ='Active Exchange'!D12 -> NorthWestern Energy, LLC | C16: =IF(Init!$C$13="Yes",MAX('Utility Specific PFx Settle'!O29,0),MAX('Utility Specifc PFx'!K26,0)) -> 547.7812992 | D16: =IF(Init!$C$13="Yes",MAX('Utility Specific PFx Settle'!P29,0),MAX('Utility Specifc PFx'!K45,0)) -> 547.7812992 | L16: Settlement Menu
B17: ='Active Exchange'!D13 -> PacifiCorp | C17: =IF(Init!$C$13="Yes",MAX('Utility Specific PFx Settle'!O30,0),MAX('Utility Specifc PFx'!K27,0)) -> 11123.98949 | D17: =IF(Init!$C$13="Yes",MAX('Utility Specific PFx Settle'!P30,0),MAX('Utility Specifc PFx'!K46,0)) -> 11123.98949 | G17: ="Section 7(b)(3) Load for " & RateSummary!$C$10 -> Section 7(b)(3) Load for 2022 | H17: ='Exchange Load'!D29+'RAM IP'!M83+'RAM NR'!D66 -> 5122.687638 | J17: Trigger | L17: Yes
B18: ='Active Exchange'!D14 -> Portland General Electric Company | C18: =IF(Init!$C$13="Yes",MAX('Utility Specific PFx Settle'!O31,0),MAX('Utility Specifc PFx'!K28,0)) -> 7166.341918 | D18: =IF(Init!$C$13="Yes",MAX('Utility Specific PFx Settle'!P31,0),MAX('Utility Specifc PFx'!K47,0)) -> 7166.341918 | G18: Section 7(b)(2) Rate Test Trigger | H18: 16.3 | J18: =ROUND(TriggerCalc!J35,2) -> 16.3 | L18: No
B19: ='Active Exchange'!D15 -> Puget Sound Energy, Inc. | C19: =IF(Init!$C$13="Yes",MAX('Utility Specific PFx Settle'!O32,0),MAX('Utility Specifc PFx'!K29,0)) -> 8554.604067 | D19: =IF(Init!$C$13="Yes",MAX('Utility Specific PFx Settle'!P32,0),MAX('Utility Specifc PFx'!K48,0)) -> 8554.604067
B20: Net IOU Exchange | C20: =SUM(C14:C19) -> 31280.05815 | D20: =SUM(D14:D19) -> 31280.05815 | E20: =(C20+D20)/2 -> 31280.05815
B21: Refund Amt | C21: =IF(Init!$C$13="Yes",'Utility Specific PFx Settle'!$O$41,0) -> 0 | D21: =IF(Init!$C$13="Yes",'Utility Specific PFx Settle'!$P$41,0) -> 0 | E21: =(C21+D21)/2 -> 0
G22: Previous Rates | H22: Surcharge Adj. | I22: 2 year average
B23: =ExchangeInputs!C15 -> Clark Public Utilities | C23: =IF(Init!$C$13="Yes",MAX('Utility Specific PFx Settle'!O35,0),MAX('Utility Specifc PFx'!K30,0)) -> 0 | D23: =IF(Init!$C$13="Yes",MAX('Utility Specific PFx Settle'!P35,0),MAX('Utility Specifc PFx'!K49,0)) -> 0 | G23: Unbifurcated PF | H23: 47.01136502
B24: =ExchangeInputs!C16 -> Franklin | C24: =IF(Init!$C$13="Yes",MAX('Utility Specific PFx Settle'!O36,0),MAX('Utility Specifc PFx'!K31,0)) -> 0 | D24: =IF(Init!$C$13="Yes",MAX('Utility Specific PFx Settle'!P36,0),MAX('Utility Specifc PFx'!K50,0)) -> 0 | G24: PF Public | H24: =+I24+H43 -> 35.74500831 | I24: 35.56
B25: =ExchangeInputs!C17 -> Snohomish PUD | C25: =IF(Init!$C$13="Yes",MAX('Utility Specific PFx Settle'!O37,0),MAX('Utility Specifc PFx'!K32,0)) -> 558.526264 | D25: =IF(Init!$C$13="Yes",MAX('Utility Specific PFx Settle'!P37,0),MAX('Utility Specifc PFx'!K51,0)) -> 560.9320445 | G25: PF Exchange | H25: 66.48
B26: Net COU Exchange | C26: =SUM(C23:C25) -> 558.526264 | D26: =SUM(D23:D25) -> 560.9320445 | E26: =(C26+D26)/2 -> 559.7291543 | G26: IP | H26: =I26+H44 -> 41.00500831 | I26: 40.82
D27: Total | E27: =E20+E21+E26 -> 31839.78731 | G27: NR | H27: =I27+H45 -> 79.69500831 | I27: 79.51
B29: Annual Average $ (1000s) | C29: BP-20 | D29: FY22-23 | E29: Change
B30: Composite Revenues | C30: 2244314.157 | D30: =Cost_Allocation_TRM!$E$59/2 -> 2038133.937 | E30: =(D30-C30)/C30 -> -0.09186780716
B31: Non-Slice Revenues | C31: -173280.0459 | D31: =Cost_Allocation_TRM!$E$60/2 -> -290988.89 | E31: =-(D31-C31)/C31 -> -0.6792983205 | H31: BP-20 | I31: FY22-23 | J31: FY22-23 Projected | K31: FY22-23 max FRP
B32: Slice Revenues | C32: 0 | D32: =Cost_Allocation_TRM!$E$61/2 -> 0 | G32: Surcharges | H32: =J49 -> 11250 | I32: 0 | J32: 0 | K32: 0
B33: Load Shaping Revenues | C33: 28041.87596 | D33: =-Cost_Allocation_TRM!$E$44/2 -> 17897.52721 | E33: =(D33-C33)/C33 -> -0.3617571363 | G33: Preference Load | H33: 6919.695837 | I33: =AVERAGE(ProgAlloc!C7:D7) -> 6762.588553 | J33: =AVERAGE(ProgAlloc!C7:D7) -> 6762.588553 | K33: =AVERAGE(ProgAlloc!C7:D7) -> 6762.588553
B34: Demand Revenues | C34: 53528.96763 | D34: =-Cost_Allocation_TRM!$E$46/2 -> 55457.28824 | E34: =(D34-C34)/C34 -> 0.03602387062 | G34: DSI Load | H34: 12.36871702 | I34: =ProgAlloc!C9 -> 12.38530592 | J34: =I34 -> 12.38530592 | K34: =ProgAlloc!C9 -> 12.38530592
B35: Tier 1 Revenue Requirement | C35: 2152604.955 | D35: =SUM($D$30:$D$34) -> 1820499.863 | E35: =((D35+D38+D41)-(C35+C38+C41))/C35 -> -0.1697651389 | G35: NR Load | H35: 0.001156384698 | I35: =ProgAlloc!C10 -> 0.001161245403 | J35: =I35 -> 0.001161245403 | K35: =ProgAlloc!C10 -> 0.001161245403
B36: Tier 2 Revenue Requirement | C36: 14935.76388 | D36: =(Cost_Allocation_TRM!$H$13+Cost_Allocation_TRM!$I$13)/2 -> 47492.02244 | G36: Preference Allocator | H36: =H33/SUM(H$33:H$35) -> 0.9982155574 | I36: =I33/SUM(I$33:I$35) -> 0.9981717324 | J36: =J33/SUM(J$33:J$35) -> 0.9981717324 | K36: 0.9981717324
G37: DSI Allocator | H37: =H34/SUM(H$33:H$35) -> 0.001784275789 | I37: 0.001828096175 | J37: =J34/SUM(J$33:J$35) -> 0.001828096175 | K37: 0.001828096175
B38: Lookback Return (credit) | C38: 0 | D38: 0 | G38: NR Allocator | H38: =H35/SUM(H$33:H$35) -> 1.668167537e-07 | I38: 1.714021675e-07 | J38: =J35/SUM(J$33:J$35) -> 1.714021675e-07 | K38: 1.714021675e-07
B39: Spill Surcharge | C39: 0 | D39: 0 | G39: Preference Surcharge | H39: =H$32*H36 -> 11229.92502 | I39: =I$32*I36 -> 0 | J39: =J$32*J36 -> 0 | K39: =K$32*K36 -> 0
B40: FRP Surcharge | C40: 17468.77225 | D40: =I39 -> 0 | G40: DSI Surcharge | H40: =H$32*H37 -> 20.07310263 | I40: 0 | J40: =J$32*J37 -> 0 | K40: 0
B41: Value of Slice Secondary | C41: -72850.57469 | D41: =(Cost_Allocation_TRM!$H$18+Cost_Allocation_TRM!$I$18)/2 -> -106182.7614 | E41: =-(D41-C41)/C41 -> -0.4575418493 | G41: NR Surcharge | H41: =H$32*H38 -> 0.001876688479 | I41: 0 | J41: =J$32*J38 -> 0 | K41: 0
B42: Net Power Cost to All PF | C42: 2112158.916 | D42: =SUM(D35:D41) -> 1761809.124 | E42: =+D42/C42-1 -> -0.1658728376 | G42: Hours | H42: 8772 | I42: =AVERAGE(8760,8760) -> 8760 | J42: =AVERAGE(8760,8760) -> 8760 | K42: =AVERAGE(8760,8760) -> 8760
B43: Total PF Load w/Slice (GWh)/yr | C43: 58896.49387 | D43: =('PF Public'!$D$77+'PF Public'!$E$77)/2 -> 57435.67953 | E43: =-(((C42-C36)*(D43-C43))/(C43*C43))/C48 -> 0.02465671431 | G43: PF Melded Adder | H43: =H39*1000/(H$42*H33) -> 0.1850083069 | I43: =I39*1000/(I$42*I33) -> 0 | J43: =J39*1000/(J$42*J33) -> 0 | K43: 0
B44: Average Net Cost $/MWh | C44: 35.86221823 | D44: =+D42/D43 -> 30.67447166 | E44: =(D44-C$44)/C$44 -> -0.144657716 | G44: DSI Adder | H44: =H40*1000/(H$42*H34) -> 0.1850083069 | I44: 0 | J44: =J40*1000/(J$42*J34) -> 0 | K44: 0
G45: NR Adder | H45: =H41*1000/(H$42*H35) -> 0.1850083069 | I45: 0 | J45: =J41*1000/(J$42*J35) -> 0 | K45: 0
B46: Tier 1 Load | C46: 58380.36135 | D46: =+(PFAveT1_RateOutput!$E$54/2) -> 55991.19057 | E46: =((C46-D46)*C48)/D46/(C48) -> 0.04267047663
G47: Forecast/Billed | H47: FY20 | I47: FY21 | J47: BP20 Avg
B48: Tier 1 Average Net Cost without FRP ($/MWh) | C48: =C49 -> 35.82 | D48: =ROUND((D35+D37+D38+D39+D41)/D46,2) -> 30.62 | E48: =(D48-C$48)/C$48 -> -0.1451702959 | G48: BP20 Max per year | H48: =30000 -> 30000 | I48: 0
B49: Tier 1 Average Net Cost with max FRP ($/MWh) | C49: =ROUND((C35+C37+C38+H39+C41)/C46,2) -> 35.82 | D49: =ROUND((D35+D38+K39+D41)/D46,2) -> 30.62 | E49: =(D49-C$49)/C$49 -> -0.1451702959 | G49: suspension in July of surcharge | H49: =H48*(9/12) -> 22500 | I49: 0 | J49: =AVERAGE(H49:I49) -> 11250
B50: Tier 2 Short-term ($/MWh) | C50: 31.76411205 | D50: =ResultsDetail!D32 -> 33.65474222 | E50: =(D50-C$50)/C$50 -> 0.05952095133
B51: Tier 2 Load Growth ($/MWh) | C51: 31.76411205 | D51: =Cost_Allocation_TRM!E82 -> 33.69 | E51: =(D51-C$51)/C$51 -> 0.06063093937 | G51: Actual Surcharge Collected | H51: 21019 | I51: 0 | J51: =AVERAGE(H51:I51) -> 10509.5
D54: % above BP-20
B55: Unbifurcated PF | C55: 46.97392928 | D55: -0.0007963125073
B56: PF Public | C56: 46.97 | D56: 0.3140296289
B57: PF Exchange | C57: 52.52325273 | D57: -0.2099390383
B58: IP | C58: 45.25700591 | D58: 0.103694592
B59: NR | C59: 72.75212605 | D59: -0.08711815716
B61: Residential Exchange Benefits | C61: 2022 | D61: 2023 | F61: <- not updated
B62: Avista Corporation | C62: 41402.98554 | D62: 41402.98554
B63: Idaho Power Company | C63: 38846.2154 | D63: 38846.2154
B64: NorthWestern Energy, LLC | C64: 11308.24574 | D64: 11308.24574
B65: PacifiCorp | C65: 229640.5646 | D65: 229640.5646
B66: Portland General Electric Company | C66: 147939.9819 | D66: 147939.9819
B67: Puget Sound Energy, Inc. | C67: 176598.882 | D67: 176598.882
B68: Net IOU Exchange | C68: 645736.8752 | D68: 645736.8752 | E68: 645736.8752
B69: Refund Amt | C69: 0 | D69: 0 | E69: 0
B71: Clark Public Utilities | C71: 0 | D71: 0
B72: Franklin | C72: 0 | D72: 0
B73: Snohomish PUD | C73: 11530.06183 | D73: 11579.72609
B74: Net COU Exchange | C74: 11530.06183 | D74: 11579.72609 | E74: 11554.89396
D75: Total | E75: 657291.7692
B77: Annual Average $ (1000s) | C77: BP-20 | D77: FY22-23 | E77: Change
B78: Composite Revenues | C78: 2244314.157 | D78: 2648807.717 | E78: 0.180230365
B79: Non-Slice Revenues | C79: -173280.0459 | D79: -276441.7 | E79: -0.5953464151
B80: Slice Revenues | C80: 0 | D80: 0
B81: Load Shaping Revenues | C81: 28041.87596 | D81: 17897.52721 | E81: -0.3617571363
B82: Demand Revenues | C82: 53528.96763 | D82: 55457.28824 | E82: 0.03602387062
B83: Tier 1 Revenue Requirement | C83: 2152604.955 | D83: 2445720.833 | E83: 0.1206834028
B84: Tier 2 Revenue Requirement | C84: 14935.76388 | D84: 47492.02244
B86: Lookback Return (credit) | C86: 0 | D86: 0
B87: Spill Surcharge | C87: 0 | D87: 0
B88: FRP Surcharge | C88: 17468.77225 | D88: 0
B89: Value of Slice Secondary | C89: -72850.57469 | D89: -106182.7614 | E89: -0.4575418493
B90: Net Power Cost to All PF | C90: 2112158.916 | D90: 2387030.094 | E90: 0.1301375455
B91: Total PF Load w/Slice (GWh)/yr | C91: 58896.49387 | D91: 57435.67953 | E91: 0.02465671431
B92: Average Net Cost $/MWh | C92: 35.86221823 | D92: 41.56005663 | E92: 0.1588813708

Sheet ResultsDetail
B1: Rate Analysis Model - Scenario Summary | G1: =IF(Init!$C$13="Yes","Results Under Settlement","Results while Running 7b2 Rate Test") -> Results while Running 7b2 Rate Test
A2: TOC | B2: =Cover!$C$14 -> FY 2022-23 Reference Case | G2: Not printed in documentation.
A3: é
D6: % above BP-18
B7: Unbifurcated PF | C7: =ScenarioResults!C7 -> 46.97392928 | D7: =C7/ScenarioResults!H23-1 -> -0.0007963125073
B8: PF Public (Tier 1 + Tier 2) | C8: =ScenarioResults!C8 -> 30.67 | D8: =C8/ScenarioResults!H24-1 -> -0.1419780984
B9: PF Exchange (IOU) | C9: =ScenarioResults!C9 -> 66.49121413 | D9: =C9/ScenarioResults!H25-1 -> 0.0001686842363
B10: IP with 7(b)(3) | C10: =ScenarioResults!C10 -> 43.0594009 | D10: =C10/ScenarioResults!H26-1 -> 0.05010101637
B11: NR | C11: =ScenarioResults!C11 -> 86.720016 | D11: =C11/ScenarioResults!H27-1 -> 0.08814865371
B14: Annual Average $ (1000s) | C14: BP-20 | D14: FY22-23 | E14: Change
A15: 1 | B15: Composite Rate Revenues | C15: 2244314.157 | D15: =Cost_Allocation_TRM!$E$59/2 -> 2038133.937 | E15: =D15/C15-1 -> -0.09186780716
A16: =+A15+1 -> 2 | B16: Non-Slice Rate Revenues | C16: -173280.0459 | D16: =Cost_Allocation_TRM!$E$60/2 -> -290988.89 | E16: =-(D16/C16-1) -> -0.6792983205
A17: =+A16+1 -> 3 | B17: Slice Rate Revenues | C17: 0 | D17: =Cost_Allocation_TRM!$E$61/2 -> 0
A18: 4 | B18: Load Shaping Rate Revenues | C18: 28041.87596 | D18: =-Cost_Allocation_TRM!$E$44/2 -> 17897.52721 | E18: =D18/C18-1 -> -0.3617571363
A19: 5 | B19: Demand Rate Revenues | C19: 53528.96763 | D19: =-Cost_Allocation_TRM!$E$46/2 -> 55457.28824 | E19: =D19/C19-1 -> 0.03602387062
A20: 6 | B20: Tier 1 Revenue Requirement | C20: =SUM(C15:C19) -> 2152604.955 | D20: =SUM(D15:D19) -> 1820499.863 | E20: =D20/C20-1 -> -0.1542805575
A21: 7 | B21: Tier 2 Revenue Requirement | C21: 14935.76388 | D21: =(Cost_Allocation_TRM!$H$13+Cost_Allocation_TRM!$I$13)/2 -> 47492.02244
A22: 8 | B22: Value of Slice Surplus | C22: -72850.57469 | D22: =-(Secondary!D27+Secondary!E27)/2 -> -106182.7614 | E22: =-(D22/C22-1) -> -0.4575418493
A23: 9 | B23: Value of CHWM RECs (credit)
A24: 10 | B24: Lookback Return (credit) | C24: 0 | D24: 0
A25: 11 | B25: Net Power Cost to All PF | C25: =SUM(C20:C22) -> 2094690.144 | D25: =SUM(D20:D24) -> 1761809.124 | E25: =D25/C25-1 -> -0.1589165927
A26: 12 | B26: Surcharges | C26: =ScenarioResults!H39 -> 11229.92502 | D26: =ScenarioResults!I39 -> 0
A27: 13 | B27: Annual PF Load (w/firm Slice) (GWh) | C27: 58896.49387 | D27: =('PF Public'!$D$77+'PF Public'!$E$77)/2 -> 57435.67953 | E27: =D27/C27-1 -> -0.02480307822
A28: 14 | B28: PF Average Net Cost ($/MWh) | C28: =+(C25+C26)/C27 -> 35.75628923 | D28: =+(D25+D26)/D27 -> 30.67447166 | E28: =D28/C28-1 -> -0.1421237405
A30: =A28+1 -> 15 | B30: Tier 1 Average Net Cost without FRP ($/MWh) | C30: =ScenarioResults!C48 -> 35.82 | D30: =ScenarioResults!D48 -> 30.62 | E30: =D30/C30-1 -> -0.1451702959
A31: =+A30+1 -> 16 | B31: Tier 1 Average Net Cost max FRP ($/MWh) | C31: =ScenarioResults!C49 -> 35.82 | D31: =ScenarioResults!D49 -> 30.62 | E31: -0.1451702959
A32: 17 | B32: Tier 2 ($/MWh) | C32: 31.76411205 | D32: =+'Cost Contribution'!F31 -> 33.65474222 | E32: =D32/C32-1 -> 0.05952095133
I34: Power Rates ($/MWh) | J34: BP-18 | K34: BP-20 | L34: Change
B35: Slice Sales | C35: BP-20 | D35: FY22-23 | E35: Change | I35: Tier 1 Average Net Cost of Power | J35: =C30 -> 35.82 | K35: =D30 -> 30.62 | L35: =E30 -> -0.1451702959
A36: =+A32+1 -> 18 | B36: Composite+Slice | C36: 531485.5367 | D36: =(Cost_Allocation_TRM!C68*Cost_Allocation_TRM!E71+Cost_Allocation_TRM!D68*Cost_Allocation_TRM!E71+Cost_Allocation_TRM!C68*Cost_Allocation_TRM!E73+Cost_Allocation_TRM!D68*Cost_Allocation_TRM!E73)/2 -> 480343.3812 | I36: Average Non-Slice Rate | J36: =C50 -> 36.59 | K36: =D50 -> 31.3145936 | L36: =E50 -> -0.1441761792
A37: 19 | B37: Surcharges | I37: Average Slice Rate | J37: =C38 -> 38.57 | K37: =D38 -> 36.40736482 | L37: =E38 -> -0.05607039621
A38: 20 | B38: Tier 1 Average Cost ($/MWh) | C38: =ROUND(SUM(C36:C37)/C59,2) -> 38.57 | D38: =D36/((Loads!E8+Loads!F8)/1000/2) -> 36.40736482 | E38: =D38/C38-1 -> -0.05607039621 | I38: Average Tier 2 Rate | J38: =C32 -> 31.76411205 | K38: =D32 -> 33.65474222 | L38: =E32 -> 0.05952095133
A39: 21 | B39: Value of Slice Surplus+Credits | C39: -72850.57469 | D39: =D22+((D23+D24)*(Cost_Allocation_TRM!E68/Cost_Allocation_TRM!E66)) -> -106182.7614
A40: 22 | B40: Net Cost of Slice Power | C40: =+C36+C37+C39 -> 458634.962 | D40: =D36+D39 -> 374160.6199 | I40: IP Rate | J40: 43.51 | K40: 41.75 | L40: =K40/J40-1 -> -0.04045047116
A41: 23 | B41: Tier 1 Average Net Cost ($/MWh) | C41: =C40/C59 -> 33.28348072 | D41: =D40/((Cost_Allocation_TRM!H36+Cost_Allocation_TRM!I36)/2/1000) -> 28.35339795 | E41: =D41/C41-1 -> -0.1481240142
B44: Non-Slice Sales | C44: BP-20 | D44: BP29 | E44: Change
A45: =+A41+1 -> 24 | B45: Composite+NonSlice+Shape+Demand | C45: 1620982.95 | D45: ='LSTUR&PFT1Eqv_RateOutput'!D52/2 -> 1340189.838
A46: 25 | B46: Tier 1 Average Cost ($/MWh) | C46: 36.34220813 | D46: =D45/(('LSTUR&PFT1Eqv_RateOutput'!E54)/2) -> 31.3145936 | E46: =D46/C46-1 -> -0.1383409206
A47: 26 | B47: Credits | C47: 0 | D47: =(D23+D24)*(Cost_Allocation_TRM!E67/Cost_Allocation_TRM!E66) -> 0
A48: 27 | B48: Net Cost of Non-Slice Power | C48: 1620982.95 | D48: =D45+D47 -> 1340189.838
A49: 28 | B49: Surcharges | C49: =ScenarioResults!H39 -> 11229.92502 | D49: =+ScenarioResults!K39 -> 0
A50: 29 | B50: Tier 1 Average Net Cost without FRP ($/MWh) | C50: =ROUND((C48+C49)/C58,2) -> 36.59 | D50: =(D48)/(('LSTUR&PFT1Eqv_RateOutput'!E54)/2) -> 31.3145936 | E50: =D50/C50-1 -> -0.1441761792
A51: 30 | B51: Tier 1 Average Net Cost max FRP ($/MWh) | C51: =+C50 -> 36.59 | D51: =(D48+D49)/(('LSTUR&PFT1Eqv_RateOutput'!E54)/2) -> 31.3145936 | E51: =D51/C51-1 -> -0.1441761792
B54: Tiered PF Rate Components | C54: BP-20 | D54: BP29 | E54: Change
A55: =+A51+1 -> 31 | B55: Composite Rate ($/ pct/month) | C55: 1980553.368 | D55: =+Cost_Allocation_TRM!E76 -> 1789974.77 | E55: =D55/C55-1 -> -0.09622492425
A56: 32 | B56: Non-Slice Rate ($/ pct/month) | C56: -200364.6917 | D56: =+Cost_Allocation_TRM!E77 -> -334359.9495 | E56: =D56/C56-1 -> 0.6687568386
A58: =+A56+1 -> 33 | B58: NonSlice Load | C58: 44603.31481 | D58: =AVERAGE(NonSliceLossAdjust!C5:D5)/1000 -> 42797.61236
A59: 34 | B59: Slice Load | C59: 13779.65742 | D59: =AVERAGE(Cost_Allocation_TRM!H36:I36)/1000 -> 13196.32379
A60: 35 | B60: PF load w/slice | C60: 58896.49387 | D60: =D27 -> 57435.67953
B66: Residential Exchange Program Cost Allocations
C68: 2023 | D68: 2024
B69: Unconstrained REP Benefits | C69: ='Rates After Settlement'!C14 -> 657266.937 | D69: ='Rates After Settlement'!D14 -> 657316.6013
B70: 7(b)(2) Rate Protection | C70: =C69*(Loads!E5/(Loads!E5+Loads!E11+Loads!E14))-C78 -> 392919.8409 | D70: =D69*(Loads!F5/(Loads!F5+Loads!F11+Loads!F14))-D78 -> 392954.9943
B71: 7(b)(3) PFx Allocation | C71: ='Rates After Settlement'!C28 -> 393641.7855 | D71: ='Rates After Settlement'!D28 -> 393671.5298
B72: 7(b)(3) IP Allocation | C72: ='WP-10 Adjustment'!C55 -> 767.5644264 | D72: ='WP-10 Adjustment'!D55 -> 767.6458436
B73: 7(b)(3) NR Allocation | C73: ='WP-10 Adjustment'!C56 -> 0.07196626551 | D73: ='WP-10 Adjustment'!D56 -> 0.07174008138
B74: REP Benefits | C74: ='Utility Specific PFx Settle'!O39 -> 263625.1516 | D74: ='Utility Specific PFx Settle'!P39 -> 263645.0715
B75: Refund Amounts | C75: ='Utility Specific PFx Settle'!O41 -> 0 | D75: ='Utility Specific PFx Settle'!P41 -> 0
B76: Total REP Costs (Benefits + Refunds) | C76: ='Utility Specific PFx Settle'!O42 -> 263625.1516 | D76: ='Utility Specific PFx Settle'!P42 -> 263645.0715
B78: REP Benefits paid by PFp | C78: =C74*(Loads!E5/(Loads!E5+Loads!E11+Loads!E14)) -> 263141.6593 | D78: =D74*(Loads!F5/(Loads!F5+Loads!F11+Loads!F14)) -> 263165.2018
B79: REP Benefits paid by IP | C79: =C74*(Loads!E11/(Loads!E5+Loads!E11+Loads!E14)) -> 483.4468831 | D79: =D74*(Loads!F11/(Loads!F5+Loads!F11+Loads!F14)) -> 479.8248884
B80: REP Benefits paid by NR | C80: =C74*(Loads!E14/(Loads!E5+Loads!E11+Loads!E14)) -> 0.04532774429 | D80: =D74*(Loads!F14/(Loads!F5+Loads!F11+Loads!F14)) -> 0.04484208242

Sheet LoadScenarioInput
B1: Load Scenario Input (MWh)
A2: TOC | B2: =Cover!$C$14 -> FY 2022-23 Reference Case | L2: =L10 -> 2021-10-01 | M2: 2021-11-01 | N2: 2021-12-01 | O2: 2022-01-01 | P2: 2022-02-01 | Q2: 2022-03-01 | R2: 2022-04-01 | S2: 2022-05-01 | T2: 2022-06-01 | U2: 2022-07-01 | V2: 2022-08-01 | W2: 2022-09-01 | X2: 2022-10-01 | Y2: 2022-11-01 | Z2: 2022-12-01 | AA2: 2023-01-01 | AB2: 2023-02-01 | AC2: 2023-03-01 | AD2: 2023-04-01 | AE2: 2023-05-01 | AF2: 2023-06-01 | AG2: 2023-07-01 | AH2: 2023-08-01 | AI2: 2023-09-01 | AJ2: 2023-10-01 | AK2: 2023-11-01 | AL2: 2023-12-01 | AM2: 2024-01-01 | AN2: 2024-02-01 | AO2: 2024-03-01 | AP2: 2024-04-01 | AQ2: 2024-05-01 | AR2: 2024-06-01 | AS2: 2024-07-01 | AT2: 2024-08-01 | AU2: 2024-09-01 | AV2: 2024-10-01 | AW2: 2024-11-01 | AX2: 2024-12-01 | AY2: 2025-01-01 | AZ2: 2025-02-01 | BA2: 2025-03-01 | BB2: 2025-04-01 | BC2: 2025-05-01 | BD2: 2025-06-01 | BE2: 2025-07-01 | BF2: 2025-08-01 | BG2: 2025-09-01 | BH2: 2025-10-01 | BI2: 2025-11-01 | BJ2: 2025-12-01 | BK2: 2026-01-01 | BL2: 2026-02-01 | BM2: 2026-03-01 | BN2: 2026-04-01 | BO2: 2026-05-01 | BP2: 2026-06-01 | BQ2: 2026-07-01 | BR2: 2026-08-01 | BS2: 2026-09-01 | BT2: 2026-10-01 | BU2: 2026-11-01 | BV2: 2026-12-01 | BW2: 2027-01-01 | BX2: =BX10 -> 2027-02-01 | BY2: 2027-03-01 | BZ2: 2027-04-01 | CA2: 2027-05-01 | CB2: 2027-06-01 | CC2: 2027-07-01 | CD2: 2027-08-01 | CE2: 2027-09-01 | CG2: 2021-10-01 | CH2: 2021-11-01 | CI2: 2021-12-01 | CJ2: 2022-01-01 | CK2: 2022-02-01 | CL2: 2022-03-01 | CM2: 2022-04-01 | CN2: 2022-05-01 | CO2: 2022-06-01 | CP2: 2022-07-01 | CQ2: 2022-08-01 | CR2: 2022-09-01 | CS2: 2022-10-01 | CT2: 2022-11-01 | CU2: 2022-12-01 | CV2: 2023-01-01 | CW2: 2023-02-01 | CX2: 2023-03-01 | CY2: 2023-04-01 | CZ2: 2023-05-01 | DA2: 2023-06-01 | DB2: 2023-07-01 | DC2: 2023-08-01 | DD2: 2023-09-01 | DE2: 2023-10-01 | DF2: 2023-11-01 | DG2: 2023-12-01 | DH2: 2024-01-01 | DI2: 2024-02-01 | DJ2: 2024-03-01 | DK2: 2024-04-01 | DL2: 2024-05-01 | DM2: 2024-06-01 | DN2: 2024-07-01 | DO2: 2024-08-01 | DP2: 2024-09-01 | DQ2: 2024-10-01 | DR2: 2024-11-01 | DS2: 2024-12-01 | DT2: 2025-01-01 | DU2: 2025-02-01 | DV2: 2025-03-01 | DW2: 2025-04-01 | DX2: 2025-05-01 | DY2: 2025-06-01 | DZ2: 2025-07-01 | EA2: 2025-08-01 | EB2: 2025-09-01 | EC2: 2025-10-01 | ED2: 2025-11-01 | EE2: 2025-12-01 | EF2: 2026-01-01 | EG2: 2026-02-01 | EH2: 2026-03-01 | EI2: 2026-04-01 | EJ2: =EJ10 -> 2026-05-01 | EK2: 2026-06-01 | EL2: 2026-07-01 | EM2: 2026-08-01 | EN2: 2026-09-01 | EO2: 2026-10-01 | EP2: 2026-11-01 | EQ2: 2026-12-01 | ER2: 2027-01-01 | ES2: 2027-02-01 | ET2: 2027-03-01 | EU2: 2027-04-01 | EV2: 2027-05-01 | EW2: 2027-06-01 | EX2: 2027-07-01 | EY2: 2027-08-01 | EZ2: 2027-09-01
A3: é | H3: Scenario Input | K3: Block Base Case | L3: 198793.984 | M3: 307244.07 | N3: 319366.945 | O3: 347026.28 | P3: 294201.174 | Q3: 309814.582 | R3: 154408.832 | S3: 57927.664 | T3: 8747.088 | U3: 127056.699 | V3: 143053.476 | W3: 225915.918 | X3: 198237.265 | Y3: 306360.289 | Z3: 318469.258 | AA3: 346052.03 | AB3: 293373.081 | AC3: 308937.77 | AD3: 153984.332 | AE3: 57788.485 | AF3: 8747.088 | AG3: 126722.66 | AH3: 142656.812 | AI3: 225268.73 | AJ3: 205634.6381 | AK3: 317991.5604 | AL3: 330381.554 | AM3: 358985.8226 | AN3: 304356.4664 | AO3: 320544.5053 | AP3: 159662.8205 | AQ3: 59748.36394 | AR3: 8864.580902 | AS3: 131265.5943 | AT3: 147946.4261 | AU3: 233798.5858 | AV3: 203682.2675 | AW3: 314915.2688 | AX3: 327236.6468 | AY3: 355571.5641 | AZ3: 301456.4819 | BA3: 317478.62 | BB3: 158166.3061 | BC3: 59237.4852 | BD3: 8840.360736 | BE3: 130072.6287 | BF3: 146551.4502 | BG3: 231543.3038 | BH3: 204332.9813 | BI3: 315945.9914 | BJ3: 328285.5972 | BK3: 356710.0768 | BL3: 302424.0064 | BM3: 318502.5939 | BN3: 158663.2504 | BO3: 59402.41848 | BP3: 8842.757472 | BQ3: 130465.1889 | BR3: 147015.4709 | BS3: 232298.3388 | BT3: 204055.885 | BU3: 315506.101 | BV3: 327838.7794 | BW3: 356225.1582 | BX3: 302011.8256 | BY3: 318066.1672 | BZ3: 158451.9645 | CA3: 59333.1444 | CB3: 8842.757472 | CC3: 130298.9311 | CD3: 146818.0398 | CE3: 231976.2143 | CG3: 132529.303 | CH3: 204829.359 | CI3: 212911.309 | CJ3: 231350.861 | CK3: 196134.147 | CL3: 206543.098 | CM3: 102939.211 | CN3: 38618.438 | CO3: 5831.393 | CP3: 84704.455 | CQ3: 95368.985 | CR3: 150610.617 | CS3: 132158.178 | CT3: 204240.172 | CU3: 212312.84 | CV3: 230701.361 | CW3: 195582.053 | CX3: 205958.536 | CY3: 102656.211 | CZ3: 38525.656 | DA3: 5831.393 | DB3: 84481.775 | DC3: 95104.54 | DD3: 150179.18 | DE3: 137089.7588 | DF3: 211994.3736 | DG3: 220254.3694 | DH3: 239323.8817 | DI3: 202904.3109 | DJ3: 213696.3368 | DK3: 106441.8803 | DL3: 39832.24262 | DM3: 5909.720602 | DN3: 87510.39621 | DO3: 98630.95075 | DP3: 155865.7239 | DQ3: 135788.1783 | DR3: 209943.5125 | DS3: 218157.7645 | DT3: 237047.7094 | DU3: 200970.9879 | DV3: 211652.4133 | DW3: 105444.2041 | DX3: 39491.6568 | DY3: 5893.573824 | DZ3: 86715.08582 | EA3: 97700.96678 | EB3: 154362.2026 | EC3: 136221.9876 | ED3: 210630.661 | EE3: 218857.0648 | EF3: 237806.7179 | EG3: 201616.0043 | EH3: 212335.0626 | EI3: 105775.5003 | EJ3: 39601.61232 | EK3: 5895.171648 | EL3: 86976.79258 | EM3: 98010.31392 | EN3: 154865.5592 | EO3: 136037.2567 | EP3: 210337.4007 | EQ3: 218559.1863 | ER3: 237483.4388 | ES3: 201341.2171 | ET3: 212044.1115 | EU3: 105634.643 | EV3: 39555.4296 | EW3: 5895.171648 | EX3: 86865.95405 | EY3: 97878.69317 | EZ3: 154650.8095
F4: Base Case | G4: =IF(SUM($G$5:$G$7)=1,0,1) -> 1 | K4: =F5 -> Increase Loads (1,000aMW) | L4: =($G$5*$H$5*(VLOOKUP($E$10,Init!$N:$P,3,FALSE)))/24 -> 0 | M4: =($G$5*$H$5*(VLOOKUP($E$10,Init!$N:$P,3,FALSE)))/24 -> 0 | N4: =($G$5*$H$5*(VLOOKUP($E$10,Init!$N:$P,3,FALSE)))/24 -> 0 | O4: =($G$5*$H$5*(VLOOKUP($E$10,Init!$N:$P,3,FALSE)))/24 -> 0 | P4: =($G$5*$H$5*(VLOOKUP($E$10,Init!$N:$P,3,FALSE)))/24 -> 0 | Q4: =($G$5*$H$5*(VLOOKUP($E$10,Init!$N:$P,3,FALSE)))/24 -> 0 | R4: =($G$5*$H$5*(VLOOKUP($E$10,Init!$N:$P,3,FALSE)))/24 -> 0 | S4: =($G$5*$H$5*(VLOOKUP($E$10,Init!$N:$P,3,FALSE)))/24 -> 0 | T4: =($G$5*$H$5*(VLOOKUP($E$10,Init!$N:$P,3,FALSE)))/24 -> 0 | U4: =($G$5*$H$5*(VLOOKUP($E$10,Init!$N:$P,3,FALSE)))/24 -> 0 | V4: =($G$5*$H$5*(VLOOKUP($E$10,Init!$N:$P,3,FALSE)))/24 -> 0 | W4: =($G$5*$H$5*(VLOOKUP($E$10,Init!$N:$P,3,FALSE)))/24 -> 0 | X4: =($G$5*$H$5*(VLOOKUP($F$10,Init!$N:$P,3,FALSE)))/24 -> 0 | Y4: =($G$5*$H$5*(VLOOKUP($F$10,Init!$N:$P,3,FALSE)))/24 -> 0 | Z4: =($G$5*$H$5*(VLOOKUP($F$10,Init!$N:$P,3,FALSE)))/24 -> 0 | AA4: =($G$5*$H$5*(VLOOKUP($F$10,Init!$N:$P,3,FALSE)))/24 -> 0 | AB4: =($G$5*$H$5*(VLOOKUP($F$10,Init!$N:$P,3,FALSE)))/24 -> 0 | AC4: =($G$5*$H$5*(VLOOKUP($F$10,Init!$N:$P,3,FALSE)))/24 -> 0 | AD4: =($G$5*$H$5*(VLOOKUP($F$10,Init!$N:$P,3,FALSE)))/24 -> 0 | AE4: =($G$5*$H$5*(VLOOKUP($F$10,Init!$N:$P,3,FALSE)))/24 -> 0 | AF4: =($G$5*$H$5*(VLOOKUP($F$10,Init!$N:$P,3,FALSE)))/24 -> 0 | AG4: =($G$5*$H$5*(VLOOKUP($F$10,Init!$N:$P,3,FALSE)))/24 -> 0 | AH4: =($G$5*$H$5*(VLOOKUP($F$10,Init!$N:$P,3,FALSE)))/24 -> 0 | AI4: =($G$5*$H$5*(VLOOKUP($F$10,Init!$N:$P,3,FALSE)))/24 -> 0 | AJ4: =($G$5*$H$5*(VLOOKUP($G$10,Init!$N:$P,3,FALSE)))/24 -> 0 | AK4: =($G$5*$H$5*(VLOOKUP($G$10,Init!$N:$P,3,FALSE)))/24 -> 0 | AL4: =($G$5*$H$5*(VLOOKUP($G$10,Init!$N:$P,3,FALSE)))/24 -> 0 | AM4: =($G$5*$H$5*(VLOOKUP($G$10,Init!$N:$P,3,FALSE)))/24 -> 0 | AN4: =($G$5*$H$5*(VLOOKUP($G$10,Init!$N:$P,3,FALSE)))/24 -> 0 | AO4: =($G$5*$H$5*(VLOOKUP($G$10,Init!$N:$P,3,FALSE)))/24 -> 0 | AP4: =($G$5*$H$5*(VLOOKUP($G$10,Init!$N:$P,3,FALSE)))/24 -> 0 | AQ4: =($G$5*$H$5*(VLOOKUP($G$10,Init!$N:$P,3,FALSE)))/24 -> 0 | AR4: =($G$5*$H$5*(VLOOKUP($G$10,Init!$N:$P,3,FALSE)))/24 -> 0 | AS4: =($G$5*$H$5*(VLOOKUP($G$10,Init!$N:$P,3,FALSE)))/24 -> 0 | AT4: =($G$5*$H$5*(VLOOKUP($G$10,Init!$N:$P,3,FALSE)))/24 -> 0 | AU4: =($G$5*$H$5*(VLOOKUP($G$10,Init!$N:$P,3,FALSE)))/24 -> 0 | AV4: =($G$5*$H$5*(VLOOKUP($H$10,Init!$N:$P,3,FALSE)))/24 -> 0 | AW4: =($G$5*$H$5*(VLOOKUP($H$10,Init!$N:$P,3,FALSE)))/24 -> 0 | AX4: =($G$5*$H$5*(VLOOKUP($H$10,Init!$N:$P,3,FALSE)))/24 -> 0 | AY4: =($G$5*$H$5*(VLOOKUP($H$10,Init!$N:$P,3,FALSE)))/24 -> 0 | AZ4: =($G$5*$H$5*(VLOOKUP($H$10,Init!$N:$P,3,FALSE)))/24 -> 0 | BA4: =($G$5*$H$5*(VLOOKUP($H$10,Init!$N:$P,3,FALSE)))/24 -> 0 | BB4: =($G$5*$H$5*(VLOOKUP($H$10,Init!$N:$P,3,FALSE)))/24 -> 0 | BC4: =($G$5*$H$5*(VLOOKUP($H$10,Init!$N:$P,3,FALSE)))/24 -> 0 | BD4: =($G$5*$H$5*(VLOOKUP($H$10,Init!$N:$P,3,FALSE)))/24 -> 0 | BE4: =($G$5*$H$5*(VLOOKUP($H$10,Init!$N:$P,3,FALSE)))/24 -> 0 | BF4: =($G$5*$H$5*(VLOOKUP($H$10,Init!$N:$P,3,FALSE)))/24 -> 0 | BG4: =($G$5*$H$5*(VLOOKUP($H$10,Init!$N:$P,3,FALSE)))/24 -> 0 | BH4: =($G$5*$H$5*(VLOOKUP($I$10,Init!$N:$P,3,FALSE)))/24 -> 0 | BI4: =($G$5*$H$5*(VLOOKUP($I$10,Init!$N:$P,3,FALSE)))/24 -> 0 | BJ4: =($G$5*$H$5*(VLOOKUP($I$10,Init!$N:$P,3,FALSE)))/24 -> 0 | BK4: =($G$5*$H$5*(VLOOKUP($I$10,Init!$N:$P,3,FALSE)))/24 -> 0 | BL4: =($G$5*$H$5*(VLOOKUP($I$10,Init!$N:$P,3,FALSE)))/24 -> 0 | BM4: =($G$5*$H$5*(VLOOKUP($I$10,Init!$N:$P,3,FALSE)))/24 -> 0 | BN4: =($G$5*$H$5*(VLOOKUP($I$10,Init!$N:$P,3,FALSE)))/24 -> 0 | BO4: =($G$5*$H$5*(VLOOKUP($I$10,Init!$N:$P,3,FALSE)))/24 -> 0 | BP4: =($G$5*$H$5*(VLOOKUP($I$10,Init!$N:$P,3,FALSE)))/24 -> 0 | BQ4: =($G$5*$H$5*(VLOOKUP($I$10,Init!$N:$P,3,FALSE)))/24 -> 0 | BR4: =($G$5*$H$5*(VLOOKUP($I$10,Init!$N:$P,3,FALSE)))/24 -> 0 | BS4: =($G$5*$H$5*(VLOOKUP($I$10,Init!$N:$P,3,FALSE)))/24 -> 0 | BT4: =($G$5*$H$5*(VLOOKUP($J$10,Init!$N:$P,3,FALSE)))/24 -> 0 | BU4: =($G$5*$H$5*(VLOOKUP($J$10,Init!$N:$P,3,FALSE)))/24 -> 0 | BV4: =($G$5*$H$5*(VLOOKUP($J$10,Init!$N:$P,3,FALSE)))/24 -> 0 | BW4: =($G$5*$H$5*(VLOOKUP($J$10,Init!$N:$P,3,FALSE)))/24 -> 0 | BX4: =($G$5*$H$5*(VLOOKUP($J$10,Init!$N:$P,3,FALSE)))/24 -> 0 | BY4: =($G$5*$H$5*(VLOOKUP($J$10,Init!$N:$P,3,FALSE)))/24 -> 0 | BZ4: =($G$5*$H$5*(VLOOKUP($J$10,Init!$N:$P,3,FALSE)))/24 -> 0 | CA4: =($G$5*$H$5*(VLOOKUP($J$10,Init!$N:$P,3,FALSE)))/24 -> 0 | CB4: =($G$5*$H$5*(VLOOKUP($J$10,Init!$N:$P,3,FALSE)))/24 -> 0 | CC4: =($G$5*$H$5*(VLOOKUP($J$10,Init!$N:$P,3,FALSE)))/24 -> 0 | CD4: =($G$5*$H$5*(VLOOKUP($J$10,Init!$N:$P,3,FALSE)))/24 -> 0 | CE4: =($G$5*$H$5*(VLOOKUP($J$10,Init!$N:$P,3,FALSE)))/24 -> 0 | CG4: =($G$5*$H$5*(VLOOKUP($E$10,Init!$N:$P,3,FALSE)))/24 -> 0 | CH4: =($G$5*$H$5*(VLOOKUP($E$10,Init!$N:$P,3,FALSE)))/24 -> 0 | CI4: =($G$5*$H$5*(VLOOKUP($E$10,Init!$N:$P,3,FALSE)))/24 -> 0 | CJ4: =($G$5*$H$5*(VLOOKUP($E$10,Init!$N:$P,3,FALSE)))/24 -> 0 | CK4: =($G$5*$H$5*(VLOOKUP($E$10,Init!$N:$P,3,FALSE)))/24 -> 0 | CL4: =($G$5*$H$5*(VLOOKUP($E$10,Init!$N:$P,3,FALSE)))/24 -> 0 | CM4: =($G$5*$H$5*(VLOOKUP($E$10,Init!$N:$P,3,FALSE)))/24 -> 0 | CN4: =($G$5*$H$5*(VLOOKUP($E$10,Init!$N:$P,3,FALSE)))/24 -> 0 | CO4: =($G$5*$H$5*(VLOOKUP($E$10,Init!$N:$P,3,FALSE)))/24 -> 0 | CP4: =($G$5*$H$5*(VLOOKUP($E$10,Init!$N:$P,3,FALSE)))/24 -> 0 | CQ4: =($G$5*$H$5*(VLOOKUP($E$10,Init!$N:$P,3,FALSE)))/24 -> 0 | CR4: =($G$5*$H$5*(VLOOKUP($E$10,Init!$N:$P,3,FALSE)))/24 -> 0 | CS4: =($G$5*$H$5*(VLOOKUP($F$10,Init!$N:$P,3,FALSE)))/24 -> 0 | CT4: =($G$5*$H$5*(VLOOKUP($F$10,Init!$N:$P,3,FALSE)))/24 -> 0 | CU4: =($G$5*$H$5*(VLOOKUP($F$10,Init!$N:$P,3,FALSE)))/24 -> 0 | CV4: =($G$5*$H$5*(VLOOKUP($F$10,Init!$N:$P,3,FALSE)))/24 -> 0 | CW4: =($G$5*$H$5*(VLOOKUP($F$10,Init!$N:$P,3,FALSE)))/24 -> 0 | CX4: =($G$5*$H$5*(VLOOKUP($F$10,Init!$N:$P,3,FALSE)))/24 -> 0 | CY4: =($G$5*$H$5*(VLOOKUP($F$10,Init!$N:$P,3,FALSE)))/24 -> 0 | CZ4: =($G$5*$H$5*(VLOOKUP($F$10,Init!$N:$P,3,FALSE)))/24 -> 0 | DA4: =($G$5*$H$5*(VLOOKUP($F$10,Init!$N:$P,3,FALSE)))/24 -> 0 | DB4: =($G$5*$H$5*(VLOOKUP($F$10,Init!$N:$P,3,FALSE)))/24 -> 0 | DC4: =($G$5*$H$5*(VLOOKUP($F$10,Init!$N:$P,3,FALSE)))/24 -> 0 | DD4: =($G$5*$H$5*(VLOOKUP($F$10,Init!$N:$P,3,FALSE)))/24 -> 0 | DE4: =($G$5*$H$5*(VLOOKUP($G$10,Init!$N:$P,3,FALSE)))/24 -> 0 | DF4: =($G$5*$H$5*(VLOOKUP($G$10,Init!$N:$P,3,FALSE)))/24 -> 0 | DG4: =($G$5*$H$5*(VLOOKUP($G$10,Init!$N:$P,3,FALSE)))/24 -> 0 | DH4: =($G$5*$H$5*(VLOOKUP($G$10,Init!$N:$P,3,FALSE)))/24 -> 0 | DI4: =($G$5*$H$5*(VLOOKUP($G$10,Init!$N:$P,3,FALSE)))/24 -> 0 | DJ4: =($G$5*$H$5*(VLOOKUP($G$10,Init!$N:$P,3,FALSE)))/24 -> 0 | DK4: =($G$5*$H$5*(VLOOKUP($G$10,Init!$N:$P,3,FALSE)))/24 -> 0 | DL4: =($G$5*$H$5*(VLOOKUP($G$10,Init!$N:$P,3,FALSE)))/24 -> 0 | DM4: =($G$5*$H$5*(VLOOKUP($G$10,Init!$N:$P,3,FALSE)))/24 -> 0 | DN4: =($G$5*$H$5*(VLOOKUP($G$10,Init!$N:$P,3,FALSE)))/24 -> 0 | DO4: =($G$5*$H$5*(VLOOKUP($G$10,Init!$N:$P,3,FALSE)))/24 -> 0 | DP4: =($G$5*$H$5*(VLOOKUP($G$10,Init!$N:$P,3,FALSE)))/24 -> 0 | DQ4: =($G$5*$H$5*(VLOOKUP($H$10,Init!$N:$P,3,FALSE)))/24 -> 0 | DR4: =($G$5*$H$5*(VLOOKUP($H$10,Init!$N:$P,3,FALSE)))/24 -> 0 | DS4: =($G$5*$H$5*(VLOOKUP($H$10,Init!$N:$P,3,FALSE)))/24 -> 0 | DT4: =($G$5*$H$5*(VLOOKUP($H$10,Init!$N:$P,3,FALSE)))/24 -> 0 | DU4: =($G$5*$H$5*(VLOOKUP($H$10,Init!$N:$P,3,FALSE)))/24 -> 0 | DV4: =($G$5*$H$5*(VLOOKUP($H$10,Init!$N:$P,3,FALSE)))/24 -> 0 | DW4: =($G$5*$H$5*(VLOOKUP($H$10,Init!$N:$P,3,FALSE)))/24 -> 0 | DX4: =($G$5*$H$5*(VLOOKUP($H$10,Init!$N:$P,3,FALSE)))/24 -> 0 | DY4: =($G$5*$H$5*(VLOOKUP($H$10,Init!$N:$P,3,FALSE)))/24 -> 0 | DZ4: =($G$5*$H$5*(VLOOKUP($H$10,Init!$N:$P,3,FALSE)))/24 -> 0 | EA4: =($G$5*$H$5*(VLOOKUP($H$10,Init!$N:$P,3,FALSE)))/24 -> 0 | EB4: =($G$5*$H$5*(VLOOKUP($H$10,Init!$N:$P,3,FALSE)))/24 -> 0 | EC4: =($G$5*$H$5*(VLOOKUP($I$10,Init!$N:$P,3,FALSE)))/24 -> 0 | ED4: =($G$5*$H$5*(VLOOKUP($I$10,Init!$N:$P,3,FALSE)))/24 -> 0 | EE4: =($G$5*$H$5*(VLOOKUP($I$10,Init!$N:$P,3,FALSE)))/24 -> 0 | EF4: =($G$5*$H$5*(VLOOKUP($I$10,Init!$N:$P,3,FALSE)))/24 -> 0 | EG4: =($G$5*$H$5*(VLOOKUP($I$10,Init!$N:$P,3,FALSE)))/24 -> 0 | EH4: =($G$5*$H$5*(VLOOKUP($I$10,Init!$N:$P,3,FALSE)))/24 -> 0 | EI4: =($G$5*$H$5*(VLOOKUP($I$10,Init!$N:$P,3,FALSE)))/24 -> 0 | EJ4: =($G$5*$H$5*(VLOOKUP($I$10,Init!$N:$P,3,FALSE)))/24 -> 0 | EK4: =($G$5*$H$5*(VLOOKUP($I$10,Init!$N:$P,3,FALSE)))/24 -> 0 | EL4: =($G$5*$H$5*(VLOOKUP($I$10,Init!$N:$P,3,FALSE)))/24 -> 0 | EM4: =($G$5*$H$5*(VLOOKUP($I$10,Init!$N:$P,3,FALSE)))/24 -> 0 | EN4: =($G$5*$H$5*(VLOOKUP($I$10,Init!$N:$P,3,FALSE)))/24 -> 0 | EO4: =($G$5*$H$5*(VLOOKUP($J$10,Init!$N:$P,3,FALSE)))/24 -> 0 | EP4: =($G$5*$H$5*(VLOOKUP($J$10,Init!$N:$P,3,FALSE)))/24 -> 0 | EQ4: =($G$5*$H$5*(VLOOKUP($J$10,Init!$N:$P,3,FALSE)))/24 -> 0 | ER4: =($G$5*$H$5*(VLOOKUP($J$10,Init!$N:$P,3,FALSE)))/24 -> 0 | ES4: =($G$5*$H$5*(VLOOKUP($J$10,Init!$N:$P,3,FALSE)))/24 -> 0 | ET4: =($G$5*$H$5*(VLOOKUP($J$10,Init!$N:$P,3,FALSE)))/24 -> 0 | EU4: =($G$5*$H$5*(VLOOKUP($J$10,Init!$N:$P,3,FALSE)))/24 -> 0 | EV4: =($G$5*$H$5*(VLOOKUP($J$10,Init!$N:$P,3,FALSE)))/24 -> 0 | EW4: =($G$5*$H$5*(VLOOKUP($J$10,Init!$N:$P,3,FALSE)))/24 -> 0 | EX4: =($G$5*$H$5*(VLOOKUP($J$10,Init!$N:$P,3,FALSE)))/24 -> 0 | EY4: =($G$5*$H$5*(VLOOKUP($J$10,Init!$N:$P,3,FALSE)))/24 -> 0 | EZ4: =($G$5*$H$5*(VLOOKUP($J$10,Init!$N:$P,3,FALSE)))/24 -> 0
F5: Increase Loads (1,000aMW) | G5: =IF('Select Scenario'!$A$25=1,1,0) -> 0 | H5: ='Select Scenario'!$F$25 -> 1000 | K5: =F6 -> Decrease Loads (1,000aMW) | L5: =($G$6*($H$6*(VLOOKUP($E$10,Init!$N:$P,3,FALSE))))/24 -> 0 | M5: =($G$6*($H$6*(VLOOKUP($E$10,Init!$N:$P,3,FALSE))))/24 -> 0 | N5: =($G$6*($H$6*(VLOOKUP($E$10,Init!$N:$P,3,FALSE))))/24 -> 0 | O5: =($G$6*($H$6*(VLOOKUP($E$10,Init!$N:$P,3,FALSE))))/24 -> 0 | P5: =($G$6*($H$6*(VLOOKUP($E$10,Init!$N:$P,3,FALSE))))/24 -> 0 | Q5: =($G$6*($H$6*(VLOOKUP($E$10,Init!$N:$P,3,FALSE))))/24 -> 0 | R5: =($G$6*($H$6*(VLOOKUP($E$10,Init!$N:$P,3,FALSE))))/24 -> 0 | S5: =($G$6*($H$6*(VLOOKUP($E$10,Init!$N:$P,3,FALSE))))/24 -> 0 | T5: =($G$6*($H$6*(VLOOKUP($E$10,Init!$N:$P,3,FALSE))))/24 -> 0 | U5: =($G$6*($H$6*(VLOOKUP($E$10,Init!$N:$P,3,FALSE))))/24 -> 0 | V5: =($G$6*($H$6*(VLOOKUP($E$10,Init!$N:$P,3,FALSE))))/24 -> 0 | W5: =($G$6*($H$6*(VLOOKUP($E$10,Init!$N:$P,3,FALSE))))/24 -> 0 | X5: =($G$6*$H$6*(VLOOKUP($F$10,Init!$N:$P,3,FALSE)))/24 -> 0 | Y5: =($G$6*$H$6*(VLOOKUP($F$10,Init!$N:$P,3,FALSE)))/24 -> 0 | Z5: =($G$6*$H$6*(VLOOKUP($F$10,Init!$N:$P,3,FALSE)))/24 -> 0 | AA5: =($G$6*$H$6*(VLOOKUP($F$10,Init!$N:$P,3,FALSE)))/24 -> 0 | AB5: =($G$6*$H$6*(VLOOKUP($F$10,Init!$N:$P,3,FALSE)))/24 -> 0 | AC5: =($G$6*$H$6*(VLOOKUP($F$10,Init!$N:$P,3,FALSE)))/24 -> 0 | AD5: =($G$6*$H$6*(VLOOKUP($F$10,Init!$N:$P,3,FALSE)))/24 -> 0 | AE5: =($G$6*$H$6*(VLOOKUP($F$10,Init!$N:$P,3,FALSE)))/24 -> 0 | AF5: =($G$6*$H$6*(VLOOKUP($F$10,Init!$N:$P,3,FALSE)))/24 -> 0 | AG5: =($G$6*$H$6*(VLOOKUP($F$10,Init!$N:$P,3,FALSE)))/24 -> 0 | AH5: =($G$6*$H$6*(VLOOKUP($F$10,Init!$N:$P,3,FALSE)))/24 -> 0 | AI5: =($G$6*$H$6*(VLOOKUP($F$10,Init!$N:$P,3,FALSE)))/24 -> 0 | AJ5: =($G$6*$H$6*(VLOOKUP($G$10,Init!$N:$P,3,FALSE)))/24 -> 0 | AK5: =($G$6*$H$6*(VLOOKUP($G$10,Init!$N:$P,3,FALSE)))/24 -> 0 | AL5: =($G$6*$H$6*(VLOOKUP($G$10,Init!$N:$P,3,FALSE)))/24 -> 0 | AM5: =($G$6*$H$6*(VLOOKUP($G$10,Init!$N:$P,3,FALSE)))/24 -> 0 | AN5: =($G$6*$H$6*(VLOOKUP($G$10,Init!$N:$P,3,FALSE)))/24 -> 0 | AO5: =($G$6*$H$6*(VLOOKUP($G$10,Init!$N:$P,3,FALSE)))/24 -> 0 | AP5: =($G$6*$H$6*(VLOOKUP($G$10,Init!$N:$P,3,FALSE)))/24 -> 0 | AQ5: =($G$6*$H$6*(VLOOKUP($G$10,Init!$N:$P,3,FALSE)))/24 -> 0 | AR5: =($G$6*$H$6*(VLOOKUP($G$10,Init!$N:$P,3,FALSE)))/24 -> 0 | AS5: =($G$6*$H$6*(VLOOKUP($G$10,Init!$N:$P,3,FALSE)))/24 -> 0 | AT5: =($G$6*$H$6*(VLOOKUP($G$10,Init!$N:$P,3,FALSE)))/24 -> 0 | AU5: =($G$6*$H$6*(VLOOKUP($G$10,Init!$N:$P,3,FALSE)))/24 -> 0 | AV5: =($G$6*$H$6*(VLOOKUP($H$10,Init!$N:$P,3,FALSE)))/24 -> 0 | AW5: =($G$6*$H$6*(VLOOKUP($H$10,Init!$N:$P,3,FALSE)))/24 -> 0 | AX5: =($G$6*$H$6*(VLOOKUP($H$10,Init!$N:$P,3,FALSE)))/24 -> 0 | AY5: =($G$6*$H$6*(VLOOKUP($H$10,Init!$N:$P,3,FALSE)))/24 -> 0 | AZ5: =($G$6*$H$6*(VLOOKUP($H$10,Init!$N:$P,3,FALSE)))/24 -> 0 | BA5: =($G$6*$H$6*(VLOOKUP($H$10,Init!$N:$P,3,FALSE)))/24 -> 0 | BB5: =($G$6*$H$6*(VLOOKUP($H$10,Init!$N:$P,3,FALSE)))/24 -> 0 | BC5: =($G$6*$H$6*(VLOOKUP($H$10,Init!$N:$P,3,FALSE)))/24 -> 0 | BD5: =($G$6*$H$6*(VLOOKUP($H$10,Init!$N:$P,3,FALSE)))/24 -> 0 | BE5: =($G$6*$H$6*(VLOOKUP($H$10,Init!$N:$P,3,FALSE)))/24 -> 0 | BF5: =($G$6*$H$6*(VLOOKUP($H$10,Init!$N:$P,3,FALSE)))/24 -> 0 | BG5: =($G$6*$H$6*(VLOOKUP($H$10,Init!$N:$P,3,FALSE)))/24 -> 0 | BH5: =($G$6*$H$6*(VLOOKUP($I$10,Init!$N:$P,3,FALSE)))/24 -> 0 | BI5: =($G$6*$H$6*(VLOOKUP($I$10,Init!$N:$P,3,FALSE)))/24 -> 0 | BJ5: =($G$6*$H$6*(VLOOKUP($I$10,Init!$N:$P,3,FALSE)))/24 -> 0 | BK5: =($G$6*$H$6*(VLOOKUP($I$10,Init!$N:$P,3,FALSE)))/24 -> 0 | BL5: =($G$6*$H$6*(VLOOKUP($I$10,Init!$N:$P,3,FALSE)))/24 -> 0 | BM5: =($G$6*$H$6*(VLOOKUP($I$10,Init!$N:$P,3,FALSE)))/24 -> 0 | BN5: =($G$6*$H$6*(VLOOKUP($I$10,Init!$N:$P,3,FALSE)))/24 -> 0 | BO5: =($G$6*$H$6*(VLOOKUP($I$10,Init!$N:$P,3,FALSE)))/24 -> 0 | BP5: =($G$6*$H$6*(VLOOKUP($I$10,Init!$N:$P,3,FALSE)))/24 -> 0 | BQ5: =($G$6*$H$6*(VLOOKUP($I$10,Init!$N:$P,3,FALSE)))/24 -> 0 | BR5: =($G$6*$H$6*(VLOOKUP($I$10,Init!$N:$P,3,FALSE)))/24 -> 0 | BS5: =($G$6*$H$6*(VLOOKUP($I$10,Init!$N:$P,3,FALSE)))/24 -> 0 | BT5: =($G$6*$H$6*(VLOOKUP($J$10,Init!$N:$P,3,FALSE)))/24 -> 0 | BU5: =($G$6*$H$6*(VLOOKUP($J$10,Init!$N:$P,3,FALSE)))/24 -> 0 | BV5: =($G$6*$H$6*(VLOOKUP($J$10,Init!$N:$P,3,FALSE)))/24 -> 0 | BW5: =($G$6*$H$6*(VLOOKUP($J$10,Init!$N:$P,3,FALSE)))/24 -> 0 | BX5: =($G$6*$H$6*(VLOOKUP($J$10,Init!$N:$P,3,FALSE)))/24 -> 0 | BY5: =($G$6*$H$6*(VLOOKUP($J$10,Init!$N:$P,3,FALSE)))/24 -> 0 | BZ5: =($G$6*$H$6*(VLOOKUP($J$10,Init!$N:$P,3,FALSE)))/24 -> 0 | CA5: =($G$6*$H$6*(VLOOKUP($J$10,Init!$N:$P,3,FALSE)))/24 -> 0 | CB5: =($G$6*$H$6*(VLOOKUP($J$10,Init!$N:$P,3,FALSE)))/24 -> 0 | CC5: =($G$6*$H$6*(VLOOKUP($J$10,Init!$N:$P,3,FALSE)))/24 -> 0 | CD5: =($G$6*$H$6*(VLOOKUP($J$10,Init!$N:$P,3,FALSE)))/24 -> 0 | CE5: =($G$6*$H$6*(VLOOKUP($J$10,Init!$N:$P,3,FALSE)))/24 -> 0 | CG5: =($G$6*($H$6*(VLOOKUP($E$10,Init!$N:$P,3,FALSE))))/24 -> 0 | CH5: =($G$6*($H$6*(VLOOKUP($E$10,Init!$N:$P,3,FALSE))))/24 -> 0 | CI5: =($G$6*($H$6*(VLOOKUP($E$10,Init!$N:$P,3,FALSE))))/24 -> 0 | CJ5: =($G$6*($H$6*(VLOOKUP($E$10,Init!$N:$P,3,FALSE))))/24 -> 0 | CK5: =($G$6*($H$6*(VLOOKUP($E$10,Init!$N:$P,3,FALSE))))/24 -> 0 | CL5: =($G$6*($H$6*(VLOOKUP($E$10,Init!$N:$P,3,FALSE))))/24 -> 0 | CM5: =($G$6*($H$6*(VLOOKUP($E$10,Init!$N:$P,3,FALSE))))/24 -> 0 | CN5: =($G$6*($H$6*(VLOOKUP($E$10,Init!$N:$P,3,FALSE))))/24 -> 0 | CO5: =($G$6*($H$6*(VLOOKUP($E$10,Init!$N:$P,3,FALSE))))/24 -> 0 | CP5: =($G$6*($H$6*(VLOOKUP($E$10,Init!$N:$P,3,FALSE))))/24 -> 0 | CQ5: =($G$6*($H$6*(VLOOKUP($E$10,Init!$N:$P,3,FALSE))))/24 -> 0 | CR5: =($G$6*($H$6*(VLOOKUP($E$10,Init!$N:$P,3,FALSE))))/24 -> 0 | CS5: =($G$6*$H$6*(VLOOKUP($F$10,Init!$N:$P,3,FALSE)))/24 -> 0 | CT5: =($G$6*$H$6*(VLOOKUP($F$10,Init!$N:$P,3,FALSE)))/24 -> 0 | CU5: =($G$6*$H$6*(VLOOKUP($F$10,Init!$N:$P,3,FALSE)))/24 -> 0 | CV5: =($G$6*$H$6*(VLOOKUP($F$10,Init!$N:$P,3,FALSE)))/24 -> 0 | CW5: =($G$6*$H$6*(VLOOKUP($F$10,Init!$N:$P,3,FALSE)))/24 -> 0 | CX5: =($G$6*$H$6*(VLOOKUP($F$10,Init!$N:$P,3,FALSE)))/24 -> 0 | CY5: =($G$6*$H$6*(VLOOKUP($F$10,Init!$N:$P,3,FALSE)))/24 -> 0 | CZ5: =($G$6*$H$6*(VLOOKUP($F$10,Init!$N:$P,3,FALSE)))/24 -> 0 | DA5: =($G$6*$H$6*(VLOOKUP($F$10,Init!$N:$P,3,FALSE)))/24 -> 0 | DB5: =($G$6*$H$6*(VLOOKUP($F$10,Init!$N:$P,3,FALSE)))/24 -> 0 | DC5: =($G$6*$H$6*(VLOOKUP($F$10,Init!$N:$P,3,FALSE)))/24 -> 0 | DD5: =($G$6*$H$6*(VLOOKUP($F$10,Init!$N:$P,3,FALSE)))/24 -> 0 | DE5: =($G$6*$H$6*(VLOOKUP($G$10,Init!$N:$P,3,FALSE)))/24 -> 0 | DF5: =($G$6*$H$6*(VLOOKUP($G$10,Init!$N:$P,3,FALSE)))/24 -> 0 | DG5: =($G$6*$H$6*(VLOOKUP($G$10,Init!$N:$P,3,FALSE)))/24 -> 0 | DH5: =($G$6*$H$6*(VLOOKUP($G$10,Init!$N:$P,3,FALSE)))/24 -> 0 | DI5: =($G$6*$H$6*(VLOOKUP($G$10,Init!$N:$P,3,FALSE)))/24 -> 0 | DJ5: =($G$6*$H$6*(VLOOKUP($G$10,Init!$N:$P,3,FALSE)))/24 -> 0 | DK5: =($G$6*$H$6*(VLOOKUP($G$10,Init!$N:$P,3,FALSE)))/24 -> 0 | DL5: =($G$6*$H$6*(VLOOKUP($G$10,Init!$N:$P,3,FALSE)))/24 -> 0 | DM5: =($G$6*$H$6*(VLOOKUP($G$10,Init!$N:$P,3,FALSE)))/24 -> 0 | DN5: =($G$6*$H$6*(VLOOKUP($G$10,Init!$N:$P,3,FALSE)))/24 -> 0 | DO5: =($G$6*$H$6*(VLOOKUP($G$10,Init!$N:$P,3,FALSE)))/24 -> 0 | DP5: =($G$6*$H$6*(VLOOKUP($G$10,Init!$N:$P,3,FALSE)))/24 -> 0 | DQ5: =($G$6*$H$6*(VLOOKUP($H$10,Init!$N:$P,3,FALSE)))/24 -> 0 | DR5: =($G$6*$H$6*(VLOOKUP($H$10,Init!$N:$P,3,FALSE)))/24 -> 0 | DS5: =($G$6*$H$6*(VLOOKUP($H$10,Init!$N:$P,3,FALSE)))/24 -> 0 | DT5: =($G$6*$H$6*(VLOOKUP($H$10,Init!$N:$P,3,FALSE)))/24 -> 0 | DU5: =($G$6*$H$6*(VLOOKUP($H$10,Init!$N:$P,3,FALSE)))/24 -> 0 | DV5: =($G$6*$H$6*(VLOOKUP($H$10,Init!$N:$P,3,FALSE)))/24 -> 0 | DW5: =($G$6*$H$6*(VLOOKUP($H$10,Init!$N:$P,3,FALSE)))/24 -> 0 | DX5: =($G$6*$H$6*(VLOOKUP($H$10,Init!$N:$P,3,FALSE)))/24 -> 0 | DY5: =($G$6*$H$6*(VLOOKUP($H$10,Init!$N:$P,3,FALSE)))/24 -> 0 | DZ5: =($G$6*$H$6*(VLOOKUP($H$10,Init!$N:$P,3,FALSE)))/24 -> 0 | EA5: =($G$6*$H$6*(VLOOKUP($H$10,Init!$N:$P,3,FALSE)))/24 -> 0 | EB5: =($G$6*$H$6*(VLOOKUP($H$10,Init!$N:$P,3,FALSE)))/24 -> 0 | EC5: =($G$6*$H$6*(VLOOKUP($I$10,Init!$N:$P,3,FALSE)))/24 -> 0 | ED5: =($G$6*$H$6*(VLOOKUP($I$10,Init!$N:$P,3,FALSE)))/24 -> 0 | EE5: =($G$6*$H$6*(VLOOKUP($I$10,Init!$N:$P,3,FALSE)))/24 -> 0 | EF5: =($G$6*$H$6*(VLOOKUP($I$10,Init!$N:$P,3,FALSE)))/24 -> 0 | EG5: =($G$6*$H$6*(VLOOKUP($I$10,Init!$N:$P,3,FALSE)))/24 -> 0 | EH5: =($G$6*$H$6*(VLOOKUP($I$10,Init!$N:$P,3,FALSE)))/24 -> 0 | EI5: =($G$6*$H$6*(VLOOKUP($I$10,Init!$N:$P,3,FALSE)))/24 -> 0 | EJ5: =($G$6*$H$6*(VLOOKUP($I$10,Init!$N:$P,3,FALSE)))/24 -> 0 | EK5: =($G$6*$H$6*(VLOOKUP($I$10,Init!$N:$P,3,FALSE)))/24 -> 0 | EL5: =($G$6*$H$6*(VLOOKUP($I$10,Init!$N:$P,3,FALSE)))/24 -> 0 | EM5: =($G$6*$H$6*(VLOOKUP($I$10,Init!$N:$P,3,FALSE)))/24 -> 0 | EN5: =($G$6*$H$6*(VLOOKUP($I$10,Init!$N:$P,3,FALSE)))/24 -> 0 | EO5: =($G$6*$H$6*(VLOOKUP($J$10,Init!$N:$P,3,FALSE)))/24 -> 0 | EP5: =($G$6*$H$6*(VLOOKUP($J$10,Init!$N:$P,3,FALSE)))/24 -> 0 | EQ5: =($G$6*$H$6*(VLOOKUP($J$10,Init!$N:$P,3,FALSE)))/24 -> 0 | ER5: =($G$6*$H$6*(VLOOKUP($J$10,Init!$N:$P,3,FALSE)))/24 -> 0 | ES5: =($G$6*$H$6*(VLOOKUP($J$10,Init!$N:$P,3,FALSE)))/24 -> 0 | ET5: =($G$6*$H$6*(VLOOKUP($J$10,Init!$N:$P,3,FALSE)))/24 -> 0 | EU5: =($G$6*$H$6*(VLOOKUP($J$10,Init!$N:$P,3,FALSE)))/24 -> 0 | EV5: =($G$6*$H$6*(VLOOKUP($J$10,Init!$N:$P,3,FALSE)))/24 -> 0 | EW5: =($G$6*$H$6*(VLOOKUP($J$10,Init!$N:$P,3,FALSE)))/24 -> 0 | EX5: =($G$6*$H$6*(VLOOKUP($J$10,Init!$N:$P,3,FALSE)))/24 -> 0 | EY5: =($G$6*$H$6*(VLOOKUP($J$10,Init!$N:$P,3,FALSE)))/24 -> 0 | EZ5: =($G$6*$H$6*(VLOOKUP($J$10,Init!$N:$P,3,FALSE)))/24 -> 0
F6: Decrease Loads (1,000aMW) | G6: =IF('Select Scenario'!$A$24=1,1,0) -> 0 | H6: ='Select Scenario'!$F$24 -> -1000 | K6: Placeholder | L6: 5084.197 | M6: 4746.837 | N6: 4809.003 | O6: 4826.339 | P6: 4532.686 | Q6: 5080.741 | R6: 4884.59 | S6: 4885.416 | T6: 4936.183 | U6: 4823.606 | V6: 5130.258 | W6: 4570.003 | X6: 5084.197 | Y6: 4746.837 | Z6: 4809.003 | AA6: 4826.339 | AB6: 4532.686 | AC6: 5080.741 | AD6: 4884.59 | AE6: 4885.416 | AF6: 4936.183 | AG6: 4823.606 | AH6: 5130.258 | AI6: 4570.003 | AJ6: 5084.197 | AK6: 4746.837 | AL6: 4809.003 | AM6: 4826.339 | AN6: 4694.568 | AO6: 5087.579 | AP6: 4884.59 | AQ6: 4885.416 | AR6: 4936.183 | AS6: 4823.606 | AT6: 5130.258 | AU6: 4570.003 | AV6: 5084.197 | AW6: 4740.253 | AX6: 4809.003 | AY6: 4826.339 | AZ6: 4532.686 | BA6: 5080.741 | BB6: 4884.59 | BC6: 4885.416 | BD6: 4936.183 | BE6: 4823.606 | BF6: 5130.258 | BG6: 4570.003 | BH6: 5084.197 | BI6: 4746.837 | BJ6: 4809.003 | BK6: 4826.339 | BL6: 4532.686 | BM6: 5080.741 | BN6: 4884.59 | BO6: 4885.416 | BP6: 4936.183 | BQ6: 4823.606 | BR6: 5130.258 | BS6: 4570.003 | BT6: 5084.197 | BU6: 4746.837 | BV6: 4809.003 | BW6: 4826.339 | BX6: 4532.686 | BY6: 5080.741 | BZ6: 4884.59 | CA6: 4885.416 | CB6: 4936.183 | CC6: 4823.606 | CD6: 5130.258 | CE6: 4570.003 | CG6: 3843.803 | CH6: 3905.163 | CI6: 4118.997 | CJ6: 4101.661 | CK6: 3531.314 | CL6: 3835.259 | CM6: 3755.41 | CN6: 4042.584 | CO6: 3703.817 | CP6: 4104.394 | CQ6: 3797.742 | CR6: 4069.997 | CS6: 3843.803 | CT6: 3905.163 | CU6: 4118.997 | CV6: 4101.661 | CW6: 3531.314 | CX6: 3835.259 | CY6: 3755.41 | CZ6: 4042.584 | DA6: 3703.817 | DB6: 4104.394 | DC6: 3797.742 | DD6: 4069.997 | DE6: 3843.803 | DF6: 3905.163 | DG6: 4118.997 | DH6: 4101.661 | DI6: 3657.432 | DJ6: 3840.421 | DK6: 3755.41 | DL6: 4042.584 | DM6: 3703.817 | DN6: 4104.394 | DO6: 3797.742 | DP6: 4069.997 | DQ6: 3843.803 | DR6: 3899.747 | DS6: 4118.997 | DT6: 4101.661 | DU6: 3531.314 | DV6: 3835.259 | DW6: 3755.41 | DX6: 4042.584 | DY6: 3703.817 | DZ6: 4104.394 | EA6: 3797.742 | EB6: 4069.997 | EC6: 3843.803 | ED6: 3905.163 | EE6: 4118.997 | EF6: 4101.661 | EG6: 3531.314 | EH6: 3835.259 | EI6: 3755.41 | EJ6: 4042.584 | EK6: 3703.817 | EL6: 4104.394 | EM6: 3797.742 | EN6: 4069.997 | EO6: 3843.803 | EP6: 3905.163 | EQ6: 4118.997 | ER6: 4101.661 | ES6: 3531.314 | ET6: 3835.259 | EU6: 3755.41 | EV6: 4042.584 | EW6: 3703.817 | EX6: 4104.394 | EY6: 3797.742 | EZ6: 4069.997
F7: Placeholder (500aMW) | G7: =IF('Select Scenario'!$A$23=1,1,0) -> 0 | H7: ='Select Scenario'!$F$23 -> 500 | K7: Placeholder (500aMW) | L7: =($G$7*$H$7*(VLOOKUP($E$10,Init!$N:$P,3,FALSE)))/24 -> 0 | M7: =($G$7*$H$7*(VLOOKUP($E$10,Init!$N:$P,3,FALSE)))/24 -> 0 | N7: =($G$7*$H$7*(VLOOKUP($E$10,Init!$N:$P,3,FALSE)))/24 -> 0 | O7: =($G$7*$H$7*(VLOOKUP($E$10,Init!$N:$P,3,FALSE)))/24 -> 0 | P7: =($G$7*$H$7*(VLOOKUP($E$10,Init!$N:$P,3,FALSE)))/24 -> 0 | Q7: =($G$7*$H$7*(VLOOKUP($E$10,Init!$N:$P,3,FALSE)))/24 -> 0 | R7: =($G$7*$H$7*(VLOOKUP($E$10,Init!$N:$P,3,FALSE)))/24 -> 0 | S7: =($G$7*$H$7*(VLOOKUP($E$10,Init!$N:$P,3,FALSE)))/24 -> 0 | T7: =($G$7*$H$7*(VLOOKUP($E$10,Init!$N:$P,3,FALSE)))/24 -> 0 | U7: =($G$7*$H$7*(VLOOKUP($E$10,Init!$N:$P,3,FALSE)))/24 -> 0 | V7: =($G$7*$H$7*(VLOOKUP($E$10,Init!$N:$P,3,FALSE)))/24 -> 0 | W7: =($G$7*$H$7*(VLOOKUP($E$10,Init!$N:$P,3,FALSE)))/24 -> 0 | X7: =($G$7*$H$7*(VLOOKUP($F$10,Init!$N:$P,3,FALSE)))/24 -> 0 | Y7: =($G$7*$H$7*(VLOOKUP($F$10,Init!$N:$P,3,FALSE)))/24 -> 0 | Z7: =($G$7*$H$7*(VLOOKUP($F$10,Init!$N:$P,3,FALSE)))/24 -> 0 | AA7: =($G$7*$H$7*(VLOOKUP($F$10,Init!$N:$P,3,FALSE)))/24 -> 0 | AB7: =($G$7*$H$7*(VLOOKUP($F$10,Init!$N:$P,3,FALSE)))/24 -> 0 | AC7: =($G$7*$H$7*(VLOOKUP($F$10,Init!$N:$P,3,FALSE)))/24 -> 0 | AD7: =($G$7*$H$7*(VLOOKUP($F$10,Init!$N:$P,3,FALSE)))/24 -> 0 | AE7: =($G$7*$H$7*(VLOOKUP($F$10,Init!$N:$P,3,FALSE)))/24 -> 0 | AF7: =($G$7*$H$7*(VLOOKUP($F$10,Init!$N:$P,3,FALSE)))/24 -> 0 | AG7: =($G$7*$H$7*(VLOOKUP($F$10,Init!$N:$P,3,FALSE)))/24 -> 0 | AH7: =($G$7*$H$7*(VLOOKUP($F$10,Init!$N:$P,3,FALSE)))/24 -> 0 | AI7: =($G$7*$H$7*(VLOOKUP($F$10,Init!$N:$P,3,FALSE)))/24 -> 0 | AJ7: =($G$7*$H$7*(VLOOKUP($G$10,Init!$N:$P,3,FALSE)))/24 -> 0 | AK7: =($G$7*$H$7*(VLOOKUP($G$10,Init!$N:$P,3,FALSE)))/24 -> 0 | AL7: =($G$7*$H$7*(VLOOKUP($G$10,Init!$N:$P,3,FALSE)))/24 -> 0 | AM7: =($G$7*$H$7*(VLOOKUP($G$10,Init!$N:$P,3,FALSE)))/24 -> 0 | AN7: =($G$7*$H$7*(VLOOKUP($G$10,Init!$N:$P,3,FALSE)))/24 -> 0 | AO7: =($G$7*$H$7*(VLOOKUP($G$10,Init!$N:$P,3,FALSE)))/24 -> 0 | AP7: =($G$7*$H$7*(VLOOKUP($G$10,Init!$N:$P,3,FALSE)))/24 -> 0 | AQ7: =($G$7*$H$7*(VLOOKUP($G$10,Init!$N:$P,3,FALSE)))/24 -> 0 | AR7: =($G$7*$H$7*(VLOOKUP($G$10,Init!$N:$P,3,FALSE)))/24 -> 0 | AS7: =($G$7*$H$7*(VLOOKUP($G$10,Init!$N:$P,3,FALSE)))/24 -> 0 | AT7: =($G$7*$H$7*(VLOOKUP($G$10,Init!$N:$P,3,FALSE)))/24 -> 0 | AU7: =($G$7*$H$7*(VLOOKUP($G$10,Init!$N:$P,3,FALSE)))/24 -> 0 | AV7: =($G$7*$H$7*(VLOOKUP($H$10,Init!$N:$P,3,FALSE)))/24 -> 0 | AW7: =($G$7*$H$7*(VLOOKUP($H$10,Init!$N:$P,3,FALSE)))/24 -> 0 | AX7: =($G$7*$H$7*(VLOOKUP($H$10,Init!$N:$P,3,FALSE)))/24 -> 0 | AY7: =($G$7*$H$7*(VLOOKUP($H$10,Init!$N:$P,3,FALSE)))/24 -> 0 | AZ7: =($G$7*$H$7*(VLOOKUP($H$10,Init!$N:$P,3,FALSE)))/24 -> 0 | BA7: =($G$7*$H$7*(VLOOKUP($H$10,Init!$N:$P,3,FALSE)))/24 -> 0 | BB7: =($G$7*$H$7*(VLOOKUP($H$10,Init!$N:$P,3,FALSE)))/24 -> 0 | BC7: =($G$7*$H$7*(VLOOKUP($H$10,Init!$N:$P,3,FALSE)))/24 -> 0 | BD7: =($G$7*$H$7*(VLOOKUP($H$10,Init!$N:$P,3,FALSE)))/24 -> 0 | BE7: =($G$7*$H$7*(VLOOKUP($H$10,Init!$N:$P,3,FALSE)))/24 -> 0 | BF7: =($G$7*$H$7*(VLOOKUP($H$10,Init!$N:$P,3,FALSE)))/24 -> 0 | BG7: =($G$7*$H$7*(VLOOKUP($H$10,Init!$N:$P,3,FALSE)))/24 -> 0 | BH7: =($G$7*$H$7*(VLOOKUP($I$10,Init!$N:$P,3,FALSE)))/24 -> 0 | BI7: =($G$7*$H$7*(VLOOKUP($I$10,Init!$N:$P,3,FALSE)))/24 -> 0 | BJ7: =($G$7*$H$7*(VLOOKUP($I$10,Init!$N:$P,3,FALSE)))/24 -> 0 | BK7: =($G$7*$H$7*(VLOOKUP($I$10,Init!$N:$P,3,FALSE)))/24 -> 0 | BL7: =($G$7*$H$7*(VLOOKUP($I$10,Init!$N:$P,3,FALSE)))/24 -> 0 | BM7: =($G$7*$H$7*(VLOOKUP($I$10,Init!$N:$P,3,FALSE)))/24 -> 0 | BN7: =($G$7*$H$7*(VLOOKUP($I$10,Init!$N:$P,3,FALSE)))/24 -> 0 | BO7: =($G$7*$H$7*(VLOOKUP($I$10,Init!$N:$P,3,FALSE)))/24 -> 0 | BP7: =($G$7*$H$7*(VLOOKUP($I$10,Init!$N:$P,3,FALSE)))/24 -> 0 | BQ7: =($G$7*$H$7*(VLOOKUP($I$10,Init!$N:$P,3,FALSE)))/24 -> 0 | BR7: =($G$7*$H$7*(VLOOKUP($I$10,Init!$N:$P,3,FALSE)))/24 -> 0 | BS7: =($G$7*$H$7*(VLOOKUP($I$10,Init!$N:$P,3,FALSE)))/24 -> 0 | BT7: =($G$7*$H$7*(VLOOKUP($J$10,Init!$N:$P,3,FALSE)))/24 -> 0 | BU7: =($G$7*$H$7*(VLOOKUP($J$10,Init!$N:$P,3,FALSE)))/24 -> 0 | BV7: =($G$7*$H$7*(VLOOKUP($J$10,Init!$N:$P,3,FALSE)))/24 -> 0 | BW7: =($G$7*$H$7*(VLOOKUP($J$10,Init!$N:$P,3,FALSE)))/24 -> 0 | BX7: =($G$7*$H$7*(VLOOKUP($J$10,Init!$N:$P,3,FALSE)))/24 -> 0 | BY7: =($G$7*$H$7*(VLOOKUP($J$10,Init!$N:$P,3,FALSE)))/24 -> 0 | BZ7: =($G$7*$H$7*(VLOOKUP($J$10,Init!$N:$P,3,FALSE)))/24 -> 0 | CA7: =($G$7*$H$7*(VLOOKUP($J$10,Init!$N:$P,3,FALSE)))/24 -> 0 | CB7: =($G$7*$H$7*(VLOOKUP($J$10,Init!$N:$P,3,FALSE)))/24 -> 0 | CC7: =($G$7*$H$7*(VLOOKUP($J$10,Init!$N:$P,3,FALSE)))/24 -> 0 | CD7: =($G$7*$H$7*(VLOOKUP($J$10,Init!$N:$P,3,FALSE)))/24 -> 0 | CE7: =($G$7*$H$7*(VLOOKUP($J$10,Init!$N:$P,3,FALSE)))/24 -> 0 | CG7: =($G$7*$H$7*(VLOOKUP($E$10,Init!$N:$P,3,FALSE)))/24 -> 0 | CH7: =($G$7*$H$7*(VLOOKUP($E$10,Init!$N:$P,3,FALSE)))/24 -> 0 | CI7: =($G$7*$H$7*(VLOOKUP($E$10,Init!$N:$P,3,FALSE)))/24 -> 0 | CJ7: =($G$7*$H$7*(VLOOKUP($E$10,Init!$N:$P,3,FALSE)))/24 -> 0 | CK7: =($G$7*$H$7*(VLOOKUP($E$10,Init!$N:$P,3,FALSE)))/24 -> 0 | CL7: =($G$7*$H$7*(VLOOKUP($E$10,Init!$N:$P,3,FALSE)))/24 -> 0 | CM7: =($G$7*$H$7*(VLOOKUP($E$10,Init!$N:$P,3,FALSE)))/24 -> 0 | CN7: =($G$7*$H$7*(VLOOKUP($E$10,Init!$N:$P,3,FALSE)))/24 -> 0 | CO7: =($G$7*$H$7*(VLOOKUP($E$10,Init!$N:$P,3,FALSE)))/24 -> 0 | CP7: =($G$7*$H$7*(VLOOKUP($E$10,Init!$N:$P,3,FALSE)))/24 -> 0 | CQ7: =($G$7*$H$7*(VLOOKUP($E$10,Init!$N:$P,3,FALSE)))/24 -> 0 | CR7: =($G$7*$H$7*(VLOOKUP($E$10,Init!$N:$P,3,FALSE)))/24 -> 0 | CS7: =($G$7*$H$7*(VLOOKUP($F$10,Init!$N:$P,3,FALSE)))/24 -> 0 | CT7: =($G$7*$H$7*(VLOOKUP($F$10,Init!$N:$P,3,FALSE)))/24 -> 0 | CU7: =($G$7*$H$7*(VLOOKUP($F$10,Init!$N:$P,3,FALSE)))/24 -> 0 | CV7: =($G$7*$H$7*(VLOOKUP($F$10,Init!$N:$P,3,FALSE)))/24 -> 0 | CW7: =($G$7*$H$7*(VLOOKUP($F$10,Init!$N:$P,3,FALSE)))/24 -> 0 | CX7: =($G$7*$H$7*(VLOOKUP($F$10,Init!$N:$P,3,FALSE)))/24 -> 0 | CY7: =($G$7*$H$7*(VLOOKUP($F$10,Init!$N:$P,3,FALSE)))/24 -> 0 | CZ7: =($G$7*$H$7*(VLOOKUP($F$10,Init!$N:$P,3,FALSE)))/24 -> 0 | DA7: =($G$7*$H$7*(VLOOKUP($F$10,Init!$N:$P,3,FALSE)))/24 -> 0 | DB7: =($G$7*$H$7*(VLOOKUP($F$10,Init!$N:$P,3,FALSE)))/24 -> 0 | DC7: =($G$7*$H$7*(VLOOKUP($F$10,Init!$N:$P,3,FALSE)))/24 -> 0 | DD7: =($G$7*$H$7*(VLOOKUP($F$10,Init!$N:$P,3,FALSE)))/24 -> 0 | DE7: =($G$7*$H$7*(VLOOKUP($G$10,Init!$N:$P,3,FALSE)))/24 -> 0 | DF7: =($G$7*$H$7*(VLOOKUP($G$10,Init!$N:$P,3,FALSE)))/24 -> 0 | DG7: =($G$7*$H$7*(VLOOKUP($G$10,Init!$N:$P,3,FALSE)))/24 -> 0 | DH7: =($G$7*$H$7*(VLOOKUP($G$10,Init!$N:$P,3,FALSE)))/24 -> 0 | DI7: =($G$7*$H$7*(VLOOKUP($G$10,Init!$N:$P,3,FALSE)))/24 -> 0 | DJ7: =($G$7*$H$7*(VLOOKUP($G$10,Init!$N:$P,3,FALSE)))/24 -> 0 | DK7: =($G$7*$H$7*(VLOOKUP($G$10,Init!$N:$P,3,FALSE)))/24 -> 0 | DL7: =($G$7*$H$7*(VLOOKUP($G$10,Init!$N:$P,3,FALSE)))/24 -> 0 | DM7: =($G$7*$H$7*(VLOOKUP($G$10,Init!$N:$P,3,FALSE)))/24 -> 0 | DN7: =($G$7*$H$7*(VLOOKUP($G$10,Init!$N:$P,3,FALSE)))/24 -> 0 | DO7: =($G$7*$H$7*(VLOOKUP($G$10,Init!$N:$P,3,FALSE)))/24 -> 0 | DP7: =($G$7*$H$7*(VLOOKUP($G$10,Init!$N:$P,3,FALSE)))/24 -> 0 | DQ7: =($G$7*$H$7*(VLOOKUP($H$10,Init!$N:$P,3,FALSE)))/24 -> 0 | DR7: =($G$7*$H$7*(VLOOKUP($H$10,Init!$N:$P,3,FALSE)))/24 -> 0 | DS7: =($G$7*$H$7*(VLOOKUP($H$10,Init!$N:$P,3,FALSE)))/24 -> 0 | DT7: =($G$7*$H$7*(VLOOKUP($H$10,Init!$N:$P,3,FALSE)))/24 -> 0 | DU7: =($G$7*$H$7*(VLOOKUP($H$10,Init!$N:$P,3,FALSE)))/24 -> 0 | DV7: =($G$7*$H$7*(VLOOKUP($H$10,Init!$N:$P,3,FALSE)))/24 -> 0 | DW7: =($G$7*$H$7*(VLOOKUP($H$10,Init!$N:$P,3,FALSE)))/24 -> 0 | DX7: =($G$7*$H$7*(VLOOKUP($H$10,Init!$N:$P,3,FALSE)))/24 -> 0 | DY7: =($G$7*$H$7*(VLOOKUP($H$10,Init!$N:$P,3,FALSE)))/24 -> 0 | DZ7: =($G$7*$H$7*(VLOOKUP($H$10,Init!$N:$P,3,FALSE)))/24 -> 0 | EA7: =($G$7*$H$7*(VLOOKUP($H$10,Init!$N:$P,3,FALSE)))/24 -> 0 | EB7: =($G$7*$H$7*(VLOOKUP($H$10,Init!$N:$P,3,FALSE)))/24 -> 0 | EC7: =($G$7*$H$7*(VLOOKUP($I$10,Init!$N:$P,3,FALSE)))/24 -> 0 | ED7: =($G$7*$H$7*(VLOOKUP($I$10,Init!$N:$P,3,FALSE)))/24 -> 0 | EE7: =($G$7*$H$7*(VLOOKUP($I$10,Init!$N:$P,3,FALSE)))/24 -> 0 | EF7: =($G$7*$H$7*(VLOOKUP($I$10,Init!$N:$P,3,FALSE)))/24 -> 0 | EG7: =($G$7*$H$7*(VLOOKUP($I$10,Init!$N:$P,3,FALSE)))/24 -> 0 | EH7: =($G$7*$H$7*(VLOOKUP($I$10,Init!$N:$P,3,FALSE)))/24 -> 0 | EI7: =($G$7*$H$7*(VLOOKUP($I$10,Init!$N:$P,3,FALSE)))/24 -> 0 | EJ7: =($G$7*$H$7*(VLOOKUP($I$10,Init!$N:$P,3,FALSE)))/24 -> 0 | EK7: =($G$7*$H$7*(VLOOKUP($I$10,Init!$N:$P,3,FALSE)))/24 -> 0 | EL7: =($G$7*$H$7*(VLOOKUP($I$10,Init!$N:$P,3,FALSE)))/24 -> 0 | EM7: =($G$7*$H$7*(VLOOKUP($I$10,Init!$N:$P,3,FALSE)))/24 -> 0 | EN7: =($G$7*$H$7*(VLOOKUP($I$10,Init!$N:$P,3,FALSE)))/24 -> 0 | EO7: =($G$7*$H$7*(VLOOKUP($J$10,Init!$N:$P,3,FALSE)))/24 -> 0 | EP7: =($G$7*$H$7*(VLOOKUP($J$10,Init!$N:$P,3,FALSE)))/24 -> 0 | EQ7: =($G$7*$H$7*(VLOOKUP($J$10,Init!$N:$P,3,FALSE)))/24 -> 0 | ER7: =($G$7*$H$7*(VLOOKUP($J$10,Init!$N:$P,3,FALSE)))/24 -> 0 | ES7: =($G$7*$H$7*(VLOOKUP($J$10,Init!$N:$P,3,FALSE)))/24 -> 0 | ET7: =($G$7*$H$7*(VLOOKUP($J$10,Init!$N:$P,3,FALSE)))/24 -> 0 | EU7: =($G$7*$H$7*(VLOOKUP($J$10,Init!$N:$P,3,FALSE)))/24 -> 0 | EV7: =($G$7*$H$7*(VLOOKUP($J$10,Init!$N:$P,3,FALSE)))/24 -> 0 | EW7: =($G$7*$H$7*(VLOOKUP($J$10,Init!$N:$P,3,FALSE)))/24 -> 0 | EX7: =($G$7*$H$7*(VLOOKUP($J$10,Init!$N:$P,3,FALSE)))/24 -> 0 | EY7: =($G$7*$H$7*(VLOOKUP($J$10,Init!$N:$P,3,FALSE)))/24 -> 0 | EZ7: =($G$7*$H$7*(VLOOKUP($J$10,Init!$N:$P,3,FALSE)))/24 -> 0
E9: Annual | L9: HLH | CG9: LLH
E10: =Init!$C$9 -> 2022 | F10: =E10+1 -> 2023 | G10: =F10+1 -> 2024 | H10: 2025 | I10: 2026 | J10: 2027 | L10: =DATE($E$10-1,10,1) -> 2021-10-01 | M10: =EOMONTH(L10,0)+1 -> 2021-11-01 | N10: =EOMONTH(M10,0)+1 -> 2021-12-01 | O10: 2022-01-01 | P10: 2022-02-01 | Q10: 2022-03-01 | R10: 2022-04-01 | S10: 2022-05-01 | T10: 2022-06-01 | U10: 2022-07-01 | V10: 2022-08-01 | W10: 2022-09-01 | X10: 2022-10-01 | Y10: 2022-11-01 | Z10: 2022-12-01 | AA10: 2023-01-01 | AB10: 2023-02-01 | AC10: 2023-03-01 | AD10: 2023-04-01 | AE10: 2023-05-01 | AF10: 2023-06-01 | AG10: 2023-07-01 | AH10: 2023-08-01 | AI10: 2023-09-01 | AJ10: 2023-10-01 | AK10: 2023-11-01 | AL10: 2023-12-01 | AM10: 2024-01-01 | AN10: 2024-02-01 | AO10: 2024-03-01 | AP10: 2024-04-01 | AQ10: 2024-05-01 | AR10: 2024-06-01 | AS10: 2024-07-01 | AT10: 2024-08-01 | AU10: 2024-09-01 | AV10: 2024-10-01 | AW10: 2024-11-01 | AX10: 2024-12-01 | AY10: 2025-01-01 | AZ10: 2025-02-01 | BA10: 2025-03-01 | BB10: 2025-04-01 | BC10: 2025-05-01 | BD10: 2025-06-01 | BE10: 2025-07-01 | BF10: 2025-08-01 | BG10: 2025-09-01 | BH10: 2025-10-01 | BI10: 2025-11-01 | BJ10: 2025-12-01 | BK10: 2026-01-01 | BL10: 2026-02-01 | BM10: 2026-03-01 | BN10: 2026-04-01 | BO10: 2026-05-01 | BP10: 2026-06-01 | BQ10: 2026-07-01 | BR10: 2026-08-01 | BS10: 2026-09-01 | BT10: 2026-10-01 | BU10: 2026-11-01 | BV10: 2026-12-01 | BW10: 2027-01-01 | BX10: 2027-02-01 | BY10: 2027-03-01 | BZ10: =EOMONTH(BY10,0)+1 -> 2027-04-01 | CA10: 2027-05-01 | CB10: 2027-06-01 | CC10: 2027-07-01 | CD10: 2027-08-01 | CE10: 2027-09-01 | CG10: =DATE($E$10-1,10,1) -> 2021-10-01 | CH10: =EOMONTH(CG10,0)+1 -> 2021-11-01 | CI10: =EOMONTH(CH10,0)+1 -> 2021-12-01 | CJ10: 2022-01-01 | CK10: 2022-02-01 | CL10: 2022-03-01 | CM10: 2022-04-01 | CN10: 2022-05-01 | CO10: 2022-06-01 | CP10: 2022-07-01 | CQ10: 2022-08-01 | CR10: 2022-09-01 | CS10: 2022-10-01 | CT10: 2022-11-01 | CU10: 2022-12-01 | CV10: 2023-01-01 | CW10: 2023-02-01 | CX10: 2023-03-01 | CY10: 2023-04-01 | CZ10: 2023-05-01 | DA10: 2023-06-01 | DB10: 2023-07-01 | DC10: 2023-08-01 | DD10: 2023-09-01 | DE10: 2023-10-01 | DF10: 2023-11-01 | DG10: 2023-12-01 | DH10: 2024-01-01 | DI10: 2024-02-01 | DJ10: 2024-03-01 | DK10: 2024-04-01 | DL10: 2024-05-01 | DM10: 2024-06-01 | DN10: 2024-07-01 | DO10: 2024-08-01 | DP10: 2024-09-01 | DQ10: 2024-10-01 | DR10: 2024-11-01 | DS10: 2024-12-01 | DT10: 2025-01-01 | DU10: 2025-02-01 | DV10: 2025-03-01 | DW10: 2025-04-01 | DX10: 2025-05-01 | DY10: 2025-06-01 | DZ10: 2025-07-01 | EA10: 2025-08-01 | EB10: 2025-09-01 | EC10: 2025-10-01 | ED10: 2025-11-01 | EE10: 2025-12-01 | EF10: 2026-01-01 | EG10: 2026-02-01 | EH10: 2026-03-01 | EI10: 2026-04-01 | EJ10: 2026-05-01 | EK10: 2026-06-01 | EL10: 2026-07-01 | EM10: 2026-08-01 | EN10: 2026-09-01 | EO10: 2026-10-01 | EP10: 2026-11-01 | EQ10: 2026-12-01 | ER10: 2027-01-01 | ES10: 2027-02-01 | ET10: 2027-03-01 | EU10: =EOMONTH(ET10,0)+1 -> 2027-04-01 | EV10: 2027-05-01 | EW10: 2027-06-01 | EX10: 2027-07-01 | EY10: 2027-08-01 | EZ10: 2027-09-01
A11: Preference | D11: PRE | E11: =+SUM(E12:E16) -> 57217146.7 | F11: 57654212.35 | G11: 58519425.55 | H11: 58668127.59 | I11: 58875647.78 | J11: 59075592.79 | L11: =SUM(L12:L16) -> 2632603.448 | M11: =SUM(M12:M16) -> 3020734.101 | N11: 3383739.639 | O11: 3262342.751 | P11: 2828177.244 | Q11: 2989277.209 | R11: 2490490.657 | S11: 2596543.13 | T11: 2783828.22 | U11: 2848503.731 | V11: 2923484.155 | W11: 2562607.356 | X11: 2660206.663 | Y11: 3058206.531 | Z11: 3450553.974 | AA11: 3277283.628 | AB11: 2861749.837 | AC11: 3026330.538 | AD11: 2478652.701 | AE11: 2603794.151 | AF11: 2748815.275 | AG11: 2874517.666 | AH11: 2955545.762 | AI11: 2596477.801 | AJ11: 2641885.349 | AK11: 3060900.596 | AL11: 3442012.959 | AM11: 3398441.082 | AN11: 2974286.807 | AO11: 2982614.019 | AP11: 2567114.308 | AQ11: 2643265.006 | AR11: 2729890.63 | AS11: 2874969.61 | AT11: 2937443.066 | AU11: 2529448.331 | AV11: 2727317.141 | AW11: 3081894.834 | AX11: 3462619.407 | AY11: 3421170.429 | AZ11: 2931281.093 | BA11: 3002570.423 | BB11: 2581488.694 | BC11: 2567223.133 | BD11: 2658627.302 | BE11: 2866677.533 | BF11: 2866457.196 | BG11: 2606739.988 | BH11: 2732246.011 | BI11: 3012404.243 | BJ11: 3542322.483 | BK11: 3422713.045 | BL11: 2925651.297 | BM11: 2998925.921 | BN11: 2593480.892 | BO11: 2605921.353 | BP11: 2832024.643 | BQ11: 2899011.62 | BR11: 2894079.628 | BS11: 2609935.602 | BT11: 2756976.263 | BU11: 3034519.787 | BV11: 3563190.92 | BW11: 3374800.949 | BX11: 2955069.272 | BY11: =SUM(BY12:BY16) -> 3087701.317 | BZ11: 2612969.196 | CA11: 2559334.699 | CB11: 2785832.415 | CC11: 2917745.398 | CD11: 2913019.884 | CE11: 2627362.45 | CG11: 1711976.133 | CH11: =SUM(CH12:CH16) -> 2100676.401 | CI11: =SUM(CI12:CI16) -> 2481647.956 | CJ11: =SUM(CJ12:CJ16) -> 2421878.653 | CK11: =SUM(CK12:CK16) -> 1946998.585 | CL11: =SUM(CL12:CL16) -> 1965563.07 | CM11: =SUM(CM12:CM16) -> 1636396.312 | CN11: =SUM(CN12:CN16) -> 1725175.994 | CO11: =SUM(CO12:CO16) -> 1575249.077 | CP11: =SUM(CP12:CP16) -> 1894679.116 | CQ11: =SUM(CQ12:CQ16) -> 1722930.744 | CR11: =SUM(CR12:CR16) -> 1711643.015 | CS11: =SUM(CS12:CS16) -> 1721962.12 | CT11: =SUM(CT12:CT16) -> 2117401.702 | CU11: =SUM(CU12:CU16) -> 2476926.445 | CV11: =SUM(CV12:CV16) -> 2471344.788 | CW11: =SUM(CW12:CW16) -> 1969906.558 | CX11: =SUM(CX12:CX16) -> 1987135.133 | CY11: =SUM(CY12:CY16) -> 1702027.277 | CZ11: =SUM(CZ12:CZ16) -> 1652455.757 | DA11: =SUM(DA12:DA16) -> 1553324.059 | DB11: =SUM(DB12:DB16) -> 1921586.428 | DC11: =SUM(DC12:DC16) -> 1746287.399 | DD11: =SUM(DD12:DD16) -> 1741720.164 | DE11: =SUM(DE12:DE16) -> 1777770.53 | DF11: =SUM(DF12:DF16) -> 2146605.246 | DG11: =SUM(DG12:DG16) -> 2539027.328 | DH11: =SUM(DH12:DH16) -> 2397662.263 | DI11: =SUM(DI12:DI16) -> 1982336.293 | DJ11: =SUM(DJ12:DJ16) -> 2062760.094 | DK11: =SUM(DK12:DK16) -> 1696477.41 | DL11: =SUM(DL12:DL16) -> 1826884.051 | DM11: =SUM(DM12:DM16) -> 1758383.214 | DN11: =SUM(DN12:DN16) -> 1929303.803 | DO11: =SUM(DO12:DO16) -> 1786379.028 | DP11: =SUM(DP12:DP16) -> 1833564.526 | DQ11: =SUM(DQ12:DQ16) -> 1732260.646 | DR11: =SUM(DR12:DR16) -> 2164302.331 | DS11: =SUM(DS12:DS16) -> 2560484.778 | DT11: =SUM(DT12:DT16) -> 2416245.765 | DU11: =SUM(DU12:DU16) -> 1971648.238 | DV11: =SUM(DV12:DV16) -> 2080530.355 | DW11: =SUM(DW12:DW16) -> 1720048.07 | DX11: =SUM(DX12:DX16) -> 1828536.713 | DY11: =SUM(DY12:DY16) -> 1764380.028 | DZ11: =SUM(DZ12:DZ16) -> 1978425.255 | EA11: =SUM(EA12:EA16) -> 1890167.938 | EB11: =SUM(EB12:EB16) -> 1787030.297 | EC11: =SUM(EC12:EC16) -> 1732465.084 | ED11: =SUM(ED12:ED16) -> 2236250.06 | EE11: =SUM(EE12:EE16) -> 2480954.554 | EF11: =SUM(EF12:EF16) -> 2414197.185 | EG11: =SUM(EG12:EG16) -> 1965397.534 | EH11: =SUM(EH12:EH16) -> 2067916.452 | EI11: =SUM(EI12:EI16) -> 1709026.239 | EJ11: =SUM(EJ12:EJ16) -> 1910497.567 | EK11: =SUM(EK12:EK16) -> 1702911.5 | EL11: =SUM(EL12:EL16) -> 1942700.859 | EM11: =SUM(EM12:EM16) -> 1861051.741 | EN11: =SUM(EN12:EN16) -> 1783562.272 | EO11: =SUM(EO12:EO16) -> 1745522.205 | EP11: =SUM(EP12:EP16) -> 2251505.676 | EQ11: =SUM(EQ12:EQ16) -> 2502034.659 | ER11: =SUM(ER12:ER16) -> 2501511.223 | ES11: =SUM(ES12:ES16) -> 1983617.227 | ET11: =SUM(ET12:ET16) -> 2031070.594 | EU11: =SUM(EU12:EU16) -> 1719269.15 | EV11: =SUM(EV12:EV16) -> 1863109.388 | EW11: =SUM(EW12:EW16) -> 1665252.631 | EX11: =SUM(EX12:EX16) -> 1953930.791 | EY11: =SUM(EY12:EY16) -> 1874366.365 | EZ11: =SUM(EZ12:EZ16) -> 1795880.336
B12: Block | D12: PRE_BLK | E12: =+SUM(L12:W12,CG12:CR12) -> 4155927.888 | F12: =+SUM(X12:AI12,CS12:DD12) -> 4144329.695 | G12: =+SUM(AJ12:AU12,DE12:DP12) -> 4298634.864 | H12: =+SUM(AV12:BG12,DQ12:EB12) -> 4257920.64 | I12: =+SUM(BH12:BS12,EC12:EN12) -> 4271481.12 | J12: =+SUM(BT12:CE12,EO12:EZ12) -> 4265708.28 | L12: =L3+($G$5*L4+$G$6*L5) -> 198793.984 | M12: =M3+($G$5*M4+$G$6*M5) -> 307244.07 | N12: 319366.945 | O12: 347026.28 | P12: 294201.174 | Q12: 309814.582 | R12: 154408.832 | S12: 57927.664 | T12: 8747.088 | U12: 127056.699 | V12: 143053.476 | W12: 225915.918 | X12: 198237.265 | Y12: 306360.289 | Z12: 318469.258 | AA12: 346052.03 | AB12: 293373.081 | AC12: 308937.77 | AD12: 153984.332 | AE12: 57788.485 | AF12: 8747.088 | AG12: 126722.66 | AH12: 142656.812 | AI12: 225268.73 | AJ12: 205634.6381 | AK12: 317991.5604 | AL12: 330381.554 | AM12: 358985.8226 | AN12: 304356.4664 | AO12: 320544.5053 | AP12: 159662.8205 | AQ12: 59748.36394 | AR12: 8864.580902 | AS12: 131265.5943 | AT12: 147946.4261 | AU12: 233798.5858 | AV12: 203682.2675 | AW12: 314915.2688 | AX12: 327236.6468 | AY12: 355571.5641 | AZ12: 301456.4819 | BA12: 317478.62 | BB12: 158166.3061 | BC12: 59237.4852 | BD12: 8840.360736 | BE12: 130072.6287 | BF12: 146551.4502 | BG12: 231543.3038 | BH12: 204332.9813 | BI12: 315945.9914 | BJ12: 328285.5972 | BK12: 356710.0768 | BL12: 302424.0064 | BM12: 318502.5939 | BN12: 158663.2504 | BO12: 59402.41848 | BP12: 8842.757472 | BQ12: 130465.1889 | BR12: 147015.4709 | BS12: 232298.3388 | BT12: 204055.885 | BU12: 315506.101 | BV12: 327838.7794 | BW12: 356225.1582 | BX12: 302011.8256 | BY12: =BY3+($G$5*BY4+$G$6*BY5) -> 318066.1672 | BZ12: 158451.9645 | CA12: 59333.1444 | CB12: 8842.757472 | CC12: 130298.9311 | CD12: 146818.0398 | CE12: 231976.2143 | CG12: =CG3+($G$5*CG4+$G$6*CG5) -> 132529.303 | CH12: 204829.359 | CI12: 212911.309 | CJ12: 231350.861 | CK12: 196134.147 | CL12: 206543.098 | CM12: 102939.211 | CN12: 38618.438 | CO12: 5831.393 | CP12: 84704.455 | CQ12: 95368.985 | CR12: 150610.617 | CS12: 132158.178 | CT12: 204240.172 | CU12: 212312.84 | CV12: 230701.361 | CW12: 195582.053 | CX12: 205958.536 | CY12: 102656.211 | CZ12: 38525.656 | DA12: 5831.393 | DB12: 84481.775 | DC12: 95104.54 | DD12: 150179.18 | DE12: 137089.7588 | DF12: 211994.3736 | DG12: 220254.3694 | DH12: 239323.8817 | DI12: 202904.3109 | DJ12: 213696.3368 | DK12: 106441.8803 | DL12: 39832.24262 | DM12: 5909.720602 | DN12: 87510.39621 | DO12: 98630.95075 | DP12: 155865.7239 | DQ12: 135788.1783 | DR12: 209943.5125 | DS12: 218157.7645 | DT12: 237047.7094 | DU12: 200970.9879 | DV12: 211652.4133 | DW12: 105444.2041 | DX12: 39491.6568 | DY12: 5893.573824 | DZ12: 86715.08582 | EA12: 97700.96678 | EB12: 154362.2026 | EC12: 136221.9876 | ED12: 210630.661 | EE12: 218857.0648 | EF12: 237806.7179 | EG12: 201616.0043 | EH12: 212335.0626 | EI12: 105775.5003 | EJ12: 39601.61232 | EK12: 5895.171648 | EL12: 86976.79258 | EM12: 98010.31392 | EN12: 154865.5592 | EO12: 136037.2567 | EP12: 210337.4007 | EQ12: 218559.1863 | ER12: 237483.4388 | ES12: =ES3+($G$5*ES4+$G$6*ES5) -> 201341.2171 | ET12: 212044.1115 | EU12: 105634.643 | EV12: 39555.4296 | EW12: 5895.171648 | EX12: 86865.95405 | EY12: 97878.69317 | EZ12: 154650.8095
B13: Slice Block | D13: PRE_BLK | E13: =+SUM(L13:W13,CG13:CR13) -> 11330797.57 | F13: =+SUM(X13:AI13,CS13:DD13) -> 11775170.03 | G13: 11555041.85 | H13: 11712801.69 | I13: 11462884.44 | J13: 11703633.2 | L13: 486728.639 | M13: 546509.057 | N13: 651089.3 | O13: 623390.797 | P13: 548384.243 | Q13: 568712.97 | R13: 509233.326 | S13: 476337.738 | T13: 483955.023 | U13: 486766.062 | V13: 514022.208 | W13: 454366.176 | X13: 506452.068 | Y13: 567696.396 | Z13: 675275.011 | AA13: 646455.262 | AB13: 569240.097 | AC13: 590901.585 | AD13: 509505.274 | AE13: 515078.806 | AF13: 503384.661 | AG13: 506142.192 | AH13: 534711.849 | AI13: 473171.872 | AJ13: 496422.2368 | AK13: 556993.2499 | AL13: 637335.8929 | AM13: 659980.8115 | AN13: 561672.1722 | AO13: 558258.9465 | AP13: 519746.1025 | AQ13: 505820.8558 | AR13: 475050.5516 | AS13: 516937.6489 | AT13: 524870.2348 | AU13: 445484.3382 | AV13: 522661.0052 | AW13: 564606.9605 | AX13: 646062.5638 | AY13: 669025.5548 | AZ13: 566155.5481 | BA13: 565847.9383 | BB13: 526842.9735 | BC13: 512686.6705 | BD13: 481436.2398 | BE13: 523933.6975 | BF13: 512323.292 | BG13: 470384.5183 | BH13: 511589.0809 | BI13: 530350.0776 | BJ13: 657433.835 | BK13: 654756.0705 | BL13: 554008.4744 | BM13: 553498.6924 | BN13: 515446.8882 | BO13: 482485.7936 | BP13: 490142.9585 | BQ13: 512998.6061 | BR13: 501650.4853 | BS13: 460334.3442 | BT13: 522516.9591 | BU13: 541461.0155 | BV13: 671168.4025 | BW13: 642748.3818 | BX13: 565689.8552 | BY13: 586789.6105 | BZ13: 526301.317 | CA13: 492532.8125 | CB13: 500405.4398 | CC13: 523748.0057 | CD13: 512244.4937 | CE13: 470058.489 | CG13: 383766.478 | CH13: 438564.684 | CI13: 513358.391 | CJ13: 536125.614 | CK13: 411285.747 | CL13: 409414.989 | CM13: 372128.674 | CN13: 409657.713 | CO13: 353656.216 | CP13: 418626.228 | CQ13: 371230.896 | CR13: 363486.397 | CS13: 399317.623 | CT13: 455567.182 | CU13: 532427.856 | CV13: 555961.39 | CW13: 426927.565 | CX13: 425388.538 | CY13: 407596.886 | CZ13: 406119.429 | DA13: 367854.681 | DB13: 435289.98 | DC13: 386173.141 | DD13: 378530.685 | DE13: 391409.8406 | DF13: 446987.0831 | DG13: 548108.8679 | DH13: 520369.486 | DI13: 415637.4074 | DJ13: 438823.7392 | DK13: 379814.4595 | DL13: 398820.2902 | DM13: 380040.4413 | DN13: 407585.454 | DO13: 379072.9473 | DP13: 389798.796 | DQ13: 377477.3926 | DR13: 453097.0858 | DS13: 555613.8049 | DT13: 527500.9182 | DU13: 424616.6611 | DV13: 444789.1245 | DW13: 385000.6345 | DX13: 404233.7209 | DY13: 385148.9918 | DZ13: 413101.5692 | EA13: 403947.211 | EB13: 376307.6146 | EC13: 369481.0029 | ED13: 465437.4379 | EE13: 518361.293 | EF13: 516249.9787 | EG13: 415506.3558 | EH13: 435081.9048 | EI13: 376672.726 | EJ13: 414937.7825 | EK13: 358181.3928 | EL13: 404479.6702 | EM13: 395532.1134 | EN13: 368267.4753 | EO13: 377373.3593 | EP13: 475188.4433 | EQ13: 529190.4712 | ER13: 552763.6083 | ES13: 424267.3914 | ET13: 422434.1872 | EU13: 384604.8086 | EV13: 423578.2188 | EW13: 365680.8983 | EX13: 412955.1583 | EY13: 403885.0816 | EZ13: 376046.7912
B14: Slice | D14: PRE_SNB | E14: =+SUM(L14:W14,CG14:CR14) -> 13322796.44 | F14: =+SUM(X14:AI14,CS14:DD14) -> 13064358.12 | G14: 13475739.14 | H14: 13235143.95 | I14: 13470922.56 | J14: 13210647.76 | L14: 651447.8656 | M14: 787848.7199 | N14: 704823.6185 | O14: 604141.5501 | P14: 524981.981 | Q14: 660956.0518 | R14: 518515.6992 | S14: 813224.996 | T14: 917934.8486 | U14: 786875.7978 | V14: 767202.654 | W14: 673001.327 | X14: 654500.3827 | Y14: 794199.0525 | Z14: 736694.4785 | AA14: 581391.9152 | AB14: 524188.9935 | AC14: 663326.1745 | AD14: 513012.8536 | AE14: 749920.3005 | AF14: 849732.0852 | AG14: 780587.7956 | AH14: 765282.3551 | AI14: 669922.8616 | AJ14: 606971.647 | AK14: 777184.6355 | AL14: 761477.1775 | AM14: 627378.6203 | AN14: 573668.0714 | AO14: 642287.1156 | AP14: 543599.2934 | AQ14: 777579.07 | AR14: 853124.5061 | AS14: 723976.3422 | AT14: 727117.0823 | AU14: 615183.0421 | AV14: 630243.6657 | AW14: 778038.8728 | AX14: 759695.5102 | AY14: 626903.7202 | AZ14: 550758.2766 | BA14: 640677.5525 | BB14: 535452.8118 | BC14: 681689.7389 | BD14: 757524.0683 | BE14: 691625.7957 | BF14: 674336.1765 | BG14: 639656.3752 | BH14: 630416.3928 | BI14: 749185.0471 | BJ14: 791085.1277 | BK14: 627727.9762 | BL14: 551153.8449 | BM14: 645443.822 | BN14: 546206.5199 | BO14: 755256.445 | BP14: 893669.4187 | BQ14: 723441.4903 | BR14: 700409.5677 | BS14: 641961.4714 | BT14: 633244.7128 | BU14: 750892.6113 | BV14: 790908.1806 | BW14: 602345.3724 | BX14: 551430.621 | BY14: 666749.7495 | BZ14: 544542.4519 | CA14: 689231.8124 | CB14: 826304.3046 | CC14: 721478.1122 | CD14: 697918.4694 | CE14: 640260.3501 | CG14: 367637.6814 | CH14: 502651.4179 | CI14: 558001.0774 | CJ14: 438622.4603 | CK14: 379026.898 | CL14: 418248.954 | CM14: 320979.7008 | CN14: 408309.5617 | CO14: 376538.4367 | CP14: 391069.4284 | CQ14: 368699.8483 | CR14: 382055.8631 | CS14: 362427.932 | CT14: 493305.0323 | CU14: 523773.5567 | CV14: 459779.1801 | CW14: 377952.9569 | CX14: 413738.4696 | CY14: 321329.8392 | CZ14: 348046.6656 | DA14: 334344.8731 | DB14: 394646.1408 | DC14: 368873.0133 | DD14: 383381.2096 | DE14: 401896.3495 | DF14: 505026.0727 | DG14: 516150.2244 | DH14: 425758.5835 | DI14: 360307.0127 | DJ14: 430357.801 | DK14: 346011.7727 | DL14: 511519.9237 | DM14: 495683.3189 | DN14: 434164.3712 | DO14: 395875.6179 | DP14: 423441.4862 | DQ14: 379361.4871 | DR14: 504381.0308 | DS14: 518284.9771 | DT14: 427160.3855 | DU14: 351172.0407 | DV14: 432386.9969 | DW14: 354559.3122 | DX14: 495459.6306 | DY14: 490508.0103 | DZ14: 466808.5102 | EA14: 448059.1647 | EB14: 400399.8382 | EC14: 378810.2552 | ED14: 532777.4707 | EE14: 488003.5418 | EF14: 426780.4647 | EG14: 351063.9886 | EH14: 427940.6418 | EI14: 344363.4198 | EJ14: 544192.5561 | EK14: 467466.2463 | EL14: 433807.963 | EM14: 421577.4991 | EN14: 398181.3892 | EO14: 378345.9711 | EP14: 531524.9981 | EQ14: 488838.7956 | ER14: 450474.143 | ES14: 349051.9104 | ET14: 405265.3056 | EU14: 340955.7336 | EV14: 482191.7592 | EW14: 417977.6398 | EX14: 431743.5179 | EY14: 421617.2554 | EZ14: 397353.9825
B15: Load Following | D15: PRE_LDF | E15: 27035896.41 | F15: 27153104.99 | G15: 27496612.61 | H15: 27470298.63 | I15: 27507839.78 | J15: 27505787.95 | L15: 1230491.519 | M15: 1316496.254 | N15: 1643318.335 | O15: 1625148.124 | P15: 1400479.286 | Q15: 1382146.725 | R15: 1243191.36 | S15: 1186416.732 | T15: 1308049.82 | U15: 1385169.172 | V15: 1431558.937 | W15: 1146687.935 | X15: 1228964.915 | Y15: 1320669.993 | Z15: 1648063.195 | AA15: 1634103.621 | AB15: 1408438.097 | AC15: 1388341.744 | AD15: 1232869.441 | AE15: 1208954.528 | AF15: 1314899.409 | AG15: 1391784.218 | AH15: 1438071.482 | AI15: 1158833.537 | AJ15: 1252508.682 | AK15: 1331536.663 | AL15: 1635161.858 | AM15: 1671741.683 | AN15: 1456978.62 | AO15: 1381593.298 | AP15: 1264724.926 | AQ15: 1220139.563 | AR15: 1316274.491 | AS15: 1422562.877 | AT15: 1454436.511 | AU15: 1160487.546 | AV15: 1272250.34 | AW15: 1333276.606 | AX15: 1638105.539 | AY15: 1674916.102 | AZ15: 1425173.016 | BA15: 1384236.843 | BB15: 1267246.159 | BC15: 1219232.767 | BD15: 1320404.541 | BE15: 1426418.929 | BF15: 1438938.809 | BG15: 1173649.649 | BH15: 1279013.386 | BI15: 1322102.54 | BJ15: 1662181.593 | BK15: 1680666.628 | BL15: 1422851.38 | BM15: 1379052.538 | BN15: 1271284.984 | BO15: 1210332.28 | BP15: 1337129.243 | BQ15: 1429381.047 | BR15: 1442597.831 | BS15: 1176047.993 | BT15: 1279049.632 | BU15: 1321869.78 | BV15: 1659138.727 | BW15: 1664283.501 | BX15: 1430761.68 | BY15: 1398429.743 | BZ15: 1271002.706 | CA15: 1209415.411 | CB15: 1337248.14 | CC15: 1428703.554 | CD15: 1442841.1 | CE15: 1175396.839 | CG15: 776681.151 | CH15: 904365.55 | CI15: 1146015.659 | CJ15: 1161912.758 | CK15: 915453.873 | CL15: 882656.539 | CM15: 792745.366 | CN15: 814723.321 | CO15: 791619.671 | CP15: 946412.045 | CQ15: 838774.935 | CR15: 765381.338 | CS15: 771248.131 | CT15: 908691.474 | CU15: 1151601.936 | CV15: 1165321.369 | CW15: 919561.807 | CX15: 888183.767 | CY15: 815019.701 | CZ15: 802953.75 | DA15: 792639.704 | DB15: 947587.044 | DC15: 842097.681 | DD15: 774204.449 | DE15: 783902.065 | DF15: 920648.986 | DG15: 1187728.696 | DH15: 1148854.794 | DI15: 946070.368 | DJ15: 917053.233 | DK15: 806199.753 | DL15: 813653.07 | DM15: 815488.533 | DN15: 936787.062 | DO15: 852802.648 | DP15: 799276.679 | DQ15: 768509.465 | DR15: 923807.503 | DS15: 1189721.365 | DT15: 1149827.271 | DU15: 929084.97 | DV15: 917554.252 | DW15: 806512.018 | DX15: 814939.237 | DY15: 810492.178 | DZ15: 937189.613 | EA15: 865944.123 | EB15: 782867.333 | EC15: 770750.604 | ED15: 944052.355 | EE15: 1174352.552 | EF15: 1152265.946 | EG15: 925800.742 | EH15: 912044.896 | EI15: 807764.334 | EJ15: 826937.691 | EK15: 796832.426 | EL15: 936441.36 | EM15: 865030.746 | EN15: 782924.69 | EO15: 768465.009 | EP15: 942353.505 | EQ15: 1175551.325 | ER15: 1166740.906 | ES15: 930074.99 | ET15: 906776.236 | EU15: 805737.027 | EV15: 824031.867 | EW15: 793275.98 | EX15: 932861.303 | EY15: 861574.481 | EZ15: 780204.512
B16: Tier 2 | D16: PRE_T2 | E16: 1371728.4 | F16: 1517249.52 | G16: =+SUM(AJ16:AU16,DE16:DP16) -> 1693397.088 | H16: 1991962.68 | I16: 2162519.88 | J16: 2389815.6 | L16: 65141.44 | M16: 62636 | N16: 65141.44 | O16: 62636 | P16: 60130.56 | Q16: 67646.88 | R16: 65141.44 | S16: 62636 | T16: 65141.44 | U16: 62636 | V16: 67646.88 | W16: 62636 | X16: 72052.032 | Y16: 69280.8 | Z16: 72052.032 | AA16: 69280.8 | AB16: 66509.568 | AC16: 74823.264 | AD16: 69280.8 | AE16: 72052.032 | AF16: 72052.032 | AG16: 69280.8 | AH16: 74823.264 | AI16: 69280.8 | AJ16: 80348.14535 | AK16: 77194.48733 | AL16: 77656.47703 | AM16: 80354.14435 | AN16: 77611.4772 | AO16: 79930.1538 | AP16: 79381.16603 | AQ16: 79977.15275 | AR16: 76576.50027 | AS16: 80227.14718 | AT16: 83072.81204 | AU16: 74494.81839 | AV16: 98479.86284 | AW16: 91057.12639 | AX16: 91519.14748 | AY16: 94753.48832 | AZ16: 87737.77092 | BA16: 94329.46896 | BB16: 93780.44389 | BC16: 94376.47111 | BD16: 90422.09202 | BE16: 94626.48252 | BF16: 94307.46796 | BG16: 91506.14152 | BH16: 106894.1703 | BI16: 94820.58683 | BJ16: 103336.3304 | BK16: 102852.2937 | BL16: 95213.59123 | BM16: 102428.2743 | BN16: 101879.2492 | BO16: 98444.41557 | BP16: 102240.2657 | BQ16: 102725.2879 | BR16: 102406.2733 | BS16: 99293.45434 | BT16: 118109.0736 | BU16: 104790.2787 | BV16: 114136.8299 | BW16: 109198.5361 | BX16: 105175.2904 | BY16: 117666.0467 | BZ16: 112670.7567 | CA16: 108821.5189 | CB16: 113031.7731 | CC16: 113516.7953 | CD16: 113197.7807 | CE16: 109670.5576 | CG16: 51361.52 | CH16: 50265.39 | CI16: 51361.52 | CJ16: 53866.96 | CK16: 45097.92 | CL16: 48699.49 | CM16: 47603.36 | CN16: 53866.96 | CO16: 47603.36 | CP16: 53866.96 | CQ16: 48856.08 | CR16: 50108.8 | CS16: 56810.256 | CT16: 55597.842 | CU16: 56810.256 | CV16: 59581.488 | CW16: 49882.176 | CX16: 53865.822 | CY16: 55424.64 | CZ16: 56810.256 | DA16: 52653.408 | DB16: 59581.488 | DC16: 54039.024 | DD16: 55424.64 | DE16: 63472.51575 | DF16: 61948.73107 | DG16: 66785.17023 | DH16: 63355.51768 | DI16: 57417.19347 | DJ16: 62828.98389 | DK16: 58009.54441 | DL16: 63058.5243 | DM16: 61261.20021 | DN16: 63256.51988 | DO16: 59996.86426 | DP16: 65181.84112 | DQ16: 71124.12315 | DR16: 73073.19893 | DS16: 78706.86686 | DT16: 74709.48116 | DU16: 65803.57822 | DV16: 74147.56812 | DW16: 68531.90132 | DX16: 74412.4676 | DY16: 72337.27361 | DZ16: 74610.47664 | EA16: 74516.47235 | EB16: 73093.30813 | EC16: 77201.23404 | ED16: 83352.13581 | EE16: 81380.10223 | EF16: 81094.07774 | EG16: 71410.44347 | EH16: 80513.94634 | EI16: 74450.25909 | EJ16: 84827.92505 | EK16: 74536.26301 | EL16: 80995.07322 | EM16: 80901.06893 | EN16: 79323.1584 | EO16: 85300.60872 | EP16: 92101.32896 | EQ16: 89894.88074 | ER16: 94049.12739 | ES16: 78881.71782 | ET16: 84550.75329 | EU16: 82336.93756 | EV16: 93752.11383 | EW16: 82422.94149 | EX16: 89504.85785 | EY16: 89410.85356 | EZ16: 87624.24103
A17: Industrial | D17: IND | E17: =+SUM(E18:E19) -> 105120 | F17: =+SUM(F18:F19) -> 105120 | G17: 105420 | H17: 105108 | I17: 105120 | J17: 105120 | L17: =SUM(L18:L19) -> 5084.197 | M17: =SUM(M18:M19) -> 4746.837 | N17: 4809.003 | O17: 4826.339 | P17: 4532.686 | Q17: 5080.741 | R17: 4884.59 | S17: 4885.416 | T17: 4936.183 | U17: 4823.606 | V17: 5130.258 | W17: 4570.003 | X17: 5084.197 | Y17: 4746.837 | Z17: 4809.003 | AA17: 4826.339 | AB17: 4532.686 | AC17: 5080.741 | AD17: 4884.59 | AE17: 4885.416 | AF17: 4936.183 | AG17: 4823.606 | AH17: 5130.258 | AI17: 4570.003 | AJ17: 5084.197 | AK17: 4746.837 | AL17: 4809.003 | AM17: 4826.339 | AN17: 4694.568 | AO17: 5087.579 | AP17: 4884.59 | AQ17: 4885.416 | AR17: 4936.183 | AS17: 4823.606 | AT17: 5130.258 | AU17: 4570.003 | AV17: 5084.197 | AW17: 4740.253 | AX17: 4809.003 | AY17: 4826.339 | AZ17: 4532.686 | BA17: 5080.741 | BB17: 4884.59 | BC17: 4885.416 | BD17: 4936.183 | BE17: 4823.606 | BF17: 5130.258 | BG17: 4570.003 | BH17: 5084.197 | BI17: 4746.837 | BJ17: 4809.003 | BK17: 4826.339 | BL17: 4532.686 | BM17: 5080.741 | BN17: 4884.59 | BO17: 4885.416 | BP17: 4936.183 | BQ17: 4823.606 | BR17: 5130.258 | BS17: 4570.003 | BT17: 5084.197 | BU17: 4746.837 | BV17: 4809.003 | BW17: 4826.339 | BX17: 4532.686 | BY17: =SUM(BY18:BY19) -> 5080.741 | BZ17: 4884.59 | CA17: 4885.416 | CB17: 4936.183 | CC17: 4823.606 | CD17: 5130.258 | CE17: 4570.003 | CG17: 3843.803 | CH17: =SUM(CH18:CH19) -> 3905.163 | CI17: =SUM(CI18:CI19) -> 4118.997 | CJ17: =SUM(CJ18:CJ19) -> 4101.661 | CK17: =SUM(CK18:CK19) -> 3531.314 | CL17: =SUM(CL18:CL19) -> 3835.259 | CM17: =SUM(CM18:CM19) -> 3755.41 | CN17: =SUM(CN18:CN19) -> 4042.584 | CO17: =SUM(CO18:CO19) -> 3703.817 | CP17: =SUM(CP18:CP19) -> 4104.394 | CQ17: =SUM(CQ18:CQ19) -> 3797.742 | CR17: =SUM(CR18:CR19) -> 4069.997 | CS17: =SUM(CS18:CS19) -> 3843.803 | CT17: =SUM(CT18:CT19) -> 3905.163 | CU17: =SUM(CU18:CU19) -> 4118.997 | CV17: =SUM(CV18:CV19) -> 4101.661 | CW17: =SUM(CW18:CW19) -> 3531.314 | CX17: =SUM(CX18:CX19) -> 3835.259 | CY17: =SUM(CY18:CY19) -> 3755.41 | CZ17: =SUM(CZ18:CZ19) -> 4042.584 | DA17: =SUM(DA18:DA19) -> 3703.817 | DB17: =SUM(DB18:DB19) -> 4104.394 | DC17: =SUM(DC18:DC19) -> 3797.742 | DD17: =SUM(DD18:DD19) -> 4069.997 | DE17: =SUM(DE18:DE19) -> 3843.803 | DF17: =SUM(DF18:DF19) -> 3905.163 | DG17: =SUM(DG18:DG19) -> 4118.997 | DH17: =SUM(DH18:DH19) -> 4101.661 | DI17: =SUM(DI18:DI19) -> 3657.432 | DJ17: =SUM(DJ18:DJ19) -> 3840.421 | DK17: =SUM(DK18:DK19) -> 3755.41 | DL17: =SUM(DL18:DL19) -> 4042.584 | DM17: =SUM(DM18:DM19) -> 3703.817 | DN17: =SUM(DN18:DN19) -> 4104.394 | DO17: =SUM(DO18:DO19) -> 3797.742 | DP17: =SUM(DP18:DP19) -> 4069.997 | DQ17: =SUM(DQ18:DQ19) -> 3843.803 | DR17: =SUM(DR18:DR19) -> 3899.747 | DS17: =SUM(DS18:DS19) -> 4118.997 | DT17: =SUM(DT18:DT19) -> 4101.661 | DU17: =SUM(DU18:DU19) -> 3531.314 | DV17: =SUM(DV18:DV19) -> 3835.259 | DW17: =SUM(DW18:DW19) -> 3755.41 | DX17: =SUM(DX18:DX19) -> 4042.584 | DY17: =SUM(DY18:DY19) -> 3703.817 | DZ17: =SUM(DZ18:DZ19) -> 4104.394 | EA17: =SUM(EA18:EA19) -> 3797.742 | EB17: =SUM(EB18:EB19) -> 4069.997 | EC17: =SUM(EC18:EC19) -> 3843.803 | ED17: =SUM(ED18:ED19) -> 3905.163 | EE17: =SUM(EE18:EE19) -> 4118.997 | EF17: =SUM(EF18:EF19) -> 4101.661 | EG17: =SUM(EG18:EG19) -> 3531.314 | EH17: =SUM(EH18:EH19) -> 3835.259 | EI17: =SUM(EI18:EI19) -> 3755.41 | EJ17: =SUM(EJ18:EJ19) -> 4042.584 | EK17: =SUM(EK18:EK19) -> 3703.817 | EL17: =SUM(EL18:EL19) -> 4104.394 | EM17: =SUM(EM18:EM19) -> 3797.742 | EN17: =SUM(EN18:EN19) -> 4069.997 | EO17: =SUM(EO18:EO19) -> 3843.803 | EP17: =SUM(EP18:EP19) -> 3905.163 | EQ17: =SUM(EQ18:EQ19) -> 4118.997 | ER17: =SUM(ER18:ER19) -> 4101.661 | ES17: =SUM(ES18:ES19) -> 3531.314 | ET17: =SUM(ET18:ET19) -> 3835.259 | EU17: =SUM(EU18:EU19) -> 3755.41 | EV17: =SUM(EV18:EV19) -> 4042.584 | EW17: =SUM(EW18:EW19) -> 3703.817 | EX17: =SUM(EX18:EX19) -> 4104.394 | EY17: =SUM(EY18:EY19) -> 3797.742 | EZ17: =SUM(EZ18:EZ19) -> 4069.997
B18: Smelter | D18: IND_SMT | E18: 0 | F18: 0 | G18: =+SUM(AJ18:AU18,DE18:DP18) -> 0 | H18: 0 | I18: 0 | J18: 0 | L18: 0 | M18: 0 | N18: 0 | O18: 0 | P18: 0 | Q18: 0 | R18: 0 | S18: 0 | T18: 0 | U18: 0 | V18: 0 | W18: 0 | X18: 0 | Y18: 0 | Z18: 0 | AA18: 0 | AB18: 0 | AC18: 0 | AD18: 0 | AE18: 0 | AF18: 0 | AG18: 0 | AH18: 0 | AI18: 0 | AJ18: 0 | AK18: 0 | AL18: 0 | AM18: 0 | AN18: 0 | AO18: 0 | AP18: 0 | AQ18: 0 | AR18: 0 | AS18: 0 | AT18: 0 | AU18: 0 | AV18: 0 | AW18: 0 | AX18: 0 | AY18: 0 | AZ18: 0 | BA18: 0 | BB18: 0 | BC18: 0 | BD18: 0 | BE18: 0 | BF18: 0 | BG18: 0 | BH18: 0 | BI18: 0 | BJ18: 0 | BK18: 0 | BL18: 0 | BM18: 0 | BN18: 0 | BO18: 0 | BP18: 0 | BQ18: 0 | BR18: 0 | BS18: 0 | BT18: 0 | BU18: 0 | BV18: 0 | BW18: 0 | BX18: 0 | BY18: 0 | BZ18: 0 | CA18: 0 | CB18: 0 | CC18: 0 | CD18: 0 | CE18: 0 | CG18: 0 | CH18: 0 | CI18: 0 | CJ18: 0 | CK18: 0 | CL18: 0 | CM18: 0 | CN18: 0 | CO18: 0 | CP18: 0 | CQ18: 0 | CR18: 0 | CS18: 0 | CT18: 0 | CU18: 0 | CV18: 0 | CW18: 0 | CX18: 0 | CY18: 0 | CZ18: 0 | DA18: 0 | DB18: 0 | DC18: 0 | DD18: 0 | DE18: 0 | DF18: 0 | DG18: 0 | DH18: 0 | DI18: 0 | DJ18: 0 | DK18: 0 | DL18: 0 | DM18: 0 | DN18: 0 | DO18: 0 | DP18: 0 | DQ18: 0 | DR18: 0 | DS18: 0 | DT18: 0 | DU18: 0 | DV18: 0 | DW18: 0 | DX18: 0 | DY18: 0 | DZ18: 0 | EA18: 0 | EB18: 0 | EC18: 0 | ED18: 0 | EE18: 0 | EF18: 0 | EG18: 0 | EH18: 0 | EI18: 0 | EJ18: 0 | EK18: 0 | EL18: 0 | EM18: 0 | EN18: 0 | EO18: 0 | EP18: 0 | EQ18: 0 | ER18: 0 | ES18: 0 | ET18: 0 | EU18: 0 | EV18: 0 | EW18: 0 | EX18: 0 | EY18: 0 | EZ18: 0
B19: Other Industrial | D19: IND_OTH | E19: 105120 | F19: 105120 | G19: 105420 | H19: 105108 | I19: 105120 | J19: 105120 | L19: =L6+$G$7*L7 -> 5084.197 | M19: =M6+$G$7*M7 -> 4746.837 | N19: 4809.003 | O19: 4826.339 | P19: 4532.686 | Q19: 5080.741 | R19: 4884.59 | S19: 4885.416 | T19: 4936.183 | U19: 4823.606 | V19: 5130.258 | W19: 4570.003 | X19: 5084.197 | Y19: 4746.837 | Z19: 4809.003 | AA19: 4826.339 | AB19: 4532.686 | AC19: 5080.741 | AD19: 4884.59 | AE19: 4885.416 | AF19: 4936.183 | AG19: 4823.606 | AH19: 5130.258 | AI19: 4570.003 | AJ19: 5084.197 | AK19: 4746.837 | AL19: 4809.003 | AM19: 4826.339 | AN19: 4694.568 | AO19: 5087.579 | AP19: 4884.59 | AQ19: 4885.416 | AR19: 4936.183 | AS19: 4823.606 | AT19: 5130.258 | AU19: 4570.003 | AV19: 5084.197 | AW19: 4740.253 | AX19: 4809.003 | AY19: 4826.339 | AZ19: 4532.686 | BA19: 5080.741 | BB19: 4884.59 | BC19: 4885.416 | BD19: 4936.183 | BE19: 4823.606 | BF19: 5130.258 | BG19: 4570.003 | BH19: 5084.197 | BI19: 4746.837 | BJ19: 4809.003 | BK19: 4826.339 | BL19: 4532.686 | BM19: 5080.741 | BN19: 4884.59 | BO19: 4885.416 | BP19: 4936.183 | BQ19: 4823.606 | BR19: 5130.258 | BS19: 4570.003 | BT19: 5084.197 | BU19: 4746.837 | BV19: 4809.003 | BW19: 4826.339 | BX19: 4532.686 | BY19: =BY6+$G$7*BY7 -> 5080.741 | BZ19: 4884.59 | CA19: 4885.416 | CB19: 4936.183 | CC19: 4823.606 | CD19: 5130.258 | CE19: 4570.003 | CG19: 3843.803 | CH19: 3905.163 | CI19: 4118.997 | CJ19: 4101.661 | CK19: 3531.314 | CL19: 3835.259 | CM19: 3755.41 | CN19: 4042.584 | CO19: 3703.817 | CP19: 4104.394 | CQ19: 3797.742 | CR19: 4069.997 | CS19: 3843.803 | CT19: 3905.163 | CU19: 4118.997 | CV19: 4101.661 | CW19: 3531.314 | CX19: 3835.259 | CY19: 3755.41 | CZ19: 4042.584 | DA19: 3703.817 | DB19: 4104.394 | DC19: 3797.742 | DD19: 4069.997 | DE19: 3843.803 | DF19: 3905.163 | DG19: 4118.997 | DH19: 4101.661 | DI19: 3657.432 | DJ19: 3840.421 | DK19: 3755.41 | DL19: 4042.584 | DM19: 3703.817 | DN19: 4104.394 | DO19: 3797.742 | DP19: 4069.997 | DQ19: 3843.803 | DR19: 3899.747 | DS19: 4118.997 | DT19: 4101.661 | DU19: 3531.314 | DV19: 3835.259 | DW19: 3755.41 | DX19: 4042.584 | DY19: 3703.817 | DZ19: 4104.394 | EA19: 3797.742 | EB19: 4069.997 | EC19: 3843.803 | ED19: 3905.163 | EE19: 4118.997 | EF19: 4101.661 | EG19: 3531.314 | EH19: 3835.259 | EI19: 3755.41 | EJ19: 4042.584 | EK19: =EK6+$G$7*EK7 -> 3703.817 | EL19: 4104.394 | EM19: 3797.742 | EN19: 4069.997 | EO19: 3843.803 | EP19: 3905.163 | EQ19: 4118.997 | ER19: 4101.661 | ES19: 3531.314 | ET19: 3835.259 | EU19: 3755.41 | EV19: 4042.584 | EW19: 3703.817 | EX19: 4104.394 | EY19: 3797.742 | EZ19: 4069.997
A20: New Resource | D20: NR | E20: 9.856 | F20: 9.824 | G20: 9.856 | H20: 9.856 | I20: 9.856 | J20: 9.856 | L20: 0.432 | M20: 0.4 | N20: 0.4 | O20: 0.416 | P20: 0.4 | Q20: 0.416 | R20: 0.416 | S20: 0.4 | T20: 0.416 | U20: 0.416 | V20: 0.416 | W20: 0.4 | X20: 0.432 | Y20: 0.384 | Z20: 0.416 | AA20: 0.4 | AB20: 0.384 | AC20: 0.432 | AD20: 0.416 | AE20: 0.4 | AF20: 0.416 | AG20: 0.416 | AH20: 0.416 | AI20: 0.4 | AJ20: 0.432 | AK20: 0.4 | AL20: 0.4 | AM20: 0.416 | AN20: 0.4 | AO20: 0.416 | AP20: 0.416 | AQ20: 0.4 | AR20: 0.416 | AS20: 0.416 | AT20: 0.416 | AU20: 0.4 | AV20: 0.432 | AW20: 0.4 | AX20: 0.4 | AY20: 0.416 | AZ20: 0.4 | BA20: 0.416 | BB20: 0.416 | BC20: 0.4 | BD20: 0.416 | BE20: 0.416 | BF20: 0.416 | BG20: 0.4 | BH20: 0.432 | BI20: 0.4 | BJ20: 0.4 | BK20: 0.416 | BL20: 0.4 | BM20: 0.416 | BN20: 0.416 | BO20: 0.4 | BP20: 0.416 | BQ20: 0.416 | BR20: 0.416 | BS20: 0.4 | BT20: 0.432 | BU20: 0.4 | BV20: 0.4 | BW20: 0.416 | BX20: 0.4 | BY20: 0.416 | BZ20: 0.416 | CA20: 0.4 | CB20: 0.416 | CC20: 0.416 | CD20: 0.416 | CE20: 0.4 | CG20: 0.432 | CH20: 0.4 | CI20: 0.4 | CJ20: 0.416 | CK20: 0.4 | CL20: 0.416 | CM20: 0.416 | CN20: 0.4 | CO20: 0.416 | CP20: 0.416 | CQ20: 0.416 | CR20: 0.4 | CS20: 0.432 | CT20: 0.384 | CU20: 0.416 | CV20: 0.4 | CW20: 0.384 | CX20: 0.432 | CY20: 0.416 | CZ20: 0.4 | DA20: 0.416 | DB20: 0.416 | DC20: 0.416 | DD20: 0.4 | DE20: 0.432 | DF20: 0.4 | DG20: 0.4 | DH20: 0.416 | DI20: 0.4 | DJ20: 0.416 | DK20: 0.416 | DL20: 0.4 | DM20: 0.416 | DN20: 0.416 | DO20: 0.416 | DP20: 0.4 | DQ20: 0.432 | DR20: 0.4 | DS20: 0.4 | DT20: 0.416 | DU20: 0.4 | DV20: 0.416 | DW20: 0.416 | DX20: 0.4 | DY20: 0.416 | DZ20: 0.416 | EA20: 0.416 | EB20: 0.4 | EC20: 0.432 | ED20: 0.4 | EE20: 0.4 | EF20: 0.416 | EG20: 0.4 | EH20: 0.416 | EI20: 0.416 | EJ20: 0.4 | EK20: 0.416 | EL20: 0.416 | EM20: 0.416 | EN20: 0.4 | EO20: 0.432 | EP20: 0.4 | EQ20: 0.4 | ER20: 0.416 | ES20: 0.4 | ET20: 0.416 | EU20: 0.416 | EV20: 0.4 | EW20: 0.416 | EX20: 0.416 | EY20: 0.416 | EZ20: 0.4
A21: Firm Power and Services | D21: FPS | E21: =+SUM(E22,E33,E44) -> 5839869.017 | F21: =+SUM(F22,F33,F44) -> 5826616.561 | G21: 5838303.767 | H21: 5826678.241 | I21: 5826692.66 | J21: 5826551.779 | L21: 381393.3729 | M21: 340186.4931 | N21: 352630.7279 | O21: 348640.7153 | P21: 316829.7303 | Q21: 359731.2148 | R21: 415797.5816 | S21: 468744.0079 | T21: 465287.9686 | U21: 492831.2487 | V21: 485619.4796 | W21: 415921.6106 | X21: 378897.3729 | Y21: 337786.4931 | Z21: 350134.7279 | AA21: 348640.7153 | AB21: 316829.7303 | AC21: 359731.2148 | AD21: 415557.8726 | AE21: 469133.8957 | AF21: 465287.9686 | AG21: 492831.2487 | AH21: 485619.9436 | AI21: 415921.6106 | AJ21: 378897.3729 | AK21: 337786.4931 | AL21: 349852.091 | AM21: 348923.7446 | AN21: 328184.8634 | AO21: 359555.7412 | AP21: 415797.5816 | AQ21: 469133.8957 | AR21: 464839.6468 | AS21: 493667.3373 | AT21: 485572.0236 | AU21: 415549.6659 | AV21: 379154.721 | AW21: 337786.4931 | AX21: 349852.091 | AY21: 348923.7446 | AZ21: 316829.7303 | BA21: 359555.7412 | BB21: 415797.5816 | BC21: 469133.8957 | BD21: 464839.6468 | BE21: 493668.1693 | BF21: 482840.4867 | BG21: 415921.6106 | BH21: 379154.721 | BI21: 337499.8658 | BJ21: 350134.7279 | BK21: 348923.7446 | BL21: 316829.7303 | BM21: 359555.7412 | BN21: 415797.5816 | BO21: 468744.0079 | BP21: 465287.9686 | BQ21: 493669.0013 | BR21: 482847.5587 | BS21: 415921.6106 | BT21: 379154.721 | BU21: 337499.8658 | BV21: 350134.7279 | BW21: 348640.7153 | BX21: 316829.7303 | BY21: 359731.2148 | BZ21: 415797.5816 | CA21: 468744.0079 | CB21: 465287.9686 | CC21: 493669.8333 | CD21: 484129.9873 | CE21: 415921.6106 | CG21: 60846.25188 | CH21: 9079.73191 | CI21: 8733.37596 | CJ21: 6309.824652 | CK21: 10245.1154 | CL21: 30947.18542 | CM21: 87569.5271 | CN21: 135368.2619 | CO21: 155059.6314 | CP21: 184954.1564 | CQ21: 182226.4991 | CR21: 124915.3047 | CS21: 58878.25188 | CT21: 7153.73191 | CU21: 6766.12596 | CV21: 6309.824652 | CW21: 10245.1154 | CX21: 30947.18542 | CY21: 87809.23603 | CZ21: 134978.3761 | DA21: 155059.6314 | DB21: 184954.1564 | DC21: 182226.8271 | DD21: 124915.3047 | DE21: 58878.25188 | DF21: 7153.73191 | DG21: 6936.75486 | DH21: 6138.804366 | DI21: 10587.17046 | DJ21: 31122.65908 | DK21: 87569.5271 | DL21: 134978.3761 | DM21: 155507.9542 | DN21: 184190.2348 | DO21: 182192.5951 | DP21: 125287.2504 | DQ21: 58620.90369 | DR21: 7153.73191 | DS21: 6936.75486 | DT21: 6138.804366 | DU21: 10245.1154 | DV21: 31122.65908 | DW21: 87569.5271 | DX21: 134978.3761 | DY21: 155507.9542 | DZ21: 184190.8908 | EA21: 184994.3069 | EB21: 124915.3047 | EC21: 58620.90369 | ED21: 7328.373132 | EE21: 6766.12596 | EF21: 6138.804366 | EG21: 10245.1154 | EH21: 31122.65908 | EI21: 87569.5271 | EJ21: 135368.2619 | EK21: 155059.6314 | EL21: 184191.5468 | EM21: 185000.1469 | EN21: 124915.3047 | EO21: 58620.90369 | EP21: 7328.373132 | EQ21: 6766.12596 | ER21: 6309.824652 | ES21: 10245.1154 | ET21: 30947.18542 | EU21: 87569.5271 | EV21: 135368.2619 | EW21: 155059.6314 | EX21: 184192.2028 | EY21: 183687.3583 | EZ21: 124915.3047
B22: Intraregional Transfer | D22: FPS_IRT | E22: =+SUM(E23:E32) -> 98426.04389 | F22: =+SUM(F23:F32) -> 98426.04389 | G22: 98675.2651 | H22: 98426.04384 | I22: 98426.04384 | J22: 98426.04384 | L22: 4740.994876 | M22: 4298.672055 | N22: 4524.395889 | O22: 4337.103297 | P22: 4054.858291 | Q22: 4636.124813 | R22: 4510.176553 | S22: 5110.827863 | T22: 5308.096586 | U22: 4835.715728 | V22: 5081.524575 | W22: 4358.384568 | X22: 4740.994876 | Y22: 4298.672055 | Z22: 4524.395889 | AA22: 4337.103297 | AB22: 4054.858291 | AC22: 4636.124813 | AD22: 4348.030629 | AE22: 5301.976663 | AF22: 5308.096586 | AG22: 4835.715728 | AH22: 5081.524575 | AI22: 4358.384568 | AJ22: 4740.994876 | AK22: 4298.672055 | AL22: 4360.04499 | AM22: 4501.264582 | AN22: 4222.56745 | AO22: 4475.460159 | AP22: 4510.176553 | AQ22: 5301.976663 | AR22: 5116.947786 | AS22: 5019.728285 | AT22: 5081.524575 | AU22: 4190.470908 | AV22: 4918.364029 | AW22: 4298.672055 | AX22: 4360.04499 | AY22: 4501.264582 | AZ22: 4054.858291 | BA22: 4475.460159 | BB22: 4510.176553 | BC22: 5301.976663 | BD22: 5116.947786 | BE22: 5019.728285 | BF22: 4902.656708 | BG22: 4358.384568 | BH22: 4918.364029 | BI22: 4134.151832 | BJ22: 4524.395889 | BK22: 4501.264582 | BL22: 4054.858291 | BM22: 4475.460159 | BN22: 4510.176553 | BO22: 5110.827863 | BP22: 5308.096586 | BQ22: 5019.728285 | BR22: 4902.656708 | BS22: 4358.384568 | BT22: 4918.364029 | BU22: 4134.151832 | BV22: 4524.395889 | BW22: 4337.103297 | BX22: 4054.858291 | BY22: 4636.124813 | BZ22: 4510.176553 | CA22: 5110.827863 | CB22: 5308.096586 | CC22: 5019.728285 | CD22: 4899.021324 | CE22: 4358.384568 | CG22: 3695.907883 | CH22: 3316.937909 | CI22: 3413.71496 | CJ22: 3563.372651 | CK22: 2923.335398 | CL22: 3212.042423 | CM22: 3207.960103 | CN22: 4304.763887 | CO22: 3820.016414 | CP22: 4093.485368 | CQ22: 3624.478055 | CR22: 3453.153739 | CS22: 3695.907883 | CT22: 3316.937909 | CU22: 3413.71496 | CV22: 3563.372651 | CW22: 2923.335398 | CX22: 3212.042423 | CY22: 3370.106027 | CZ22: 4113.615087 | DA22: 3820.016414 | DB22: 4093.485368 | DC22: 3624.478055 | DD22: 3453.153739 | DE22: 3695.907883 | DF22: 3316.937909 | DG22: 3578.06586 | DH22: 3399.211366 | DI22: 3004.847457 | DJ22: 3372.707076 | DK22: 3207.960103 | DL22: 4113.615087 | DM22: 4011.165214 | DN22: 3909.472811 | DO22: 3624.478055 | DP22: 3621.067397 | DQ22: 3518.538686 | DR22: 3316.937909 | DS22: 3578.06586 | DT22: 3399.211366 | DU22: 2923.335398 | DV22: 3372.707076 | DW22: 3207.960103 | DX22: 4113.615087 | DY22: 4011.165214 | DZ22: 3909.472811 | EA22: 3803.345922 | EB22: 3453.153739 | EC22: 3518.538686 | ED22: 3481.458132 | EE22: 3413.71496 | EF22: 3399.211366 | EG22: 2923.335398 | EH22: 3372.707076 | EI22: 3207.960103 | EJ22: 4304.763887 | EK22: 3820.016414 | EL22: 3909.472811 | EM22: 3803.345922 | EN22: 3453.153739 | EO22: 3518.538686 | EP22: 3481.458132 | EQ22: 3413.71496 | ER22: 3563.372651 | ES22: 2923.335398 | ET22: 3212.042423 | EU22: 3207.960103 | EV22: 4304.763887 | EW22: 3820.016414 | EX22: 3909.472811 | EY22: 3806.981305 | EZ22: 3453.153739
C23: WNP#3 Settlement | D23: FPS_IRT_WNP | E23: 0 | F23: 0 | G23: 0 | H23: 0 | I23: 0 | J23: 0 | L23: 0 | M23: 0 | N23: 0 | O23: 0 | P23: 0 | Q23: 0 | R23: 0 | S23: 0 | T23: 0 | U23: 0 | V23: 0 | W23: 0 | X23: 0 | Y23: 0 | Z23: 0 | AA23: 0 | AB23: 0 | AC23: 0 | AD23: 0 | AE23: 0 | AF23: 0 | AG23: 0 | AH23: 0 | AI23: 0 | AJ23: 0 | AK23: 0 | AL23: 0 | AM23: 0 | AN23: 0 | AO23: 0 | AP23: 0 | AQ23: 0 | AR23: 0 | AS23: 0 | AT23: 0 | AU23: 0 | AV23: 0 | AW23: 0 | AX23: 0 | AY23: 0 | AZ23: 0 | BA23: 0 | BB23: 0 | BC23: 0 | BD23: 0 | BE23: 0 | BF23: 0 | BG23: 0 | BH23: 0 | BI23: 0 | BJ23: 0 | BK23: 0 | BL23: 0 | BM23: 0 | BN23: 0 | BO23: 0 | BP23: 0 | BQ23: 0 | BR23: 0 | BS23: 0 | BT23: 0 | BU23: 0 | BV23: 0 | BW23: 0 | BX23: 0 | BY23: 0 | BZ23: 0 | CA23: 0 | CB23: 0 | CC23: 0 | CD23: 0 | CE23: 0 | CG23: 0 | CH23: 0 | CI23: 0 | CJ23: 0 | CK23: 0 | CL23: 0 | CM23: 0 | CN23: 0 | CO23: 0 | CP23: 0 | CQ23: 0 | CR23: 0 | CS23: 0 | CT23: 0 | CU23: 0 | CV23: 0 | CW23: 0 | CX23: 0 | CY23: 0 | CZ23: 0 | DA23: 0 | DB23: 0 | DC23: 0 | DD23: 0 | DE23: 0 | DF23: 0 | DG23: 0 | DH23: 0 | DI23: 0 | DJ23: 0 | DK23: 0 | DL23: 0 | DM23: 0 | DN23: 0 | DO23: 0 | DP23: 0 | DQ23: 0 | DR23: 0 | DS23: 0 | DT23: 0 | DU23: 0 | DV23: 0 | DW23: 0 | DX23: 0 | DY23: 0 | DZ23: 0 | EA23: 0 | EB23: 0 | EC23: 0 | ED23: 0 | EE23: 0 | EF23: 0 | EG23: 0 | EH23: 0 | EI23: 0 | EJ23: 0 | EK23: 0 | EL23: 0 | EM23: 0 | EN23: 0 | EO23: 0 | EP23: 0 | EQ23: 0 | ER23: 0 | ES23: 0 | ET23: 0 | EU23: 0 | EV23: 0 | EW23: 0 | EX23: 0 | EY23: 0 | EZ23: 0
C24: Dittmer Station Service | D24: FPS_IRT_DIT | E24: 82668.12 | F24: 82668.12 | G24: 82894.608 | H24: 82668.12 | I24: 82668.12 | J24: 82668.12 | L24: 3925.792 | M24: 3774.8 | N24: 3925.792 | O24: 3774.8 | P24: 3623.808 | Q24: 4076.784 | R24: 3925.792 | S24: 3774.8 | T24: 3925.792 | U24: 3774.8 | V24: 4076.784 | W24: 3774.8 | X24: 3925.792 | Y24: 3774.8 | Z24: 3925.792 | AA24: 3774.8 | AB24: 3623.808 | AC24: 4076.784 | AD24: 3774.8 | AE24: 3925.792 | AF24: 3925.792 | AG24: 3774.8 | AH24: 4076.784 | AI24: 3774.8 | AJ24: 3925.792 | AK24: 3774.8 | AL24: 3774.8 | AM24: 3925.792 | AN24: 3774.8 | AO24: 3925.792 | AP24: 3925.792 | AQ24: 3925.792 | AR24: 3774.8 | AS24: 3925.792 | AT24: 4076.784 | AU24: 3623.808 | AV24: 4076.784 | AW24: 3774.8 | AX24: 3774.8 | AY24: 3925.792 | AZ24: 3623.808 | BA24: 3925.792 | BB24: 3925.792 | BC24: 3925.792 | BD24: 3774.8 | BE24: 3925.792 | BF24: 3925.792 | BG24: 3774.8 | BH24: 4076.784 | BI24: 3623.808 | BJ24: 3925.792 | BK24: 3925.792 | BL24: 3623.808 | BM24: 3925.792 | BN24: 3925.792 | BO24: 3774.8 | BP24: 3925.792 | BQ24: 3925.792 | BR24: 3925.792 | BS24: 3774.8 | BT24: 4076.784 | BU24: 3623.808 | BV24: 3925.792 | BW24: 3774.8 | BX24: 3623.808 | BY24: 4076.784 | BZ24: 3925.792 | CA24: 3774.8 | CB24: 3925.792 | CC24: 3925.792 | CD24: 3925.792 | CE24: 3774.8 | CG24: 3095.336 | CH24: 3029.277 | CI24: 3095.336 | CJ24: 3246.328 | CK24: 2717.856 | CL24: 2934.907 | CM24: 2868.848 | CN24: 3246.328 | CO24: 2868.848 | CP24: 3246.328 | CQ24: 2944.344 | CR24: 3019.84 | CS24: 3095.336 | CT24: 3029.277 | CU24: 3095.336 | CV24: 3246.328 | CW24: 2717.856 | CX24: 2934.907 | CY24: 3019.84 | CZ24: 3095.336 | DA24: 2868.848 | DB24: 3246.328 | DC24: 2944.344 | DD24: 3019.84 | DE24: 3095.336 | DF24: 3029.277 | DG24: 3246.328 | DH24: 3095.336 | DI24: 2793.352 | DJ24: 3085.899 | DK24: 2868.848 | DL24: 3095.336 | DM24: 3019.84 | DN24: 3095.336 | DO24: 2944.344 | DP24: 3170.832 | DQ24: 2944.344 | DR24: 3029.277 | DS24: 3246.328 | DT24: 3095.336 | DU24: 2717.856 | DV24: 3085.899 | DW24: 2868.848 | DX24: 3095.336 | DY24: 3019.84 | DZ24: 3095.336 | EA24: 3095.336 | EB24: 3019.84 | EC24: 2944.344 | ED24: 3180.269 | EE24: 3095.336 | EF24: 3095.336 | EG24: 2717.856 | EH24: 3085.899 | EI24: 2868.848 | EJ24: 3246.328 | EK24: 2868.848 | EL24: 3095.336 | EM24: 3095.336 | EN24: 3019.84 | EO24: 2944.344 | EP24: 3180.269 | EQ24: 3095.336 | ER24: 3246.328 | ES24: 2717.856 | ET24: 2934.907 | EU24: 2868.848 | EV24: 3246.328 | EW24: 2868.848 | EX24: 3095.336 | EY24: 3095.336 | EZ24: 3019.84
C25: Transfer Gen Losses | D25: FPS_IRT_TGL | E25: 15757.92389 | F25: 15757.92389 | G25: 15780.6571 | H25: 15757.92384 | I25: 15757.92384 | J25: 15757.92384 | L25: 815.2028765 | M25: 523.872055 | N25: 598.6038895 | O25: 562.303297 | P25: 431.0502915 | Q25: 559.3408125 | R25: 584.3845535 | S25: 1336.027863 | T25: 1382.304586 | U25: 1060.915728 | V25: 1004.740575 | W25: 583.5845675 | X25: 815.2028765 | Y25: 523.872055 | Z25: 598.6038895 | AA25: 562.303297 | AB25: 431.0502915 | AC25: 559.3408125 | AD25: 573.2306285 | AE25: 1376.184663 | AF25: 1382.304586 | AG25: 1060.915728 | AH25: 1004.740575 | AI25: 583.5845675 | AJ25: 815.2028765 | AK25: 523.872055 | AL25: 585.2449895 | AM25: 575.4725825 | AN25: 447.76745 | AO25: 549.668159 | AP25: 584.3845535 | AQ25: 1376.184663 | AR25: 1342.147786 | AS25: 1093.936285 | AT25: 1004.740575 | AU25: 566.6629085 | AV25: 841.580029 | AW25: 523.872055 | AX25: 585.2449895 | AY25: 575.4725825 | AZ25: 431.0502915 | BA25: 549.668159 | BB25: 584.3845535 | BC25: 1376.184663 | BD25: 1342.147786 | BE25: 1093.936285 | BF25: 976.8647075 | BG25: 583.5845675 | BH25: 841.580029 | BI25: 510.3438325 | BJ25: 598.6038895 | BK25: 575.4725825 | BL25: 431.0502915 | BM25: 549.668159 | BN25: 584.3845535 | BO25: 1336.027863 | BP25: 1382.304586 | BQ25: 1093.936285 | BR25: 976.8647075 | BS25: 583.5845675 | BT25: 841.580029 | BU25: 510.3438325 | BV25: 598.6038895 | BW25: 562.303297 | BX25: 431.0502915 | BY25: 559.3408125 | BZ25: 584.3845535 | CA25: 1336.027863 | CB25: 1382.304586 | CC25: 1093.936285 | CD25: 973.2293245 | CE25: 583.5845675 | CG25: 600.571883 | CH25: 287.6609095 | CI25: 318.3789605 | CJ25: 317.0446515 | CK25: 205.479398 | CL25: 277.1354225 | CM25: 339.1121025 | CN25: 1058.435887 | CO25: 951.168414 | CP25: 847.1573685 | CQ25: 680.1340545 | CR25: 433.3137385 | CS25: 600.571883 | CT25: 287.6609095 | CU25: 318.3789605 | CV25: 317.0446515 | CW25: 205.479398 | CX25: 277.1354225 | CY25: 350.2660275 | CZ25: 1018.279087 | DA25: 951.168414 | DB25: 847.1573685 | DC25: 680.1340545 | DD25: 433.3137385 | DE25: 600.571883 | DF25: 287.6609095 | DG25: 331.7378605 | DH25: 303.875366 | DI25: 211.495457 | DJ25: 286.808076 | DK25: 339.1121025 | DL25: 1018.279087 | DM25: 991.325214 | DN25: 814.136811 | DO25: 680.1340545 | DP25: 450.2353975 | DQ25: 574.194686 | DR25: 287.6609095 | DS25: 331.7378605 | DT25: 303.875366 | DU25: 205.479398 | DV25: 286.808076 | DW25: 339.1121025 | DX25: 1018.279087 | DY25: 991.325214 | DZ25: 814.136811 | EA25: 708.0099225 | EB25: 433.3137385 | EC25: 574.194686 | ED25: 301.189132 | EE25: 318.3789605 | EF25: 303.875366 | EG25: 205.479398 | EH25: 286.808076 | EI25: 339.1121025 | EJ25: 1058.435887 | EK25: 951.168414 | EL25: 814.136811 | EM25: 708.0099225 | EN25: 433.3137385 | EO25: 574.194686 | EP25: 301.189132 | EQ25: 318.3789605 | ER25: 317.0446515 | ES25: 205.479398 | ET25: 277.1354225 | EU25: 339.1121025 | EV25: 1058.435887 | EW25: 951.168414 | EX25: 814.136811 | EY25: 711.6453055 | EZ25: 433.3137385
E26: 0 | F26: 0 | G26: 0 | H26: 0 | I26: 0 | J26: 0 | L26: 0 | M26: 0 | N26: 0 | O26: 0 | P26: 0 | Q26: 0 | R26: 0 | S26: 0 | T26: 0 | U26: 0 | V26: 0 | W26: 0 | X26: 0 | Y26: 0 | Z26: 0 | AA26: 0 | AB26: 0 | AC26: 0 | AD26: 0 | AE26: 0 | AF26: 0 | AG26: 0 | AH26: 0 | AI26: 0 | AJ26: 0 | AK26: 0 | AL26: 0 | AM26: 0 | AN26: 0 | AO26: 0 | AP26: 0 | AQ26: 0 | AR26: 0 | AS26: 0 | AT26: 0 | AU26: 0 | AV26: 0 | AW26: 0 | AX26: 0 | AY26: 0 | AZ26: 0 | BA26: 0 | BB26: 0 | BC26: 0 | BD26: 0 | BE26: 0 | BF26: 0 | BG26: 0 | BH26: 0 | BI26: 0 | BJ26: 0 | BK26: 0 | BL26: 0 | BM26: 0 | BN26: 0 | BO26: 0 | BP26: 0 | BQ26: 0 | BR26: 0 | BS26: 0 | BT26: 0 | BU26: 0 | BV26: 0 | BW26: 0 | BX26: 0 | BY26: 0 | BZ26: 0 | CA26: 0 | CB26: 0 | CC26: 0 | CD26: 0 | CE26: 0 | CG26: 0 | CH26: 0 | CI26: 0 | CJ26: 0 | CK26: 0 | CL26: 0 | CM26: 0 | CN26: 0 | CO26: 0 | CP26: 0 | CQ26: 0 | CR26: 0 | CS26: 0 | CT26: 0 | CU26: 0 | CV26: 0 | CW26: 0 | CX26: 0 | CY26: 0 | CZ26: 0 | DA26: 0 | DB26: 0 | DC26: 0 | DD26: 0 | DE26: 0 | DF26: 0 | DG26: 0 | DH26: 0 | DI26: 0 | DJ26: 0 | DK26: 0 | DL26: 0 | DM26: 0 | DN26: 0 | DO26: 0 | DP26: 0 | DQ26: 0 | DR26: 0 | DS26: 0 | DT26: 0 | DU26: 0 | DV26: 0 | DW26: 0 | DX26: 0 | DY26: 0 | DZ26: 0 | EA26: 0 | EB26: 0 | EC26: 0 | ED26: 0 | EE26: 0 | EF26: 0 | EG26: 0 | EH26: 0 | EI26: 0 | EJ26: 0 | EK26: 0 | EL26: 0 | EM26: 0 | EN26: 0 | EO26: 0 | EP26: 0 | EQ26: 0 | ER26: 0 | ES26: 0 | ET26: 0 | EU26: 0 | EV26: 0 | EW26: 0 | EX26: 0 | EY26: 0 | EZ26: 0
E27: 0 | F27: 0 | G27: 0 | H27: 0 | I27: 0 | J27: 0 | L27: 0 | M27: 0 | N27: 0 | O27: 0 | P27: 0 | Q27: 0 | R27: 0 | S27: 0 | T27: 0 | U27: 0 | V27: 0 | W27: 0 | X27: 0 | Y27: 0 | Z27: 0 | AA27: 0 | AB27: 0 | AC27: 0 | AD27: 0 | AE27: 0 | AF27: 0 | AG27: 0 | AH27: 0 | AI27: 0 | AJ27: 0 | AK27: 0 | AL27: 0 | AM27: 0 | AN27: 0 | AO27: 0 | AP27: 0 | AQ27: 0 | AR27: 0 | AS27: 0 | AT27: 0 | AU27: 0 | AV27: 0 | AW27: 0 | AX27: 0 | AY27: 0 | AZ27: 0 | BA27: 0 | BB27: 0 | BC27: 0 | BD27: 0 | BE27: 0 | BF27: 0 | BG27: 0 | BH27: 0 | BI27: 0 | BJ27: 0 | BK27: 0 | BL27: 0 | BM27: 0 | BN27: 0 | BO27: 0 | BP27: 0 | BQ27: 0 | BR27: 0 | BS27: 0 | BT27: 0 | BU27: 0 | BV27: 0 | BW27: 0 | BX27: 0 | BY27: 0 | BZ27: 0 | CA27: 0 | CB27: 0 | CC27: 0 | CD27: 0 | CE27: 0 | CG27: 0 | CH27: 0 | CI27: 0 | CJ27: 0 | CK27: 0 | CL27: 0 | CM27: 0 | CN27: 0 | CO27: 0 | CP27: 0 | CQ27: 0 | CR27: 0 | CS27: 0 | CT27: 0 | CU27: 0 | CV27: 0 | CW27: 0 | CX27: 0 | CY27: 0 | CZ27: 0 | DA27: 0 | DB27: 0 | DC27: 0 | DD27: 0 | DE27: 0 | DF27: 0 | DG27: 0 | DH27: 0 | DI27: 0 | DJ27: 0 | DK27: 0 | DL27: 0 | DM27: 0 | DN27: 0 | DO27: 0 | DP27: 0 | DQ27: 0 | DR27: 0 | DS27: 0 | DT27: 0 | DU27: 0 | DV27: 0 | DW27: 0 | DX27: 0 | DY27: 0 | DZ27: 0 | EA27: 0 | EB27: 0 | EC27: 0 | ED27: 0 | EE27: 0 | EF27: 0 | EG27: 0 | EH27: 0 | EI27: 0 | EJ27: 0 | EK27: 0 | EL27: 0 | EM27: 0 | EN27: 0 | EO27: 0 | EP27: 0 | EQ27: 0 | ER27: 0 | ES27: 0 | ET27: 0 | EU27: 0 | EV27: 0 | EW27: 0 | EX27: 0 | EY27: 0 | EZ27: 0
E28: 0 | F28: 0 | G28: 0 | H28: 0 | I28: 0 | J28: 0 | L28: 0 | M28: 0 | N28: 0 | O28: 0 | P28: 0 | Q28: 0 | R28: 0 | S28: 0 | T28: 0 | U28: 0 | V28: 0 | W28: 0 | X28: 0 | Y28: 0 | Z28: 0 | AA28: 0 | AB28: 0 | AC28: 0 | AD28: 0 | AE28: 0 | AF28: 0 | AG28: 0 | AH28: 0 | AI28: 0 | AJ28: 0 | AK28: 0 | AL28: 0 | AM28: 0 | AN28: 0 | AO28: 0 | AP28: 0 | AQ28: 0 | AR28: 0 | AS28: 0 | AT28: 0 | AU28: 0 | AV28: 0 | AW28: 0 | AX28: 0 | AY28: 0 | AZ28: 0 | BA28: 0 | BB28: 0 | BC28: 0 | BD28: 0 | BE28: 0 | BF28: 0 | BG28: 0 | BH28: 0 | BI28: 0 | BJ28: 0 | BK28: 0 | BL28: 0 | BM28: 0 | BN28: 0 | BO28: 0 | BP28: 0 | BQ28: 0 | BR28: 0 | BS28: 0 | BT28: 0 | BU28: 0 | BV28: 0 | BW28: 0 | BX28: 0 | BY28: 0 | BZ28: 0 | CA28: 0 | CB28: 0 | CC28: 0 | CD28: 0 | CE28: 0 | CG28: 0 | CH28: 0 | CI28: 0 | CJ28: 0 | CK28: 0 | CL28: 0 | CM28: 0 | CN28: 0 | CO28: 0 | CP28: 0 | CQ28: 0 | CR28: 0 | CS28: 0 | CT28: 0 | CU28: 0 | CV28: 0 | CW28: 0 | CX28: 0 | CY28: 0 | CZ28: 0 | DA28: 0 | DB28: 0 | DC28: 0 | DD28: 0 | DE28: 0 | DF28: 0 | DG28: 0 | DH28: 0 | DI28: 0 | DJ28: 0 | DK28: 0 | DL28: 0 | DM28: 0 | DN28: 0 | DO28: 0 | DP28: 0 | DQ28: 0 | DR28: 0 | DS28: 0 | DT28: 0 | DU28: 0 | DV28: 0 | DW28: 0 | DX28: 0 | DY28: 0 | DZ28: 0 | EA28: 0 | EB28: 0 | EC28: 0 | ED28: 0 | EE28: 0 | EF28: 0 | EG28: 0 | EH28: 0 | EI28: 0 | EJ28: 0 | EK28: 0 | EL28: 0 | EM28: 0 | EN28: 0 | EO28: 0 | EP28: 0 | EQ28: 0 | ER28: 0 | ES28: 0 | ET28: 0 | EU28: 0 | EV28: 0 | EW28: 0 | EX28: 0 | EY28: 0 | EZ28: 0
E29: 0 | F29: 0 | G29: 0 | H29: 0 | I29: 0 | J29: 0 | L29: 0 | M29: 0 | N29: 0 | O29: 0 | P29: 0 | Q29: 0 | R29: 0 | S29: 0 | T29: 0 | U29: 0 | V29: 0 | W29: 0 | X29: 0 | Y29: 0 | Z29: 0 | AA29: 0 | AB29: 0 | AC29: 0 | AD29: 0 | AE29: 0 | AF29: 0 | AG29: 0 | AH29: 0 | AI29: 0 | AJ29: 0 | AK29: 0 | AL29: 0 | AM29: 0 | AN29: 0 | AO29: 0 | AP29: 0 | AQ29: 0 | AR29: 0 | AS29: 0 | AT29: 0 | AU29: 0 | AV29: 0 | AW29: 0 | AX29: 0 | AY29: 0 | AZ29: 0 | BA29: 0 | BB29: 0 | BC29: 0 | BD29: 0 | BE29: 0 | BF29: 0 | BG29: 0 | BH29: 0 | BI29: 0 | BJ29: 0 | BK29: 0 | BL29: 0 | BM29: 0 | BN29: 0 | BO29: 0 | BP29: 0 | BQ29: 0 | BR29: 0 | BS29: 0 | BT29: 0 | BU29: 0 | BV29: 0 | BW29: 0 | BX29: 0 | BY29: 0 | BZ29: 0 | CA29: 0 | CB29: 0 | CC29: 0 | CD29: 0 | CE29: 0 | CG29: 0 | CH29: 0 | CI29: 0 | CJ29: 0 | CK29: 0 | CL29: 0 | CM29: 0 | CN29: 0 | CO29: 0 | CP29: 0 | CQ29: 0 | CR29: 0 | CS29: 0 | CT29: 0 | CU29: 0 | CV29: 0 | CW29: 0 | CX29: 0 | CY29: 0 | CZ29: 0 | DA29: 0 | DB29: 0 | DC29: 0 | DD29: 0 | DE29: 0 | DF29: 0 | DG29: 0 | DH29: 0 | DI29: 0 | DJ29: 0 | DK29: 0 | DL29: 0 | DM29: 0 | DN29: 0 | DO29: 0 | DP29: 0 | DQ29: 0 | DR29: 0 | DS29: 0 | DT29: 0 | DU29: 0 | DV29: 0 | DW29: 0 | DX29: 0 | DY29: 0 | DZ29: 0 | EA29: 0 | EB29: 0 | EC29: 0 | ED29: 0 | EE29: 0 | EF29: 0 | EG29: 0 | EH29: 0 | EI29: 0 | EJ29: 0 | EK29: 0 | EL29: 0 | EM29: 0 | EN29: 0 | EO29: 0 | EP29: 0 | EQ29: 0 | ER29: 0 | ES29: 0 | ET29: 0 | EU29: 0 | EV29: 0 | EW29: 0 | EX29: 0 | EY29: 0 | EZ29: 0
E30: 0 | F30: 0 | G30: 0 | H30: 0 | I30: 0 | J30: 0 | L30: 0 | M30: 0 | N30: 0 | O30: 0 | P30: 0 | Q30: 0 | R30: 0 | S30: 0 | T30: 0 | U30: 0 | V30: 0 | W30: 0 | X30: 0 | Y30: 0 | Z30: 0 | AA30: 0 | AB30: 0 | AC30: 0 | AD30: 0 | AE30: 0 | AF30: 0 | AG30: 0 | AH30: 0 | AI30: 0 | AJ30: 0 | AK30: 0 | AL30: 0 | AM30: 0 | AN30: 0 | AO30: 0 | AP30: 0 | AQ30: 0 | AR30: 0 | AS30: 0 | AT30: 0 | AU30: 0 | AV30: 0 | AW30: 0 | AX30: 0 | AY30: 0 | AZ30: 0 | BA30: 0 | BB30: 0 | BC30: 0 | BD30: 0 | BE30: 0 | BF30: 0 | BG30: 0 | BH30: 0 | BI30: 0 | BJ30: 0 | BK30: 0 | BL30: 0 | BM30: 0 | BN30: 0 | BO30: 0 | BP30: 0 | BQ30: 0 | BR30: 0 | BS30: 0 | BT30: 0 | BU30: 0 | BV30: 0 | BW30: 0 | BX30: 0 | BY30: 0 | BZ30: 0 | CA30: 0 | CB30: 0 | CC30: 0 | CD30: 0 | CE30: 0 | CG30: 0 | CH30: 0 | CI30: 0 | CJ30: 0 | CK30: 0 | CL30: 0 | CM30: 0 | CN30: 0 | CO30: 0 | CP30: 0 | CQ30: 0 | CR30: 0 | CS30: 0 | CT30: 0 | CU30: 0 | CV30: 0 | CW30: 0 | CX30: 0 | CY30: 0 | CZ30: 0 | DA30: 0 | DB30: 0 | DC30: 0 | DD30: 0 | DE30: 0 | DF30: 0 | DG30: 0 | DH30: 0 | DI30: 0 | DJ30: 0 | DK30: 0 | DL30: 0 | DM30: 0 | DN30: 0 | DO30: 0 | DP30: 0 | DQ30: 0 | DR30: 0 | DS30: 0 | DT30: 0 | DU30: 0 | DV30: 0 | DW30: 0 | DX30: 0 | DY30: 0 | DZ30: 0 | EA30: 0 | EB30: 0 | EC30: 0 | ED30: 0 | EE30: 0 | EF30: 0 | EG30: 0 | EH30: 0 | EI30: 0 | EJ30: 0 | EK30: 0 | EL30: 0 | EM30: 0 | EN30: 0 | EO30: 0 | EP30: 0 | EQ30: 0 | ER30: 0 | ES30: 0 | ET30: 0 | EU30: 0 | EV30: 0 | EW30: 0 | EX30: 0 | EY30: 0 | EZ30: 0
E31: 0 | F31: 0 | G31: 0 | H31: 0 | I31: 0 | J31: 0 | L31: 0 | M31: 0 | N31: 0 | O31: 0 | P31: 0 | Q31: 0 | R31: 0 | S31: 0 | T31: 0 | U31: 0 | V31: 0 | W31: 0 | X31: 0 | Y31: 0 | Z31: 0 | AA31: 0 | AB31: 0 | AC31: 0 | AD31: 0 | AE31: 0 | AF31: 0 | AG31: 0 | AH31: 0 | AI31: 0 | AJ31: 0 | AK31: 0 | AL31: 0 | AM31: 0 | AN31: 0 | AO31: 0 | AP31: 0 | AQ31: 0 | AR31: 0 | AS31: 0 | AT31: 0 | AU31: 0 | AV31: 0 | AW31: 0 | AX31: 0 | AY31: 0 | AZ31: 0 | BA31: 0 | BB31: 0 | BC31: 0 | BD31: 0 | BE31: 0 | BF31: 0 | BG31: 0 | BH31: 0 | BI31: 0 | BJ31: 0 | BK31: 0 | BL31: 0 | BM31: 0 | BN31: 0 | BO31: 0 | BP31: 0 | BQ31: 0 | BR31: 0 | BS31: 0 | BT31: 0 | BU31: 0 | BV31: 0 | BW31: 0 | BX31: 0 | BY31: 0 | BZ31: 0 | CA31: 0 | CB31: 0 | CC31: 0 | CD31: 0 | CE31: 0 | CG31: 0 | CH31: 0 | CI31: 0 | CJ31: 0 | CK31: 0 | CL31: 0 | CM31: 0 | CN31: 0 | CO31: 0 | CP31: 0 | CQ31: 0 | CR31: 0 | CS31: 0 | CT31: 0 | CU31: 0 | CV31: 0 | CW31: 0 | CX31: 0 | CY31: 0 | CZ31: 0 | DA31: 0 | DB31: 0 | DC31: 0 | DD31: 0 | DE31: 0 | DF31: 0 | DG31: 0 | DH31: 0 | DI31: 0 | DJ31: 0 | DK31: 0 | DL31: 0 | DM31: 0 | DN31: 0 | DO31: 0 | DP31: 0 | DQ31: 0 | DR31: 0 | DS31: 0 | DT31: 0 | DU31: 0 | DV31: 0 | DW31: 0 | DX31: 0 | DY31: 0 | DZ31: 0 | EA31: 0 | EB31: 0 | EC31: 0 | ED31: 0 | EE31: 0 | EF31: 0 | EG31: 0 | EH31: 0 | EI31: 0 | EJ31: 0 | EK31: 0 | EL31: 0 | EM31: 0 | EN31: 0 | EO31: 0 | EP31: 0 | EQ31: 0 | ER31: 0 | ES31: 0 | ET31: 0 | EU31: 0 | EV31: 0 | EW31: 0 | EX31: 0 | EY31: 0 | EZ31: 0
E32: 0 | F32: 0 | G32: 0 | H32: 0 | I32: 0 | J32: 0 | L32: 0 | M32: 0 | N32: 0 | O32: 0 | P32: 0 | Q32: 0 | R32: 0 | S32: 0 | T32: 0 | U32: 0 | V32: 0 | W32: 0 | X32: 0 | Y32: 0 | Z32: 0 | AA32: 0 | AB32: 0 | AC32: 0 | AD32: 0 | AE32: 0 | AF32: 0 | AG32: 0 | AH32: 0 | AI32: 0 | AJ32: 0 | AK32: 0 | AL32: 0 | AM32: 0 | AN32: 0 | AO32: 0 | AP32: 0 | AQ32: 0 | AR32: 0 | AS32: 0 | AT32: 0 | AU32: 0 | AV32: 0 | AW32: 0 | AX32: 0 | AY32: 0 | AZ32: 0 | BA32: 0 | BB32: 0 | BC32: 0 | BD32: 0 | BE32: 0 | BF32: 0 | BG32: 0 | BH32: 0 | BI32: 0 | BJ32: 0 | BK32: 0 | BL32: 0 | BM32: 0 | BN32: 0 | BO32: 0 | BP32: 0 | BQ32: 0 | BR32: 0 | BS32: 0 | BT32: 0 | BU32: 0 | BV32: 0 | BW32: 0 | BX32: 0 | BY32: 0 | BZ32: 0 | CA32: 0 | CB32: 0 | CC32: 0 | CD32: 0 | CE32: 0 | CG32: 0 | CH32: 0 | CI32: 0 | CJ32: 0 | CK32: 0 | CL32: 0 | CM32: 0 | CN32: 0 | CO32: 0 | CP32: 0 | CQ32: 0 | CR32: 0 | CS32: 0 | CT32: 0 | CU32: 0 | CV32: 0 | CW32: 0 | CX32: 0 | CY32: 0 | CZ32: 0 | DA32: 0 | DB32: 0 | DC32: 0 | DD32: 0 | DE32: 0 | DF32: 0 | DG32: 0 | DH32: 0 | DI32: 0 | DJ32: 0 | DK32: 0 | DL32: 0 | DM32: 0 | DN32: 0 | DO32: 0 | DP32: 0 | DQ32: 0 | DR32: 0 | DS32: 0 | DT32: 0 | DU32: 0 | DV32: 0 | DW32: 0 | DX32: 0 | DY32: 0 | DZ32: 0 | EA32: 0 | EB32: 0 | EC32: 0 | ED32: 0 | EE32: 0 | EF32: 0 | EG32: 0 | EH32: 0 | EI32: 0 | EJ32: 0 | EK32: 0 | EL32: 0 | EM32: 0 | EN32: 0 | EO32: 0 | EP32: 0 | EQ32: 0 | ER32: 0 | ES32: 0 | ET32: 0 | EU32: 0 | EV32: 0 | EW32: 0 | EX32: 0 | EY32: 0 | EZ32: 0
B33: FBS Obligation | D33: FPS_FBS | E33: =+SUM(E34:E43) -> 5728189.723 | F33: =+SUM(F34:F43) -> 5728190.517 | G33: 5739628.502 | H33: 5728252.197 | I33: 5728266.616 | J33: 5728125.735 | L33: 374156.378 | M33: 333487.821 | N33: 345610.332 | O33: 344303.612 | P33: 312774.872 | Q33: 355095.09 | R33: 411287.405 | S33: 463633.18 | T33: 459979.872 | U33: 487995.533 | V33: 480537.955 | W33: 411563.226 | X33: 374156.378 | Y33: 333487.821 | Z33: 345610.332 | AA33: 344303.612 | AB33: 312774.872 | AC33: 355095.09 | AD33: 411209.842 | AE33: 463831.919 | AF33: 459979.872 | AG33: 487995.533 | AH33: 480538.419 | AI33: 411563.226 | AJ33: 374156.378 | AK33: 333487.821 | AL33: 345492.046 | AM33: 344422.48 | AN33: 323962.296 | AO33: 355080.281 | AP33: 411287.405 | AQ33: 463831.919 | AR33: 459722.699 | AS33: 488647.609 | AT33: 480490.499 | AU33: 411359.195 | AV33: 374236.357 | AW33: 333487.821 | AX33: 345492.046 | AY33: 344422.48 | AZ33: 312774.872 | BA33: 355080.281 | BB33: 411287.405 | BC33: 463831.919 | BD33: 459722.699 | BE33: 488648.441 | BF33: 477937.83 | BG33: 411563.226 | BH33: 374236.357 | BI33: 333365.714 | BJ33: 345610.332 | BK33: 344422.48 | BL33: 312774.872 | BM33: 355080.281 | BN33: 411287.405 | BO33: 463633.18 | BP33: 459979.872 | BQ33: 488649.273 | BR33: 477944.902 | BS33: 411563.226 | BT33: 374236.357 | BU33: 333365.714 | BV33: 345610.332 | BW33: 344303.612 | BX33: 312774.872 | BY33: 355095.09 | BZ33: 411287.405 | CA33: 463633.18 | CB33: 459979.872 | CC33: 488650.105 | CD33: 479230.966 | CE33: 411563.226 | CG33: 55182.344 | CH33: 3836.794 | CI33: 3352.411 | CJ33: 2746.452 | CK33: 7321.78 | CL33: 27735.143 | CM33: 84361.567 | CN33: 131063.498 | CO33: 151239.615 | CP33: 180860.671 | CQ33: 178602.021 | CR33: 121462.151 | CS33: 55182.344 | CT33: 3836.794 | CU33: 3352.411 | CV33: 2746.452 | CW33: 7321.78 | CX33: 27735.143 | CY33: 84439.13 | CZ33: 130864.761 | DA33: 151239.615 | DB33: 180860.671 | DC33: 178602.349 | DD33: 121462.151 | DE33: 55182.344 | DF33: 3836.794 | DG33: 3358.689 | DH33: 2739.593 | DI33: 7582.323 | DJ33: 27749.952 | DK33: 84361.567 | DL33: 130864.761 | DM33: 151496.789 | DN33: 180280.762 | DO33: 178568.117 | DP33: 121666.183 | DQ33: 55102.365 | DR33: 3836.794 | DS33: 3358.689 | DT33: 2739.593 | DU33: 7321.78 | DV33: 27749.952 | DW33: 84361.567 | DX33: 130864.761 | DY33: 151496.789 | DZ33: 180281.418 | EA33: 181190.961 | EB33: 121462.151 | EC33: 55102.365 | ED33: 3846.915 | EE33: 3352.411 | EF33: 2739.593 | EG33: 7321.78 | EH33: 27749.952 | EI33: 84361.567 | EJ33: 131063.498 | EK33: 151239.615 | EL33: 180282.074 | EM33: 181196.801 | EN33: 121462.151 | EO33: 55102.365 | EP33: 3846.915 | EQ33: 3352.411 | ER33: 2746.452 | ES33: 7321.78 | ET33: 27735.143 | EU33: 84361.567 | EV33: 131063.498 | EW33: 151239.615 | EX33: 180282.73 | EY33: 179880.377 | EZ33: 121462.151
C34: Canadian Entitlement | D34: FPS_FBS_CDN | E34: 3979668 | F34: 3979668 | G34: 3990571.2 | H34: 3979668 | I34: 3979668 | J34: 3979668 | L34: 337999.2 | M34: 327550.3 | N34: 337999.2 | O34: 337999.2 | P34: 305289.6 | Q34: 337544.9 | R34: 327096 | S34: 337999.2 | T34: 327096 | U34: 337999.2 | V34: 337999.2 | W34: 327096 | X34: 337999.2 | Y34: 327550.3 | Z34: 337999.2 | AA34: 337999.2 | AB34: 305289.6 | AC34: 337544.9 | AD34: 327096 | AE34: 337999.2 | AF34: 327096 | AG34: 337999.2 | AH34: 337999.2 | AI34: 327096 | AJ34: 337999.2 | AK34: 327550.3 | AL34: 337999.2 | AM34: 337999.2 | AN34: 316192.8 | AO34: 337544.9 | AP34: 327096 | AQ34: 337999.2 | AR34: 327096 | AS34: 337999.2 | AT34: 337999.2 | AU34: 327096 | AV34: 337999.2 | AW34: 327550.3 | AX34: 337999.2 | AY34: 337999.2 | AZ34: 305289.6 | BA34: 337544.9 | BB34: 327096 | BC34: 337999.2 | BD34: 327096 | BE34: 337999.2 | BF34: 337999.2 | BG34: 327096 | BH34: 337999.2 | BI34: 327550.3 | BJ34: 337999.2 | BK34: 337999.2 | BL34: 305289.6 | BM34: 337544.9 | BN34: 327096 | BO34: 337999.2 | BP34: 327096 | BQ34: 337999.2 | BR34: 337999.2 | BS34: 327096 | BT34: 337999.2 | BU34: 327550.3 | BV34: 337999.2 | BW34: 337999.2 | BX34: 305289.6 | BY34: 337544.9 | BZ34: 327096 | CA34: 337999.2 | CB34: 327096 | CC34: 337999.2 | CD34: 337999.2 | CE34: 327096 | CG34: 0 | CH34: 0 | CI34: 0 | CJ34: 0 | CK34: 0 | CL34: 0 | CM34: 0 | CN34: 0 | CO34: 0 | CP34: 0 | CQ34: 0 | CR34: 0 | CS34: 0 | CT34: 0 | CU34: 0 | CV34: 0 | CW34: 0 | CX34: 0 | CY34: 0 | CZ34: 0 | DA34: 0 | DB34: 0 | DC34: 0 | DD34: 0 | DE34: 0 | DF34: 0 | DG34: 0 | DH34: 0 | DI34: 0 | DJ34: 0 | DK34: 0 | DL34: 0 | DM34: 0 | DN34: 0 | DO34: 0 | DP34: 0 | DQ34: 0 | DR34: 0 | DS34: 0 | DT34: 0 | DU34: 0 | DV34: 0 | DW34: 0 | DX34: 0 | DY34: 0 | DZ34: 0 | EA34: 0 | EB34: 0 | EC34: 0 | ED34: 0 | EE34: 0 | EF34: 0 | EG34: 0 | EH34: 0 | EI34: 0 | EJ34: 0 | EK34: 0 | EL34: 0 | EM34: 0 | EN34: 0 | EO34: 0 | EP34: 0 | EQ34: 0 | ER34: 0 | ES34: 0 | ET34: 0 | EU34: 0 | EV34: 0 | EW34: 0 | EX34: 0 | EY34: 0 | EZ34: 0
C35: USBR Pump Load | D35: FPS_FBS_UBR | E35: 1648375.733 | F35: 1648375.735 | G35: 1648808.312 | H35: 1648375.735 | I35: 1648375.731 | J35: 1648375.73 | L35: 36157.178 | M35: 3137.521 | N35: 4699.132 | O35: 3504.412 | P35: 4797.272 | Q35: 17550.19 | R35: 84191.405 | S35: 125633.98 | T35: 132883.872 | U35: 142994.333 | V35: 98386.819 | W35: 84467.226 | X35: 36157.178 | Y35: 3137.521 | Z35: 4699.132 | AA35: 3504.412 | AB35: 4797.272 | AC35: 17550.19 | AD35: 84113.842 | AE35: 125832.719 | AF35: 132883.872 | AG35: 142994.333 | AH35: 98386.819 | AI35: 84467.226 | AJ35: 36157.178 | AK35: 3137.521 | AL35: 4692.846 | AM35: 3511.28 | AN35: 4969.496 | AO35: 17535.381 | AP35: 84191.405 | AQ35: 125832.719 | AR35: 132626.699 | AS35: 143325.977 | AT35: 98386.819 | AU35: 84263.195 | AV35: 36237.157 | AW35: 3137.521 | AX35: 4692.846 | AY35: 3511.28 | AZ35: 4797.272 | BA35: 17535.381 | BB35: 84191.405 | BC35: 125832.719 | BD35: 132626.699 | BE35: 143325.977 | BF35: 98055.958 | BG35: 84467.226 | BH35: 36237.157 | BI35: 3127.414 | BJ35: 4699.132 | BK35: 3511.28 | BL35: 4797.272 | BM35: 17535.381 | BN35: 84191.405 | BO35: 125633.98 | BP35: 132883.872 | BQ35: 143325.977 | BR35: 98055.958 | BS35: 84467.226 | BT35: 36237.157 | BU35: 3127.414 | BV35: 4699.132 | BW35: 3504.412 | BX35: 4797.272 | BY35: 17550.19 | BZ35: 84191.405 | CA35: 125633.98 | CB35: 132883.872 | CC35: 143325.977 | CD35: 98055.958 | CE35: 84467.226 | CG35: 55182.344 | CH35: 3829.732 | CI35: 3345.523 | CJ35: 2739.572 | CK35: 7314.868 | CL35: 27735.143 | CM35: 84361.567 | CN35: 131063.498 | CO35: 151239.615 | CP35: 174838.951 | CQ35: 146859.429 | CR35: 121462.151 | CS35: 55182.344 | CT35: 3829.732 | CU35: 3345.523 | CV35: 2739.572 | CW35: 7314.868 | CX35: 27735.143 | CY35: 84439.13 | CZ35: 130864.761 | DA35: 151239.615 | DB35: 174838.951 | DC35: 146859.429 | DD35: 121462.151 | DE35: 55182.344 | DF35: 3829.732 | DG35: 3351.809 | DH35: 2732.705 | DI35: 7575.219 | DJ35: 27749.952 | DK35: 84361.567 | DL35: 130864.761 | DM35: 151496.789 | DN35: 174507.306 | DO35: 146859.429 | DP35: 121666.183 | DQ35: 55102.365 | DR35: 3829.732 | DS35: 3351.809 | DT35: 2732.705 | DU35: 7314.868 | DV35: 27749.952 | DW35: 84361.567 | DX35: 130864.761 | DY35: 151496.789 | DZ35: 174507.306 | EA35: 147190.289 | EB35: 121462.151 | EC35: 55102.365 | ED35: 3839.838 | EE35: 3345.523 | EF35: 2732.705 | EG35: 7314.868 | EH35: 27749.952 | EI35: 84361.567 | EJ35: 131063.498 | EK35: 151239.615 | EL35: 174507.306 | EM35: 147190.289 | EN35: 121462.151 | EO35: 55102.365 | EP35: 3839.838 | EQ35: 3345.523 | ER35: 2739.572 | ES35: 7314.868 | ET35: 27735.143 | EU35: 84361.567 | EV35: 131063.498 | EW35: 151239.615 | EX35: 174507.306 | EY35: 147190.289 | EZ35: 121462.151
C36: Hungry Horse | D36: FPS_FBS_HH | E36: 0 | F36: 0 | G36: 0 | H36: 0 | I36: 0 | J36: 0 | L36: 0 | M36: 0 | N36: 0 | O36: 0 | P36: 0 | Q36: 0 | R36: 0 | S36: 0 | T36: 0 | U36: 0 | V36: 0 | W36: 0 | X36: 0 | Y36: 0 | Z36: 0 | AA36: 0 | AB36: 0 | AC36: 0 | AD36: 0 | AE36: 0 | AF36: 0 | AG36: 0 | AH36: 0 | AI36: 0 | AJ36: 0 | AK36: 0 | AL36: 0 | AM36: 0 | AN36: 0 | AO36: 0 | AP36: 0 | AQ36: 0 | AR36: 0 | AS36: 0 | AT36: 0 | AU36: 0 | AV36: 0 | AW36: 0 | AX36: 0 | AY36: 0 | AZ36: 0 | BA36: 0 | BB36: 0 | BC36: 0 | BD36: 0 | BE36: 0 | BF36: 0 | BG36: 0 | BH36: 0 | BI36: 0 | BJ36: 0 | BK36: 0 | BL36: 0 | BM36: 0 | BN36: 0 | BO36: 0 | BP36: 0 | BQ36: 0 | BR36: 0 | BS36: 0 | BT36: 0 | BU36: 0 | BV36: 0 | BW36: 0 | BX36: 0 | BY36: 0 | BZ36: 0 | CA36: 0 | CB36: 0 | CC36: 0 | CD36: 0 | CE36: 0 | CG36: 0 | CH36: 0 | CI36: 0 | CJ36: 0 | CK36: 0 | CL36: 0 | CM36: 0 | CN36: 0 | CO36: 0 | CP36: 0 | CQ36: 0 | CR36: 0 | CS36: 0 | CT36: 0 | CU36: 0 | CV36: 0 | CW36: 0 | CX36: 0 | CY36: 0 | CZ36: 0 | DA36: 0 | DB36: 0 | DC36: 0 | DD36: 0 | DE36: 0 | DF36: 0 | DG36: 0 | DH36: 0 | DI36: 0 | DJ36: 0 | DK36: 0 | DL36: 0 | DM36: 0 | DN36: 0 | DO36: 0 | DP36: 0 | DQ36: 0 | DR36: 0 | DS36: 0 | DT36: 0 | DU36: 0 | DV36: 0 | DW36: 0 | DX36: 0 | DY36: 0 | DZ36: 0 | EA36: 0 | EB36: 0 | EC36: 0 | ED36: 0 | EE36: 0 | EF36: 0 | EG36: 0 | EH36: 0 | EI36: 0 | EJ36: 0 | EK36: 0 | EL36: 0 | EM36: 0 | EN36: 0 | EO36: 0 | EP36: 0 | EQ36: 0 | ER36: 0 | ES36: 0 | ET36: 0 | EU36: 0 | EV36: 0 | EW36: 0 | EX36: 0 | EY36: 0 | EZ36: 0
C37: Upper Baker | D37: FPS_FBS_UPB | E37: 11227.742 | F37: 11227.742 | G37: 11339.934 | H37: 11227.742 | I37: 11227.765 | J37: 11115.757 | L37: 0 | M37: 2800 | N37: 2912 | O37: 2800 | P37: 2688 | Q37: 0 | R37: 0 | S37: 0 | T37: 0 | U37: 0 | V37: 0 | W37: 0 | X37: 0 | Y37: 2800 | Z37: 2912 | AA37: 2800 | AB37: 2688 | AC37: 0 | AD37: 0 | AE37: 0 | AF37: 0 | AG37: 0 | AH37: 0 | AI37: 0 | AJ37: 0 | AK37: 2800 | AL37: 2800 | AM37: 2912 | AN37: 2800 | AO37: 0 | AP37: 0 | AQ37: 0 | AR37: 0 | AS37: 0 | AT37: 0 | AU37: 0 | AV37: 0 | AW37: 2800 | AX37: 2800 | AY37: 2912 | AZ37: 2688 | BA37: 0 | BB37: 0 | BC37: 0 | BD37: 0 | BE37: 0 | BF37: 0 | BG37: 0 | BH37: 0 | BI37: 2688 | BJ37: 2912 | BK37: 2912 | BL37: 2688 | BM37: 0 | BN37: 0 | BO37: 0 | BP37: 0 | BQ37: 0 | BR37: 0 | BS37: 0 | BT37: 0 | BU37: 2688 | BV37: 2912 | BW37: 2800 | BX37: 2688 | BY37: 0 | BZ37: 0 | CA37: 0 | CB37: 0 | CC37: 0 | CD37: 0 | CE37: 0 | CG37: 0 | CH37: 7.062 | CI37: 6.888 | CJ37: 6.88 | CK37: 6.912 | CL37: 0 | CM37: 0 | CN37: 0 | CO37: 0 | CP37: 0 | CQ37: 0 | CR37: 0 | CS37: 0 | CT37: 7.062 | CU37: 6.888 | CV37: 6.88 | CW37: 6.912 | CX37: 0 | CY37: 0 | CZ37: 0 | DA37: 0 | DB37: 0 | DC37: 0 | DD37: 0 | DE37: 0 | DF37: 7.062 | DG37: 6.88 | DH37: 6.888 | DI37: 7.104 | DJ37: 0 | DK37: 0 | DL37: 0 | DM37: 0 | DN37: 0 | DO37: 0 | DP37: 0 | DQ37: 0 | DR37: 7.062 | DS37: 6.88 | DT37: 6.888 | DU37: 6.912 | DV37: 0 | DW37: 0 | DX37: 0 | DY37: 0 | DZ37: 0 | EA37: 0 | EB37: 0 | EC37: 0 | ED37: 7.077 | EE37: 6.888 | EF37: 6.888 | EG37: 6.912 | EH37: 0 | EI37: 0 | EJ37: 0 | EK37: 0 | EL37: 0 | EM37: 0 | EN37: 0 | EO37: 0 | EP37: 7.077 | EQ37: 6.888 | ER37: 6.88 | ES37: 6.912 | ET37: 0 | EU37: 0 | EV37: 0 | EW37: 0 | EX37: 0 | EY37: 0 | EZ37: 0
C38: Non-Treaty Storage | D38: FPS_FBS_NTS | E38: 88918.248 | F38: 88919.04 | G38: 88909.056 | H38: 88980.72 | I38: 88995.12 | J38: 88966.248 | L38: 0 | M38: 0 | N38: 0 | O38: 0 | P38: 0 | Q38: 0 | R38: 0 | S38: 0 | T38: 0 | U38: 7002 | V38: 44151.936 | W38: 0 | X38: 0 | Y38: 0 | Z38: 0 | AA38: 0 | AB38: 0 | AC38: 0 | AD38: 0 | AE38: 0 | AF38: 0 | AG38: 7002 | AH38: 44152.4 | AI38: 0 | AJ38: 0 | AK38: 0 | AL38: 0 | AM38: 0 | AN38: 0 | AO38: 0 | AP38: 0 | AQ38: 0 | AR38: 0 | AS38: 7322.432 | AT38: 44104.48 | AU38: 0 | AV38: 0 | AW38: 0 | AX38: 0 | AY38: 0 | AZ38: 0 | BA38: 0 | BB38: 0 | BC38: 0 | BD38: 0 | BE38: 7323.264 | BF38: 41882.672 | BG38: 0 | BH38: 0 | BI38: 0 | BJ38: 0 | BK38: 0 | BL38: 0 | BM38: 0 | BN38: 0 | BO38: 0 | BP38: 0 | BQ38: 7324.096 | BR38: 41889.744 | BS38: 0 | BT38: 0 | BU38: 0 | BV38: 0 | BW38: 0 | BX38: 0 | BY38: 0 | BZ38: 0 | CA38: 0 | CB38: 0 | CC38: 7324.928 | CD38: 43175.808 | CE38: 0 | CG38: 0 | CH38: 0 | CI38: 0 | CJ38: 0 | CK38: 0 | CL38: 0 | CM38: 0 | CN38: 0 | CO38: 0 | CP38: 6021.72 | CQ38: 31742.592 | CR38: 0 | CS38: 0 | CT38: 0 | CU38: 0 | CV38: 0 | CW38: 0 | CX38: 0 | CY38: 0 | CZ38: 0 | DA38: 0 | DB38: 6021.72 | DC38: 31742.92 | DD38: 0 | DE38: 0 | DF38: 0 | DG38: 0 | DH38: 0 | DI38: 0 | DJ38: 0 | DK38: 0 | DL38: 0 | DM38: 0 | DN38: 5773.456 | DO38: 31708.688 | DP38: 0 | DQ38: 0 | DR38: 0 | DS38: 0 | DT38: 0 | DU38: 0 | DV38: 0 | DW38: 0 | DX38: 0 | DY38: 0 | DZ38: 5774.112 | EA38: 34000.672 | EB38: 0 | EC38: 0 | ED38: 0 | EE38: 0 | EF38: 0 | EG38: 0 | EH38: 0 | EI38: 0 | EJ38: 0 | EK38: 0 | EL38: 5774.768 | EM38: 34006.512 | EN38: 0 | EO38: 0 | EP38: 0 | EQ38: 0 | ER38: 0 | ES38: 0 | ET38: 0 | EU38: 0 | EV38: 0 | EW38: 0 | EX38: 5775.424 | EY38: 32690.088 | EZ38: 0
C39: Libby Coordination | D39: FPS_FBS_LCA | E39: 0 | F39: 0 | G39: 0 | H39: 0 | I39: 0 | J39: 0 | L39: 0 | M39: 0 | N39: 0 | O39: 0 | P39: 0 | Q39: 0 | R39: 0 | S39: 0 | T39: 0 | U39: 0 | V39: 0 | W39: 0 | X39: 0 | Y39: 0 | Z39: 0 | AA39: 0 | AB39: 0 | AC39: 0 | AD39: 0 | AE39: 0 | AF39: 0 | AG39: 0 | AH39: 0 | AI39: 0 | AJ39: 0 | AK39: 0 | AL39: 0 | AM39: 0 | AN39: 0 | AO39: 0 | AP39: 0 | AQ39: 0 | AR39: 0 | AS39: 0 | AT39: 0 | AU39: 0 | AV39: 0 | AW39: 0 | AX39: 0 | AY39: 0 | AZ39: 0 | BA39: 0 | BB39: 0 | BC39: 0 | BD39: 0 | BE39: 0 | BF39: 0 | BG39: 0 | BH39: 0 | BI39: 0 | BJ39: 0 | BK39: 0 | BL39: 0 | BM39: 0 | BN39: 0 | BO39: 0 | BP39: 0 | BQ39: 0 | BR39: 0 | BS39: 0 | BT39: 0 | BU39: 0 | BV39: 0 | BW39: 0 | BX39: 0 | BY39: 0 | BZ39: 0 | CA39: 0 | CB39: 0 | CC39: 0 | CD39: 0 | CE39: 0 | CG39: 0 | CH39: 0 | CI39: 0 | CJ39: 0 | CK39: 0 | CL39: 0 | CM39: 0 | CN39: 0 | CO39: 0 | CP39: 0 | CQ39: 0 | CR39: 0 | CS39: 0 | CT39: 0 | CU39: 0 | CV39: 0 | CW39: 0 | CX39: 0 | CY39: 0 | CZ39: 0 | DA39: 0 | DB39: 0 | DC39: 0 | DD39: 0 | DE39: 0 | DF39: 0 | DG39: 0 | DH39: 0 | DI39: 0 | DJ39: 0 | DK39: 0 | DL39: 0 | DM39: 0 | DN39: 0 | DO39: 0 | DP39: 0 | DQ39: 0 | DR39: 0 | DS39: 0 | DT39: 0 | DU39: 0 | DV39: 0 | DW39: 0 | DX39: 0 | DY39: 0 | DZ39: 0 | EA39: 0 | EB39: 0 | EC39: 0 | ED39: 0 | EE39: 0 | EF39: 0 | EG39: 0 | EH39: 0 | EI39: 0 | EJ39: 0 | EK39: 0 | EL39: 0 | EM39: 0 | EN39: 0 | EO39: 0 | EP39: 0 | EQ39: 0 | ER39: 0 | ES39: 0 | ET39: 0 | EU39: 0 | EV39: 0 | EW39: 0 | EX39: 0 | EY39: 0 | EZ39: 0
E40: 0 | F40: 0 | G40: 0 | H40: 0 | I40: 0 | J40: 0 | L40: 0 | M40: 0 | N40: 0 | O40: 0 | P40: 0 | Q40: 0 | R40: 0 | S40: 0 | T40: 0 | U40: 0 | V40: 0 | W40: 0 | X40: 0 | Y40: 0 | Z40: 0 | AA40: 0 | AB40: 0 | AC40: 0 | AD40: 0 | AE40: 0 | AF40: 0 | AG40: 0 | AH40: 0 | AI40: 0 | AJ40: 0 | AK40: 0 | AL40: 0 | AM40: 0 | AN40: 0 | AO40: 0 | AP40: 0 | AQ40: 0 | AR40: 0 | AS40: 0 | AT40: 0 | AU40: 0 | AV40: 0 | AW40: 0 | AX40: 0 | AY40: 0 | AZ40: 0 | BA40: 0 | BB40: 0 | BC40: 0 | BD40: 0 | BE40: 0 | BF40: 0 | BG40: 0 | BH40: 0 | BI40: 0 | BJ40: 0 | BK40: 0 | BL40: 0 | BM40: 0 | BN40: 0 | BO40: 0 | BP40: 0 | BQ40: 0 | BR40: 0 | BS40: 0 | BT40: 0 | BU40: 0 | BV40: 0 | BW40: 0 | BX40: 0 | BY40: 0 | BZ40: 0 | CA40: 0 | CB40: 0 | CC40: 0 | CD40: 0 | CE40: 0 | CG40: 0 | CH40: 0 | CI40: 0 | CJ40: 0 | CK40: 0 | CL40: 0 | CM40: 0 | CN40: 0 | CO40: 0 | CP40: 0 | CQ40: 0 | CR40: 0 | CS40: 0 | CT40: 0 | CU40: 0 | CV40: 0 | CW40: 0 | CX40: 0 | CY40: 0 | CZ40: 0 | DA40: 0 | DB40: 0 | DC40: 0 | DD40: 0 | DE40: 0 | DF40: 0 | DG40: 0 | DH40: 0 | DI40: 0 | DJ40: 0 | DK40: 0 | DL40: 0 | DM40: 0 | DN40: 0 | DO40: 0 | DP40: 0 | DQ40: 0 | DR40: 0 | DS40: 0 | DT40: 0 | DU40: 0 | DV40: 0 | DW40: 0 | DX40: 0 | DY40: 0 | DZ40: 0 | EA40: 0 | EB40: 0 | EC40: 0 | ED40: 0 | EE40: 0 | EF40: 0 | EG40: 0 | EH40: 0 | EI40: 0 | EJ40: 0 | EK40: 0 | EL40: 0 | EM40: 0 | EN40: 0 | EO40: 0 | EP40: 0 | EQ40: 0 | ER40: 0 | ES40: 0 | ET40: 0 | EU40: 0 | EV40: 0 | EW40: 0 | EX40: 0 | EY40: 0 | EZ40: 0
E41: 0 | F41: 0 | G41: 0 | H41: 0 | I41: 0 | J41: 0 | L41: 0 | M41: 0 | N41: 0 | O41: 0 | P41: 0 | Q41: 0 | R41: 0 | S41: 0 | T41: 0 | U41: 0 | V41: 0 | W41: 0 | X41: 0 | Y41: 0 | Z41: 0 | AA41: 0 | AB41: 0 | AC41: 0 | AD41: 0 | AE41: 0 | AF41: 0 | AG41: 0 | AH41: 0 | AI41: 0 | AJ41: 0 | AK41: 0 | AL41: 0 | AM41: 0 | AN41: 0 | AO41: 0 | AP41: 0 | AQ41: 0 | AR41: 0 | AS41: 0 | AT41: 0 | AU41: 0 | AV41: 0 | AW41: 0 | AX41: 0 | AY41: 0 | AZ41: 0 | BA41: 0 | BB41: 0 | BC41: 0 | BD41: 0 | BE41: 0 | BF41: 0 | BG41: 0 | BH41: 0 | BI41: 0 | BJ41: 0 | BK41: 0 | BL41: 0 | BM41: 0 | BN41: 0 | BO41: 0 | BP41: 0 | BQ41: 0 | BR41: 0 | BS41: 0 | BT41: 0 | BU41: 0 | BV41: 0 | BW41: 0 | BX41: 0 | BY41: 0 | BZ41: 0 | CA41: 0 | CB41: 0 | CC41: 0 | CD41: 0 | CE41: 0 | CG41: 0 | CH41: 0 | CI41: 0 | CJ41: 0 | CK41: 0 | CL41: 0 | CM41: 0 | CN41: 0 | CO41: 0 | CP41: 0 | CQ41: 0 | CR41: 0 | CS41: 0 | CT41: 0 | CU41: 0 | CV41: 0 | CW41: 0 | CX41: 0 | CY41: 0 | CZ41: 0 | DA41: 0 | DB41: 0 | DC41: 0 | DD41: 0 | DE41: 0 | DF41: 0 | DG41: 0 | DH41: 0 | DI41: 0 | DJ41: 0 | DK41: 0 | DL41: 0 | DM41: 0 | DN41: 0 | DO41: 0 | DP41: 0 | DQ41: 0 | DR41: 0 | DS41: 0 | DT41: 0 | DU41: 0 | DV41: 0 | DW41: 0 | DX41: 0 | DY41: 0 | DZ41: 0 | EA41: 0 | EB41: 0 | EC41: 0 | ED41: 0 | EE41: 0 | EF41: 0 | EG41: 0 | EH41: 0 | EI41: 0 | EJ41: 0 | EK41: 0 | EL41: 0 | EM41: 0 | EN41: 0 | EO41: 0 | EP41: 0 | EQ41: 0 | ER41: 0 | ES41: 0 | ET41: 0 | EU41: 0 | EV41: 0 | EW41: 0 | EX41: 0 | EY41: 0 | EZ41: 0
E42: 0 | F42: 0 | G42: 0 | H42: 0 | I42: 0 | J42: 0 | L42: 0 | M42: 0 | N42: 0 | O42: 0 | P42: 0 | Q42: 0 | R42: 0 | S42: 0 | T42: 0 | U42: 0 | V42: 0 | W42: 0 | X42: 0 | Y42: 0 | Z42: 0 | AA42: 0 | AB42: 0 | AC42: 0 | AD42: 0 | AE42: 0 | AF42: 0 | AG42: 0 | AH42: 0 | AI42: 0 | AJ42: 0 | AK42: 0 | AL42: 0 | AM42: 0 | AN42: 0 | AO42: 0 | AP42: 0 | AQ42: 0 | AR42: 0 | AS42: 0 | AT42: 0 | AU42: 0 | AV42: 0 | AW42: 0 | AX42: 0 | AY42: 0 | AZ42: 0 | BA42: 0 | BB42: 0 | BC42: 0 | BD42: 0 | BE42: 0 | BF42: 0 | BG42: 0 | BH42: 0 | BI42: 0 | BJ42: 0 | BK42: 0 | BL42: 0 | BM42: 0 | BN42: 0 | BO42: 0 | BP42: 0 | BQ42: 0 | BR42: 0 | BS42: 0 | BT42: 0 | BU42: 0 | BV42: 0 | BW42: 0 | BX42: 0 | BY42: 0 | BZ42: 0 | CA42: 0 | CB42: 0 | CC42: 0 | CD42: 0 | CE42: 0 | CG42: 0 | CH42: 0 | CI42: 0 | CJ42: 0 | CK42: 0 | CL42: 0 | CM42: 0 | CN42: 0 | CO42: 0 | CP42: 0 | CQ42: 0 | CR42: 0 | CS42: 0 | CT42: 0 | CU42: 0 | CV42: 0 | CW42: 0 | CX42: 0 | CY42: 0 | CZ42: 0 | DA42: 0 | DB42: 0 | DC42: 0 | DD42: 0 | DE42: 0 | DF42: 0 | DG42: 0 | DH42: 0 | DI42: 0 | DJ42: 0 | DK42: 0 | DL42: 0 | DM42: 0 | DN42: 0 | DO42: 0 | DP42: 0 | DQ42: 0 | DR42: 0 | DS42: 0 | DT42: 0 | DU42: 0 | DV42: 0 | DW42: 0 | DX42: 0 | DY42: 0 | DZ42: 0 | EA42: 0 | EB42: 0 | EC42: 0 | ED42: 0 | EE42: 0 | EF42: 0 | EG42: 0 | EH42: 0 | EI42: 0 | EJ42: 0 | EK42: 0 | EL42: 0 | EM42: 0 | EN42: 0 | EO42: 0 | EP42: 0 | EQ42: 0 | ER42: 0 | ES42: 0 | ET42: 0 | EU42: 0 | EV42: 0 | EW42: 0 | EX42: 0 | EY42: 0 | EZ42: 0
E43: 0 | F43: 0 | G43: 0 | H43: 0 | I43: 0 | J43: 0 | L43: 0 | M43: 0 | N43: 0 | O43: 0 | P43: 0 | Q43: 0 | R43: 0 | S43: 0 | T43: 0 | U43: 0 | V43: 0 | W43: 0 | X43: 0 | Y43: 0 | Z43: 0 | AA43: 0 | AB43: 0 | AC43: 0 | AD43: 0 | AE43: 0 | AF43: 0 | AG43: 0 | AH43: 0 | AI43: 0 | AJ43: 0 | AK43: 0 | AL43: 0 | AM43: 0 | AN43: 0 | AO43: 0 | AP43: 0 | AQ43: 0 | AR43: 0 | AS43: 0 | AT43: 0 | AU43: 0 | AV43: 0 | AW43: 0 | AX43: 0 | AY43: 0 | AZ43: 0 | BA43: 0 | BB43: 0 | BC43: 0 | BD43: 0 | BE43: 0 | BF43: 0 | BG43: 0 | BH43: 0 | BI43: 0 | BJ43: 0 | BK43: 0 | BL43: 0 | BM43: 0 | BN43: 0 | BO43: 0 | BP43: 0 | BQ43: 0 | BR43: 0 | BS43: 0 | BT43: 0 | BU43: 0 | BV43: 0 | BW43: 0 | BX43: 0 | BY43: 0 | BZ43: 0 | CA43: 0 | CB43: 0 | CC43: 0 | CD43: 0 | CE43: 0 | CG43: 0 | CH43: 0 | CI43: 0 | CJ43: 0 | CK43: 0 | CL43: 0 | CM43: 0 | CN43: 0 | CO43: 0 | CP43: 0 | CQ43: 0 | CR43: 0 | CS43: 0 | CT43: 0 | CU43: 0 | CV43: 0 | CW43: 0 | CX43: 0 | CY43: 0 | CZ43: 0 | DA43: 0 | DB43: 0 | DC43: 0 | DD43: 0 | DE43: 0 | DF43: 0 | DG43: 0 | DH43: 0 | DI43: 0 | DJ43: 0 | DK43: 0 | DL43: 0 | DM43: 0 | DN43: 0 | DO43: 0 | DP43: 0 | DQ43: 0 | DR43: 0 | DS43: 0 | DT43: 0 | DU43: 0 | DV43: 0 | DW43: 0 | DX43: 0 | DY43: 0 | DZ43: 0 | EA43: 0 | EB43: 0 | EC43: 0 | ED43: 0 | EE43: 0 | EF43: 0 | EG43: 0 | EH43: 0 | EI43: 0 | EJ43: 0 | EK43: 0 | EL43: 0 | EM43: 0 | EN43: 0 | EO43: 0 | EP43: 0 | EQ43: 0 | ER43: 0 | ES43: 0 | ET43: 0 | EU43: 0 | EV43: 0 | EW43: 0 | EX43: 0 | EY43: 0 | EZ43: 0
B44: Seasonal or Capacity Exchange | D44: FPS_EXS | E44: =+SUM(E45:E54) -> 13253.25 | F44: =+SUM(F45:F54) -> 0 | G44: 0 | H44: 0 | I44: 0 | J44: 0 | L44: 2496 | M44: 2400 | N44: 2496 | O44: 0 | P44: 0 | Q44: 0 | R44: 0 | S44: 0 | T44: 0 | U44: 0 | V44: 0 | W44: 0 | X44: 0 | Y44: 0 | Z44: 0 | AA44: 0 | AB44: 0 | AC44: 0 | AD44: 0 | AE44: 0 | AF44: 0 | AG44: 0 | AH44: 0 | AI44: 0 | AJ44: 0 | AK44: 0 | AL44: 0 | AM44: 0 | AN44: 0 | AO44: 0 | AP44: 0 | AQ44: 0 | AR44: 0 | AS44: 0 | AT44: 0 | AU44: 0 | AV44: 0 | AW44: 0 | AX44: 0 | AY44: 0 | AZ44: 0 | BA44: 0 | BB44: 0 | BC44: 0 | BD44: 0 | BE44: 0 | BF44: 0 | BG44: 0 | BH44: 0 | BI44: 0 | BJ44: 0 | BK44: 0 | BL44: 0 | BM44: 0 | BN44: 0 | BO44: 0 | BP44: 0 | BQ44: 0 | BR44: 0 | BS44: 0 | BT44: 0 | BU44: 0 | BV44: 0 | BW44: 0 | BX44: 0 | BY44: 0 | BZ44: 0 | CA44: 0 | CB44: 0 | CC44: 0 | CD44: 0 | CE44: 0 | CG44: 1968 | CH44: 1926 | CI44: 1967.25 | CJ44: 0 | CK44: 0 | CL44: 0 | CM44: 0 | CN44: 0 | CO44: 0 | CP44: 0 | CQ44: 0 | CR44: 0 | CS44: 0 | CT44: 0 | CU44: 0 | CV44: 0 | CW44: 0 | CX44: 0 | CY44: 0 | CZ44: 0 | DA44: 0 | DB44: 0 | DC44: 0 | DD44: 0 | DE44: 0 | DF44: 0 | DG44: 0 | DH44: 0 | DI44: 0 | DJ44: 0 | DK44: 0 | DL44: 0 | DM44: 0 | DN44: 0 | DO44: 0 | DP44: 0 | DQ44: 0 | DR44: 0 | DS44: 0 | DT44: 0 | DU44: 0 | DV44: 0 | DW44: 0 | DX44: 0 | DY44: 0 | DZ44: 0 | EA44: 0 | EB44: 0 | EC44: 0 | ED44: 0 | EE44: 0 | EF44: 0 | EG44: 0 | EH44: 0 | EI44: 0 | EJ44: 0 | EK44: 0 | EL44: 0 | EM44: 0 | EN44: 0 | EO44: 0 | EP44: 0 | EQ44: 0 | ER44: 0 | ES44: 0 | ET44: 0 | EU44: 0 | EV44: 0 | EW44: 0 | EX44: 0 | EY44: 0 | EZ44: 0
C45: Riverside Capacity | D45: FPS_EXS_RVC | E45: 0 | F45: 0 | G45: 0 | H45: 0 | I45: 0 | J45: 0 | L45: 0 | M45: 0 | N45: 0 | O45: 0 | P45: 0 | Q45: 0 | R45: 0 | S45: 0 | T45: 0 | U45: 0 | V45: 0 | W45: 0 | X45: 0 | Y45: 0 | Z45: 0 | AA45: 0 | AB45: 0 | AC45: 0 | AD45: 0 | AE45: 0 | AF45: 0 | AG45: 0 | AH45: 0 | AI45: 0 | AJ45: 0 | AK45: 0 | AL45: 0 | AM45: 0 | AN45: 0 | AO45: 0 | AP45: 0 | AQ45: 0 | AR45: 0 | AS45: 0 | AT45: 0 | AU45: 0 | AV45: 0 | AW45: 0 | AX45: 0 | AY45: 0 | AZ45: 0 | BA45: 0 | BB45: 0 | BC45: 0 | BD45: 0 | BE45: 0 | BF45: 0 | BG45: 0 | BH45: 0 | BI45: 0 | BJ45: 0 | BK45: 0 | BL45: 0 | BM45: 0 | BN45: 0 | BO45: 0 | BP45: 0 | BQ45: 0 | BR45: 0 | BS45: 0 | BT45: 0 | BU45: 0 | BV45: 0 | BW45: 0 | BX45: 0 | BY45: 0 | BZ45: 0 | CA45: 0 | CB45: 0 | CC45: 0 | CD45: 0 | CE45: 0 | CG45: 0 | CH45: 0 | CI45: 0 | CJ45: 0 | CK45: 0 | CL45: 0 | CM45: 0 | CN45: 0 | CO45: 0 | CP45: 0 | CQ45: 0 | CR45: 0 | CS45: 0 | CT45: 0 | CU45: 0 | CV45: 0 | CW45: 0 | CX45: 0 | CY45: 0 | CZ45: 0 | DA45: 0 | DB45: 0 | DC45: 0 | DD45: 0 | DE45: 0 | DF45: 0 | DG45: 0 | DH45: 0 | DI45: 0 | DJ45: 0 | DK45: 0 | DL45: 0 | DM45: 0 | DN45: 0 | DO45: 0 | DP45: 0 | DQ45: 0 | DR45: 0 | DS45: 0 | DT45: 0 | DU45: 0 | DV45: 0 | DW45: 0 | DX45: 0 | DY45: 0 | DZ45: 0 | EA45: 0 | EB45: 0 | EC45: 0 | ED45: 0 | EE45: 0 | EF45: 0 | EG45: 0 | EH45: 0 | EI45: 0 | EJ45: 0 | EK45: 0 | EL45: 0 | EM45: 0 | EN45: 0 | EO45: 0 | EP45: 0 | EQ45: 0 | ER45: 0 | ES45: 0 | ET45: 0 | EU45: 0 | EV45: 0 | EW45: 0 | EX45: 0 | EY45: 0 | EZ45: 0
C46: Riverside Seasonal | D46: FPS_EXS_RVS | E46: 0 | F46: 0 | G46: 0 | H46: 0 | I46: 0 | J46: 0 | L46: 0 | M46: 0 | N46: 0 | O46: 0 | P46: 0 | Q46: 0 | R46: 0 | S46: 0 | T46: 0 | U46: 0 | V46: 0 | W46: 0 | X46: 0 | Y46: 0 | Z46: 0 | AA46: 0 | AB46: 0 | AC46: 0 | AD46: 0 | AE46: 0 | AF46: 0 | AG46: 0 | AH46: 0 | AI46: 0 | AJ46: 0 | AK46: 0 | AL46: 0 | AM46: 0 | AN46: 0 | AO46: 0 | AP46: 0 | AQ46: 0 | AR46: 0 | AS46: 0 | AT46: 0 | AU46: 0 | AV46: 0 | AW46: 0 | AX46: 0 | AY46: 0 | AZ46: 0 | BA46: 0 | BB46: 0 | BC46: 0 | BD46: 0 | BE46: 0 | BF46: 0 | BG46: 0 | BH46: 0 | BI46: 0 | BJ46: 0 | BK46: 0 | BL46: 0 | BM46: 0 | BN46: 0 | BO46: 0 | BP46: 0 | BQ46: 0 | BR46: 0 | BS46: 0 | BT46: 0 | BU46: 0 | BV46: 0 | BW46: 0 | BX46: 0 | BY46: 0 | BZ46: 0 | CA46: 0 | CB46: 0 | CC46: 0 | CD46: 0 | CE46: 0 | CG46: 0 | CH46: 0 | CI46: 0 | CJ46: 0 | CK46: 0 | CL46: 0 | CM46: 0 | CN46: 0 | CO46: 0 | CP46: 0 | CQ46: 0 | CR46: 0 | CS46: 0 | CT46: 0 | CU46: 0 | CV46: 0 | CW46: 0 | CX46: 0 | CY46: 0 | CZ46: 0 | DA46: 0 | DB46: 0 | DC46: 0 | DD46: 0 | DE46: 0 | DF46: 0 | DG46: 0 | DH46: 0 | DI46: 0 | DJ46: 0 | DK46: 0 | DL46: 0 | DM46: 0 | DN46: 0 | DO46: 0 | DP46: 0 | DQ46: 0 | DR46: 0 | DS46: 0 | DT46: 0 | DU46: 0 | DV46: 0 | DW46: 0 | DX46: 0 | DY46: 0 | DZ46: 0 | EA46: 0 | EB46: 0 | EC46: 0 | ED46: 0 | EE46: 0 | EF46: 0 | EG46: 0 | EH46: 0 | EI46: 0 | EJ46: 0 | EK46: 0 | EL46: 0 | EM46: 0 | EN46: 0 | EO46: 0 | EP46: 0 | EQ46: 0 | ER46: 0 | ES46: 0 | ET46: 0 | EU46: 0 | EV46: 0 | EW46: 0 | EX46: 0 | EY46: 0 | EZ46: 0
C47: Pasadena Capacity | D47: FPS_EXS_PAC | E47: 0 | F47: 0 | G47: 0 | H47: 0 | I47: 0 | J47: 0 | L47: 0 | M47: 0 | N47: 0 | O47: 0 | P47: 0 | Q47: 0 | R47: 0 | S47: 0 | T47: 0 | U47: 0 | V47: 0 | W47: 0 | X47: 0 | Y47: 0 | Z47: 0 | AA47: 0 | AB47: 0 | AC47: 0 | AD47: 0 | AE47: 0 | AF47: 0 | AG47: 0 | AH47: 0 | AI47: 0 | AJ47: 0 | AK47: 0 | AL47: 0 | AM47: 0 | AN47: 0 | AO47: 0 | AP47: 0 | AQ47: 0 | AR47: 0 | AS47: 0 | AT47: 0 | AU47: 0 | AV47: 0 | AW47: 0 | AX47: 0 | AY47: 0 | AZ47: 0 | BA47: 0 | BB47: 0 | BC47: 0 | BD47: 0 | BE47: 0 | BF47: 0 | BG47: 0 | BH47: 0 | BI47: 0 | BJ47: 0 | BK47: 0 | BL47: 0 | BM47: 0 | BN47: 0 | BO47: 0 | BP47: 0 | BQ47: 0 | BR47: 0 | BS47: 0 | BT47: 0 | BU47: 0 | BV47: 0 | BW47: 0 | BX47: 0 | BY47: 0 | BZ47: 0 | CA47: 0 | CB47: 0 | CC47: 0 | CD47: 0 | CE47: 0 | CG47: 0 | CH47: 0 | CI47: 0 | CJ47: 0 | CK47: 0 | CL47: 0 | CM47: 0 | CN47: 0 | CO47: 0 | CP47: 0 | CQ47: 0 | CR47: 0 | CS47: 0 | CT47: 0 | CU47: 0 | CV47: 0 | CW47: 0 | CX47: 0 | CY47: 0 | CZ47: 0 | DA47: 0 | DB47: 0 | DC47: 0 | DD47: 0 | DE47: 0 | DF47: 0 | DG47: 0 | DH47: 0 | DI47: 0 | DJ47: 0 | DK47: 0 | DL47: 0 | DM47: 0 | DN47: 0 | DO47: 0 | DP47: 0 | DQ47: 0 | DR47: 0 | DS47: 0 | DT47: 0 | DU47: 0 | DV47: 0 | DW47: 0 | DX47: 0 | DY47: 0 | DZ47: 0 | EA47: 0 | EB47: 0 | EC47: 0 | ED47: 0 | EE47: 0 | EF47: 0 | EG47: 0 | EH47: 0 | EI47: 0 | EJ47: 0 | EK47: 0 | EL47: 0 | EM47: 0 | EN47: 0 | EO47: 0 | EP47: 0 | EQ47: 0 | ER47: 0 | ES47: 0 | ET47: 0 | EU47: 0 | EV47: 0 | EW47: 0 | EX47: 0 | EY47: 0 | EZ47: 0
C48: Pasadena Seasonal | D48: FPS_EXS_PAS | E48: 0 | F48: 0 | G48: 0 | H48: 0 | I48: 0 | J48: 0 | L48: 0 | M48: 0 | N48: 0 | O48: 0 | P48: 0 | Q48: 0 | R48: 0 | S48: 0 | T48: 0 | U48: 0 | V48: 0 | W48: 0 | X48: 0 | Y48: 0 | Z48: 0 | AA48: 0 | AB48: 0 | AC48: 0 | AD48: 0 | AE48: 0 | AF48: 0 | AG48: 0 | AH48: 0 | AI48: 0 | AJ48: 0 | AK48: 0 | AL48: 0 | AM48: 0 | AN48: 0 | AO48: 0 | AP48: 0 | AQ48: 0 | AR48: 0 | AS48: 0 | AT48: 0 | AU48: 0 | AV48: 0 | AW48: 0 | AX48: 0 | AY48: 0 | AZ48: 0 | BA48: 0 | BB48: 0 | BC48: 0 | BD48: 0 | BE48: 0 | BF48: 0 | BG48: 0 | BH48: 0 | BI48: 0 | BJ48: 0 | BK48: 0 | BL48: 0 | BM48: 0 | BN48: 0 | BO48: 0 | BP48: 0 | BQ48: 0 | BR48: 0 | BS48: 0 | BT48: 0 | BU48: 0 | BV48: 0 | BW48: 0 | BX48: 0 | BY48: 0 | BZ48: 0 | CA48: 0 | CB48: 0 | CC48: 0 | CD48: 0 | CE48: 0 | CG48: 0 | CH48: 0 | CI48: 0 | CJ48: 0 | CK48: 0 | CL48: 0 | CM48: 0 | CN48: 0 | CO48: 0 | CP48: 0 | CQ48: 0 | CR48: 0 | CS48: 0 | CT48: 0 | CU48: 0 | CV48: 0 | CW48: 0 | CX48: 0 | CY48: 0 | CZ48: 0 | DA48: 0 | DB48: 0 | DC48: 0 | DD48: 0 | DE48: 0 | DF48: 0 | DG48: 0 | DH48: 0 | DI48: 0 | DJ48: 0 | DK48: 0 | DL48: 0 | DM48: 0 | DN48: 0 | DO48: 0 | DP48: 0 | DQ48: 0 | DR48: 0 | DS48: 0 | DT48: 0 | DU48: 0 | DV48: 0 | DW48: 0 | DX48: 0 | DY48: 0 | DZ48: 0 | EA48: 0 | EB48: 0 | EC48: 0 | ED48: 0 | EE48: 0 | EF48: 0 | EG48: 0 | EH48: 0 | EI48: 0 | EJ48: 0 | EK48: 0 | EL48: 0 | EM48: 0 | EN48: 0 | EO48: 0 | EP48: 0 | EQ48: 0 | ER48: 0 | ES48: 0 | ET48: 0 | EU48: 0 | EV48: 0 | EW48: 0 | EX48: 0 | EY48: 0 | EZ48: 0
C49: PG&E | D49: FPS_EXS_PGE | E49: 0 | F49: 0 | G49: 0 | H49: 0 | I49: 0 | J49: 0 | L49: 0 | M49: 0 | N49: 0 | O49: 0 | P49: 0 | Q49: 0 | R49: 0 | S49: 0 | T49: 0 | U49: 0 | V49: 0 | W49: 0 | X49: 0 | Y49: 0 | Z49: 0 | AA49: 0 | AB49: 0 | AC49: 0 | AD49: 0 | AE49: 0 | AF49: 0 | AG49: 0 | AH49: 0 | AI49: 0 | AJ49: 0 | AK49: 0 | AL49: 0 | AM49: 0 | AN49: 0 | AO49: 0 | AP49: 0 | AQ49: 0 | AR49: 0 | AS49: 0 | AT49: 0 | AU49: 0 | AV49: 0 | AW49: 0 | AX49: 0 | AY49: 0 | AZ49: 0 | BA49: 0 | BB49: 0 | BC49: 0 | BD49: 0 | BE49: 0 | BF49: 0 | BG49: 0 | BH49: 0 | BI49: 0 | BJ49: 0 | BK49: 0 | BL49: 0 | BM49: 0 | BN49: 0 | BO49: 0 | BP49: 0 | BQ49: 0 | BR49: 0 | BS49: 0 | BT49: 0 | BU49: 0 | BV49: 0 | BW49: 0 | BX49: 0 | BY49: 0 | BZ49: 0 | CA49: 0 | CB49: 0 | CC49: 0 | CD49: 0 | CE49: 0 | CG49: 0 | CH49: 0 | CI49: 0 | CJ49: 0 | CK49: 0 | CL49: 0 | CM49: 0 | CN49: 0 | CO49: 0 | CP49: 0 | CQ49: 0 | CR49: 0 | CS49: 0 | CT49: 0 | CU49: 0 | CV49: 0 | CW49: 0 | CX49: 0 | CY49: 0 | CZ49: 0 | DA49: 0 | DB49: 0 | DC49: 0 | DD49: 0 | DE49: 0 | DF49: 0 | DG49: 0 | DH49: 0 | DI49: 0 | DJ49: 0 | DK49: 0 | DL49: 0 | DM49: 0 | DN49: 0 | DO49: 0 | DP49: 0 | DQ49: 0 | DR49: 0 | DS49: 0 | DT49: 0 | DU49: 0 | DV49: 0 | DW49: 0 | DX49: 0 | DY49: 0 | DZ49: 0 | EA49: 0 | EB49: 0 | EC49: 0 | ED49: 0 | EE49: 0 | EF49: 0 | EG49: 0 | EH49: 0 | EI49: 0 | EJ49: 0 | EK49: 0 | EL49: 0 | EM49: 0 | EN49: 0 | EO49: 0 | EP49: 0 | EQ49: 0 | ER49: 0 | ES49: 0 | ET49: 0 | EU49: 0 | EV49: 0 | EW49: 0 | EX49: 0 | EY49: 0 | EZ49: 0
C50: Intertie Losses | D50: FPS_EXS_LSS | E50: 13253.25 | F50: 0 | G50: 0 | H50: 0 | I50: 0 | J50: 0 | L50: 2496 | M50: 2400 | N50: 2496 | O50: 0 | P50: 0 | Q50: 0 | R50: 0 | S50: 0 | T50: 0 | U50: 0 | V50: 0 | W50: 0 | X50: 0 | Y50: 0 | Z50: 0 | AA50: 0 | AB50: 0 | AC50: 0 | AD50: 0 | AE50: 0 | AF50: 0 | AG50: 0 | AH50: 0 | AI50: 0 | AJ50: 0 | AK50: 0 | AL50: 0 | AM50: 0 | AN50: 0 | AO50: 0 | AP50: 0 | AQ50: 0 | AR50: 0 | AS50: 0 | AT50: 0 | AU50: 0 | AV50: 0 | AW50: 0 | AX50: 0 | AY50: 0 | AZ50: 0 | BA50: 0 | BB50: 0 | BC50: 0 | BD50: 0 | BE50: 0 | BF50: 0 | BG50: 0 | BH50: 0 | BI50: 0 | BJ50: 0 | BK50: 0 | BL50: 0 | BM50: 0 | BN50: 0 | BO50: 0 | BP50: 0 | BQ50: 0 | BR50: 0 | BS50: 0 | BT50: 0 | BU50: 0 | BV50: 0 | BW50: 0 | BX50: 0 | BY50: 0 | BZ50: 0 | CA50: 0 | CB50: 0 | CC50: 0 | CD50: 0 | CE50: 0 | CG50: 1968 | CH50: 1926 | CI50: 1967.25 | CJ50: 0 | CK50: 0 | CL50: 0 | CM50: 0 | CN50: 0 | CO50: 0 | CP50: 0 | CQ50: 0 | CR50: 0 | CS50: 0 | CT50: 0 | CU50: 0 | CV50: 0 | CW50: 0 | CX50: 0 | CY50: 0 | CZ50: 0 | DA50: 0 | DB50: 0 | DC50: 0 | DD50: 0 | DE50: 0 | DF50: 0 | DG50: 0 | DH50: 0 | DI50: 0 | DJ50: 0 | DK50: 0 | DL50: 0 | DM50: 0 | DN50: 0 | DO50: 0 | DP50: 0 | DQ50: 0 | DR50: 0 | DS50: 0 | DT50: 0 | DU50: 0 | DV50: 0 | DW50: 0 | DX50: 0 | DY50: 0 | DZ50: 0 | EA50: 0 | EB50: 0 | EC50: 0 | ED50: 0 | EE50: 0 | EF50: 0 | EG50: 0 | EH50: 0 | EI50: 0 | EJ50: 0 | EK50: 0 | EL50: 0 | EM50: 0 | EN50: 0 | EO50: 0 | EP50: 0 | EQ50: 0 | ER50: 0 | ES50: 0 | ET50: 0 | EU50: 0 | EV50: 0 | EW50: 0 | EX50: 0 | EY50: 0 | EZ50: 0
C51: PacifiCorp | D51: FPS_EXS_PPL | E51: 0 | F51: 0 | G51: 0 | H51: 0 | I51: 0 | J51: 0 | L51: 0 | M51: 0 | N51: 0 | O51: 0 | P51: 0 | Q51: 0 | R51: 0 | S51: 0 | T51: 0 | U51: 0 | V51: 0 | W51: 0 | X51: 0 | Y51: 0 | Z51: 0 | AA51: 0 | AB51: 0 | AC51: 0 | AD51: 0 | AE51: 0 | AF51: 0 | AG51: 0 | AH51: 0 | AI51: 0 | AJ51: 0 | AK51: 0 | AL51: 0 | AM51: 0 | AN51: 0 | AO51: 0 | AP51: 0 | AQ51: 0 | AR51: 0 | AS51: 0 | AT51: 0 | AU51: 0 | AV51: 0 | AW51: 0 | AX51: 0 | AY51: 0 | AZ51: 0 | BA51: 0 | BB51: 0 | BC51: 0 | BD51: 0 | BE51: 0 | BF51: 0 | BG51: 0 | BH51: 0 | BI51: 0 | BJ51: 0 | BK51: 0 | BL51: 0 | BM51: 0 | BN51: 0 | BO51: 0 | BP51: 0 | BQ51: 0 | BR51: 0 | BS51: 0 | BT51: 0 | BU51: 0 | BV51: 0 | BW51: 0 | BX51: 0 | BY51: 0 | BZ51: 0 | CA51: 0 | CB51: 0 | CC51: 0 | CD51: 0 | CE51: 0 | CG51: 0 | CH51: 0 | CI51: 0 | CJ51: 0 | CK51: 0 | CL51: 0 | CM51: 0 | CN51: 0 | CO51: 0 | CP51: 0 | CQ51: 0 | CR51: 0 | CS51: 0 | CT51: 0 | CU51: 0 | CV51: 0 | CW51: 0 | CX51: 0 | CY51: 0 | CZ51: 0 | DA51: 0 | DB51: 0 | DC51: 0 | DD51: 0 | DE51: 0 | DF51: 0 | DG51: 0 | DH51: 0 | DI51: 0 | DJ51: 0 | DK51: 0 | DL51: 0 | DM51: 0 | DN51: 0 | DO51: 0 | DP51: 0 | DQ51: 0 | DR51: 0 | DS51: 0 | DT51: 0 | DU51: 0 | DV51: 0 | DW51: 0 | DX51: 0 | DY51: 0 | DZ51: 0 | EA51: 0 | EB51: 0 | EC51: 0 | ED51: 0 | EE51: 0 | EF51: 0 | EG51: 0 | EH51: 0 | EI51: 0 | EJ51: 0 | EK51: 0 | EL51: 0 | EM51: 0 | EN51: 0 | EO51: 0 | EP51: 0 | EQ51: 0 | ER51: 0 | ES51: 0 | ET51: 0 | EU51: 0 | EV51: 0 | EW51: 0 | EX51: 0 | EY51: 0 | EZ51: 0
E52: 0 | F52: 0 | G52: 0 | H52: 0 | I52: 0 | J52: 0 | L52: 0 | M52: 0 | N52: 0 | O52: 0 | P52: 0 | Q52: 0 | R52: 0 | S52: 0 | T52: 0 | U52: 0 | V52: 0 | W52: 0 | X52: 0 | Y52: 0 | Z52: 0 | AA52: 0 | AB52: 0 | AC52: 0 | AD52: 0 | AE52: 0 | AF52: 0 | AG52: 0 | AH52: 0 | AI52: 0 | AJ52: 0 | AK52: 0 | AL52: 0 | AM52: 0 | AN52: 0 | AO52: 0 | AP52: 0 | AQ52: 0 | AR52: 0 | AS52: 0 | AT52: 0 | AU52: 0 | AV52: 0 | AW52: 0 | AX52: 0 | AY52: 0 | AZ52: 0 | BA52: 0 | BB52: 0 | BC52: 0 | BD52: 0 | BE52: 0 | BF52: 0 | BG52: 0 | BH52: 0 | BI52: 0 | BJ52: 0 | BK52: 0 | BL52: 0 | BM52: 0 | BN52: 0 | BO52: 0 | BP52: 0 | BQ52: 0 | BR52: 0 | BS52: 0 | BT52: 0 | BU52: 0 | BV52: 0 | BW52: 0 | BX52: 0 | BY52: 0 | BZ52: 0 | CA52: 0 | CB52: 0 | CC52: 0 | CD52: 0 | CE52: 0 | CG52: 0 | CH52: 0 | CI52: 0 | CJ52: 0 | CK52: 0 | CL52: 0 | CM52: 0 | CN52: 0 | CO52: 0 | CP52: 0 | CQ52: 0 | CR52: 0 | CS52: 0 | CT52: 0 | CU52: 0 | CV52: 0 | CW52: 0 | CX52: 0 | CY52: 0 | CZ52: 0 | DA52: 0 | DB52: 0 | DC52: 0 | DD52: 0 | DE52: 0 | DF52: 0 | DG52: 0 | DH52: 0 | DI52: 0 | DJ52: 0 | DK52: 0 | DL52: 0 | DM52: 0 | DN52: 0 | DO52: 0 | DP52: 0 | DQ52: 0 | DR52: 0 | DS52: 0 | DT52: 0 | DU52: 0 | DV52: 0 | DW52: 0 | DX52: 0 | DY52: 0 | DZ52: 0 | EA52: 0 | EB52: 0 | EC52: 0 | ED52: 0 | EE52: 0 | EF52: 0 | EG52: 0 | EH52: 0 | EI52: 0 | EJ52: 0 | EK52: 0 | EL52: 0 | EM52: 0 | EN52: 0 | EO52: 0 | EP52: 0 | EQ52: 0 | ER52: 0 | ES52: 0 | ET52: 0 | EU52: 0 | EV52: 0 | EW52: 0 | EX52: 0 | EY52: 0 | EZ52: 0
E53: 0 | F53: 0 | G53: 0 | H53: 0 | I53: 0 | J53: 0 | L53: 0 | M53: 0 | N53: 0 | O53: 0 | P53: 0 | Q53: 0 | R53: 0 | S53: 0 | T53: 0 | U53: 0 | V53: 0 | W53: 0 | X53: 0 | Y53: 0 | Z53: 0 | AA53: 0 | AB53: 0 | AC53: 0 | AD53: 0 | AE53: 0 | AF53: 0 | AG53: 0 | AH53: 0 | AI53: 0 | AJ53: 0 | AK53: 0 | AL53: 0 | AM53: 0 | AN53: 0 | AO53: 0 | AP53: 0 | AQ53: 0 | AR53: 0 | AS53: 0 | AT53: 0 | AU53: 0 | AV53: 0 | AW53: 0 | AX53: 0 | AY53: 0 | AZ53: 0 | BA53: 0 | BB53: 0 | BC53: 0 | BD53: 0 | BE53: 0 | BF53: 0 | BG53: 0 | BH53: 0 | BI53: 0 | BJ53: 0 | BK53: 0 | BL53: 0 | BM53: 0 | BN53: 0 | BO53: 0 | BP53: 0 | BQ53: 0 | BR53: 0 | BS53: 0 | BT53: 0 | BU53: 0 | BV53: 0 | BW53: 0 | BX53: 0 | BY53: 0 | BZ53: 0 | CA53: 0 | CB53: 0 | CC53: 0 | CD53: 0 | CE53: 0 | CG53: 0 | CH53: 0 | CI53: 0 | CJ53: 0 | CK53: 0 | CL53: 0 | CM53: 0 | CN53: 0 | CO53: 0 | CP53: 0 | CQ53: 0 | CR53: 0 | CS53: 0 | CT53: 0 | CU53: 0 | CV53: 0 | CW53: 0 | CX53: 0 | CY53: 0 | CZ53: 0 | DA53: 0 | DB53: 0 | DC53: 0 | DD53: 0 | DE53: 0 | DF53: 0 | DG53: 0 | DH53: 0 | DI53: 0 | DJ53: 0 | DK53: 0 | DL53: 0 | DM53: 0 | DN53: 0 | DO53: 0 | DP53: 0 | DQ53: 0 | DR53: 0 | DS53: 0 | DT53: 0 | DU53: 0 | DV53: 0 | DW53: 0 | DX53: 0 | DY53: 0 | DZ53: 0 | EA53: 0 | EB53: 0 | EC53: 0 | ED53: 0 | EE53: 0 | EF53: 0 | EG53: 0 | EH53: 0 | EI53: 0 | EJ53: 0 | EK53: 0 | EL53: 0 | EM53: 0 | EN53: 0 | EO53: 0 | EP53: 0 | EQ53: 0 | ER53: 0 | ES53: 0 | ET53: 0 | EU53: 0 | EV53: 0 | EW53: 0 | EX53: 0 | EY53: 0 | EZ53: 0
E54: 0 | F54: 0 | G54: 0 | H54: 0 | I54: 0 | J54: 0 | L54: 0 | M54: 0 | N54: 0 | O54: 0 | P54: 0 | Q54: 0 | R54: 0 | S54: 0 | T54: 0 | U54: 0 | V54: 0 | W54: 0 | X54: 0 | Y54: 0 | Z54: 0 | AA54: 0 | AB54: 0 | AC54: 0 | AD54: 0 | AE54: 0 | AF54: 0 | AG54: 0 | AH54: 0 | AI54: 0 | AJ54: 0 | AK54: 0 | AL54: 0 | AM54: 0 | AN54: 0 | AO54: 0 | AP54: 0 | AQ54: 0 | AR54: 0 | AS54: 0 | AT54: 0 | AU54: 0 | AV54: 0 | AW54: 0 | AX54: 0 | AY54: 0 | AZ54: 0 | BA54: 0 | BB54: 0 | BC54: 0 | BD54: 0 | BE54: 0 | BF54: 0 | BG54: 0 | BH54: 0 | BI54: 0 | BJ54: 0 | BK54: 0 | BL54: 0 | BM54: 0 | BN54: 0 | BO54: 0 | BP54: 0 | BQ54: 0 | BR54: 0 | BS54: 0 | BT54: 0 | BU54: 0 | BV54: 0 | BW54: 0 | BX54: 0 | BY54: 0 | BZ54: 0 | CA54: 0 | CB54: 0 | CC54: 0 | CD54: 0 | CE54: 0 | CG54: 0 | CH54: 0 | CI54: 0 | CJ54: 0 | CK54: 0 | CL54: 0 | CM54: 0 | CN54: 0 | CO54: 0 | CP54: 0 | CQ54: 0 | CR54: 0 | CS54: 0 | CT54: 0 | CU54: 0 | CV54: 0 | CW54: 0 | CX54: 0 | CY54: 0 | CZ54: 0 | DA54: 0 | DB54: 0 | DC54: 0 | DD54: 0 | DE54: 0 | DF54: 0 | DG54: 0 | DH54: 0 | DI54: 0 | DJ54: 0 | DK54: 0 | DL54: 0 | DM54: 0 | DN54: 0 | DO54: 0 | DP54: 0 | DQ54: 0 | DR54: 0 | DS54: 0 | DT54: 0 | DU54: 0 | DV54: 0 | DW54: 0 | DX54: 0 | DY54: 0 | DZ54: 0 | EA54: 0 | EB54: 0 | EC54: 0 | ED54: 0 | EE54: 0 | EF54: 0 | EG54: 0 | EH54: 0 | EI54: 0 | EJ54: 0 | EK54: 0 | EL54: 0 | EM54: 0 | EN54: 0 | EO54: 0 | EP54: 0 | EQ54: 0 | ER54: 0 | ES54: 0 | ET54: 0 | EU54: 0 | EV54: 0 | EW54: 0 | EX54: 0 | EY54: 0 | EZ54: 0
A55: Firm Surplus Sale | D55: FSS | E55: =+SUM(L55:W55,CG55:CR55) -> 441775 | F55: 0 | G55: 0 | H55: 0 | I55: 0 | J55: 0 | L55: 83200 | M55: 80000 | N55: 83200 | O55: 0 | P55: 0 | Q55: 0 | R55: 0 | S55: 0 | T55: 0 | U55: 0 | V55: 0 | W55: 0 | X55: 0 | Y55: 0 | Z55: 0 | AA55: 0 | AB55: 0 | AC55: 0 | AD55: 0 | AE55: 0 | AF55: 0 | AG55: 0 | AH55: 0 | AI55: 0 | AJ55: 0 | AK55: 0 | AL55: 0 | AM55: 0 | AN55: 0 | AO55: 0 | AP55: 0 | AQ55: 0 | AR55: 0 | AS55: 0 | AT55: 0 | AU55: 0 | AV55: 0 | AW55: 0 | AX55: 0 | AY55: 0 | AZ55: 0 | BA55: 0 | BB55: 0 | BC55: 0 | BD55: 0 | BE55: 0 | BF55: 0 | BG55: 0 | BH55: 0 | BI55: 0 | BJ55: 0 | BK55: 0 | BL55: 0 | BM55: 0 | BN55: 0 | BO55: 0 | BP55: 0 | BQ55: 0 | BR55: 0 | BS55: 0 | BT55: 0 | BU55: 0 | BV55: 0 | BW55: 0 | BX55: 0 | BY55: 0 | BZ55: 0 | CA55: 0 | CB55: 0 | CC55: 0 | CD55: 0 | CE55: 0 | CG55: 65600 | CH55: 64200 | CI55: 65575 | CJ55: 0 | CK55: 0 | CL55: 0 | CM55: 0 | CN55: 0 | CO55: 0 | CP55: 0 | CQ55: 0 | CR55: 0 | CS55: 0 | CT55: 0 | CU55: 0 | CV55: 0 | CW55: 0 | CX55: 0 | CY55: 0 | CZ55: 0 | DA55: 0 | DB55: 0 | DC55: 0 | DD55: 0 | DE55: 0 | DF55: 0 | DG55: 0 | DH55: 0 | DI55: 0 | DJ55: 0 | DK55: 0 | DL55: 0 | DM55: 0 | DN55: 0 | DO55: 0 | DP55: 0 | DQ55: 0 | DR55: 0 | DS55: 0 | DT55: 0 | DU55: 0 | DV55: 0 | DW55: 0 | DX55: 0 | DY55: 0 | DZ55: 0 | EA55: 0 | EB55: 0 | EC55: 0 | ED55: 0 | EE55: 0 | EF55: 0 | EG55: 0 | EH55: 0 | EI55: 0 | EJ55: 0 | EK55: 0 | EL55: 0 | EM55: 0 | EN55: 0 | EO55: 0 | EP55: 0 | EQ55: 0 | ER55: 0 | ES55: 0 | ET55: 0 | EU55: 0 | EV55: 0 | EW55: 0 | EX55: 0 | EY55: 0 | EZ55: 0
A56: Presale of Secondary | D56: PRS | E56: 0 | F56: 0 | G56: 0 | H56: 0 | I56: 0 | J56: 0 | L56: 0 | M56: 0 | N56: 0 | O56: 0 | P56: 0 | Q56: 0 | R56: 0 | S56: 0 | T56: 0 | U56: 0 | V56: 0 | W56: 0 | X56: 0 | Y56: 0 | Z56: 0 | AA56: 0 | AB56: 0 | AC56: 0 | AD56: 0 | AE56: 0 | AF56: 0 | AG56: 0 | AH56: 0 | AI56: 0 | AJ56: 0 | AK56: 0 | AL56: 0 | AM56: 0 | AN56: 0 | AO56: 0 | AP56: 0 | AQ56: 0 | AR56: 0 | AS56: 0 | AT56: 0 | AU56: 0 | AV56: 0 | AW56: 0 | AX56: 0 | AY56: 0 | AZ56: 0 | BA56: 0 | BB56: 0 | BC56: 0 | BD56: 0 | BE56: 0 | BF56: 0 | BG56: 0 | BH56: 0 | BI56: 0 | BJ56: 0 | BK56: 0 | BL56: 0 | BM56: 0 | BN56: 0 | BO56: 0 | BP56: 0 | BQ56: 0 | BR56: 0 | BS56: 0 | BT56: 0 | BU56: 0 | BV56: 0 | BW56: 0 | BX56: 0 | BY56: 0 | BZ56: 0 | CA56: 0 | CB56: 0 | CC56: 0 | CD56: 0 | CE56: 0 | CG56: 0 | CH56: 0 | CI56: 0 | CJ56: 0 | CK56: 0 | CL56: 0 | CM56: 0 | CN56: 0 | CO56: 0 | CP56: 0 | CQ56: 0 | CR56: 0 | CS56: 0 | CT56: 0 | CU56: 0 | CV56: 0 | CW56: 0 | CX56: 0 | CY56: 0 | CZ56: 0 | DA56: 0 | DB56: 0 | DC56: 0 | DD56: 0 | DE56: 0 | DF56: 0 | DG56: 0 | DH56: 0 | DI56: 0 | DJ56: 0 | DK56: 0 | DL56: 0 | DM56: 0 | DN56: 0 | DO56: 0 | DP56: 0 | DQ56: 0 | DR56: 0 | DS56: 0 | DT56: 0 | DU56: 0 | DV56: 0 | DW56: 0 | DX56: 0 | DY56: 0 | DZ56: 0 | EA56: 0 | EB56: 0 | EC56: 0 | ED56: 0 | EE56: 0 | EF56: 0 | EG56: 0 | EH56: 0 | EI56: 0 | EJ56: 0 | EK56: 0 | EL56: 0 | EM56: 0 | EN56: 0 | EO56: 0 | EP56: 0 | EQ56: 0 | ER56: 0 | ES56: 0 | ET56: 0 | EU56: 0 | EV56: 0 | EW56: 0 | EX56: 0 | EY56: 0 | EZ56: 0
A57: Conservation | D57: CON | E57: 0 | F57: 0 | G57: 0 | H57: 0 | I57: 0 | J57: 0 | L57: 0 | M57: 0 | N57: 0 | O57: 0 | P57: 0 | Q57: 0 | R57: 0 | S57: 0 | T57: 0 | U57: 0 | V57: 0 | W57: 0 | X57: 0 | Y57: 0 | Z57: 0 | AA57: 0 | AB57: 0 | AC57: 0 | AD57: 0 | AE57: 0 | AF57: 0 | AG57: 0 | AH57: 0 | AI57: 0 | AJ57: 0 | AK57: 0 | AL57: 0 | AM57: 0 | AN57: 0 | AO57: 0 | AP57: 0 | AQ57: 0 | AR57: 0 | AS57: 0 | AT57: 0 | AU57: 0 | AV57: 0 | AW57: 0 | AX57: 0 | AY57: 0 | AZ57: 0 | BA57: 0 | BB57: 0 | BC57: 0 | BD57: 0 | BE57: 0 | BF57: 0 | BG57: 0 | BH57: 0 | BI57: 0 | BJ57: 0 | BK57: 0 | BL57: 0 | BM57: 0 | BN57: 0 | BO57: 0 | BP57: 0 | BQ57: 0 | BR57: 0 | BS57: 0 | BT57: 0 | BU57: 0 | BV57: 0 | BW57: 0 | BX57: 0 | BY57: 0 | BZ57: 0 | CA57: 0 | CB57: 0 | CC57: 0 | CD57: 0 | CE57: 0 | CG57: 0 | CH57: 0 | CI57: 0 | CJ57: 0 | CK57: 0 | CL57: 0 | CM57: 0 | CN57: 0 | CO57: 0 | CP57: 0 | CQ57: 0 | CR57: 0 | CS57: 0 | CT57: 0 | CU57: 0 | CV57: 0 | CW57: 0 | CX57: 0 | CY57: 0 | CZ57: 0 | DA57: 0 | DB57: 0 | DC57: 0 | DD57: 0 | DE57: 0 | DF57: 0 | DG57: 0 | DH57: 0 | DI57: 0 | DJ57: 0 | DK57: 0 | DL57: 0 | DM57: 0 | DN57: 0 | DO57: 0 | DP57: 0 | DQ57: 0 | DR57: 0 | DS57: 0 | DT57: 0 | DU57: 0 | DV57: 0 | DW57: 0 | DX57: 0 | DY57: 0 | DZ57: 0 | EA57: 0 | EB57: 0 | EC57: 0 | ED57: 0 | EE57: 0 | EF57: 0 | EG57: 0 | EH57: 0 | EI57: 0 | EJ57: 0 | EK57: 0 | EL57: 0 | EM57: 0 | EN57: 0 | EO57: 0 | EP57: 0 | EQ57: 0 | ER57: 0 | ES57: 0 | ET57: 0 | EU57: 0 | EV57: 0 | EW57: 0 | EX57: 0 | EY57: 0 | EZ57: 0
A60: Loss Percentage | E60: =Loads_MthLoss!E54 -> 0.03209127801 | F60: =Loads_MthLoss!F54 -> 0.03209465241 | G60: =Loads_MthLoss!G54 -> 0.03209455804 | H60: =Loads_MthLoss!H54 -> 0.03209303989 | I60: =Loads_MthLoss!I54 -> 0.03209633594 | J60: =Loads_MthLoss!J54 -> 0.03209211774 | L60: 0.03199174407 | M60: 0.03199174407 | N60: 0.03199174407 | O60: 0.03199174407 | P60: 0.03199174407 | Q60: 0.03199174407 | R60: 0.03199174407 | S60: 0.03199174407 | T60: 0.03199174407 | U60: 0.03199174407 | V60: 0.03199174407 | W60: 0.03199174407 | X60: 0.03199174407 | Y60: 0.03199174407 | Z60: 0.03199174407 | AA60: 0.03199174407 | AB60: 0.03199174407 | AC60: 0.03199174407 | AD60: 0.03199174407 | AE60: 0.03199174407 | AF60: 0.03199174407 | AG60: 0.03199174407 | AH60: 0.03199174407 | AI60: 0.03199174407 | AJ60: 0.03199174407 | AK60: 0.03199174407 | AL60: 0.03199174407 | AM60: 0.03199174407 | AN60: 0.03199174407 | AO60: 0.03199174407 | AP60: 0.03199174407 | AQ60: 0.03199174407 | AR60: 0.03199174407 | AS60: 0.03199174407 | AT60: 0.03199174407 | AU60: 0.03199174407 | AV60: 0.03199174407 | AW60: 0.03199174407 | AX60: 0.03199174407 | AY60: 0.03199174407 | AZ60: 0.03199174407 | BA60: 0.03199174407 | BB60: 0.03199174407 | BC60: 0.03199174407 | BD60: 0.03199174407 | BE60: 0.03199174407 | BF60: 0.03199174407 | BG60: 0.03199174407 | BH60: 0.03199174407 | BI60: 0.03199174407 | BJ60: 0.03199174407 | BK60: 0.03199174407 | BL60: 0.03199174407 | BM60: 0.03199174407 | BN60: 0.03199174407 | BO60: 0.03199174407 | BP60: 0.03199174407 | BQ60: 0.03199174407 | BR60: 0.03199174407 | BS60: 0.03199174407 | BT60: 0.03199174407 | BU60: 0.03199174407 | BV60: 0.03199174407 | BW60: 0.03199174407 | BX60: 0.03199174407 | BY60: 0.03199174407 | BZ60: 0.03199174407 | CA60: 0.03199174407 | CB60: 0.03199174407 | CC60: 0.03199174407 | CD60: 0.03199174407 | CE60: 0.03199174407 | CG60: 0.03199174407 | CH60: 0.03199174407 | CI60: 0.03199174407 | CJ60: 0.03199174407 | CK60: 0.03199174407 | CL60: 0.03199174407 | CM60: 0.03199174407 | CN60: 0.03199174407 | CO60: 0.03199174407 | CP60: 0.03199174407 | CQ60: 0.03199174407 | CR60: 0.03060908997 | CS60: 0.03060908997 | CT60: 0.03060908997 | CU60: 0.03060908997 | CV60: 0.03060908997 | CW60: 0.03060908997 | CX60: 0.03060908997 | CY60: 0.03060908997 | CZ60: 0.03060908997 | DA60: 0.03060908997 | DB60: 0.03060908997 | DC60: 0.03060908997 | DD60: 0.03060908997 | DE60: 0.03199174407 | DF60: 0.03199174407 | DG60: 0.03199174407 | DH60: 0.03199174407 | DI60: 0.03199174407 | DJ60: 0.03199174407 | DK60: 0.03199174407 | DL60: 0.03199174407 | DM60: 0.03199174407 | DN60: 0.03199174407 | DO60: 0.03199174407 | DP60: 0.03199174407 | DQ60: 0.03199174407 | DR60: 0.03199174407 | DS60: 0.03199174407 | DT60: 0.03199174407 | DU60: 0.03199174407 | DV60: 0.03199174407 | DW60: 0.03199174407 | DX60: 0.03199174407 | DY60: 0.03199174407 | DZ60: 0.03199174407 | EA60: 0.03199174407 | EB60: 0.03199174407 | EC60: 0.03199174407 | ED60: 0.03199174407 | EE60: 0.03199174407 | EF60: 0.03199174407 | EG60: 0.03199174407 | EH60: 0.03199174407 | EI60: 0.03199174407 | EJ60: 0.03199174407 | EK60: 0.03199174407 | EL60: 0.03199174407 | EM60: 0.03199174407 | EN60: 0.03199174407 | EO60: 0.03199174407 | EP60: 0.03199174407 | EQ60: 0.03199174407 | ER60: 0.03199174407 | ES60: 0.03199174407 | ET60: 0.03199174407 | EU60: 0.03199174407 | EV60: 0.03199174407 | EW60: 0.03199174407 | EX60: 0.03199174407 | EY60: 0.03199174407 | EZ60: 0.03199174407

Sheet Loads
B1: Loads (MWh)
A2: TOC | B2: =Cover!$C$14 -> FY 2022-23 Reference Case
A3: é | E3: Annual | L3: HLH | CG3: LLH
E4: =Init!$C$9 -> 2022 | F4: =E4+1 -> 2023 | G4: =F4+1 -> 2024 | H4: 2025 | I4: 2026 | J4: 2027 | L4: =DATE($E$4-1,10,1) -> 2021-10-01 | M4: =EOMONTH(L4,0)+1 -> 2021-11-01 | N4: =EOMONTH(M4,0)+1 -> 2021-12-01 | O4: 2022-01-01 | P4: 2022-02-01 | Q4: 2022-03-01 | R4: 2022-04-01 | S4: 2022-05-01 | T4: 2022-06-01 | U4: 2022-07-01 | V4: 2022-08-01 | W4: 2022-09-01 | X4: 2022-10-01 | Y4: 2022-11-01 | Z4: 2022-12-01 | AA4: 2023-01-01 | AB4: 2023-02-01 | AC4: 2023-03-01 | AD4: 2023-04-01 | AE4: 2023-05-01 | AF4: 2023-06-01 | AG4: 2023-07-01 | AH4: 2023-08-01 | AI4: 2023-09-01 | AJ4: 2023-10-01 | AK4: 2023-11-01 | AL4: 2023-12-01 | AM4: 2024-01-01 | AN4: 2024-02-01 | AO4: 2024-03-01 | AP4: 2024-04-01 | AQ4: 2024-05-01 | AR4: 2024-06-01 | AS4: 2024-07-01 | AT4: 2024-08-01 | AU4: 2024-09-01 | AV4: 2024-10-01 | AW4: 2024-11-01 | AX4: 2024-12-01 | AY4: 2025-01-01 | AZ4: 2025-02-01 | BA4: 2025-03-01 | BB4: 2025-04-01 | BC4: 2025-05-01 | BD4: 2025-06-01 | BE4: 2025-07-01 | BF4: 2025-08-01 | BG4: 2025-09-01 | BH4: 2025-10-01 | BI4: 2025-11-01 | BJ4: 2025-12-01 | BK4: 2026-01-01 | BL4: 2026-02-01 | BM4: 2026-03-01 | BN4: 2026-04-01 | BO4: 2026-05-01 | BP4: 2026-06-01 | BQ4: 2026-07-01 | BR4: 2026-08-01 | BS4: 2026-09-01 | BT4: 2026-10-01 | BU4: 2026-11-01 | BV4: 2026-12-01 | BW4: 2027-01-01 | BX4: 2027-02-01 | BY4: 2027-03-01 | BZ4: =EOMONTH(BY4,0)+1 -> 2027-04-01 | CA4: 2027-05-01 | CB4: 2027-06-01 | CC4: 2027-07-01 | CD4: 2027-08-01 | CE4: 2027-09-01 | CG4: =DATE($E$4-1,10,1) -> 2021-10-01 | CH4: =EOMONTH(CG4,0)+1 -> 2021-11-01 | CI4: =EOMONTH(CH4,0)+1 -> 2021-12-01 | CJ4: 2022-01-01 | CK4: 2022-02-01 | CL4: 2022-03-01 | CM4: 2022-04-01 | CN4: 2022-05-01 | CO4: 2022-06-01 | CP4: 2022-07-01 | CQ4: 2022-08-01 | CR4: 2022-09-01 | CS4: 2022-10-01 | CT4: 2022-11-01 | CU4: 2022-12-01 | CV4: 2023-01-01 | CW4: 2023-02-01 | CX4: 2023-03-01 | CY4: 2023-04-01 | CZ4: 2023-05-01 | DA4: 2023-06-01 | DB4: 2023-07-01 | DC4: 2023-08-01 | DD4: 2023-09-01 | DE4: 2023-10-01 | DF4: 2023-11-01 | DG4: 2023-12-01 | DH4: 2024-01-01 | DI4: 2024-02-01 | DJ4: 2024-03-01 | DK4: 2024-04-01 | DL4: 2024-05-01 | DM4: 2024-06-01 | DN4: 2024-07-01 | DO4: 2024-08-01 | DP4: 2024-09-01 | DQ4: 2024-10-01 | DR4: 2024-11-01 | DS4: 2024-12-01 | DT4: 2025-01-01 | DU4: 2025-02-01 | DV4: 2025-03-01 | DW4: 2025-04-01 | DX4: 2025-05-01 | DY4: 2025-06-01 | DZ4: 2025-07-01 | EA4: 2025-08-01 | EB4: 2025-09-01 | EC4: 2025-10-01 | ED4: 2025-11-01 | EE4: 2025-12-01 | EF4: 2026-01-01 | EG4: 2026-02-01 | EH4: 2026-03-01 | EI4: 2026-04-01 | EJ4: 2026-05-01 | EK4: 2026-06-01 | EL4: 2026-07-01 | EM4: 2026-08-01 | EN4: 2026-09-01 | EO4: 2026-10-01 | EP4: 2026-11-01 | EQ4: 2026-12-01 | ER4: 2027-01-01 | ES4: 2027-02-01 | ET4: 2027-03-01 | EU4: =EOMONTH(ET4,0)+1 -> 2027-04-01 | EV4: 2027-05-01 | EW4: 2027-06-01 | EX4: 2027-07-01 | EY4: 2027-08-01 | EZ4: 2027-09-01
A5: Preference | D5: PRE | E5: =+SUM(E6:E10) -> 57217146.7 | F5: 57654212.35 | G5: 58519425.55 | H5: 58668127.59 | I5: 58875647.78 | J5: 59075592.79 | L5: =LoadScenarioInput!L11 -> 2632603.448 | M5: =LoadScenarioInput!M11 -> 3020734.101 | N5: =LoadScenarioInput!N11 -> 3383739.639 | O5: =LoadScenarioInput!O11 -> 3262342.751 | P5: =LoadScenarioInput!P11 -> 2828177.244 | Q5: =LoadScenarioInput!Q11 -> 2989277.209 | R5: =LoadScenarioInput!R11 -> 2490490.657 | S5: =LoadScenarioInput!S11 -> 2596543.13 | T5: =LoadScenarioInput!T11 -> 2783828.22 | U5: =LoadScenarioInput!U11 -> 2848503.731 | V5: =LoadScenarioInput!V11 -> 2923484.155 | W5: =LoadScenarioInput!W11 -> 2562607.356 | X5: =LoadScenarioInput!X11 -> 2660206.663 | Y5: =LoadScenarioInput!Y11 -> 3058206.531 | Z5: =LoadScenarioInput!Z11 -> 3450553.974 | AA5: =LoadScenarioInput!AA11 -> 3277283.628 | AB5: =LoadScenarioInput!AB11 -> 2861749.837 | AC5: =LoadScenarioInput!AC11 -> 3026330.538 | AD5: =LoadScenarioInput!AD11 -> 2478652.701 | AE5: =LoadScenarioInput!AE11 -> 2603794.151 | AF5: =LoadScenarioInput!AF11 -> 2748815.275 | AG5: =LoadScenarioInput!AG11 -> 2874517.666 | AH5: =LoadScenarioInput!AH11 -> 2955545.762 | AI5: =LoadScenarioInput!AI11 -> 2596477.801 | AJ5: =LoadScenarioInput!AJ11 -> 2641885.349 | AK5: =LoadScenarioInput!AK11 -> 3060900.596 | AL5: =LoadScenarioInput!AL11 -> 3442012.959 | AM5: =LoadScenarioInput!AM11 -> 3398441.082 | AN5: =LoadScenarioInput!AN11 -> 2974286.807 | AO5: =LoadScenarioInput!AO11 -> 2982614.019 | AP5: =LoadScenarioInput!AP11 -> 2567114.308 | AQ5: =LoadScenarioInput!AQ11 -> 2643265.006 | AR5: =LoadScenarioInput!AR11 -> 2729890.63 | AS5: =LoadScenarioInput!AS11 -> 2874969.61 | AT5: =LoadScenarioInput!AT11 -> 2937443.066 | AU5: =LoadScenarioInput!AU11 -> 2529448.331 | AV5: =LoadScenarioInput!AV11 -> 2727317.141 | AW5: =LoadScenarioInput!AW11 -> 3081894.834 | AX5: =LoadScenarioInput!AX11 -> 3462619.407 | AY5: =LoadScenarioInput!AY11 -> 3421170.429 | AZ5: =LoadScenarioInput!AZ11 -> 2931281.093 | BA5: =LoadScenarioInput!BA11 -> 3002570.423 | BB5: =LoadScenarioInput!BB11 -> 2581488.694 | BC5: =LoadScenarioInput!BC11 -> 2567223.133 | BD5: =LoadScenarioInput!BD11 -> 2658627.302 | BE5: =LoadScenarioInput!BE11 -> 2866677.533 | BF5: =LoadScenarioInput!BF11 -> 2866457.196 | BG5: =LoadScenarioInput!BG11 -> 2606739.988 | BH5: =LoadScenarioInput!BH11 -> 2732246.011 | BI5: =LoadScenarioInput!BI11 -> 3012404.243 | BJ5: =LoadScenarioInput!BJ11 -> 3542322.483 | BK5: =LoadScenarioInput!BK11 -> 3422713.045 | BL5: =LoadScenarioInput!BL11 -> 2925651.297 | BM5: =LoadScenarioInput!BM11 -> 2998925.921 | BN5: =LoadScenarioInput!BN11 -> 2593480.892 | BO5: =LoadScenarioInput!BO11 -> 2605921.353 | BP5: =LoadScenarioInput!BP11 -> 2832024.643 | BQ5: =LoadScenarioInput!BQ11 -> 2899011.62 | BR5: =LoadScenarioInput!BR11 -> 2894079.628 | BS5: =LoadScenarioInput!BS11 -> 2609935.602 | BT5: =LoadScenarioInput!BT11 -> 2756976.263 | BU5: =LoadScenarioInput!BU11 -> 3034519.787 | BV5: =LoadScenarioInput!BV11 -> 3563190.92 | BW5: =LoadScenarioInput!BW11 -> 3374800.949 | BX5: =LoadScenarioInput!BX11 -> 2955069.272 | BY5: =LoadScenarioInput!BY11 -> 3087701.317 | BZ5: =LoadScenarioInput!BZ11 -> 2612969.196 | CA5: =LoadScenarioInput!CA11 -> 2559334.699 | CB5: =LoadScenarioInput!CB11 -> 2785832.415 | CC5: =LoadScenarioInput!CC11 -> 2917745.398 | CD5: =LoadScenarioInput!CD11 -> 2913019.884 | CE5: =LoadScenarioInput!CE11 -> 2627362.45 | CG5: =LoadScenarioInput!CG11 -> 1711976.133 | CH5: =LoadScenarioInput!CH11 -> 2100676.401 | CI5: =LoadScenarioInput!CI11 -> 2481647.956 | CJ5: =LoadScenarioInput!CJ11 -> 2421878.653 | CK5: =LoadScenarioInput!CK11 -> 1946998.585 | CL5: =LoadScenarioInput!CL11 -> 1965563.07 | CM5: =LoadScenarioInput!CM11 -> 1636396.312 | CN5: =LoadScenarioInput!CN11 -> 1725175.994 | CO5: =LoadScenarioInput!CO11 -> 1575249.077 | CP5: =LoadScenarioInput!CP11 -> 1894679.116 | CQ5: =LoadScenarioInput!CQ11 -> 1722930.744 | CR5: =LoadScenarioInput!CR11 -> 1711643.015 | CS5: =LoadScenarioInput!CS11 -> 1721962.12 | CT5: =LoadScenarioInput!CT11 -> 2117401.702 | CU5: =LoadScenarioInput!CU11 -> 2476926.445 | CV5: =LoadScenarioInput!CV11 -> 2471344.788 | CW5: =LoadScenarioInput!CW11 -> 1969906.558 | CX5: =LoadScenarioInput!CX11 -> 1987135.133 | CY5: =LoadScenarioInput!CY11 -> 1702027.277 | CZ5: =LoadScenarioInput!CZ11 -> 1652455.757 | DA5: =LoadScenarioInput!DA11 -> 1553324.059 | DB5: =LoadScenarioInput!DB11 -> 1921586.428 | DC5: =LoadScenarioInput!DC11 -> 1746287.399 | DD5: =LoadScenarioInput!DD11 -> 1741720.164 | DE5: =LoadScenarioInput!DE11 -> 1777770.53 | DF5: =LoadScenarioInput!DF11 -> 2146605.246 | DG5: =LoadScenarioInput!DG11 -> 2539027.328 | DH5: =LoadScenarioInput!DH11 -> 2397662.263 | DI5: =LoadScenarioInput!DI11 -> 1982336.293 | DJ5: =LoadScenarioInput!DJ11 -> 2062760.094 | DK5: =LoadScenarioInput!DK11 -> 1696477.41 | DL5: =LoadScenarioInput!DL11 -> 1826884.051 | DM5: =LoadScenarioInput!DM11 -> 1758383.214 | DN5: =LoadScenarioInput!DN11 -> 1929303.803 | DO5: =LoadScenarioInput!DO11 -> 1786379.028 | DP5: =LoadScenarioInput!DP11 -> 1833564.526 | DQ5: =LoadScenarioInput!DQ11 -> 1732260.646 | DR5: =LoadScenarioInput!DR11 -> 2164302.331 | DS5: =LoadScenarioInput!DS11 -> 2560484.778 | DT5: =LoadScenarioInput!DT11 -> 2416245.765 | DU5: =LoadScenarioInput!DU11 -> 1971648.238 | DV5: =LoadScenarioInput!DV11 -> 2080530.355 | DW5: =LoadScenarioInput!DW11 -> 1720048.07 | DX5: =LoadScenarioInput!DX11 -> 1828536.713 | DY5: =LoadScenarioInput!DY11 -> 1764380.028 | DZ5: =LoadScenarioInput!DZ11 -> 1978425.255 | EA5: =LoadScenarioInput!EA11 -> 1890167.938 | EB5: =LoadScenarioInput!EB11 -> 1787030.297 | EC5: =LoadScenarioInput!EC11 -> 1732465.084 | ED5: =LoadScenarioInput!ED11 -> 2236250.06 | EE5: =LoadScenarioInput!EE11 -> 2480954.554 | EF5: =LoadScenarioInput!EF11 -> 2414197.185 | EG5: =LoadScenarioInput!EG11 -> 1965397.534 | EH5: =LoadScenarioInput!EH11 -> 2067916.452 | EI5: =LoadScenarioInput!EI11 -> 1709026.239 | EJ5: =LoadScenarioInput!EJ11 -> 1910497.567 | EK5: =LoadScenarioInput!EK11 -> 1702911.5 | EL5: =LoadScenarioInput!EL11 -> 1942700.859 | EM5: =LoadScenarioInput!EM11 -> 1861051.741 | EN5: =LoadScenarioInput!EN11 -> 1783562.272 | EO5: =LoadScenarioInput!EO11 -> 1745522.205 | EP5: =LoadScenarioInput!EP11 -> 2251505.676 | EQ5: =LoadScenarioInput!EQ11 -> 2502034.659 | ER5: =LoadScenarioInput!ER11 -> 2501511.223 | ES5: =LoadScenarioInput!ES11 -> 1983617.227 | ET5: =LoadScenarioInput!ET11 -> 2031070.594 | EU5: =LoadScenarioInput!EU11 -> 1719269.15 | EV5: =LoadScenarioInput!EV11 -> 1863109.388 | EW5: =LoadScenarioInput!EW11 -> 1665252.631 | EX5: =LoadScenarioInput!EX11 -> 1953930.791 | EY5: =LoadScenarioInput!EY11 -> 1874366.365 | EZ5: =LoadScenarioInput!EZ11 -> 1795880.336
B6: Block | D6: PRE_BLK | E6: =+SUM(L6:W6,CG6:CR6) -> 4155927.888 | F6: =+SUM(X6:AI6,CS6:DD6) -> 4144329.695 | G6: =+SUM(AJ6:AU6,DE6:DP6) -> 4298634.864 | H6: =+SUM(AV6:BG6,DQ6:EB6) -> 4257920.64 | I6: =+SUM(BH6:BS6,EC6:EN6) -> 4271481.12 | J6: =+SUM(BT6:CE6,EO6:EZ6) -> 4265708.28 | L6: =LoadScenarioInput!L12 -> 198793.984 | M6: =LoadScenarioInput!M12 -> 307244.07 | N6: =LoadScenarioInput!N12 -> 319366.945 | O6: =LoadScenarioInput!O12 -> 347026.28 | P6: =LoadScenarioInput!P12 -> 294201.174 | Q6: =LoadScenarioInput!Q12 -> 309814.582 | R6: =LoadScenarioInput!R12 -> 154408.832 | S6: =LoadScenarioInput!S12 -> 57927.664 | T6: =LoadScenarioInput!T12 -> 8747.088 | U6: =LoadScenarioInput!U12 -> 127056.699 | V6: =LoadScenarioInput!V12 -> 143053.476 | W6: =LoadScenarioInput!W12 -> 225915.918 | X6: =LoadScenarioInput!X12 -> 198237.265 | Y6: =LoadScenarioInput!Y12 -> 306360.289 | Z6: =LoadScenarioInput!Z12 -> 318469.258 | AA6: =LoadScenarioInput!AA12 -> 346052.03 | AB6: =LoadScenarioInput!AB12 -> 293373.081 | AC6: =LoadScenarioInput!AC12 -> 308937.77 | AD6: =LoadScenarioInput!AD12 -> 153984.332 | AE6: =LoadScenarioInput!AE12 -> 57788.485 | AF6: =LoadScenarioInput!AF12 -> 8747.088 | AG6: =LoadScenarioInput!AG12 -> 126722.66 | AH6: =LoadScenarioInput!AH12 -> 142656.812 | AI6: =LoadScenarioInput!AI12 -> 225268.73 | AJ6: =LoadScenarioInput!AJ12 -> 205634.6381 | AK6: =LoadScenarioInput!AK12 -> 317991.5604 | AL6: =LoadScenarioInput!AL12 -> 330381.554 | AM6: =LoadScenarioInput!AM12 -> 358985.8226 | AN6: =LoadScenarioInput!AN12 -> 304356.4664 | AO6: =LoadScenarioInput!AO12 -> 320544.5053 | AP6: =LoadScenarioInput!AP12 -> 159662.8205 | AQ6: =LoadScenarioInput!AQ12 -> 59748.36394 | AR6: =LoadScenarioInput!AR12 -> 8864.580902 | AS6: =LoadScenarioInput!AS12 -> 131265.5943 | AT6: =LoadScenarioInput!AT12 -> 147946.4261 | AU6: =LoadScenarioInput!AU12 -> 233798.5858 | AV6: =LoadScenarioInput!AV12 -> 203682.2675 | AW6: =LoadScenarioInput!AW12 -> 314915.2688 | AX6: =LoadScenarioInput!AX12 -> 327236.6468 | AY6: =LoadScenarioInput!AY12 -> 355571.5641 | AZ6: =LoadScenarioInput!AZ12 -> 301456.4819 | BA6: =LoadScenarioInput!BA12 -> 317478.62 | BB6: =LoadScenarioInput!BB12 -> 158166.3061 | BC6: =LoadScenarioInput!BC12 -> 59237.4852 | BD6: =LoadScenarioInput!BD12 -> 8840.360736 | BE6: =LoadScenarioInput!BE12 -> 130072.6287 | BF6: =LoadScenarioInput!BF12 -> 146551.4502 | BG6: =LoadScenarioInput!BG12 -> 231543.3038 | BH6: =LoadScenarioInput!BH12 -> 204332.9813 | BI6: =LoadScenarioInput!BI12 -> 315945.9914 | BJ6: =LoadScenarioInput!BJ12 -> 328285.5972 | BK6: =LoadScenarioInput!BK12 -> 356710.0768 | BL6: =LoadScenarioInput!BL12 -> 302424.0064 | BM6: =LoadScenarioInput!BM12 -> 318502.5939 | BN6: =LoadScenarioInput!BN12 -> 158663.2504 | BO6: =LoadScenarioInput!BO12 -> 59402.41848 | BP6: =LoadScenarioInput!BP12 -> 8842.757472 | BQ6: =LoadScenarioInput!BQ12 -> 130465.1889 | BR6: =LoadScenarioInput!BR12 -> 147015.4709 | BS6: =LoadScenarioInput!BS12 -> 232298.3388 | BT6: =LoadScenarioInput!BT12 -> 204055.885 | BU6: =LoadScenarioInput!BU12 -> 315506.101 | BV6: =LoadScenarioInput!BV12 -> 327838.7794 | BW6: =LoadScenarioInput!BW12 -> 356225.1582 | BX6: =LoadScenarioInput!BX12 -> 302011.8256 | BY6: =LoadScenarioInput!BY12 -> 318066.1672 | BZ6: =LoadScenarioInput!BZ12 -> 158451.9645 | CA6: =LoadScenarioInput!CA12 -> 59333.1444 | CB6: =LoadScenarioInput!CB12 -> 8842.757472 | CC6: =LoadScenarioInput!CC12 -> 130298.9311 | CD6: =LoadScenarioInput!CD12 -> 146818.0398 | CE6: =LoadScenarioInput!CE12 -> 231976.2143 | CG6: =LoadScenarioInput!CG12 -> 132529.303 | CH6: =LoadScenarioInput!CH12 -> 204829.359 | CI6: =LoadScenarioInput!CI12 -> 212911.309 | CJ6: =LoadScenarioInput!CJ12 -> 231350.861 | CK6: =LoadScenarioInput!CK12 -> 196134.147 | CL6: =LoadScenarioInput!CL12 -> 206543.098 | CM6: =LoadScenarioInput!CM12 -> 102939.211 | CN6: =LoadScenarioInput!CN12 -> 38618.438 | CO6: =LoadScenarioInput!CO12 -> 5831.393 | CP6: =LoadScenarioInput!CP12 -> 84704.455 | CQ6: =LoadScenarioInput!CQ12 -> 95368.985 | CR6: =LoadScenarioInput!CR12 -> 150610.617 | CS6: =LoadScenarioInput!CS12 -> 132158.178 | CT6: =LoadScenarioInput!CT12 -> 204240.172 | CU6: =LoadScenarioInput!CU12 -> 212312.84 | CV6: =LoadScenarioInput!CV12 -> 230701.361 | CW6: =LoadScenarioInput!CW12 -> 195582.053 | CX6: =LoadScenarioInput!CX12 -> 205958.536 | CY6: =LoadScenarioInput!CY12 -> 102656.211 | CZ6: =LoadScenarioInput!CZ12 -> 38525.656 | DA6: =LoadScenarioInput!DA12 -> 5831.393 | DB6: =LoadScenarioInput!DB12 -> 84481.775 | DC6: =LoadScenarioInput!DC12 -> 95104.54 | DD6: =LoadScenarioInput!DD12 -> 150179.18 | DE6: =LoadScenarioInput!DE12 -> 137089.7588 | DF6: =LoadScenarioInput!DF12 -> 211994.3736 | DG6: =LoadScenarioInput!DG12 -> 220254.3694 | DH6: =LoadScenarioInput!DH12 -> 239323.8817 | DI6: =LoadScenarioInput!DI12 -> 202904.3109 | DJ6: =LoadScenarioInput!DJ12 -> 213696.3368 | DK6: =LoadScenarioInput!DK12 -> 106441.8803 | DL6: =LoadScenarioInput!DL12 -> 39832.24262 | DM6: =LoadScenarioInput!DM12 -> 5909.720602 | DN6: =LoadScenarioInput!DN12 -> 87510.39621 | DO6: =LoadScenarioInput!DO12 -> 98630.95075 | DP6: =LoadScenarioInput!DP12 -> 155865.7239 | DQ6: =LoadScenarioInput!DQ12 -> 135788.1783 | DR6: =LoadScenarioInput!DR12 -> 209943.5125 | DS6: =LoadScenarioInput!DS12 -> 218157.7645 | DT6: =LoadScenarioInput!DT12 -> 237047.7094 | DU6: =LoadScenarioInput!DU12 -> 200970.9879 | DV6: =LoadScenarioInput!DV12 -> 211652.4133 | DW6: =LoadScenarioInput!DW12 -> 105444.2041 | DX6: =LoadScenarioInput!DX12 -> 39491.6568 | DY6: =LoadScenarioInput!DY12 -> 5893.573824 | DZ6: =LoadScenarioInput!DZ12 -> 86715.08582 | EA6: =LoadScenarioInput!EA12 -> 97700.96678 | EB6: =LoadScenarioInput!EB12 -> 154362.2026 | EC6: =LoadScenarioInput!EC12 -> 136221.9876 | ED6: =LoadScenarioInput!ED12 -> 210630.661 | EE6: =LoadScenarioInput!EE12 -> 218857.0648 | EF6: =LoadScenarioInput!EF12 -> 237806.7179 | EG6: =LoadScenarioInput!EG12 -> 201616.0043 | EH6: =LoadScenarioInput!EH12 -> 212335.0626 | EI6: =LoadScenarioInput!EI12 -> 105775.5003 | EJ6: =LoadScenarioInput!EJ12 -> 39601.61232 | EK6: =LoadScenarioInput!EK12 -> 5895.171648 | EL6: =LoadScenarioInput!EL12 -> 86976.79258 | EM6: =LoadScenarioInput!EM12 -> 98010.31392 | EN6: =LoadScenarioInput!EN12 -> 154865.5592 | EO6: =LoadScenarioInput!EO12 -> 136037.2567 | EP6: =LoadScenarioInput!EP12 -> 210337.4007 | EQ6: =LoadScenarioInput!EQ12 -> 218559.1863 | ER6: =LoadScenarioInput!ER12 -> 237483.4388 | ES6: =LoadScenarioInput!ES12 -> 201341.2171 | ET6: =LoadScenarioInput!ET12 -> 212044.1115 | EU6: =LoadScenarioInput!EU12 -> 105634.643 | EV6: =LoadScenarioInput!EV12 -> 39555.4296 | EW6: =LoadScenarioInput!EW12 -> 5895.171648 | EX6: =LoadScenarioInput!EX12 -> 86865.95405 | EY6: =LoadScenarioInput!EY12 -> 97878.69317 | EZ6: =LoadScenarioInput!EZ12 -> 154650.8095
B7: Slice Block | D7: PRE_BLK | E7: =+SUM(L7:W7,CG7:CR7) -> 11330797.57 | F7: =+SUM(X7:AI7,CS7:DD7) -> 11775170.03 | G7: =+SUM(AJ7:AU7,DE7:DP7) -> 11555041.85 | H7: =+SUM(AV7:BG7,DQ7:EB7) -> 11712801.69 | I7: =+SUM(BH7:BS7,EC7:EN7) -> 11462884.44 | J7: =+SUM(BT7:CE7,EO7:EZ7) -> 11703633.2 | L7: 486728.639 | M7: 546509.057 | N7: 651089.3 | O7: 623390.797 | P7: 548384.243 | Q7: 568712.97 | R7: 509233.326 | S7: 476337.738 | T7: 483955.023 | U7: 486766.062 | V7: 514022.208 | W7: 454366.176 | X7: 506452.068 | Y7: 567696.396 | Z7: 675275.011 | AA7: 646455.262 | AB7: 569240.097 | AC7: 590901.585 | AD7: 509505.274 | AE7: 515078.806 | AF7: 503384.661 | AG7: 506142.192 | AH7: 534711.849 | AI7: 473171.872 | AJ7: 496422.2368 | AK7: 556993.2499 | AL7: 637335.8929 | AM7: 659980.8115 | AN7: 561672.1722 | AO7: 558258.9465 | AP7: 519746.1025 | AQ7: 505820.8558 | AR7: 475050.5516 | AS7: 516937.6489 | AT7: 524870.2348 | AU7: 445484.3382 | AV7: 522661.0052 | AW7: 564606.9605 | AX7: 646062.5638 | AY7: 669025.5548 | AZ7: 566155.5481 | BA7: 565847.9383 | BB7: 526842.9735 | BC7: 512686.6705 | BD7: 481436.2398 | BE7: 523933.6975 | BF7: 512323.292 | BG7: 470384.5183 | BH7: 511589.0809 | BI7: 530350.0776 | BJ7: 657433.835 | BK7: 654756.0705 | BL7: 554008.4744 | BM7: 553498.6924 | BN7: 515446.8882 | BO7: 482485.7936 | BP7: 490142.9585 | BQ7: 512998.6061 | BR7: 501650.4853 | BS7: 460334.3442 | BT7: 522516.9591 | BU7: 541461.0155 | BV7: 671168.4025 | BW7: 642748.3818 | BX7: 565689.8552 | BY7: 586789.6105 | BZ7: 526301.317 | CA7: 492532.8125 | CB7: 500405.4398 | CC7: 523748.0057 | CD7: 512244.4937 | CE7: 470058.489 | CG7: 383766.478 | CH7: 438564.684 | CI7: 513358.391 | CJ7: 536125.614 | CK7: 411285.747 | CL7: 409414.989 | CM7: 372128.674 | CN7: 409657.713 | CO7: 353656.216 | CP7: 418626.228 | CQ7: 371230.896 | CR7: 363486.397 | CS7: 399317.623 | CT7: 455567.182 | CU7: 532427.856 | CV7: 555961.39 | CW7: 426927.565 | CX7: 425388.538 | CY7: 407596.886 | CZ7: 406119.429 | DA7: 367854.681 | DB7: 435289.98 | DC7: 386173.141 | DD7: 378530.685 | DE7: 391409.8406 | DF7: 446987.0831 | DG7: 548108.8679 | DH7: 520369.486 | DI7: 415637.4074 | DJ7: 438823.7392 | DK7: 379814.4595 | DL7: 398820.2902 | DM7: 380040.4413 | DN7: 407585.454 | DO7: 379072.9473 | DP7: 389798.796 | DQ7: 377477.3926 | DR7: 453097.0858 | DS7: 555613.8049 | DT7: 527500.9182 | DU7: 424616.6611 | DV7: 444789.1245 | DW7: 385000.6345 | DX7: 404233.7209 | DY7: 385148.9918 | DZ7: 413101.5692 | EA7: 403947.211 | EB7: 376307.6146 | EC7: 369481.0029 | ED7: 465437.4379 | EE7: 518361.293 | EF7: 516249.9787 | EG7: 415506.3558 | EH7: 435081.9048 | EI7: 376672.726 | EJ7: 414937.7825 | EK7: 358181.3928 | EL7: 404479.6702 | EM7: 395532.1134 | EN7: 368267.4753 | EO7: 377373.3593 | EP7: 475188.4433 | EQ7: 529190.4712 | ER7: 552763.6083 | ES7: 424267.3914 | ET7: 422434.1872 | EU7: 384604.8086 | EV7: 423578.2188 | EW7: 365680.8983 | EX7: 412955.1583 | EY7: 403885.0816 | EZ7: 376046.7912
B8: Slice | D8: PRE_SNB | E8: =+SUM(L8:W8,CG8:CR8) -> 13322796.44 | F8: =+SUM(X8:AI8,CS8:DD8) -> 13064358.12 | G8: 13475739.14 | H8: 13235143.95 | I8: 13470922.56 | J8: 13210647.76 | L8: 651447.8656 | M8: 787848.7199 | N8: 704823.6185 | O8: 604141.5501 | P8: 524981.981 | Q8: 660956.0518 | R8: 518515.6992 | S8: 813224.996 | T8: 917934.8486 | U8: 786875.7978 | V8: 767202.654 | W8: 673001.327 | X8: 654500.3827 | Y8: 794199.0525 | Z8: 736694.4785 | AA8: 581391.9152 | AB8: 524188.9935 | AC8: 663326.1745 | AD8: 513012.8536 | AE8: 749920.3005 | AF8: 849732.0852 | AG8: 780587.7956 | AH8: 765282.3551 | AI8: 669922.8616 | AJ8: 606971.647 | AK8: 777184.6355 | AL8: 761477.1775 | AM8: 627378.6203 | AN8: 573668.0714 | AO8: 642287.1156 | AP8: 543599.2934 | AQ8: 777579.07 | AR8: 853124.5061 | AS8: 723976.3422 | AT8: 727117.0823 | AU8: 615183.0421 | AV8: 630243.6657 | AW8: 778038.8728 | AX8: 759695.5102 | AY8: 626903.7202 | AZ8: 550758.2766 | BA8: 640677.5525 | BB8: 535452.8118 | BC8: 681689.7389 | BD8: 757524.0683 | BE8: 691625.7957 | BF8: 674336.1765 | BG8: 639656.3752 | BH8: 630416.3928 | BI8: 749185.0471 | BJ8: 791085.1277 | BK8: 627727.9762 | BL8: 551153.8449 | BM8: 645443.822 | BN8: 546206.5199 | BO8: 755256.445 | BP8: 893669.4187 | BQ8: 723441.4903 | BR8: 700409.5677 | BS8: 641961.4714 | BT8: 633244.7128 | BU8: 750892.6113 | BV8: 790908.1806 | BW8: 602345.3724 | BX8: 551430.621 | BY8: 666749.7495 | BZ8: 544542.4519 | CA8: 689231.8124 | CB8: 826304.3046 | CC8: 721478.1122 | CD8: 697918.4694 | CE8: 640260.3501 | CG8: 367637.6814 | CH8: 502651.4179 | CI8: 558001.0774 | CJ8: 438622.4603 | CK8: 379026.898 | CL8: 418248.954 | CM8: 320979.7008 | CN8: 408309.5617 | CO8: 376538.4367 | CP8: 391069.4284 | CQ8: 368699.8483 | CR8: 382055.8631 | CS8: 362427.932 | CT8: 493305.0323 | CU8: 523773.5567 | CV8: 459779.1801 | CW8: 377952.9569 | CX8: 413738.4696 | CY8: 321329.8392 | CZ8: 348046.6656 | DA8: 334344.8731 | DB8: 394646.1408 | DC8: 368873.0133 | DD8: 383381.2096 | DE8: 401896.3495 | DF8: 505026.0727 | DG8: 516150.2244 | DH8: 425758.5835 | DI8: 360307.0127 | DJ8: 430357.801 | DK8: 346011.7727 | DL8: 511519.9237 | DM8: 495683.3189 | DN8: 434164.3712 | DO8: 395875.6179 | DP8: 423441.4862 | DQ8: 379361.4871 | DR8: 504381.0308 | DS8: 518284.9771 | DT8: 427160.3855 | DU8: 351172.0407 | DV8: 432386.9969 | DW8: 354559.3122 | DX8: 495459.6306 | DY8: 490508.0103 | DZ8: 466808.5102 | EA8: 448059.1647 | EB8: 400399.8382 | EC8: 378810.2552 | ED8: 532777.4707 | EE8: 488003.5418 | EF8: 426780.4647 | EG8: 351063.9886 | EH8: 427940.6418 | EI8: 344363.4198 | EJ8: 544192.5561 | EK8: 467466.2463 | EL8: 433807.963 | EM8: 421577.4991 | EN8: 398181.3892 | EO8: 378345.9711 | EP8: 531524.9981 | EQ8: 488838.7956 | ER8: 450474.143 | ES8: 349051.9104 | ET8: 405265.3056 | EU8: 340955.7336 | EV8: 482191.7592 | EW8: 417977.6398 | EX8: 431743.5179 | EY8: 421617.2554 | EZ8: 397353.9825
B9: Load Following | D9: PRE_LDF | E9: 27035896.41 | F9: 27153104.99 | G9: 27496612.61 | H9: 27470298.63 | I9: 27507839.78 | J9: 27505787.95 | L9: 1230491.519 | M9: 1316496.254 | N9: 1643318.335 | O9: 1625148.124 | P9: 1400479.286 | Q9: 1382146.725 | R9: 1243191.36 | S9: 1186416.732 | T9: 1308049.82 | U9: 1385169.172 | V9: 1431558.937 | W9: 1146687.935 | X9: 1228964.915 | Y9: 1320669.993 | Z9: 1648063.195 | AA9: 1634103.621 | AB9: 1408438.097 | AC9: 1388341.744 | AD9: 1232869.441 | AE9: 1208954.528 | AF9: 1314899.409 | AG9: 1391784.218 | AH9: 1438071.482 | AI9: 1158833.537 | AJ9: 1252508.682 | AK9: 1331536.663 | AL9: 1635161.858 | AM9: 1671741.683 | AN9: 1456978.62 | AO9: 1381593.298 | AP9: 1264724.926 | AQ9: 1220139.563 | AR9: 1316274.491 | AS9: 1422562.877 | AT9: 1454436.511 | AU9: 1160487.546 | AV9: 1272250.34 | AW9: 1333276.606 | AX9: 1638105.539 | AY9: 1674916.102 | AZ9: 1425173.016 | BA9: 1384236.843 | BB9: 1267246.159 | BC9: 1219232.767 | BD9: 1320404.541 | BE9: 1426418.929 | BF9: 1438938.809 | BG9: 1173649.649 | BH9: 1279013.386 | BI9: 1322102.54 | BJ9: 1662181.593 | BK9: 1680666.628 | BL9: 1422851.38 | BM9: 1379052.538 | BN9: 1271284.984 | BO9: 1210332.28 | BP9: 1337129.243 | BQ9: 1429381.047 | BR9: 1442597.831 | BS9: 1176047.993 | BT9: 1279049.632 | BU9: 1321869.78 | BV9: 1659138.727 | BW9: 1664283.501 | BX9: 1430761.68 | BY9: 1398429.743 | BZ9: 1271002.706 | CA9: 1209415.411 | CB9: 1337248.14 | CC9: 1428703.554 | CD9: 1442841.1 | CE9: 1175396.839 | CG9: 776681.151 | CH9: 904365.55 | CI9: 1146015.659 | CJ9: 1161912.758 | CK9: 915453.873 | CL9: 882656.539 | CM9: 792745.366 | CN9: 814723.321 | CO9: 791619.671 | CP9: 946412.045 | CQ9: 838774.935 | CR9: 765381.338 | CS9: 771248.131 | CT9: 908691.474 | CU9: 1151601.936 | CV9: 1165321.369 | CW9: 919561.807 | CX9: 888183.767 | CY9: 815019.701 | CZ9: 802953.75 | DA9: 792639.704 | DB9: 947587.044 | DC9: 842097.681 | DD9: 774204.449 | DE9: 783902.065 | DF9: 920648.986 | DG9: 1187728.696 | DH9: 1148854.794 | DI9: 946070.368 | DJ9: 917053.233 | DK9: 806199.753 | DL9: 813653.07 | DM9: 815488.533 | DN9: 936787.062 | DO9: 852802.648 | DP9: 799276.679 | DQ9: 768509.465 | DR9: 923807.503 | DS9: 1189721.365 | DT9: 1149827.271 | DU9: 929084.97 | DV9: 917554.252 | DW9: 806512.018 | DX9: 814939.237 | DY9: 810492.178 | DZ9: 937189.613 | EA9: 865944.123 | EB9: 782867.333 | EC9: 770750.604 | ED9: 944052.355 | EE9: 1174352.552 | EF9: 1152265.946 | EG9: 925800.742 | EH9: 912044.896 | EI9: 807764.334 | EJ9: 826937.691 | EK9: 796832.426 | EL9: 936441.36 | EM9: 865030.746 | EN9: 782924.69 | EO9: 768465.009 | EP9: 942353.505 | EQ9: 1175551.325 | ER9: 1166740.906 | ES9: 930074.99 | ET9: 906776.236 | EU9: 805737.027 | EV9: 824031.867 | EW9: 793275.98 | EX9: 932861.303 | EY9: 861574.481 | EZ9: 780204.512
B10: Tier 2 | D10: PRE_T2 | E10: 1371728.4 | F10: 1517249.52 | G10: =+SUM(AJ10:AU10,DE10:DP10) -> 1693397.088 | H10: 1991962.68 | I10: 2162519.88 | J10: 2389815.6 | L10: 65141.44 | M10: 62636 | N10: 65141.44 | O10: 62636 | P10: 60130.56 | Q10: 67646.88 | R10: 65141.44 | S10: 62636 | T10: 65141.44 | U10: 62636 | V10: 67646.88 | W10: 62636 | X10: 72052.032 | Y10: 69280.8 | Z10: 72052.032 | AA10: 69280.8 | AB10: 66509.568 | AC10: 74823.264 | AD10: 69280.8 | AE10: 72052.032 | AF10: 72052.032 | AG10: 69280.8 | AH10: 74823.264 | AI10: 69280.8 | AJ10: 80348.14535 | AK10: 77194.48733 | AL10: 77656.47703 | AM10: 80354.14435 | AN10: 77611.4772 | AO10: 79930.1538 | AP10: 79381.16603 | AQ10: 79977.15275 | AR10: 76576.50027 | AS10: 80227.14718 | AT10: 83072.81204 | AU10: 74494.81839 | AV10: 98479.86284 | AW10: 91057.12639 | AX10: 91519.14748 | AY10: 94753.48832 | AZ10: 87737.77092 | BA10: 94329.46896 | BB10: 93780.44389 | BC10: 94376.47111 | BD10: 90422.09202 | BE10: 94626.48252 | BF10: 94307.46796 | BG10: 91506.14152 | BH10: 106894.1703 | BI10: 94820.58683 | BJ10: 103336.3304 | BK10: 102852.2937 | BL10: 95213.59123 | BM10: 102428.2743 | BN10: 101879.2492 | BO10: 98444.41557 | BP10: 102240.2657 | BQ10: 102725.2879 | BR10: 102406.2733 | BS10: 99293.45434 | BT10: 118109.0736 | BU10: 104790.2787 | BV10: 114136.8299 | BW10: 109198.5361 | BX10: 105175.2904 | BY10: 117666.0467 | BZ10: 112670.7567 | CA10: 108821.5189 | CB10: 113031.7731 | CC10: 113516.7953 | CD10: 113197.7807 | CE10: 109670.5576 | CG10: 51361.52 | CH10: 50265.39 | CI10: 51361.52 | CJ10: 53866.96 | CK10: 45097.92 | CL10: 48699.49 | CM10: 47603.36 | CN10: 53866.96 | CO10: 47603.36 | CP10: 53866.96 | CQ10: 48856.08 | CR10: 50108.8 | CS10: 56810.256 | CT10: 55597.842 | CU10: 56810.256 | CV10: 59581.488 | CW10: 49882.176 | CX10: 53865.822 | CY10: 55424.64 | CZ10: 56810.256 | DA10: 52653.408 | DB10: 59581.488 | DC10: 54039.024 | DD10: 55424.64 | DE10: 63472.51575 | DF10: 61948.73107 | DG10: 66785.17023 | DH10: 63355.51768 | DI10: 57417.19347 | DJ10: 62828.98389 | DK10: 58009.54441 | DL10: 63058.5243 | DM10: 61261.20021 | DN10: 63256.51988 | DO10: 59996.86426 | DP10: 65181.84112 | DQ10: 71124.12315 | DR10: 73073.19893 | DS10: 78706.86686 | DT10: 74709.48116 | DU10: 65803.57822 | DV10: 74147.56812 | DW10: 68531.90132 | DX10: 74412.4676 | DY10: 72337.27361 | DZ10: 74610.47664 | EA10: 74516.47235 | EB10: 73093.30813 | EC10: 77201.23404 | ED10: 83352.13581 | EE10: 81380.10223 | EF10: 81094.07774 | EG10: 71410.44347 | EH10: 80513.94634 | EI10: 74450.25909 | EJ10: 84827.92505 | EK10: 74536.26301 | EL10: 80995.07322 | EM10: 80901.06893 | EN10: 79323.1584 | EO10: 85300.60872 | EP10: 92101.32896 | EQ10: 89894.88074 | ER10: 94049.12739 | ES10: 78881.71782 | ET10: 84550.75329 | EU10: 82336.93756 | EV10: 93752.11383 | EW10: 82422.94149 | EX10: 89504.85785 | EY10: 89410.85356 | EZ10: 87624.24103
A11: Industrial | D11: IND | E11: =+SUM(E12:E13) -> 105120 | F11: =+SUM(F12:F13) -> 105120 | G11: 105420 | H11: 105108 | I11: 105120 | J11: 105120 | L11: =LoadScenarioInput!L17 -> 5084.197 | M11: =LoadScenarioInput!M17 -> 4746.837 | N11: =LoadScenarioInput!N17 -> 4809.003 | O11: =LoadScenarioInput!O17 -> 4826.339 | P11: =LoadScenarioInput!P17 -> 4532.686 | Q11: =LoadScenarioInput!Q17 -> 5080.741 | R11: =LoadScenarioInput!R17 -> 4884.59 | S11: =LoadScenarioInput!S17 -> 4885.416 | T11: =LoadScenarioInput!T17 -> 4936.183 | U11: =LoadScenarioInput!U17 -> 4823.606 | V11: =LoadScenarioInput!V17 -> 5130.258 | W11: =LoadScenarioInput!W17 -> 4570.003 | X11: =LoadScenarioInput!X17 -> 5084.197 | Y11: =LoadScenarioInput!Y17 -> 4746.837 | Z11: =LoadScenarioInput!Z17 -> 4809.003 | AA11: =LoadScenarioInput!AA17 -> 4826.339 | AB11: =LoadScenarioInput!AB17 -> 4532.686 | AC11: =LoadScenarioInput!AC17 -> 5080.741 | AD11: =LoadScenarioInput!AD17 -> 4884.59 | AE11: =LoadScenarioInput!AE17 -> 4885.416 | AF11: =LoadScenarioInput!AF17 -> 4936.183 | AG11: =LoadScenarioInput!AG17 -> 4823.606 | AH11: =LoadScenarioInput!AH17 -> 5130.258 | AI11: =LoadScenarioInput!AI17 -> 4570.003 | AJ11: =LoadScenarioInput!AJ17 -> 5084.197 | AK11: =LoadScenarioInput!AK17 -> 4746.837 | AL11: =LoadScenarioInput!AL17 -> 4809.003 | AM11: =LoadScenarioInput!AM17 -> 4826.339 | AN11: =LoadScenarioInput!AN17 -> 4694.568 | AO11: =LoadScenarioInput!AO17 -> 5087.579 | AP11: =LoadScenarioInput!AP17 -> 4884.59 | AQ11: =LoadScenarioInput!AQ17 -> 4885.416 | AR11: =LoadScenarioInput!AR17 -> 4936.183 | AS11: =LoadScenarioInput!AS17 -> 4823.606 | AT11: =LoadScenarioInput!AT17 -> 5130.258 | AU11: =LoadScenarioInput!AU17 -> 4570.003 | AV11: =LoadScenarioInput!AV17 -> 5084.197 | AW11: =LoadScenarioInput!AW17 -> 4740.253 | AX11: =LoadScenarioInput!AX17 -> 4809.003 | AY11: =LoadScenarioInput!AY17 -> 4826.339 | AZ11: =LoadScenarioInput!AZ17 -> 4532.686 | BA11: =LoadScenarioInput!BA17 -> 5080.741 | BB11: =LoadScenarioInput!BB17 -> 4884.59 | BC11: =LoadScenarioInput!BC17 -> 4885.416 | BD11: =LoadScenarioInput!BD17 -> 4936.183 | BE11: =LoadScenarioInput!BE17 -> 4823.606 | BF11: =LoadScenarioInput!BF17 -> 5130.258 | BG11: =LoadScenarioInput!BG17 -> 4570.003 | BH11: =LoadScenarioInput!BH17 -> 5084.197 | BI11: =LoadScenarioInput!BI17 -> 4746.837 | BJ11: =LoadScenarioInput!BJ17 -> 4809.003 | BK11: =LoadScenarioInput!BK17 -> 4826.339 | BL11: =LoadScenarioInput!BL17 -> 4532.686 | BM11: =LoadScenarioInput!BM17 -> 5080.741 | BN11: =LoadScenarioInput!BN17 -> 4884.59 | BO11: =LoadScenarioInput!BO17 -> 4885.416 | BP11: =LoadScenarioInput!BP17 -> 4936.183 | BQ11: =LoadScenarioInput!BQ17 -> 4823.606 | BR11: =LoadScenarioInput!BR17 -> 5130.258 | BS11: =LoadScenarioInput!BS17 -> 4570.003 | BT11: =LoadScenarioInput!BT17 -> 5084.197 | BU11: =LoadScenarioInput!BU17 -> 4746.837 | BV11: =LoadScenarioInput!BV17 -> 4809.003 | BW11: =LoadScenarioInput!BW17 -> 4826.339 | BX11: =LoadScenarioInput!BX17 -> 4532.686 | BY11: =LoadScenarioInput!BY17 -> 5080.741 | BZ11: =LoadScenarioInput!BZ17 -> 4884.59 | CA11: =LoadScenarioInput!CA17 -> 4885.416 | CB11: =LoadScenarioInput!CB17 -> 4936.183 | CC11: =LoadScenarioInput!CC17 -> 4823.606 | CD11: =LoadScenarioInput!CD17 -> 5130.258 | CE11: =LoadScenarioInput!CE17 -> 4570.003 | CG11: =LoadScenarioInput!CG17 -> 3843.803 | CH11: =LoadScenarioInput!CH17 -> 3905.163 | CI11: =LoadScenarioInput!CI17 -> 4118.997 | CJ11: =LoadScenarioInput!CJ17 -> 4101.661 | CK11: =LoadScenarioInput!CK17 -> 3531.314 | CL11: =LoadScenarioInput!CL17 -> 3835.259 | CM11: =LoadScenarioInput!CM17 -> 3755.41 | CN11: =LoadScenarioInput!CN17 -> 4042.584 | CO11: =LoadScenarioInput!CO17 -> 3703.817 | CP11: =LoadScenarioInput!CP17 -> 4104.394 | CQ11: =LoadScenarioInput!CQ17 -> 3797.742 | CR11: =LoadScenarioInput!CR17 -> 4069.997 | CS11: =LoadScenarioInput!CS17 -> 3843.803 | CT11: =LoadScenarioInput!CT17 -> 3905.163 | CU11: =LoadScenarioInput!CU17 -> 4118.997 | CV11: =LoadScenarioInput!CV17 -> 4101.661 | CW11: =LoadScenarioInput!CW17 -> 3531.314 | CX11: =LoadScenarioInput!CX17 -> 3835.259 | CY11: =LoadScenarioInput!CY17 -> 3755.41 | CZ11: =LoadScenarioInput!CZ17 -> 4042.584 | DA11: =LoadScenarioInput!DA17 -> 3703.817 | DB11: =LoadScenarioInput!DB17 -> 4104.394 | DC11: =LoadScenarioInput!DC17 -> 3797.742 | DD11: =LoadScenarioInput!DD17 -> 4069.997 | DE11: =LoadScenarioInput!DE17 -> 3843.803 | DF11: =LoadScenarioInput!DF17 -> 3905.163 | DG11: =LoadScenarioInput!DG17 -> 4118.997 | DH11: =LoadScenarioInput!DH17 -> 4101.661 | DI11: =LoadScenarioInput!DI17 -> 3657.432 | DJ11: =LoadScenarioInput!DJ17 -> 3840.421 | DK11: =LoadScenarioInput!DK17 -> 3755.41 | DL11: =LoadScenarioInput!DL17 -> 4042.584 | DM11: =LoadScenarioInput!DM17 -> 3703.817 | DN11: =LoadScenarioInput!DN17 -> 4104.394 | DO11: =LoadScenarioInput!DO17 -> 3797.742 | DP11: =LoadScenarioInput!DP17 -> 4069.997 | DQ11: =LoadScenarioInput!DQ17 -> 3843.803 | DR11: =LoadScenarioInput!DR17 -> 3899.747 | DS11: =LoadScenarioInput!DS17 -> 4118.997 | DT11: =LoadScenarioInput!DT17 -> 4101.661 | DU11: =LoadScenarioInput!DU17 -> 3531.314 | DV11: =LoadScenarioInput!DV17 -> 3835.259 | DW11: =LoadScenarioInput!DW17 -> 3755.41 | DX11: =LoadScenarioInput!DX17 -> 4042.584 | DY11: =LoadScenarioInput!DY17 -> 3703.817 | DZ11: =LoadScenarioInput!DZ17 -> 4104.394 | EA11: =LoadScenarioInput!EA17 -> 3797.742 | EB11: =LoadScenarioInput!EB17 -> 4069.997 | EC11: =LoadScenarioInput!EC17 -> 3843.803 | ED11: =LoadScenarioInput!ED17 -> 3905.163 | EE11: =LoadScenarioInput!EE17 -> 4118.997 | EF11: =LoadScenarioInput!EF17 -> 4101.661 | EG11: =LoadScenarioInput!EG17 -> 3531.314 | EH11: =LoadScenarioInput!EH17 -> 3835.259 | EI11: =LoadScenarioInput!EI17 -> 3755.41 | EJ11: =LoadScenarioInput!EJ17 -> 4042.584 | EK11: =LoadScenarioInput!EK17 -> 3703.817 | EL11: =LoadScenarioInput!EL17 -> 4104.394 | EM11: =LoadScenarioInput!EM17 -> 3797.742 | EN11: =LoadScenarioInput!EN17 -> 4069.997 | EO11: =LoadScenarioInput!EO17 -> 3843.803 | EP11: =LoadScenarioInput!EP17 -> 3905.163 | EQ11: =LoadScenarioInput!EQ17 -> 4118.997 | ER11: =LoadScenarioInput!ER17 -> 4101.661 | ES11: =LoadScenarioInput!ES17 -> 3531.314 | ET11: =LoadScenarioInput!ET17 -> 3835.259 | EU11: =LoadScenarioInput!EU17 -> 3755.41 | EV11: =LoadScenarioInput!EV17 -> 4042.584 | EW11: =LoadScenarioInput!EW17 -> 3703.817 | EX11: =LoadScenarioInput!EX17 -> 4104.394 | EY11: =LoadScenarioInput!EY17 -> 3797.742 | EZ11: =LoadScenarioInput!EZ17 -> 4069.997
B12: Smelter | D12: IND_SMT | E12: 0 | F12: 0 | G12: =+SUM(AJ12:AU12,DE12:DP12) -> 0 | H12: 0 | I12: 0 | J12: 0 | L12: 0 | M12: 0 | N12: 0 | O12: 0 | P12: 0 | Q12: 0 | R12: 0 | S12: 0 | T12: 0 | U12: 0 | V12: 0 | W12: 0 | X12: 0 | Y12: 0 | Z12: 0 | AA12: 0 | AB12: 0 | AC12: 0 | AD12: 0 | AE12: 0 | AF12: 0 | AG12: 0 | AH12: 0 | AI12: 0 | AJ12: 0 | AK12: 0 | AL12: 0 | AM12: 0 | AN12: 0 | AO12: 0 | AP12: 0 | AQ12: 0 | AR12: 0 | AS12: 0 | AT12: 0 | AU12: 0 | AV12: 0 | AW12: 0 | AX12: 0 | AY12: 0 | AZ12: 0 | BA12: 0 | BB12: 0 | BC12: 0 | BD12: 0 | BE12: 0 | BF12: 0 | BG12: 0 | BH12: 0 | BI12: 0 | BJ12: 0 | BK12: 0 | BL12: 0 | BM12: 0 | BN12: 0 | BO12: 0 | BP12: 0 | BQ12: 0 | BR12: 0 | BS12: 0 | BT12: 0 | BU12: 0 | BV12: 0 | BW12: 0 | BX12: 0 | BY12: 0 | BZ12: 0 | CA12: 0 | CB12: 0 | CC12: 0 | CD12: 0 | CE12: 0 | CG12: 0 | CH12: 0 | CI12: 0 | CJ12: 0 | CK12: 0 | CL12: 0 | CM12: 0 | CN12: 0 | CO12: 0 | CP12: 0 | CQ12: 0 | CR12: 0 | CS12: 0 | CT12: 0 | CU12: 0 | CV12: 0 | CW12: 0 | CX12: 0 | CY12: 0 | CZ12: 0 | DA12: 0 | DB12: 0 | DC12: 0 | DD12: 0 | DE12: 0 | DF12: 0 | DG12: 0 | DH12: 0 | DI12: 0 | DJ12: 0 | DK12: 0 | DL12: 0 | DM12: 0 | DN12: 0 | DO12: 0 | DP12: 0 | DQ12: 0 | DR12: 0 | DS12: 0 | DT12: 0 | DU12: 0 | DV12: 0 | DW12: 0 | DX12: 0 | DY12: 0 | DZ12: 0 | EA12: 0 | EB12: 0 | EC12: 0 | ED12: 0 | EE12: 0 | EF12: 0 | EG12: 0 | EH12: 0 | EI12: 0 | EJ12: 0 | EK12: 0 | EL12: 0 | EM12: 0 | EN12: 0 | EO12: 0 | EP12: 0 | EQ12: 0 | ER12: 0 | ES12: 0 | ET12: 0 | EU12: 0 | EV12: 0 | EW12: 0 | EX12: 0 | EY12: 0 | EZ12: 0
B13: Other Industrial | D13: IND_OTH | E13: 105120 | F13: 105120 | G13: 105420 | H13: 105108 | I13: 105120 | J13: 105120 | L13: =LoadScenarioInput!L19 -> 5084.197 | M13: =LoadScenarioInput!M19 -> 4746.837 | N13: =LoadScenarioInput!N19 -> 4809.003 | O13: =LoadScenarioInput!O19 -> 4826.339 | P13: =LoadScenarioInput!P19 -> 4532.686 | Q13: =LoadScenarioInput!Q19 -> 5080.741 | R13: =LoadScenarioInput!R19 -> 4884.59 | S13: =LoadScenarioInput!S19 -> 4885.416 | T13: =LoadScenarioInput!T19 -> 4936.183 | U13: =LoadScenarioInput!U19 -> 4823.606 | V13: =LoadScenarioInput!V19 -> 5130.258 | W13: =LoadScenarioInput!W19 -> 4570.003 | X13: =LoadScenarioInput!X19 -> 5084.197 | Y13: =LoadScenarioInput!Y19 -> 4746.837 | Z13: =LoadScenarioInput!Z19 -> 4809.003 | AA13: =LoadScenarioInput!AA19 -> 4826.339 | AB13: =LoadScenarioInput!AB19 -> 4532.686 | AC13: =LoadScenarioInput!AC19 -> 5080.741 | AD13: =LoadScenarioInput!AD19 -> 4884.59 | AE13: =LoadScenarioInput!AE19 -> 4885.416 | AF13: =LoadScenarioInput!AF19 -> 4936.183 | AG13: =LoadScenarioInput!AG19 -> 4823.606 | AH13: =LoadScenarioInput!AH19 -> 5130.258 | AI13: =LoadScenarioInput!AI19 -> 4570.003 | AJ13: =LoadScenarioInput!AJ19 -> 5084.197 | AK13: =LoadScenarioInput!AK19 -> 4746.837 | AL13: =LoadScenarioInput!AL19 -> 4809.003 | AM13: =LoadScenarioInput!AM19 -> 4826.339 | AN13: =LoadScenarioInput!AN19 -> 4694.568 | AO13: =LoadScenarioInput!AO19 -> 5087.579 | AP13: =LoadScenarioInput!AP19 -> 4884.59 | AQ13: =LoadScenarioInput!AQ19 -> 4885.416 | AR13: =LoadScenarioInput!AR19 -> 4936.183 | AS13: =LoadScenarioInput!AS19 -> 4823.606 | AT13: =LoadScenarioInput!AT19 -> 5130.258 | AU13: =LoadScenarioInput!AU19 -> 4570.003 | AV13: =LoadScenarioInput!AV19 -> 5084.197 | AW13: =LoadScenarioInput!AW19 -> 4740.253 | AX13: =LoadScenarioInput!AX19 -> 4809.003 | AY13: =LoadScenarioInput!AY19 -> 4826.339 | AZ13: =LoadScenarioInput!AZ19 -> 4532.686 | BA13: =LoadScenarioInput!BA19 -> 5080.741 | BB13: =LoadScenarioInput!BB19 -> 4884.59 | BC13: =LoadScenarioInput!BC19 -> 4885.416 | BD13: =LoadScenarioInput!BD19 -> 4936.183 | BE13: =LoadScenarioInput!BE19 -> 4823.606 | BF13: =LoadScenarioInput!BF19 -> 5130.258 | BG13: =LoadScenarioInput!BG19 -> 4570.003 | BH13: =LoadScenarioInput!BH19 -> 5084.197 | BI13: =LoadScenarioInput!BI19 -> 4746.837 | BJ13: =LoadScenarioInput!BJ19 -> 4809.003 | BK13: =LoadScenarioInput!BK19 -> 4826.339 | BL13: =LoadScenarioInput!BL19 -> 4532.686 | BM13: =LoadScenarioInput!BM19 -> 5080.741 | BN13: =LoadScenarioInput!BN19 -> 4884.59 | BO13: =LoadScenarioInput!BO19 -> 4885.416 | BP13: =LoadScenarioInput!BP19 -> 4936.183 | BQ13: =LoadScenarioInput!BQ19 -> 4823.606 | BR13: =LoadScenarioInput!BR19 -> 5130.258 | BS13: =LoadScenarioInput!BS19 -> 4570.003 | BT13: =LoadScenarioInput!BT19 -> 5084.197 | BU13: =LoadScenarioInput!BU19 -> 4746.837 | BV13: =LoadScenarioInput!BV19 -> 4809.003 | BW13: =LoadScenarioInput!BW19 -> 4826.339 | BX13: =LoadScenarioInput!BX19 -> 4532.686 | BY13: =LoadScenarioInput!BY19 -> 5080.741 | BZ13: =LoadScenarioInput!BZ19 -> 4884.59 | CA13: =LoadScenarioInput!CA19 -> 4885.416 | CB13: =LoadScenarioInput!CB19 -> 4936.183 | CC13: =LoadScenarioInput!CC19 -> 4823.606 | CD13: =LoadScenarioInput!CD19 -> 5130.258 | CE13: =LoadScenarioInput!CE19 -> 4570.003 | CG13: =LoadScenarioInput!CG19 -> 3843.803 | CH13: =LoadScenarioInput!CH19 -> 3905.163 | CI13: =LoadScenarioInput!CI19 -> 4118.997 | CJ13: =LoadScenarioInput!CJ19 -> 4101.661 | CK13: =LoadScenarioInput!CK19 -> 3531.314 | CL13: =LoadScenarioInput!CL19 -> 3835.259 | CM13: =LoadScenarioInput!CM19 -> 3755.41 | CN13: =LoadScenarioInput!CN19 -> 4042.584 | CO13: =LoadScenarioInput!CO19 -> 3703.817 | CP13: =LoadScenarioInput!CP19 -> 4104.394 | CQ13: =LoadScenarioInput!CQ19 -> 3797.742 | CR13: =LoadScenarioInput!CR19 -> 4069.997 | CS13: =LoadScenarioInput!CS19 -> 3843.803 | CT13: =LoadScenarioInput!CT19 -> 3905.163 | CU13: =LoadScenarioInput!CU19 -> 4118.997 | CV13: =LoadScenarioInput!CV19 -> 4101.661 | CW13: =LoadScenarioInput!CW19 -> 3531.314 | CX13: =LoadScenarioInput!CX19 -> 3835.259 | CY13: =LoadScenarioInput!CY19 -> 3755.41 | CZ13: =LoadScenarioInput!CZ19 -> 4042.584 | DA13: =LoadScenarioInput!DA19 -> 3703.817 | DB13: =LoadScenarioInput!DB19 -> 4104.394 | DC13: =LoadScenarioInput!DC19 -> 3797.742 | DD13: =LoadScenarioInput!DD19 -> 4069.997 | DE13: =LoadScenarioInput!DE19 -> 3843.803 | DF13: =LoadScenarioInput!DF19 -> 3905.163 | DG13: =LoadScenarioInput!DG19 -> 4118.997 | DH13: =LoadScenarioInput!DH19 -> 4101.661 | DI13: =LoadScenarioInput!DI19 -> 3657.432 | DJ13: =LoadScenarioInput!DJ19 -> 3840.421 | DK13: =LoadScenarioInput!DK19 -> 3755.41 | DL13: =LoadScenarioInput!DL19 -> 4042.584 | DM13: =LoadScenarioInput!DM19 -> 3703.817 | DN13: =LoadScenarioInput!DN19 -> 4104.394 | DO13: =LoadScenarioInput!DO19 -> 3797.742 | DP13: =LoadScenarioInput!DP19 -> 4069.997 | DQ13: =LoadScenarioInput!DQ19 -> 3843.803 | DR13: =LoadScenarioInput!DR19 -> 3899.747 | DS13: =LoadScenarioInput!DS19 -> 4118.997 | DT13: =LoadScenarioInput!DT19 -> 4101.661 | DU13: =LoadScenarioInput!DU19 -> 3531.314 | DV13: =LoadScenarioInput!DV19 -> 3835.259 | DW13: =LoadScenarioInput!DW19 -> 3755.41 | DX13: =LoadScenarioInput!DX19 -> 4042.584 | DY13: =LoadScenarioInput!DY19 -> 3703.817 | DZ13: =LoadScenarioInput!DZ19 -> 4104.394 | EA13: =LoadScenarioInput!EA19 -> 3797.742 | EB13: =LoadScenarioInput!EB19 -> 4069.997 | EC13: =LoadScenarioInput!EC19 -> 3843.803 | ED13: =LoadScenarioInput!ED19 -> 3905.163 | EE13: =LoadScenarioInput!EE19 -> 4118.997 | EF13: =LoadScenarioInput!EF19 -> 4101.661 | EG13: =LoadScenarioInput!EG19 -> 3531.314 | EH13: =LoadScenarioInput!EH19 -> 3835.259 | EI13: =LoadScenarioInput!EI19 -> 3755.41 | EJ13: =LoadScenarioInput!EJ19 -> 4042.584 | EK13: =LoadScenarioInput!EK19 -> 3703.817 | EL13: =LoadScenarioInput!EL19 -> 4104.394 | EM13: =LoadScenarioInput!EM19 -> 3797.742 | EN13: =LoadScenarioInput!EN19 -> 4069.997 | EO13: =LoadScenarioInput!EO19 -> 3843.803 | EP13: =LoadScenarioInput!EP19 -> 3905.163 | EQ13: =LoadScenarioInput!EQ19 -> 4118.997 | ER13: =LoadScenarioInput!ER19 -> 4101.661 | ES13: =LoadScenarioInput!ES19 -> 3531.314 | ET13: =LoadScenarioInput!ET19 -> 3835.259 | EU13: =LoadScenarioInput!EU19 -> 3755.41 | EV13: =LoadScenarioInput!EV19 -> 4042.584 | EW13: =LoadScenarioInput!EW19 -> 3703.817 | EX13: =LoadScenarioInput!EX19 -> 4104.394 | EY13: =LoadScenarioInput!EY19 -> 3797.742 | EZ13: =LoadScenarioInput!EZ19 -> 4069.997
A14: New Resource | D14: NR | E14: 9.856 | F14: 9.824 | G14: 9.856 | H14: 9.856 | I14: 9.856 | J14: 9.856 | L14: 0.432 | M14: 0.4 | N14: 0.4 | O14: 0.416 | P14: 0.4 | Q14: 0.416 | R14: 0.416 | S14: 0.4 | T14: 0.416 | U14: 0.416 | V14: 0.416 | W14: 0.4 | X14: 0.432 | Y14: 0.384 | Z14: 0.416 | AA14: 0.4 | AB14: 0.384 | AC14: 0.432 | AD14: 0.416 | AE14: 0.4 | AF14: 0.416 | AG14: 0.416 | AH14: 0.416 | AI14: 0.4 | AJ14: 0.432 | AK14: 0.4 | AL14: 0.4 | AM14: 0.416 | AN14: 0.4 | AO14: 0.416 | AP14: 0.416 | AQ14: 0.4 | AR14: 0.416 | AS14: 0.416 | AT14: 0.416 | AU14: 0.4 | AV14: 0.432 | AW14: 0.4 | AX14: 0.4 | AY14: 0.416 | AZ14: 0.4 | BA14: 0.416 | BB14: 0.416 | BC14: 0.4 | BD14: 0.416 | BE14: 0.416 | BF14: 0.416 | BG14: 0.4 | BH14: 0.432 | BI14: 0.4 | BJ14: 0.4 | BK14: 0.416 | BL14: 0.4 | BM14: 0.416 | BN14: 0.416 | BO14: 0.4 | BP14: 0.416 | BQ14: 0.416 | BR14: 0.416 | BS14: 0.4 | BT14: 0.432 | BU14: 0.4 | BV14: 0.4 | BW14: 0.416 | BX14: 0.4 | BY14: 0.416 | BZ14: 0.416 | CA14: 0.4 | CB14: 0.416 | CC14: 0.416 | CD14: 0.416 | CE14: 0.4 | CG14: 0.432 | CH14: 0.4 | CI14: 0.4 | CJ14: 0.416 | CK14: 0.4 | CL14: 0.416 | CM14: 0.416 | CN14: 0.4 | CO14: 0.416 | CP14: 0.416 | CQ14: 0.416 | CR14: 0.4 | CS14: 0.432 | CT14: 0.384 | CU14: 0.416 | CV14: 0.4 | CW14: 0.384 | CX14: 0.432 | CY14: 0.416 | CZ14: 0.4 | DA14: 0.416 | DB14: 0.416 | DC14: 0.416 | DD14: 0.4 | DE14: 0.432 | DF14: 0.4 | DG14: 0.4 | DH14: 0.416 | DI14: 0.4 | DJ14: 0.416 | DK14: 0.416 | DL14: 0.4 | DM14: 0.416 | DN14: 0.416 | DO14: 0.416 | DP14: 0.4 | DQ14: 0.432 | DR14: 0.4 | DS14: 0.4 | DT14: 0.416 | DU14: 0.4 | DV14: 0.416 | DW14: 0.416 | DX14: 0.4 | DY14: 0.416 | DZ14: 0.416 | EA14: 0.416 | EB14: 0.4 | EC14: 0.432 | ED14: 0.4 | EE14: 0.4 | EF14: 0.416 | EG14: 0.4 | EH14: 0.416 | EI14: 0.416 | EJ14: 0.4 | EK14: 0.416 | EL14: 0.416 | EM14: 0.416 | EN14: 0.4 | EO14: 0.432 | EP14: 0.4 | EQ14: 0.4 | ER14: 0.416 | ES14: 0.4 | ET14: 0.416 | EU14: 0.416 | EV14: 0.4 | EW14: 0.416 | EX14: 0.416 | EY14: 0.416 | EZ14: 0.4
A15: Firm Power and Services | D15: FPS | E15: =+SUM(E16,E27,E38) -> 5839869.017 | F15: =+SUM(F16,F27,F38) -> 5826616.561 | G15: 5838303.767 | H15: 5826678.241 | I15: 5826692.66 | J15: 5826551.779 | L15: 381393.3729 | M15: 340186.4931 | N15: 352630.7279 | O15: 348640.7153 | P15: 316829.7303 | Q15: 359731.2148 | R15: 415797.5816 | S15: 468744.0079 | T15: 465287.9686 | U15: 492831.2487 | V15: 485619.4796 | W15: 415921.6106 | X15: 378897.3729 | Y15: 337786.4931 | Z15: 350134.7279 | AA15: 348640.7153 | AB15: 316829.7303 | AC15: 359731.2148 | AD15: 415557.8726 | AE15: 469133.8957 | AF15: 465287.9686 | AG15: 492831.2487 | AH15: 485619.9436 | AI15: 415921.6106 | AJ15: 378897.3729 | AK15: 337786.4931 | AL15: 349852.091 | AM15: 348923.7446 | AN15: 328184.8634 | AO15: 359555.7412 | AP15: 415797.5816 | AQ15: 469133.8957 | AR15: 464839.6468 | AS15: 493667.3373 | AT15: 485572.0236 | AU15: 415549.6659 | AV15: 379154.721 | AW15: 337786.4931 | AX15: 349852.091 | AY15: 348923.7446 | AZ15: 316829.7303 | BA15: 359555.7412 | BB15: 415797.5816 | BC15: 469133.8957 | BD15: 464839.6468 | BE15: 493668.1693 | BF15: 482840.4867 | BG15: 415921.6106 | BH15: 379154.721 | BI15: 337499.8658 | BJ15: 350134.7279 | BK15: 348923.7446 | BL15: 316829.7303 | BM15: 359555.7412 | BN15: 415797.5816 | BO15: 468744.0079 | BP15: 465287.9686 | BQ15: 493669.0013 | BR15: 482847.5587 | BS15: 415921.6106 | BT15: 379154.721 | BU15: 337499.8658 | BV15: 350134.7279 | BW15: 348640.7153 | BX15: 316829.7303 | BY15: 359731.2148 | BZ15: 415797.5816 | CA15: 468744.0079 | CB15: 465287.9686 | CC15: 493669.8333 | CD15: 484129.9873 | CE15: 415921.6106 | CG15: 60846.25188 | CH15: 9079.73191 | CI15: 8733.37596 | CJ15: 6309.824652 | CK15: 10245.1154 | CL15: 30947.18542 | CM15: 87569.5271 | CN15: 135368.2619 | CO15: 155059.6314 | CP15: 184954.1564 | CQ15: 182226.4991 | CR15: 124915.3047 | CS15: 58878.25188 | CT15: 7153.73191 | CU15: 6766.12596 | CV15: 6309.824652 | CW15: 10245.1154 | CX15: 30947.18542 | CY15: 87809.23603 | CZ15: 134978.3761 | DA15: 155059.6314 | DB15: 184954.1564 | DC15: 182226.8271 | DD15: 124915.3047 | DE15: 58878.25188 | DF15: 7153.73191 | DG15: 6936.75486 | DH15: 6138.804366 | DI15: 10587.17046 | DJ15: 31122.65908 | DK15: 87569.5271 | DL15: 134978.3761 | DM15: 155507.9542 | DN15: 184190.2348 | DO15: 182192.5951 | DP15: 125287.2504 | DQ15: 58620.90369 | DR15: 7153.73191 | DS15: 6936.75486 | DT15: 6138.804366 | DU15: 10245.1154 | DV15: 31122.65908 | DW15: 87569.5271 | DX15: 134978.3761 | DY15: 155507.9542 | DZ15: 184190.8908 | EA15: 184994.3069 | EB15: 124915.3047 | EC15: 58620.90369 | ED15: 7328.373132 | EE15: 6766.12596 | EF15: 6138.804366 | EG15: 10245.1154 | EH15: 31122.65908 | EI15: 87569.5271 | EJ15: 135368.2619 | EK15: 155059.6314 | EL15: 184191.5468 | EM15: 185000.1469 | EN15: 124915.3047 | EO15: 58620.90369 | EP15: 7328.373132 | EQ15: 6766.12596 | ER15: 6309.824652 | ES15: 10245.1154 | ET15: 30947.18542 | EU15: 87569.5271 | EV15: 135368.2619 | EW15: 155059.6314 | EX15: 184192.2028 | EY15: 183687.3583 | EZ15: 124915.3047
B16: Intraregional Transfer | D16: FPS_IRT | E16: =+SUM(E17:E26) -> 98426.04389 | F16: =+SUM(F17:F26) -> 98426.04389 | G16: 98675.2651 | H16: 98426.04384 | I16: 98426.04384 | J16: 98426.04384 | L16: 4740.994876 | M16: 4298.672055 | N16: 4524.395889 | O16: 4337.103297 | P16: 4054.858291 | Q16: 4636.124813 | R16: 4510.176553 | S16: 5110.827863 | T16: 5308.096586 | U16: 4835.715728 | V16: 5081.524575 | W16: 4358.384568 | X16: 4740.994876 | Y16: 4298.672055 | Z16: 4524.395889 | AA16: 4337.103297 | AB16: 4054.858291 | AC16: 4636.124813 | AD16: 4348.030629 | AE16: 5301.976663 | AF16: 5308.096586 | AG16: 4835.715728 | AH16: 5081.524575 | AI16: 4358.384568 | AJ16: 4740.994876 | AK16: 4298.672055 | AL16: 4360.04499 | AM16: 4501.264582 | AN16: 4222.56745 | AO16: 4475.460159 | AP16: 4510.176553 | AQ16: 5301.976663 | AR16: 5116.947786 | AS16: 5019.728285 | AT16: 5081.524575 | AU16: 4190.470908 | AV16: 4918.364029 | AW16: 4298.672055 | AX16: 4360.04499 | AY16: 4501.264582 | AZ16: 4054.858291 | BA16: 4475.460159 | BB16: 4510.176553 | BC16: 5301.976663 | BD16: 5116.947786 | BE16: 5019.728285 | BF16: 4902.656708 | BG16: 4358.384568 | BH16: 4918.364029 | BI16: 4134.151832 | BJ16: 4524.395889 | BK16: 4501.264582 | BL16: 4054.858291 | BM16: 4475.460159 | BN16: 4510.176553 | BO16: 5110.827863 | BP16: 5308.096586 | BQ16: 5019.728285 | BR16: 4902.656708 | BS16: 4358.384568 | BT16: 4918.364029 | BU16: 4134.151832 | BV16: 4524.395889 | BW16: 4337.103297 | BX16: 4054.858291 | BY16: 4636.124813 | BZ16: 4510.176553 | CA16: 5110.827863 | CB16: 5308.096586 | CC16: 5019.728285 | CD16: 4899.021324 | CE16: 4358.384568 | CG16: 3695.907883 | CH16: 3316.937909 | CI16: 3413.71496 | CJ16: 3563.372651 | CK16: 2923.335398 | CL16: 3212.042423 | CM16: 3207.960103 | CN16: 4304.763887 | CO16: 3820.016414 | CP16: 4093.485368 | CQ16: 3624.478055 | CR16: 3453.153739 | CS16: 3695.907883 | CT16: 3316.937909 | CU16: 3413.71496 | CV16: 3563.372651 | CW16: 2923.335398 | CX16: 3212.042423 | CY16: 3370.106027 | CZ16: 4113.615087 | DA16: 3820.016414 | DB16: 4093.485368 | DC16: 3624.478055 | DD16: 3453.153739 | DE16: 3695.907883 | DF16: 3316.937909 | DG16: 3578.06586 | DH16: 3399.211366 | DI16: 3004.847457 | DJ16: 3372.707076 | DK16: 3207.960103 | DL16: 4113.615087 | DM16: 4011.165214 | DN16: 3909.472811 | DO16: 3624.478055 | DP16: 3621.067397 | DQ16: 3518.538686 | DR16: 3316.937909 | DS16: 3578.06586 | DT16: 3399.211366 | DU16: 2923.335398 | DV16: 3372.707076 | DW16: 3207.960103 | DX16: 4113.615087 | DY16: 4011.165214 | DZ16: 3909.472811 | EA16: 3803.345922 | EB16: 3453.153739 | EC16: 3518.538686 | ED16: 3481.458132 | EE16: 3413.71496 | EF16: 3399.211366 | EG16: 2923.335398 | EH16: 3372.707076 | EI16: 3207.960103 | EJ16: 4304.763887 | EK16: 3820.016414 | EL16: 3909.472811 | EM16: 3803.345922 | EN16: 3453.153739 | EO16: 3518.538686 | EP16: 3481.458132 | EQ16: 3413.71496 | ER16: 3563.372651 | ES16: 2923.335398 | ET16: 3212.042423 | EU16: 3207.960103 | EV16: 4304.763887 | EW16: 3820.016414 | EX16: 3909.472811 | EY16: 3806.981305 | EZ16: 3453.153739
C17: WNP#3 Settlement | D17: FPS_IRT_WNP | E17: 0 | F17: 0 | G17: 0 | H17: 0 | I17: 0 | J17: 0 | L17: 0 | M17: 0 | N17: 0 | O17: 0 | P17: 0 | Q17: 0 | R17: 0 | S17: 0 | T17: 0 | U17: 0 | V17: 0 | W17: 0 | X17: 0 | Y17: 0 | Z17: 0 | AA17: 0 | AB17: 0 | AC17: 0 | AD17: 0 | AE17: 0 | AF17: 0 | AG17: 0 | AH17: 0 | AI17: 0 | AJ17: 0 | AK17: 0 | AL17: 0 | AM17: 0 | AN17: 0 | AO17: 0 | AP17: 0 | AQ17: 0 | AR17: 0 | AS17: 0 | AT17: 0 | AU17: 0 | AV17: 0 | AW17: 0 | AX17: 0 | AY17: 0 | AZ17: 0 | BA17: 0 | BB17: 0 | BC17: 0 | BD17: 0 | BE17: 0 | BF17: 0 | BG17: 0 | BH17: 0 | BI17: 0 | BJ17: 0 | BK17: 0 | BL17: 0 | BM17: 0 | BN17: 0 | BO17: 0 | BP17: 0 | BQ17: 0 | BR17: 0 | BS17: 0 | BT17: 0 | BU17: 0 | BV17: 0 | BW17: 0 | BX17: 0 | BY17: 0 | BZ17: 0 | CA17: 0 | CB17: 0 | CC17: 0 | CD17: 0 | CE17: 0 | CG17: 0 | CH17: 0 | CI17: 0 | CJ17: 0 | CK17: 0 | CL17: 0 | CM17: 0 | CN17: 0 | CO17: 0 | CP17: 0 | CQ17: 0 | CR17: 0 | CS17: 0 | CT17: 0 | CU17: 0 | CV17: 0 | CW17: 0 | CX17: 0 | CY17: 0 | CZ17: 0 | DA17: 0 | DB17: 0 | DC17: 0 | DD17: 0 | DE17: 0 | DF17: 0 | DG17: 0 | DH17: 0 | DI17: 0 | DJ17: 0 | DK17: 0 | DL17: 0 | DM17: 0 | DN17: 0 | DO17: 0 | DP17: 0 | DQ17: 0 | DR17: 0 | DS17: 0 | DT17: 0 | DU17: 0 | DV17: 0 | DW17: 0 | DX17: 0 | DY17: 0 | DZ17: 0 | EA17: 0 | EB17: 0 | EC17: 0 | ED17: 0 | EE17: 0 | EF17: 0 | EG17: 0 | EH17: 0 | EI17: 0 | EJ17: 0 | EK17: 0 | EL17: 0 | EM17: 0 | EN17: 0 | EO17: 0 | EP17: 0 | EQ17: 0 | ER17: 0 | ES17: 0 | ET17: 0 | EU17: 0 | EV17: 0 | EW17: 0 | EX17: 0 | EY17: 0 | EZ17: 0
C18: Dittmer Station Service | D18: FPS_IRT_DIT | E18: 82668.12 | F18: 82668.12 | G18: 82894.608 | H18: 82668.12 | I18: 82668.12 | J18: 82668.12 | L18: 3925.792 | M18: 3774.8 | N18: 3925.792 | O18: 3774.8 | P18: 3623.808 | Q18: 4076.784 | R18: 3925.792 | S18: 3774.8 | T18: 3925.792 | U18: 3774.8 | V18: 4076.784 | W18: 3774.8 | X18: 3925.792 | Y18: 3774.8 | Z18: 3925.792 | AA18: 3774.8 | AB18: 3623.808 | AC18: 4076.784 | AD18: 3774.8 | AE18: 3925.792 | AF18: 3925.792 | AG18: 3774.8 | AH18: 4076.784 | AI18: 3774.8 | AJ18: 3925.792 | AK18: 3774.8 | AL18: 3774.8 | AM18: 3925.792 | AN18: 3774.8 | AO18: 3925.792 | AP18: 3925.792 | AQ18: 3925.792 | AR18: 3774.8 | AS18: 3925.792 | AT18: 4076.784 | AU18: 3623.808 | AV18: 4076.784 | AW18: 3774.8 | AX18: 3774.8 | AY18: 3925.792 | AZ18: 3623.808 | BA18: 3925.792 | BB18: 3925.792 | BC18: 3925.792 | BD18: 3774.8 | BE18: 3925.792 | BF18: 3925.792 | BG18: 3774.8 | BH18: 4076.784 | BI18: 3623.808 | BJ18: 3925.792 | BK18: 3925.792 | BL18: 3623.808 | BM18: 3925.792 | BN18: 3925.792 | BO18: 3774.8 | BP18: 3925.792 | BQ18: 3925.792 | BR18: 3925.792 | BS18: 3774.8 | BT18: 4076.784 | BU18: 3623.808 | BV18: 3925.792 | BW18: 3774.8 | BX18: 3623.808 | BY18: 4076.784 | BZ18: 3925.792 | CA18: 3774.8 | CB18: 3925.792 | CC18: 3925.792 | CD18: 3925.792 | CE18: 3774.8 | CG18: 3095.336 | CH18: 3029.277 | CI18: 3095.336 | CJ18: 3246.328 | CK18: 2717.856 | CL18: 2934.907 | CM18: 2868.848 | CN18: 3246.328 | CO18: 2868.848 | CP18: 3246.328 | CQ18: 2944.344 | CR18: 3019.84 | CS18: 3095.336 | CT18: 3029.277 | CU18: 3095.336 | CV18: 3246.328 | CW18: 2717.856 | CX18: 2934.907 | CY18: 3019.84 | CZ18: 3095.336 | DA18: 2868.848 | DB18: 3246.328 | DC18: 2944.344 | DD18: 3019.84 | DE18: 3095.336 | DF18: 3029.277 | DG18: 3246.328 | DH18: 3095.336 | DI18: 2793.352 | DJ18: 3085.899 | DK18: 2868.848 | DL18: 3095.336 | DM18: 3019.84 | DN18: 3095.336 | DO18: 2944.344 | DP18: 3170.832 | DQ18: 2944.344 | DR18: 3029.277 | DS18: 3246.328 | DT18: 3095.336 | DU18: 2717.856 | DV18: 3085.899 | DW18: 2868.848 | DX18: 3095.336 | DY18: 3019.84 | DZ18: 3095.336 | EA18: 3095.336 | EB18: 3019.84 | EC18: 2944.344 | ED18: 3180.269 | EE18: 3095.336 | EF18: 3095.336 | EG18: 2717.856 | EH18: 3085.899 | EI18: 2868.848 | EJ18: 3246.328 | EK18: 2868.848 | EL18: 3095.336 | EM18: 3095.336 | EN18: 3019.84 | EO18: 2944.344 | EP18: 3180.269 | EQ18: 3095.336 | ER18: 3246.328 | ES18: 2717.856 | ET18: 2934.907 | EU18: 2868.848 | EV18: 3246.328 | EW18: 2868.848 | EX18: 3095.336 | EY18: 3095.336 | EZ18: 3019.84
C19: Transfer Gen Losses | D19: FPS_IRT_TGL | E19: 15757.92389 | F19: 15757.92389 | G19: 15780.6571 | H19: 15757.92384 | I19: 15757.92384 | J19: 15757.92384 | L19: 815.2028765 | M19: 523.872055 | N19: 598.6038895 | O19: 562.303297 | P19: 431.0502915 | Q19: 559.3408125 | R19: 584.3845535 | S19: 1336.027863 | T19: 1382.304586 | U19: 1060.915728 | V19: 1004.740575 | W19: 583.5845675 | X19: 815.2028765 | Y19: 523.872055 | Z19: 598.6038895 | AA19: 562.303297 | AB19: 431.0502915 | AC19: 559.3408125 | AD19: 573.2306285 | AE19: 1376.184663 | AF19: 1382.304586 | AG19: 1060.915728 | AH19: 1004.740575 | AI19: 583.5845675 | AJ19: 815.2028765 | AK19: 523.872055 | AL19: 585.2449895 | AM19: 575.4725825 | AN19: 447.76745 | AO19: 549.668159 | AP19: 584.3845535 | AQ19: 1376.184663 | AR19: 1342.147786 | AS19: 1093.936285 | AT19: 1004.740575 | AU19: 566.6629085 | AV19: 841.580029 | AW19: 523.872055 | AX19: 585.2449895 | AY19: 575.4725825 | AZ19: 431.0502915 | BA19: 549.668159 | BB19: 584.3845535 | BC19: 1376.184663 | BD19: 1342.147786 | BE19: 1093.936285 | BF19: 976.8647075 | BG19: 583.5845675 | BH19: 841.580029 | BI19: 510.3438325 | BJ19: 598.6038895 | BK19: 575.4725825 | BL19: 431.0502915 | BM19: 549.668159 | BN19: 584.3845535 | BO19: 1336.027863 | BP19: 1382.304586 | BQ19: 1093.936285 | BR19: 976.8647075 | BS19: 583.5845675 | BT19: 841.580029 | BU19: 510.3438325 | BV19: 598.6038895 | BW19: 562.303297 | BX19: 431.0502915 | BY19: 559.3408125 | BZ19: 584.3845535 | CA19: 1336.027863 | CB19: 1382.304586 | CC19: 1093.936285 | CD19: 973.2293245 | CE19: 583.5845675 | CG19: 600.571883 | CH19: 287.6609095 | CI19: 318.3789605 | CJ19: 317.0446515 | CK19: 205.479398 | CL19: 277.1354225 | CM19: 339.1121025 | CN19: 1058.435887 | CO19: 951.168414 | CP19: 847.1573685 | CQ19: 680.1340545 | CR19: 433.3137385 | CS19: 600.571883 | CT19: 287.6609095 | CU19: 318.3789605 | CV19: 317.0446515 | CW19: 205.479398 | CX19: 277.1354225 | CY19: 350.2660275 | CZ19: 1018.279087 | DA19: 951.168414 | DB19: 847.1573685 | DC19: 680.1340545 | DD19: 433.3137385 | DE19: 600.571883 | DF19: 287.6609095 | DG19: 331.7378605 | DH19: 303.875366 | DI19: 211.495457 | DJ19: 286.808076 | DK19: 339.1121025 | DL19: 1018.279087 | DM19: 991.325214 | DN19: 814.136811 | DO19: 680.1340545 | DP19: 450.2353975 | DQ19: 574.194686 | DR19: 287.6609095 | DS19: 331.7378605 | DT19: 303.875366 | DU19: 205.479398 | DV19: 286.808076 | DW19: 339.1121025 | DX19: 1018.279087 | DY19: 991.325214 | DZ19: 814.136811 | EA19: 708.0099225 | EB19: 433.3137385 | EC19: 574.194686 | ED19: 301.189132 | EE19: 318.3789605 | EF19: 303.875366 | EG19: 205.479398 | EH19: 286.808076 | EI19: 339.1121025 | EJ19: 1058.435887 | EK19: 951.168414 | EL19: 814.136811 | EM19: 708.0099225 | EN19: 433.3137385 | EO19: 574.194686 | EP19: 301.189132 | EQ19: 318.3789605 | ER19: 317.0446515 | ES19: 205.479398 | ET19: 277.1354225 | EU19: 339.1121025 | EV19: 1058.435887 | EW19: 951.168414 | EX19: 814.136811 | EY19: 711.6453055 | EZ19: 433.3137385
E20: 0 | F20: 0 | G20: 0 | H20: 0 | I20: 0 | J20: 0 | L20: 0 | M20: 0 | N20: 0 | O20: 0 | P20: 0 | Q20: 0 | R20: 0 | S20: 0 | T20: 0 | U20: 0 | V20: 0 | W20: 0 | X20: 0 | Y20: 0 | Z20: 0 | AA20: 0 | AB20: 0 | AC20: 0 | AD20: 0 | AE20: 0 | AF20: 0 | AG20: 0 | AH20: 0 | AI20: 0 | AJ20: 0 | AK20: 0 | AL20: 0 | AM20: 0 | AN20: 0 | AO20: 0 | AP20: 0 | AQ20: 0 | AR20: 0 | AS20: 0 | AT20: 0 | AU20: 0 | AV20: 0 | AW20: 0 | AX20: 0 | AY20: 0 | AZ20: 0 | BA20: 0 | BB20: 0 | BC20: 0 | BD20: 0 | BE20: 0 | BF20: 0 | BG20: 0 | BH20: 0 | BI20: 0 | BJ20: 0 | BK20: 0 | BL20: 0 | BM20: 0 | BN20: 0 | BO20: 0 | BP20: 0 | BQ20: 0 | BR20: 0 | BS20: 0 | BT20: 0 | BU20: 0 | BV20: 0 | BW20: 0 | BX20: 0 | BY20: 0 | BZ20: 0 | CA20: 0 | CB20: 0 | CC20: 0 | CD20: 0 | CE20: 0 | CG20: 0 | CH20: 0 | CI20: 0 | CJ20: 0 | CK20: 0 | CL20: 0 | CM20: 0 | CN20: 0 | CO20: 0 | CP20: 0 | CQ20: 0 | CR20: 0 | CS20: 0 | CT20: 0 | CU20: 0 | CV20: 0 | CW20: 0 | CX20: 0 | CY20: 0 | CZ20: 0 | DA20: 0 | DB20: 0 | DC20: 0 | DD20: 0 | DE20: 0 | DF20: 0 | DG20: 0 | DH20: 0 | DI20: 0 | DJ20: 0 | DK20: 0 | DL20: 0 | DM20: 0 | DN20: 0 | DO20: 0 | DP20: 0 | DQ20: 0 | DR20: 0 | DS20: 0 | DT20: 0 | DU20: 0 | DV20: 0 | DW20: 0 | DX20: 0 | DY20: 0 | DZ20: 0 | EA20: 0 | EB20: 0 | EC20: 0 | ED20: 0 | EE20: 0 | EF20: 0 | EG20: 0 | EH20: 0 | EI20: 0 | EJ20: 0 | EK20: 0 | EL20: 0 | EM20: 0 | EN20: 0 | EO20: 0 | EP20: 0 | EQ20: 0 | ER20: 0 | ES20: 0 | ET20: 0 | EU20: 0 | EV20: 0 | EW20: 0 | EX20: 0 | EY20: 0 | EZ20: 0
E21: 0 | F21: 0 | G21: 0 | H21: 0 | I21: 0 | J21: 0 | L21: 0 | M21: 0 | N21: 0 | O21: 0 | P21: 0 | Q21: 0 | R21: 0 | S21: 0 | T21: 0 | U21: 0 | V21: 0 | W21: 0 | X21: 0 | Y21: 0 | Z21: 0 | AA21: 0 | AB21: 0 | AC21: 0 | AD21: 0 | AE21: 0 | AF21: 0 | AG21: 0 | AH21: 0 | AI21: 0 | AJ21: 0 | AK21: 0 | AL21: 0 | AM21: 0 | AN21: 0 | AO21: 0 | AP21: 0 | AQ21: 0 | AR21: 0 | AS21: 0 | AT21: 0 | AU21: 0 | AV21: 0 | AW21: 0 | AX21: 0 | AY21: 0 | AZ21: 0 | BA21: 0 | BB21: 0 | BC21: 0 | BD21: 0 | BE21: 0 | BF21: 0 | BG21: 0 | BH21: 0 | BI21: 0 | BJ21: 0 | BK21: 0 | BL21: 0 | BM21: 0 | BN21: 0 | BO21: 0 | BP21: 0 | BQ21: 0 | BR21: 0 | BS21: 0 | BT21: 0 | BU21: 0 | BV21: 0 | BW21: 0 | BX21: 0 | BY21: 0 | BZ21: 0 | CA21: 0 | CB21: 0 | CC21: 0 | CD21: 0 | CE21: 0 | CG21: 0 | CH21: 0 | CI21: 0 | CJ21: 0 | CK21: 0 | CL21: 0 | CM21: 0 | CN21: 0 | CO21: 0 | CP21: 0 | CQ21: 0 | CR21: 0 | CS21: 0 | CT21: 0 | CU21: 0 | CV21: 0 | CW21: 0 | CX21: 0 | CY21: 0 | CZ21: 0 | DA21: 0 | DB21: 0 | DC21: 0 | DD21: 0 | DE21: 0 | DF21: 0 | DG21: 0 | DH21: 0 | DI21: 0 | DJ21: 0 | DK21: 0 | DL21: 0 | DM21: 0 | DN21: 0 | DO21: 0 | DP21: 0 | DQ21: 0 | DR21: 0 | DS21: 0 | DT21: 0 | DU21: 0 | DV21: 0 | DW21: 0 | DX21: 0 | DY21: 0 | DZ21: 0 | EA21: 0 | EB21: 0 | EC21: 0 | ED21: 0 | EE21: 0 | EF21: 0 | EG21: 0 | EH21: 0 | EI21: 0 | EJ21: 0 | EK21: 0 | EL21: 0 | EM21: 0 | EN21: 0 | EO21: 0 | EP21: 0 | EQ21: 0 | ER21: 0 | ES21: 0 | ET21: 0 | EU21: 0 | EV21: 0 | EW21: 0 | EX21: 0 | EY21: 0 | EZ21: 0
E22: 0 | F22: 0 | G22: 0 | H22: 0 | I22: 0 | J22: 0 | L22: 0 | M22: 0 | N22: 0 | O22: 0 | P22: 0 | Q22: 0 | R22: 0 | S22: 0 | T22: 0 | U22: 0 | V22: 0 | W22: 0 | X22: 0 | Y22: 0 | Z22: 0 | AA22: 0 | AB22: 0 | AC22: 0 | AD22: 0 | AE22: 0 | AF22: 0 | AG22: 0 | AH22: 0 | AI22: 0 | AJ22: 0 | AK22: 0 | AL22: 0 | AM22: 0 | AN22: 0 | AO22: 0 | AP22: 0 | AQ22: 0 | AR22: 0 | AS22: 0 | AT22: 0 | AU22: 0 | AV22: 0 | AW22: 0 | AX22: 0 | AY22: 0 | AZ22: 0 | BA22: 0 | BB22: 0 | BC22: 0 | BD22: 0 | BE22: 0 | BF22: 0 | BG22: 0 | BH22: 0 | BI22: 0 | BJ22: 0 | BK22: 0 | BL22: 0 | BM22: 0 | BN22: 0 | BO22: 0 | BP22: 0 | BQ22: 0 | BR22: 0 | BS22: 0 | BT22: 0 | BU22: 0 | BV22: 0 | BW22: 0 | BX22: 0 | BY22: 0 | BZ22: 0 | CA22: 0 | CB22: 0 | CC22: 0 | CD22: 0 | CE22: 0 | CG22: 0 | CH22: 0 | CI22: 0 | CJ22: 0 | CK22: 0 | CL22: 0 | CM22: 0 | CN22: 0 | CO22: 0 | CP22: 0 | CQ22: 0 | CR22: 0 | CS22: 0 | CT22: 0 | CU22: 0 | CV22: 0 | CW22: 0 | CX22: 0 | CY22: 0 | CZ22: 0 | DA22: 0 | DB22: 0 | DC22: 0 | DD22: 0 | DE22: 0 | DF22: 0 | DG22: 0 | DH22: 0 | DI22: 0 | DJ22: 0 | DK22: 0 | DL22: 0 | DM22: 0 | DN22: 0 | DO22: 0 | DP22: 0 | DQ22: 0 | DR22: 0 | DS22: 0 | DT22: 0 | DU22: 0 | DV22: 0 | DW22: 0 | DX22: 0 | DY22: 0 | DZ22: 0 | EA22: 0 | EB22: 0 | EC22: 0 | ED22: 0 | EE22: 0 | EF22: 0 | EG22: 0 | EH22: 0 | EI22: 0 | EJ22: 0 | EK22: 0 | EL22: 0 | EM22: 0 | EN22: 0 | EO22: 0 | EP22: 0 | EQ22: 0 | ER22: 0 | ES22: 0 | ET22: 0 | EU22: 0 | EV22: 0 | EW22: 0 | EX22: 0 | EY22: 0 | EZ22: 0
E23: 0 | F23: 0 | G23: 0 | H23: 0 | I23: 0 | J23: 0 | L23: 0 | M23: 0 | N23: 0 | O23: 0 | P23: 0 | Q23: 0 | R23: 0 | S23: 0 | T23: 0 | U23: 0 | V23: 0 | W23: 0 | X23: 0 | Y23: 0 | Z23: 0 | AA23: 0 | AB23: 0 | AC23: 0 | AD23: 0 | AE23: 0 | AF23: 0 | AG23: 0 | AH23: 0 | AI23: 0 | AJ23: 0 | AK23: 0 | AL23: 0 | AM23: 0 | AN23: 0 | AO23: 0 | AP23: 0 | AQ23: 0 | AR23: 0 | AS23: 0 | AT23: 0 | AU23: 0 | AV23: 0 | AW23: 0 | AX23: 0 | AY23: 0 | AZ23: 0 | BA23: 0 | BB23: 0 | BC23: 0 | BD23: 0 | BE23: 0 | BF23: 0 | BG23: 0 | BH23: 0 | BI23: 0 | BJ23: 0 | BK23: 0 | BL23: 0 | BM23: 0 | BN23: 0 | BO23: 0 | BP23: 0 | BQ23: 0 | BR23: 0 | BS23: 0 | BT23: 0 | BU23: 0 | BV23: 0 | BW23: 0 | BX23: 0 | BY23: 0 | BZ23: 0 | CA23: 0 | CB23: 0 | CC23: 0 | CD23: 0 | CE23: 0 | CG23: 0 | CH23: 0 | CI23: 0 | CJ23: 0 | CK23: 0 | CL23: 0 | CM23: 0 | CN23: 0 | CO23: 0 | CP23: 0 | CQ23: 0 | CR23: 0 | CS23: 0 | CT23: 0 | CU23: 0 | CV23: 0 | CW23: 0 | CX23: 0 | CY23: 0 | CZ23: 0 | DA23: 0 | DB23: 0 | DC23: 0 | DD23: 0 | DE23: 0 | DF23: 0 | DG23: 0 | DH23: 0 | DI23: 0 | DJ23: 0 | DK23: 0 | DL23: 0 | DM23: 0 | DN23: 0 | DO23: 0 | DP23: 0 | DQ23: 0 | DR23: 0 | DS23: 0 | DT23: 0 | DU23: 0 | DV23: 0 | DW23: 0 | DX23: 0 | DY23: 0 | DZ23: 0 | EA23: 0 | EB23: 0 | EC23: 0 | ED23: 0 | EE23: 0 | EF23: 0 | EG23: 0 | EH23: 0 | EI23: 0 | EJ23: 0 | EK23: 0 | EL23: 0 | EM23: 0 | EN23: 0 | EO23: 0 | EP23: 0 | EQ23: 0 | ER23: 0 | ES23: 0 | ET23: 0 | EU23: 0 | EV23: 0 | EW23: 0 | EX23: 0 | EY23: 0 | EZ23: 0
E24: 0 | F24: 0 | G24: 0 | H24: 0 | I24: 0 | J24: 0 | L24: 0 | M24: 0 | N24: 0 | O24: 0 | P24: 0 | Q24: 0 | R24: 0 | S24: 0 | T24: 0 | U24: 0 | V24: 0 | W24: 0 | X24: 0 | Y24: 0 | Z24: 0 | AA24: 0 | AB24: 0 | AC24: 0 | AD24: 0 | AE24: 0 | AF24: 0 | AG24: 0 | AH24: 0 | AI24: 0 | AJ24: 0 | AK24: 0 | AL24: 0 | AM24: 0 | AN24: 0 | AO24: 0 | AP24: 0 | AQ24: 0 | AR24: 0 | AS24: 0 | AT24: 0 | AU24: 0 | AV24: 0 | AW24: 0 | AX24: 0 | AY24: 0 | AZ24: 0 | BA24: 0 | BB24: 0 | BC24: 0 | BD24: 0 | BE24: 0 | BF24: 0 | BG24: 0 | BH24: 0 | BI24: 0 | BJ24: 0 | BK24: 0 | BL24: 0 | BM24: 0 | BN24: 0 | BO24: 0 | BP24: 0 | BQ24: 0 | BR24: 0 | BS24: 0 | BT24: 0 | BU24: 0 | BV24: 0 | BW24: 0 | BX24: 0 | BY24: 0 | BZ24: 0 | CA24: 0 | CB24: 0 | CC24: 0 | CD24: 0 | CE24: 0 | CG24: 0 | CH24: 0 | CI24: 0 | CJ24: 0 | CK24: 0 | CL24: 0 | CM24: 0 | CN24: 0 | CO24: 0 | CP24: 0 | CQ24: 0 | CR24: 0 | CS24: 0 | CT24: 0 | CU24: 0 | CV24: 0 | CW24: 0 | CX24: 0 | CY24: 0 | CZ24: 0 | DA24: 0 | DB24: 0 | DC24: 0 | DD24: 0 | DE24: 0 | DF24: 0 | DG24: 0 | DH24: 0 | DI24: 0 | DJ24: 0 | DK24: 0 | DL24: 0 | DM24: 0 | DN24: 0 | DO24: 0 | DP24: 0 | DQ24: 0 | DR24: 0 | DS24: 0 | DT24: 0 | DU24: 0 | DV24: 0 | DW24: 0 | DX24: 0 | DY24: 0 | DZ24: 0 | EA24: 0 | EB24: 0 | EC24: 0 | ED24: 0 | EE24: 0 | EF24: 0 | EG24: 0 | EH24: 0 | EI24: 0 | EJ24: 0 | EK24: 0 | EL24: 0 | EM24: 0 | EN24: 0 | EO24: 0 | EP24: 0 | EQ24: 0 | ER24: 0 | ES24: 0 | ET24: 0 | EU24: 0 | EV24: 0 | EW24: 0 | EX24: 0 | EY24: 0 | EZ24: 0
E25: 0 | F25: 0 | G25: 0 | H25: 0 | I25: 0 | J25: 0 | L25: 0 | M25: 0 | N25: 0 | O25: 0 | P25: 0 | Q25: 0 | R25: 0 | S25: 0 | T25: 0 | U25: 0 | V25: 0 | W25: 0 | X25: 0 | Y25: 0 | Z25: 0 | AA25: 0 | AB25: 0 | AC25: 0 | AD25: 0 | AE25: 0 | AF25: 0 | AG25: 0 | AH25: 0 | AI25: 0 | AJ25: 0 | AK25: 0 | AL25: 0 | AM25: 0 | AN25: 0 | AO25: 0 | AP25: 0 | AQ25: 0 | AR25: 0 | AS25: 0 | AT25: 0 | AU25: 0 | AV25: 0 | AW25: 0 | AX25: 0 | AY25: 0 | AZ25: 0 | BA25: 0 | BB25: 0 | BC25: 0 | BD25: 0 | BE25: 0 | BF25: 0 | BG25: 0 | BH25: 0 | BI25: 0 | BJ25: 0 | BK25: 0 | BL25: 0 | BM25: 0 | BN25: 0 | BO25: 0 | BP25: 0 | BQ25: 0 | BR25: 0 | BS25: 0 | BT25: 0 | BU25: 0 | BV25: 0 | BW25: 0 | BX25: 0 | BY25: 0 | BZ25: 0 | CA25: 0 | CB25: 0 | CC25: 0 | CD25: 0 | CE25: 0 | CG25: 0 | CH25: 0 | CI25: 0 | CJ25: 0 | CK25: 0 | CL25: 0 | CM25: 0 | CN25: 0 | CO25: 0 | CP25: 0 | CQ25: 0 | CR25: 0 | CS25: 0 | CT25: 0 | CU25: 0 | CV25: 0 | CW25: 0 | CX25: 0 | CY25: 0 | CZ25: 0 | DA25: 0 | DB25: 0 | DC25: 0 | DD25: 0 | DE25: 0 | DF25: 0 | DG25: 0 | DH25: 0 | DI25: 0 | DJ25: 0 | DK25: 0 | DL25: 0 | DM25: 0 | DN25: 0 | DO25: 0 | DP25: 0 | DQ25: 0 | DR25: 0 | DS25: 0 | DT25: 0 | DU25: 0 | DV25: 0 | DW25: 0 | DX25: 0 | DY25: 0 | DZ25: 0 | EA25: 0 | EB25: 0 | EC25: 0 | ED25: 0 | EE25: 0 | EF25: 0 | EG25: 0 | EH25: 0 | EI25: 0 | EJ25: 0 | EK25: 0 | EL25: 0 | EM25: 0 | EN25: 0 | EO25: 0 | EP25: 0 | EQ25: 0 | ER25: 0 | ES25: 0 | ET25: 0 | EU25: 0 | EV25: 0 | EW25: 0 | EX25: 0 | EY25: 0 | EZ25: 0
E26: 0 | F26: 0 | G26: 0 | H26: 0 | I26: 0 | J26: 0 | L26: 0 | M26: 0 | N26: 0 | O26: 0 | P26: 0 | Q26: 0 | R26: 0 | S26: 0 | T26: 0 | U26: 0 | V26: 0 | W26: 0 | X26: 0 | Y26: 0 | Z26: 0 | AA26: 0 | AB26: 0 | AC26: 0 | AD26: 0 | AE26: 0 | AF26: 0 | AG26: 0 | AH26: 0 | AI26: 0 | AJ26: 0 | AK26: 0 | AL26: 0 | AM26: 0 | AN26: 0 | AO26: 0 | AP26: 0 | AQ26: 0 | AR26: 0 | AS26: 0 | AT26: 0 | AU26: 0 | AV26: 0 | AW26: 0 | AX26: 0 | AY26: 0 | AZ26: 0 | BA26: 0 | BB26: 0 | BC26: 0 | BD26: 0 | BE26: 0 | BF26: 0 | BG26: 0 | BH26: 0 | BI26: 0 | BJ26: 0 | BK26: 0 | BL26: 0 | BM26: 0 | BN26: 0 | BO26: 0 | BP26: 0 | BQ26: 0 | BR26: 0 | BS26: 0 | BT26: 0 | BU26: 0 | BV26: 0 | BW26: 0 | BX26: 0 | BY26: 0 | BZ26: 0 | CA26: 0 | CB26: 0 | CC26: 0 | CD26: 0 | CE26: 0 | CG26: 0 | CH26: 0 | CI26: 0 | CJ26: 0 | CK26: 0 | CL26: 0 | CM26: 0 | CN26: 0 | CO26: 0 | CP26: 0 | CQ26: 0 | CR26: 0 | CS26: 0 | CT26: 0 | CU26: 0 | CV26: 0 | CW26: 0 | CX26: 0 | CY26: 0 | CZ26: 0 | DA26: 0 | DB26: 0 | DC26: 0 | DD26: 0 | DE26: 0 | DF26: 0 | DG26: 0 | DH26: 0 | DI26: 0 | DJ26: 0 | DK26: 0 | DL26: 0 | DM26: 0 | DN26: 0 | DO26: 0 | DP26: 0 | DQ26: 0 | DR26: 0 | DS26: 0 | DT26: 0 | DU26: 0 | DV26: 0 | DW26: 0 | DX26: 0 | DY26: 0 | DZ26: 0 | EA26: 0 | EB26: 0 | EC26: 0 | ED26: 0 | EE26: 0 | EF26: 0 | EG26: 0 | EH26: 0 | EI26: 0 | EJ26: 0 | EK26: 0 | EL26: 0 | EM26: 0 | EN26: 0 | EO26: 0 | EP26: 0 | EQ26: 0 | ER26: 0 | ES26: 0 | ET26: 0 | EU26: 0 | EV26: 0 | EW26: 0 | EX26: 0 | EY26: 0 | EZ26: 0
B27: FBS Obligation | D27: FPS_FBS | E27: =+SUM(E28:E37) -> 5728189.723 | F27: =+SUM(F28:F37) -> 5728190.517 | G27: 5739628.502 | H27: 5728252.197 | I27: 5728266.616 | J27: 5728125.735 | L27: 374156.378 | M27: 333487.821 | N27: 345610.332 | O27: 344303.612 | P27: 312774.872 | Q27: 355095.09 | R27: 411287.405 | S27: 463633.18 | T27: 459979.872 | U27: 487995.533 | V27: 480537.955 | W27: 411563.226 | X27: 374156.378 | Y27: 333487.821 | Z27: 345610.332 | AA27: 344303.612 | AB27: 312774.872 | AC27: 355095.09 | AD27: 411209.842 | AE27: 463831.919 | AF27: 459979.872 | AG27: 487995.533 | AH27: 480538.419 | AI27: 411563.226 | AJ27: 374156.378 | AK27: 333487.821 | AL27: 345492.046 | AM27: 344422.48 | AN27: 323962.296 | AO27: 355080.281 | AP27: 411287.405 | AQ27: 463831.919 | AR27: 459722.699 | AS27: 488647.609 | AT27: 480490.499 | AU27: 411359.195 | AV27: 374236.357 | AW27: 333487.821 | AX27: 345492.046 | AY27: 344422.48 | AZ27: 312774.872 | BA27: 355080.281 | BB27: 411287.405 | BC27: 463831.919 | BD27: 459722.699 | BE27: 488648.441 | BF27: 477937.83 | BG27: 411563.226 | BH27: 374236.357 | BI27: 333365.714 | BJ27: 345610.332 | BK27: 344422.48 | BL27: 312774.872 | BM27: 355080.281 | BN27: 411287.405 | BO27: 463633.18 | BP27: 459979.872 | BQ27: 488649.273 | BR27: 477944.902 | BS27: 411563.226 | BT27: 374236.357 | BU27: 333365.714 | BV27: 345610.332 | BW27: 344303.612 | BX27: 312774.872 | BY27: 355095.09 | BZ27: 411287.405 | CA27: 463633.18 | CB27: 459979.872 | CC27: 488650.105 | CD27: 479230.966 | CE27: 411563.226 | CG27: 55182.344 | CH27: 3836.794 | CI27: 3352.411 | CJ27: 2746.452 | CK27: 7321.78 | CL27: 27735.143 | CM27: 84361.567 | CN27: 131063.498 | CO27: 151239.615 | CP27: 180860.671 | CQ27: 178602.021 | CR27: 121462.151 | CS27: 55182.344 | CT27: 3836.794 | CU27: 3352.411 | CV27: 2746.452 | CW27: 7321.78 | CX27: 27735.143 | CY27: 84439.13 | CZ27: 130864.761 | DA27: 151239.615 | DB27: 180860.671 | DC27: 178602.349 | DD27: 121462.151 | DE27: 55182.344 | DF27: 3836.794 | DG27: 3358.689 | DH27: 2739.593 | DI27: 7582.323 | DJ27: 27749.952 | DK27: 84361.567 | DL27: 130864.761 | DM27: 151496.789 | DN27: 180280.762 | DO27: 178568.117 | DP27: 121666.183 | DQ27: 55102.365 | DR27: 3836.794 | DS27: 3358.689 | DT27: 2739.593 | DU27: 7321.78 | DV27: 27749.952 | DW27: 84361.567 | DX27: 130864.761 | DY27: 151496.789 | DZ27: 180281.418 | EA27: 181190.961 | EB27: 121462.151 | EC27: 55102.365 | ED27: 3846.915 | EE27: 3352.411 | EF27: 2739.593 | EG27: 7321.78 | EH27: 27749.952 | EI27: 84361.567 | EJ27: 131063.498 | EK27: 151239.615 | EL27: 180282.074 | EM27: 181196.801 | EN27: 121462.151 | EO27: 55102.365 | EP27: 3846.915 | EQ27: 3352.411 | ER27: 2746.452 | ES27: 7321.78 | ET27: 27735.143 | EU27: 84361.567 | EV27: 131063.498 | EW27: 151239.615 | EX27: 180282.73 | EY27: 179880.377 | EZ27: 121462.151
C28: Canadian Entitlement | D28: FPS_FBS_CDN | E28: 3979668 | F28: 3979668 | G28: 3990571.2 | H28: 3979668 | I28: 3979668 | J28: 3979668 | L28: 337999.2 | M28: 327550.3 | N28: 337999.2 | O28: 337999.2 | P28: 305289.6 | Q28: 337544.9 | R28: 327096 | S28: 337999.2 | T28: 327096 | U28: 337999.2 | V28: 337999.2 | W28: 327096 | X28: 337999.2 | Y28: 327550.3 | Z28: 337999.2 | AA28: 337999.2 | AB28: 305289.6 | AC28: 337544.9 | AD28: 327096 | AE28: 337999.2 | AF28: 327096 | AG28: 337999.2 | AH28: 337999.2 | AI28: 327096 | AJ28: 337999.2 | AK28: 327550.3 | AL28: 337999.2 | AM28: 337999.2 | AN28: 316192.8 | AO28: 337544.9 | AP28: 327096 | AQ28: 337999.2 | AR28: 327096 | AS28: 337999.2 | AT28: 337999.2 | AU28: 327096 | AV28: 337999.2 | AW28: 327550.3 | AX28: 337999.2 | AY28: 337999.2 | AZ28: 305289.6 | BA28: 337544.9 | BB28: 327096 | BC28: 337999.2 | BD28: 327096 | BE28: 337999.2 | BF28: 337999.2 | BG28: 327096 | BH28: 337999.2 | BI28: 327550.3 | BJ28: 337999.2 | BK28: 337999.2 | BL28: 305289.6 | BM28: 337544.9 | BN28: 327096 | BO28: 337999.2 | BP28: 327096 | BQ28: 337999.2 | BR28: 337999.2 | BS28: 327096 | BT28: 337999.2 | BU28: 327550.3 | BV28: 337999.2 | BW28: 337999.2 | BX28: 305289.6 | BY28: 337544.9 | BZ28: 327096 | CA28: 337999.2 | CB28: 327096 | CC28: 337999.2 | CD28: 337999.2 | CE28: 327096 | CG28: 0 | CH28: 0 | CI28: 0 | CJ28: 0 | CK28: 0 | CL28: 0 | CM28: 0 | CN28: 0 | CO28: 0 | CP28: 0 | CQ28: 0 | CR28: 0 | CS28: 0 | CT28: 0 | CU28: 0 | CV28: 0 | CW28: 0 | CX28: 0 | CY28: 0 | CZ28: 0 | DA28: 0 | DB28: 0 | DC28: 0 | DD28: 0 | DE28: 0 | DF28: 0 | DG28: 0 | DH28: 0 | DI28: 0 | DJ28: 0 | DK28: 0 | DL28: 0 | DM28: 0 | DN28: 0 | DO28: 0 | DP28: 0 | DQ28: 0 | DR28: 0 | DS28: 0 | DT28: 0 | DU28: 0 | DV28: 0 | DW28: 0 | DX28: 0 | DY28: 0 | DZ28: 0 | EA28: 0 | EB28: 0 | EC28: 0 | ED28: 0 | EE28: 0 | EF28: 0 | EG28: 0 | EH28: 0 | EI28: 0 | EJ28: 0 | EK28: 0 | EL28: 0 | EM28: 0 | EN28: 0 | EO28: 0 | EP28: 0 | EQ28: 0 | ER28: 0 | ES28: 0 | ET28: 0 | EU28: 0 | EV28: 0 | EW28: 0 | EX28: 0 | EY28: 0 | EZ28: 0
C29: USBR Pump Load | D29: FPS_FBS_UBR | E29: 1648375.733 | F29: 1648375.735 | G29: 1648808.312 | H29: 1648375.735 | I29: 1648375.731 | J29: 1648375.73 | L29: 36157.178 | M29: 3137.521 | N29: 4699.132 | O29: 3504.412 | P29: 4797.272 | Q29: 17550.19 | R29: 84191.405 | S29: 125633.98 | T29: 132883.872 | U29: 142994.333 | V29: 98386.819 | W29: 84467.226 | X29: 36157.178 | Y29: 3137.521 | Z29: 4699.132 | AA29: 3504.412 | AB29: 4797.272 | AC29: 17550.19 | AD29: 84113.842 | AE29: 125832.719 | AF29: 132883.872 | AG29: 142994.333 | AH29: 98386.819 | AI29: 84467.226 | AJ29: 36157.178 | AK29: 3137.521 | AL29: 4692.846 | AM29: 3511.28 | AN29: 4969.496 | AO29: 17535.381 | AP29: 84191.405 | AQ29: 125832.719 | AR29: 132626.699 | AS29: 143325.977 | AT29: 98386.819 | AU29: 84263.195 | AV29: 36237.157 | AW29: 3137.521 | AX29: 4692.846 | AY29: 3511.28 | AZ29: 4797.272 | BA29: 17535.381 | BB29: 84191.405 | BC29: 125832.719 | BD29: 132626.699 | BE29: 143325.977 | BF29: 98055.958 | BG29: 84467.226 | BH29: 36237.157 | BI29: 3127.414 | BJ29: 4699.132 | BK29: 3511.28 | BL29: 4797.272 | BM29: 17535.381 | BN29: 84191.405 | BO29: 125633.98 | BP29: 132883.872 | BQ29: 143325.977 | BR29: 98055.958 | BS29: 84467.226 | BT29: 36237.157 | BU29: 3127.414 | BV29: 4699.132 | BW29: 3504.412 | BX29: 4797.272 | BY29: 17550.19 | BZ29: 84191.405 | CA29: 125633.98 | CB29: 132883.872 | CC29: 143325.977 | CD29: 98055.958 | CE29: 84467.226 | CG29: 55182.344 | CH29: 3829.732 | CI29: 3345.523 | CJ29: 2739.572 | CK29: 7314.868 | CL29: 27735.143 | CM29: 84361.567 | CN29: 131063.498 | CO29: 151239.615 | CP29: 174838.951 | CQ29: 146859.429 | CR29: 121462.151 | CS29: 55182.344 | CT29: 3829.732 | CU29: 3345.523 | CV29: 2739.572 | CW29: 7314.868 | CX29: 27735.143 | CY29: 84439.13 | CZ29: 130864.761 | DA29: 151239.615 | DB29: 174838.951 | DC29: 146859.429 | DD29: 121462.151 | DE29: 55182.344 | DF29: 3829.732 | DG29: 3351.809 | DH29: 2732.705 | DI29: 7575.219 | DJ29: 27749.952 | DK29: 84361.567 | DL29: 130864.761 | DM29: 151496.789 | DN29: 174507.306 | DO29: 146859.429 | DP29: 121666.183 | DQ29: 55102.365 | DR29: 3829.732 | DS29: 3351.809 | DT29: 2732.705 | DU29: 7314.868 | DV29: 27749.952 | DW29: 84361.567 | DX29: 130864.761 | DY29: 151496.789 | DZ29: 174507.306 | EA29: 147190.289 | EB29: 121462.151 | EC29: 55102.365 | ED29: 3839.838 | EE29: 3345.523 | EF29: 2732.705 | EG29: 7314.868 | EH29: 27749.952 | EI29: 84361.567 | EJ29: 131063.498 | EK29: 151239.615 | EL29: 174507.306 | EM29: 147190.289 | EN29: 121462.151 | EO29: 55102.365 | EP29: 3839.838 | EQ29: 3345.523 | ER29: 2739.572 | ES29: 7314.868 | ET29: 27735.143 | EU29: 84361.567 | EV29: 131063.498 | EW29: 151239.615 | EX29: 174507.306 | EY29: 147190.289 | EZ29: 121462.151
C30: Hungry Horse | D30: FPS_FBS_HH | E30: 0 | F30: 0 | G30: 0 | H30: 0 | I30: 0 | J30: 0 | L30: 0 | M30: 0 | N30: 0 | O30: 0 | P30: 0 | Q30: 0 | R30: 0 | S30: 0 | T30: 0 | U30: 0 | V30: 0 | W30: 0 | X30: 0 | Y30: 0 | Z30: 0 | AA30: 0 | AB30: 0 | AC30: 0 | AD30: 0 | AE30: 0 | AF30: 0 | AG30: 0 | AH30: 0 | AI30: 0 | AJ30: 0 | AK30: 0 | AL30: 0 | AM30: 0 | AN30: 0 | AO30: 0 | AP30: 0 | AQ30: 0 | AR30: 0 | AS30: 0 | AT30: 0 | AU30: 0 | AV30: 0 | AW30: 0 | AX30: 0 | AY30: 0 | AZ30: 0 | BA30: 0 | BB30: 0 | BC30: 0 | BD30: 0 | BE30: 0 | BF30: 0 | BG30: 0 | BH30: 0 | BI30: 0 | BJ30: 0 | BK30: 0 | BL30: 0 | BM30: 0 | BN30: 0 | BO30: 0 | BP30: 0 | BQ30: 0 | BR30: 0 | BS30: 0 | BT30: 0 | BU30: 0 | BV30: 0 | BW30: 0 | BX30: 0 | BY30: 0 | BZ30: 0 | CA30: 0 | CB30: 0 | CC30: 0 | CD30: 0 | CE30: 0 | CG30: 0 | CH30: 0 | CI30: 0 | CJ30: 0 | CK30: 0 | CL30: 0 | CM30: 0 | CN30: 0 | CO30: 0 | CP30: 0 | CQ30: 0 | CR30: 0 | CS30: 0 | CT30: 0 | CU30: 0 | CV30: 0 | CW30: 0 | CX30: 0 | CY30: 0 | CZ30: 0 | DA30: 0 | DB30: 0 | DC30: 0 | DD30: 0 | DE30: 0 | DF30: 0 | DG30: 0 | DH30: 0 | DI30: 0 | DJ30: 0 | DK30: 0 | DL30: 0 | DM30: 0 | DN30: 0 | DO30: 0 | DP30: 0 | DQ30: 0 | DR30: 0 | DS30: 0 | DT30: 0 | DU30: 0 | DV30: 0 | DW30: 0 | DX30: 0 | DY30: 0 | DZ30: 0 | EA30: 0 | EB30: 0 | EC30: 0 | ED30: 0 | EE30: 0 | EF30: 0 | EG30: 0 | EH30: 0 | EI30: 0 | EJ30: 0 | EK30: 0 | EL30: 0 | EM30: 0 | EN30: 0 | EO30: 0 | EP30: 0 | EQ30: 0 | ER30: 0 | ES30: 0 | ET30: 0 | EU30: 0 | EV30: 0 | EW30: 0 | EX30: 0 | EY30: 0 | EZ30: 0
C31: Upper Baker | D31: FPS_FBS_UPB | E31: 11227.742 | F31: 11227.742 | G31: 11339.934 | H31: 11227.742 | I31: 11227.765 | J31: 11115.757 | L31: 0 | M31: 2800 | N31: 2912 | O31: 2800 | P31: 2688 | Q31: 0 | R31: 0 | S31: 0 | T31: 0 | U31: 0 | V31: 0 | W31: 0 | X31: 0 | Y31: 2800 | Z31: 2912 | AA31: 2800 | AB31: 2688 | AC31: 0 | AD31: 0 | AE31: 0 | AF31: 0 | AG31: 0 | AH31: 0 | AI31: 0 | AJ31: 0 | AK31: 2800 | AL31: 2800 | AM31: 2912 | AN31: 2800 | AO31: 0 | AP31: 0 | AQ31: 0 | AR31: 0 | AS31: 0 | AT31: 0 | AU31: 0 | AV31: 0 | AW31: 2800 | AX31: 2800 | AY31: 2912 | AZ31: 2688 | BA31: 0 | BB31: 0 | BC31: 0 | BD31: 0 | BE31: 0 | BF31: 0 | BG31: 0 | BH31: 0 | BI31: 2688 | BJ31: 2912 | BK31: 2912 | BL31: 2688 | BM31: 0 | BN31: 0 | BO31: 0 | BP31: 0 | BQ31: 0 | BR31: 0 | BS31: 0 | BT31: 0 | BU31: 2688 | BV31: 2912 | BW31: 2800 | BX31: 2688 | BY31: 0 | BZ31: 0 | CA31: 0 | CB31: 0 | CC31: 0 | CD31: 0 | CE31: 0 | CG31: 0 | CH31: 7.062 | CI31: 6.888 | CJ31: 6.88 | CK31: 6.912 | CL31: 0 | CM31: 0 | CN31: 0 | CO31: 0 | CP31: 0 | CQ31: 0 | CR31: 0 | CS31: 0 | CT31: 7.062 | CU31: 6.888 | CV31: 6.88 | CW31: 6.912 | CX31: 0 | CY31: 0 | CZ31: 0 | DA31: 0 | DB31: 0 | DC31: 0 | DD31: 0 | DE31: 0 | DF31: 7.062 | DG31: 6.88 | DH31: 6.888 | DI31: 7.104 | DJ31: 0 | DK31: 0 | DL31: 0 | DM31: 0 | DN31: 0 | DO31: 0 | DP31: 0 | DQ31: 0 | DR31: 7.062 | DS31: 6.88 | DT31: 6.888 | DU31: 6.912 | DV31: 0 | DW31: 0 | DX31: 0 | DY31: 0 | DZ31: 0 | EA31: 0 | EB31: 0 | EC31: 0 | ED31: 7.077 | EE31: 6.888 | EF31: 6.888 | EG31: 6.912 | EH31: 0 | EI31: 0 | EJ31: 0 | EK31: 0 | EL31: 0 | EM31: 0 | EN31: 0 | EO31: 0 | EP31: 7.077 | EQ31: 6.888 | ER31: 6.88 | ES31: 6.912 | ET31: 0 | EU31: 0 | EV31: 0 | EW31: 0 | EX31: 0 | EY31: 0 | EZ31: 0
C32: Non-Treaty Storage | D32: FPS_FBS_NTS | E32: 88918.248 | F32: 88919.04 | G32: 88909.056 | H32: 88980.72 | I32: 88995.12 | J32: 88966.248 | L32: 0 | M32: 0 | N32: 0 | O32: 0 | P32: 0 | Q32: 0 | R32: 0 | S32: 0 | T32: 0 | U32: 7002 | V32: 44151.936 | W32: 0 | X32: 0 | Y32: 0 | Z32: 0 | AA32: 0 | AB32: 0 | AC32: 0 | AD32: 0 | AE32: 0 | AF32: 0 | AG32: 7002 | AH32: 44152.4 | AI32: 0 | AJ32: 0 | AK32: 0 | AL32: 0 | AM32: 0 | AN32: 0 | AO32: 0 | AP32: 0 | AQ32: 0 | AR32: 0 | AS32: 7322.432 | AT32: 44104.48 | AU32: 0 | AV32: 0 | AW32: 0 | AX32: 0 | AY32: 0 | AZ32: 0 | BA32: 0 | BB32: 0 | BC32: 0 | BD32: 0 | BE32: 7323.264 | BF32: 41882.672 | BG32: 0 | BH32: 0 | BI32: 0 | BJ32: 0 | BK32: 0 | BL32: 0 | BM32: 0 | BN32: 0 | BO32: 0 | BP32: 0 | BQ32: 7324.096 | BR32: 41889.744 | BS32: 0 | BT32: 0 | BU32: 0 | BV32: 0 | BW32: 0 | BX32: 0 | BY32: 0 | BZ32: 0 | CA32: 0 | CB32: 0 | CC32: 7324.928 | CD32: 43175.808 | CE32: 0 | CG32: 0 | CH32: 0 | CI32: 0 | CJ32: 0 | CK32: 0 | CL32: 0 | CM32: 0 | CN32: 0 | CO32: 0 | CP32: 6021.72 | CQ32: 31742.592 | CR32: 0 | CS32: 0 | CT32: 0 | CU32: 0 | CV32: 0 | CW32: 0 | CX32: 0 | CY32: 0 | CZ32: 0 | DA32: 0 | DB32: 6021.72 | DC32: 31742.92 | DD32: 0 | DE32: 0 | DF32: 0 | DG32: 0 | DH32: 0 | DI32: 0 | DJ32: 0 | DK32: 0 | DL32: 0 | DM32: 0 | DN32: 5773.456 | DO32: 31708.688 | DP32: 0 | DQ32: 0 | DR32: 0 | DS32: 0 | DT32: 0 | DU32: 0 | DV32: 0 | DW32: 0 | DX32: 0 | DY32: 0 | DZ32: 5774.112 | EA32: 34000.672 | EB32: 0 | EC32: 0 | ED32: 0 | EE32: 0 | EF32: 0 | EG32: 0 | EH32: 0 | EI32: 0 | EJ32: 0 | EK32: 0 | EL32: 5774.768 | EM32: 34006.512 | EN32: 0 | EO32: 0 | EP32: 0 | EQ32: 0 | ER32: 0 | ES32: 0 | ET32: 0 | EU32: 0 | EV32: 0 | EW32: 0 | EX32: 5775.424 | EY32: 32690.088 | EZ32: 0
C33: Libby Coordination | D33: FPS_FBS_LCA | E33: 0 | F33: 0 | G33: 0 | H33: 0 | I33: 0 | J33: 0 | L33: 0 | M33: 0 | N33: 0 | O33: 0 | P33: 0 | Q33: 0 | R33: 0 | S33: 0 | T33: 0 | U33: 0 | V33: 0 | W33: 0 | X33: 0 | Y33: 0 | Z33: 0 | AA33: 0 | AB33: 0 | AC33: 0 | AD33: 0 | AE33: 0 | AF33: 0 | AG33: 0 | AH33: 0 | AI33: 0 | AJ33: 0 | AK33: 0 | AL33: 0 | AM33: 0 | AN33: 0 | AO33: 0 | AP33: 0 | AQ33: 0 | AR33: 0 | AS33: 0 | AT33: 0 | AU33: 0 | AV33: 0 | AW33: 0 | AX33: 0 | AY33: 0 | AZ33: 0 | BA33: 0 | BB33: 0 | BC33: 0 | BD33: 0 | BE33: 0 | BF33: 0 | BG33: 0 | BH33: 0 | BI33: 0 | BJ33: 0 | BK33: 0 | BL33: 0 | BM33: 0 | BN33: 0 | BO33: 0 | BP33: 0 | BQ33: 0 | BR33: 0 | BS33: 0 | BT33: 0 | BU33: 0 | BV33: 0 | BW33: 0 | BX33: 0 | BY33: 0 | BZ33: 0 | CA33: 0 | CB33: 0 | CC33: 0 | CD33: 0 | CE33: 0 | CG33: 0 | CH33: 0 | CI33: 0 | CJ33: 0 | CK33: 0 | CL33: 0 | CM33: 0 | CN33: 0 | CO33: 0 | CP33: 0 | CQ33: 0 | CR33: 0 | CS33: 0 | CT33: 0 | CU33: 0 | CV33: 0 | CW33: 0 | CX33: 0 | CY33: 0 | CZ33: 0 | DA33: 0 | DB33: 0 | DC33: 0 | DD33: 0 | DE33: 0 | DF33: 0 | DG33: 0 | DH33: 0 | DI33: 0 | DJ33: 0 | DK33: 0 | DL33: 0 | DM33: 0 | DN33: 0 | DO33: 0 | DP33: 0 | DQ33: 0 | DR33: 0 | DS33: 0 | DT33: 0 | DU33: 0 | DV33: 0 | DW33: 0 | DX33: 0 | DY33: 0 | DZ33: 0 | EA33: 0 | EB33: 0 | EC33: 0 | ED33: 0 | EE33: 0 | EF33: 0 | EG33: 0 | EH33: 0 | EI33: 0 | EJ33: 0 | EK33: 0 | EL33: 0 | EM33: 0 | EN33: 0 | EO33: 0 | EP33: 0 | EQ33: 0 | ER33: 0 | ES33: 0 | ET33: 0 | EU33: 0 | EV33: 0 | EW33: 0 | EX33: 0 | EY33: 0 | EZ33: 0
E34: 0 | F34: 0 | G34: 0 | H34: 0 | I34: 0 | J34: 0 | L34: 0 | M34: 0 | N34: 0 | O34: 0 | P34: 0 | Q34: 0 | R34: 0 | S34: 0 | T34: 0 | U34: 0 | V34: 0 | W34: 0 | X34: 0 | Y34: 0 | Z34: 0 | AA34: 0 | AB34: 0 | AC34: 0 | AD34: 0 | AE34: 0 | AF34: 0 | AG34: 0 | AH34: 0 | AI34: 0 | AJ34: 0 | AK34: 0 | AL34: 0 | AM34: 0 | AN34: 0 | AO34: 0 | AP34: 0 | AQ34: 0 | AR34: 0 | AS34: 0 | AT34: 0 | AU34: 0 | AV34: 0 | AW34: 0 | AX34: 0 | AY34: 0 | AZ34: 0 | BA34: 0 | BB34: 0 | BC34: 0 | BD34: 0 | BE34: 0 | BF34: 0 | BG34: 0 | BH34: 0 | BI34: 0 | BJ34: 0 | BK34: 0 | BL34: 0 | BM34: 0 | BN34: 0 | BO34: 0 | BP34: 0 | BQ34: 0 | BR34: 0 | BS34: 0 | BT34: 0 | BU34: 0 | BV34: 0 | BW34: 0 | BX34: 0 | BY34: 0 | BZ34: 0 | CA34: 0 | CB34: 0 | CC34: 0 | CD34: 0 | CE34: 0 | CG34: 0 | CH34: 0 | CI34: 0 | CJ34: 0 | CK34: 0 | CL34: 0 | CM34: 0 | CN34: 0 | CO34: 0 | CP34: 0 | CQ34: 0 | CR34: 0 | CS34: 0 | CT34: 0 | CU34: 0 | CV34: 0 | CW34: 0 | CX34: 0 | CY34: 0 | CZ34: 0 | DA34: 0 | DB34: 0 | DC34: 0 | DD34: 0 | DE34: 0 | DF34: 0 | DG34: 0 | DH34: 0 | DI34: 0 | DJ34: 0 | DK34: 0 | DL34: 0 | DM34: 0 | DN34: 0 | DO34: 0 | DP34: 0 | DQ34: 0 | DR34: 0 | DS34: 0 | DT34: 0 | DU34: 0 | DV34: 0 | DW34: 0 | DX34: 0 | DY34: 0 | DZ34: 0 | EA34: 0 | EB34: 0 | EC34: 0 | ED34: 0 | EE34: 0 | EF34: 0 | EG34: 0 | EH34: 0 | EI34: 0 | EJ34: 0 | EK34: 0 | EL34: 0 | EM34: 0 | EN34: 0 | EO34: 0 | EP34: 0 | EQ34: 0 | ER34: 0 | ES34: 0 | ET34: 0 | EU34: 0 | EV34: 0 | EW34: 0 | EX34: 0 | EY34: 0 | EZ34: 0
E35: 0 | F35: 0 | G35: 0 | H35: 0 | I35: 0 | J35: 0 | L35: 0 | M35: 0 | N35: 0 | O35: 0 | P35: 0 | Q35: 0 | R35: 0 | S35: 0 | T35: 0 | U35: 0 | V35: 0 | W35: 0 | X35: 0 | Y35: 0 | Z35: 0 | AA35: 0 | AB35: 0 | AC35: 0 | AD35: 0 | AE35: 0 | AF35: 0 | AG35: 0 | AH35: 0 | AI35: 0 | AJ35: 0 | AK35: 0 | AL35: 0 | AM35: 0 | AN35: 0 | AO35: 0 | AP35: 0 | AQ35: 0 | AR35: 0 | AS35: 0 | AT35: 0 | AU35: 0 | AV35: 0 | AW35: 0 | AX35: 0 | AY35: 0 | AZ35: 0 | BA35: 0 | BB35: 0 | BC35: 0 | BD35: 0 | BE35: 0 | BF35: 0 | BG35: 0 | BH35: 0 | BI35: 0 | BJ35: 0 | BK35: 0 | BL35: 0 | BM35: 0 | BN35: 0 | BO35: 0 | BP35: 0 | BQ35: 0 | BR35: 0 | BS35: 0 | BT35: 0 | BU35: 0 | BV35: 0 | BW35: 0 | BX35: 0 | BY35: 0 | BZ35: 0 | CA35: 0 | CB35: 0 | CC35: 0 | CD35: 0 | CE35: 0 | CG35: 0 | CH35: 0 | CI35: 0 | CJ35: 0 | CK35: 0 | CL35: 0 | CM35: 0 | CN35: 0 | CO35: 0 | CP35: 0 | CQ35: 0 | CR35: 0 | CS35: 0 | CT35: 0 | CU35: 0 | CV35: 0 | CW35: 0 | CX35: 0 | CY35: 0 | CZ35: 0 | DA35: 0 | DB35: 0 | DC35: 0 | DD35: 0 | DE35: 0 | DF35: 0 | DG35: 0 | DH35: 0 | DI35: 0 | DJ35: 0 | DK35: 0 | DL35: 0 | DM35: 0 | DN35: 0 | DO35: 0 | DP35: 0 | DQ35: 0 | DR35: 0 | DS35: 0 | DT35: 0 | DU35: 0 | DV35: 0 | DW35: 0 | DX35: 0 | DY35: 0 | DZ35: 0 | EA35: 0 | EB35: 0 | EC35: 0 | ED35: 0 | EE35: 0 | EF35: 0 | EG35: 0 | EH35: 0 | EI35: 0 | EJ35: 0 | EK35: 0 | EL35: 0 | EM35: 0 | EN35: 0 | EO35: 0 | EP35: 0 | EQ35: 0 | ER35: 0 | ES35: 0 | ET35: 0 | EU35: 0 | EV35: 0 | EW35: 0 | EX35: 0 | EY35: 0 | EZ35: 0
E36: 0 | F36: 0 | G36: 0 | H36: 0 | I36: 0 | J36: 0 | L36: 0 | M36: 0 | N36: 0 | O36: 0 | P36: 0 | Q36: 0 | R36: 0 | S36: 0 | T36: 0 | U36: 0 | V36: 0 | W36: 0 | X36: 0 | Y36: 0 | Z36: 0 | AA36: 0 | AB36: 0 | AC36: 0 | AD36: 0 | AE36: 0 | AF36: 0 | AG36: 0 | AH36: 0 | AI36: 0 | AJ36: 0 | AK36: 0 | AL36: 0 | AM36: 0 | AN36: 0 | AO36: 0 | AP36: 0 | AQ36: 0 | AR36: 0 | AS36: 0 | AT36: 0 | AU36: 0 | AV36: 0 | AW36: 0 | AX36: 0 | AY36: 0 | AZ36: 0 | BA36: 0 | BB36: 0 | BC36: 0 | BD36: 0 | BE36: 0 | BF36: 0 | BG36: 0 | BH36: 0 | BI36: 0 | BJ36: 0 | BK36: 0 | BL36: 0 | BM36: 0 | BN36: 0 | BO36: 0 | BP36: 0 | BQ36: 0 | BR36: 0 | BS36: 0 | BT36: 0 | BU36: 0 | BV36: 0 | BW36: 0 | BX36: 0 | BY36: 0 | BZ36: 0 | CA36: 0 | CB36: 0 | CC36: 0 | CD36: 0 | CE36: 0 | CG36: 0 | CH36: 0 | CI36: 0 | CJ36: 0 | CK36: 0 | CL36: 0 | CM36: 0 | CN36: 0 | CO36: 0 | CP36: 0 | CQ36: 0 | CR36: 0 | CS36: 0 | CT36: 0 | CU36: 0 | CV36: 0 | CW36: 0 | CX36: 0 | CY36: 0 | CZ36: 0 | DA36: 0 | DB36: 0 | DC36: 0 | DD36: 0 | DE36: 0 | DF36: 0 | DG36: 0 | DH36: 0 | DI36: 0 | DJ36: 0 | DK36: 0 | DL36: 0 | DM36: 0 | DN36: 0 | DO36: 0 | DP36: 0 | DQ36: 0 | DR36: 0 | DS36: 0 | DT36: 0 | DU36: 0 | DV36: 0 | DW36: 0 | DX36: 0 | DY36: 0 | DZ36: 0 | EA36: 0 | EB36: 0 | EC36: 0 | ED36: 0 | EE36: 0 | EF36: 0 | EG36: 0 | EH36: 0 | EI36: 0 | EJ36: 0 | EK36: 0 | EL36: 0 | EM36: 0 | EN36: 0 | EO36: 0 | EP36: 0 | EQ36: 0 | ER36: 0 | ES36: 0 | ET36: 0 | EU36: 0 | EV36: 0 | EW36: 0 | EX36: 0 | EY36: 0 | EZ36: 0
E37: 0 | F37: 0 | G37: 0 | H37: 0 | I37: 0 | J37: 0 | L37: 0 | M37: 0 | N37: 0 | O37: 0 | P37: 0 | Q37: 0 | R37: 0 | S37: 0 | T37: 0 | U37: 0 | V37: 0 | W37: 0 | X37: 0 | Y37: 0 | Z37: 0 | AA37: 0 | AB37: 0 | AC37: 0 | AD37: 0 | AE37: 0 | AF37: 0 | AG37: 0 | AH37: 0 | AI37: 0 | AJ37: 0 | AK37: 0 | AL37: 0 | AM37: 0 | AN37: 0 | AO37: 0 | AP37: 0 | AQ37: 0 | AR37: 0 | AS37: 0 | AT37: 0 | AU37: 0 | AV37: 0 | AW37: 0 | AX37: 0 | AY37: 0 | AZ37: 0 | BA37: 0 | BB37: 0 | BC37: 0 | BD37: 0 | BE37: 0 | BF37: 0 | BG37: 0 | BH37: 0 | BI37: 0 | BJ37: 0 | BK37: 0 | BL37: 0 | BM37: 0 | BN37: 0 | BO37: 0 | BP37: 0 | BQ37: 0 | BR37: 0 | BS37: 0 | BT37: 0 | BU37: 0 | BV37: 0 | BW37: 0 | BX37: 0 | BY37: 0 | BZ37: 0 | CA37: 0 | CB37: 0 | CC37: 0 | CD37: 0 | CE37: 0 | CG37: 0 | CH37: 0 | CI37: 0 | CJ37: 0 | CK37: 0 | CL37: 0 | CM37: 0 | CN37: 0 | CO37: 0 | CP37: 0 | CQ37: 0 | CR37: 0 | CS37: 0 | CT37: 0 | CU37: 0 | CV37: 0 | CW37: 0 | CX37: 0 | CY37: 0 | CZ37: 0 | DA37: 0 | DB37: 0 | DC37: 0 | DD37: 0 | DE37: 0 | DF37: 0 | DG37: 0 | DH37: 0 | DI37: 0 | DJ37: 0 | DK37: 0 | DL37: 0 | DM37: 0 | DN37: 0 | DO37: 0 | DP37: 0 | DQ37: 0 | DR37: 0 | DS37: 0 | DT37: 0 | DU37: 0 | DV37: 0 | DW37: 0 | DX37: 0 | DY37: 0 | DZ37: 0 | EA37: 0 | EB37: 0 | EC37: 0 | ED37: 0 | EE37: 0 | EF37: 0 | EG37: 0 | EH37: 0 | EI37: 0 | EJ37: 0 | EK37: 0 | EL37: 0 | EM37: 0 | EN37: 0 | EO37: 0 | EP37: 0 | EQ37: 0 | ER37: 0 | ES37: 0 | ET37: 0 | EU37: 0 | EV37: 0 | EW37: 0 | EX37: 0 | EY37: 0 | EZ37: 0
B38: Seasonal or Capacity Exchange | D38: FPS_EXS | E38: =+SUM(E39:E48) -> 13253.25 | F38: =+SUM(F39:F48) -> 0 | G38: 0 | H38: 0 | I38: 0 | J38: 0 | L38: 2496 | M38: 2400 | N38: 2496 | O38: 0 | P38: 0 | Q38: 0 | R38: 0 | S38: 0 | T38: 0 | U38: 0 | V38: 0 | W38: 0 | X38: 0 | Y38: 0 | Z38: 0 | AA38: 0 | AB38: 0 | AC38: 0 | AD38: 0 | AE38: 0 | AF38: 0 | AG38: 0 | AH38: 0 | AI38: 0 | AJ38: 0 | AK38: 0 | AL38: 0 | AM38: 0 | AN38: 0 | AO38: 0 | AP38: 0 | AQ38: 0 | AR38: 0 | AS38: 0 | AT38: 0 | AU38: 0 | AV38: 0 | AW38: 0 | AX38: 0 | AY38: 0 | AZ38: 0 | BA38: 0 | BB38: 0 | BC38: 0 | BD38: 0 | BE38: 0 | BF38: 0 | BG38: 0 | BH38: 0 | BI38: 0 | BJ38: 0 | BK38: 0 | BL38: 0 | BM38: 0 | BN38: 0 | BO38: 0 | BP38: 0 | BQ38: 0 | BR38: 0 | BS38: 0 | BT38: 0 | BU38: 0 | BV38: 0 | BW38: 0 | BX38: 0 | BY38: 0 | BZ38: 0 | CA38: 0 | CB38: 0 | CC38: 0 | CD38: 0 | CE38: 0 | CG38: 1968 | CH38: 1926 | CI38: 1967.25 | CJ38: 0 | CK38: 0 | CL38: 0 | CM38: 0 | CN38: 0 | CO38: 0 | CP38: 0 | CQ38: 0 | CR38: 0 | CS38: 0 | CT38: 0 | CU38: 0 | CV38: 0 | CW38: 0 | CX38: 0 | CY38: 0 | CZ38: 0 | DA38: 0 | DB38: 0 | DC38: 0 | DD38: 0 | DE38: 0 | DF38: 0 | DG38: 0 | DH38: 0 | DI38: 0 | DJ38: 0 | DK38: 0 | DL38: 0 | DM38: 0 | DN38: 0 | DO38: 0 | DP38: 0 | DQ38: 0 | DR38: 0 | DS38: 0 | DT38: 0 | DU38: 0 | DV38: 0 | DW38: 0 | DX38: 0 | DY38: 0 | DZ38: 0 | EA38: 0 | EB38: 0 | EC38: 0 | ED38: 0 | EE38: 0 | EF38: 0 | EG38: 0 | EH38: 0 | EI38: 0 | EJ38: 0 | EK38: 0 | EL38: 0 | EM38: 0 | EN38: 0 | EO38: 0 | EP38: 0 | EQ38: 0 | ER38: 0 | ES38: 0 | ET38: 0 | EU38: 0 | EV38: 0 | EW38: 0 | EX38: 0 | EY38: 0 | EZ38: 0
C39: Riverside Capacity | D39: FPS_EXS_RVC | E39: 0 | F39: 0 | G39: 0 | H39: 0 | I39: 0 | J39: 0 | L39: 0 | M39: 0 | N39: 0 | O39: 0 | P39: 0 | Q39: 0 | R39: 0 | S39: 0 | T39: 0 | U39: 0 | V39: 0 | W39: 0 | X39: 0 | Y39: 0 | Z39: 0 | AA39: 0 | AB39: 0 | AC39: 0 | AD39: 0 | AE39: 0 | AF39: 0 | AG39: 0 | AH39: 0 | AI39: 0 | AJ39: 0 | AK39: 0 | AL39: 0 | AM39: 0 | AN39: 0 | AO39: 0 | AP39: 0 | AQ39: 0 | AR39: 0 | AS39: 0 | AT39: 0 | AU39: 0 | AV39: 0 | AW39: 0 | AX39: 0 | AY39: 0 | AZ39: 0 | BA39: 0 | BB39: 0 | BC39: 0 | BD39: 0 | BE39: 0 | BF39: 0 | BG39: 0 | BH39: 0 | BI39: 0 | BJ39: 0 | BK39: 0 | BL39: 0 | BM39: 0 | BN39: 0 | BO39: 0 | BP39: 0 | BQ39: 0 | BR39: 0 | BS39: 0 | BT39: 0 | BU39: 0 | BV39: 0 | BW39: 0 | BX39: 0 | BY39: 0 | BZ39: 0 | CA39: 0 | CB39: 0 | CC39: 0 | CD39: 0 | CE39: 0 | CG39: 0 | CH39: 0 | CI39: 0 | CJ39: 0 | CK39: 0 | CL39: 0 | CM39: 0 | CN39: 0 | CO39: 0 | CP39: 0 | CQ39: 0 | CR39: 0 | CS39: 0 | CT39: 0 | CU39: 0 | CV39: 0 | CW39: 0 | CX39: 0 | CY39: 0 | CZ39: 0 | DA39: 0 | DB39: 0 | DC39: 0 | DD39: 0 | DE39: 0 | DF39: 0 | DG39: 0 | DH39: 0 | DI39: 0 | DJ39: 0 | DK39: 0 | DL39: 0 | DM39: 0 | DN39: 0 | DO39: 0 | DP39: 0 | DQ39: 0 | DR39: 0 | DS39: 0 | DT39: 0 | DU39: 0 | DV39: 0 | DW39: 0 | DX39: 0 | DY39: 0 | DZ39: 0 | EA39: 0 | EB39: 0 | EC39: 0 | ED39: 0 | EE39: 0 | EF39: 0 | EG39: 0 | EH39: 0 | EI39: 0 | EJ39: 0 | EK39: 0 | EL39: 0 | EM39: 0 | EN39: 0 | EO39: 0 | EP39: 0 | EQ39: 0 | ER39: 0 | ES39: 0 | ET39: 0 | EU39: 0 | EV39: 0 | EW39: 0 | EX39: 0 | EY39: 0 | EZ39: 0
C40: Riverside Seasonal | D40: FPS_EXS_RVS | E40: 0 | F40: 0 | G40: 0 | H40: 0 | I40: 0 | J40: 0 | L40: 0 | M40: 0 | N40: 0 | O40: 0 | P40: 0 | Q40: 0 | R40: 0 | S40: 0 | T40: 0 | U40: 0 | V40: 0 | W40: 0 | X40: 0 | Y40: 0 | Z40: 0 | AA40: 0 | AB40: 0 | AC40: 0 | AD40: 0 | AE40: 0 | AF40: 0 | AG40: 0 | AH40: 0 | AI40: 0 | AJ40: 0 | AK40: 0 | AL40: 0 | AM40: 0 | AN40: 0 | AO40: 0 | AP40: 0 | AQ40: 0 | AR40: 0 | AS40: 0 | AT40: 0 | AU40: 0 | AV40: 0 | AW40: 0 | AX40: 0 | AY40: 0 | AZ40: 0 | BA40: 0 | BB40: 0 | BC40: 0 | BD40: 0 | BE40: 0 | BF40: 0 | BG40: 0 | BH40: 0 | BI40: 0 | BJ40: 0 | BK40: 0 | BL40: 0 | BM40: 0 | BN40: 0 | BO40: 0 | BP40: 0 | BQ40: 0 | BR40: 0 | BS40: 0 | BT40: 0 | BU40: 0 | BV40: 0 | BW40: 0 | BX40: 0 | BY40: 0 | BZ40: 0 | CA40: 0 | CB40: 0 | CC40: 0 | CD40: 0 | CE40: 0 | CG40: 0 | CH40: 0 | CI40: 0 | CJ40: 0 | CK40: 0 | CL40: 0 | CM40: 0 | CN40: 0 | CO40: 0 | CP40: 0 | CQ40: 0 | CR40: 0 | CS40: 0 | CT40: 0 | CU40: 0 | CV40: 0 | CW40: 0 | CX40: 0 | CY40: 0 | CZ40: 0 | DA40: 0 | DB40: 0 | DC40: 0 | DD40: 0 | DE40: 0 | DF40: 0 | DG40: 0 | DH40: 0 | DI40: 0 | DJ40: 0 | DK40: 0 | DL40: 0 | DM40: 0 | DN40: 0 | DO40: 0 | DP40: 0 | DQ40: 0 | DR40: 0 | DS40: 0 | DT40: 0 | DU40: 0 | DV40: 0 | DW40: 0 | DX40: 0 | DY40: 0 | DZ40: 0 | EA40: 0 | EB40: 0 | EC40: 0 | ED40: 0 | EE40: 0 | EF40: 0 | EG40: 0 | EH40: 0 | EI40: 0 | EJ40: 0 | EK40: 0 | EL40: 0 | EM40: 0 | EN40: 0 | EO40: 0 | EP40: 0 | EQ40: 0 | ER40: 0 | ES40: 0 | ET40: 0 | EU40: 0 | EV40: 0 | EW40: 0 | EX40: 0 | EY40: 0 | EZ40: 0
C41: Pasadena Capacity | D41: FPS_EXS_PAC | E41: 0 | F41: 0 | G41: 0 | H41: 0 | I41: 0 | J41: 0 | L41: 0 | M41: 0 | N41: 0 | O41: 0 | P41: 0 | Q41: 0 | R41: 0 | S41: 0 | T41: 0 | U41: 0 | V41: 0 | W41: 0 | X41: 0 | Y41: 0 | Z41: 0 | AA41: 0 | AB41: 0 | AC41: 0 | AD41: 0 | AE41: 0 | AF41: 0 | AG41: 0 | AH41: 0 | AI41: 0 | AJ41: 0 | AK41: 0 | AL41: 0 | AM41: 0 | AN41: 0 | AO41: 0 | AP41: 0 | AQ41: 0 | AR41: 0 | AS41: 0 | AT41: 0 | AU41: 0 | AV41: 0 | AW41: 0 | AX41: 0 | AY41: 0 | AZ41: 0 | BA41: 0 | BB41: 0 | BC41: 0 | BD41: 0 | BE41: 0 | BF41: 0 | BG41: 0 | BH41: 0 | BI41: 0 | BJ41: 0 | BK41: 0 | BL41: 0 | BM41: 0 | BN41: 0 | BO41: 0 | BP41: 0 | BQ41: 0 | BR41: 0 | BS41: 0 | BT41: 0 | BU41: 0 | BV41: 0 | BW41: 0 | BX41: 0 | BY41: 0 | BZ41: 0 | CA41: 0 | CB41: 0 | CC41: 0 | CD41: 0 | CE41: 0 | CG41: 0 | CH41: 0 | CI41: 0 | CJ41: 0 | CK41: 0 | CL41: 0 | CM41: 0 | CN41: 0 | CO41: 0 | CP41: 0 | CQ41: 0 | CR41: 0 | CS41: 0 | CT41: 0 | CU41: 0 | CV41: 0 | CW41: 0 | CX41: 0 | CY41: 0 | CZ41: 0 | DA41: 0 | DB41: 0 | DC41: 0 | DD41: 0 | DE41: 0 | DF41: 0 | DG41: 0 | DH41: 0 | DI41: 0 | DJ41: 0 | DK41: 0 | DL41: 0 | DM41: 0 | DN41: 0 | DO41: 0 | DP41: 0 | DQ41: 0 | DR41: 0 | DS41: 0 | DT41: 0 | DU41: 0 | DV41: 0 | DW41: 0 | DX41: 0 | DY41: 0 | DZ41: 0 | EA41: 0 | EB41: 0 | EC41: 0 | ED41: 0 | EE41: 0 | EF41: 0 | EG41: 0 | EH41: 0 | EI41: 0 | EJ41: 0 | EK41: 0 | EL41: 0 | EM41: 0 | EN41: 0 | EO41: 0 | EP41: 0 | EQ41: 0 | ER41: 0 | ES41: 0 | ET41: 0 | EU41: 0 | EV41: 0 | EW41: 0 | EX41: 0 | EY41: 0 | EZ41: 0
C42: Pasadena Seasonal | D42: FPS_EXS_PAS | E42: 0 | F42: 0 | G42: 0 | H42: 0 | I42: 0 | J42: 0 | L42: 0 | M42: 0 | N42: 0 | O42: 0 | P42: 0 | Q42: 0 | R42: 0 | S42: 0 | T42: 0 | U42: 0 | V42: 0 | W42: 0 | X42: 0 | Y42: 0 | Z42: 0 | AA42: 0 | AB42: 0 | AC42: 0 | AD42: 0 | AE42: 0 | AF42: 0 | AG42: 0 | AH42: 0 | AI42: 0 | AJ42: 0 | AK42: 0 | AL42: 0 | AM42: 0 | AN42: 0 | AO42: 0 | AP42: 0 | AQ42: 0 | AR42: 0 | AS42: 0 | AT42: 0 | AU42: 0 | AV42: 0 | AW42: 0 | AX42: 0 | AY42: 0 | AZ42: 0 | BA42: 0 | BB42: 0 | BC42: 0 | BD42: 0 | BE42: 0 | BF42: 0 | BG42: 0 | BH42: 0 | BI42: 0 | BJ42: 0 | BK42: 0 | BL42: 0 | BM42: 0 | BN42: 0 | BO42: 0 | BP42: 0 | BQ42: 0 | BR42: 0 | BS42: 0 | BT42: 0 | BU42: 0 | BV42: 0 | BW42: 0 | BX42: 0 | BY42: 0 | BZ42: 0 | CA42: 0 | CB42: 0 | CC42: 0 | CD42: 0 | CE42: 0 | CG42: 0 | CH42: 0 | CI42: 0 | CJ42: 0 | CK42: 0 | CL42: 0 | CM42: 0 | CN42: 0 | CO42: 0 | CP42: 0 | CQ42: 0 | CR42: 0 | CS42: 0 | CT42: 0 | CU42: 0 | CV42: 0 | CW42: 0 | CX42: 0 | CY42: 0 | CZ42: 0 | DA42: 0 | DB42: 0 | DC42: 0 | DD42: 0 | DE42: 0 | DF42: 0 | DG42: 0 | DH42: 0 | DI42: 0 | DJ42: 0 | DK42: 0 | DL42: 0 | DM42: 0 | DN42: 0 | DO42: 0 | DP42: 0 | DQ42: 0 | DR42: 0 | DS42: 0 | DT42: 0 | DU42: 0 | DV42: 0 | DW42: 0 | DX42: 0 | DY42: 0 | DZ42: 0 | EA42: 0 | EB42: 0 | EC42: 0 | ED42: 0 | EE42: 0 | EF42: 0 | EG42: 0 | EH42: 0 | EI42: 0 | EJ42: 0 | EK42: 0 | EL42: 0 | EM42: 0 | EN42: 0 | EO42: 0 | EP42: 0 | EQ42: 0 | ER42: 0 | ES42: 0 | ET42: 0 | EU42: 0 | EV42: 0 | EW42: 0 | EX42: 0 | EY42: 0 | EZ42: 0
